Workbook

Sheet Rosto PT

Sheet Rosto EN

Sheet EDP Energias do Brasil
B2: EDP Energias do Brasil Consolidado
B4: R$ Mil | C4: 2023-06-01 | D4: 2023-03-01 | E4: 2022-12-01 | F4: 2022-09-01 | G4: 2022-06-01 | H4: 2022-03-01 | I4: 2021-12-01 | J4: 2021-09-01 | K4: 2021-06-30 | L4: 2021-03-31 | M4: 2020-12-30 | N4: 2020-09-30 | O4: 2020-06-30 | P4: 2020-03-31 | Q4: 2019-12-30 | R4: 2019-09-30 | S4: 2019-06-30 | T4: 2019-03-31 | U4: 2018-12-30 | V4: 2018-09-30 | W4: 2018-06-30 | X4: 2018-03-31 | Y4: 2017-12-31 | Z4: 2017-09-30 | AA4: 2017-06-30 | AB4: 2017-03-31 | AC4: 2016-12-31 | AD4: 2016-09-30 | AE4: 2016-06-30 | AF4: 2016-03-31 | AG4: 2015-12-31 | AH4: 2015-09-30 | AI4: 2015-06-30 | AJ4: 2015-03-31 | AK4: 2014-12-31 | AL4: 2014-09-30 | AM4: 2014-06-30 | AN4: 2014-03-31 | AO4: 2013-12-31 | AP4: 2013-09-30 | AQ4: 2013-06-30 | AR4: 2013-03-31 | AS4: 2012-12-30 | AT4: 2012-09-30 | AU4: 2012-06-30 | AV4: 2012-03-31 | AW4: 2011-12-31 | AX4: 2011-09-30 | AY4: 2011-06-30 | AZ4: 2011-03-31 | BA4: 2010-12-31 | BB4: 2010-12-31 | BC4: 2010-06-30 | BD4: 2010-03-31 | BE4: 2009-12-31 | BF4: 2009-09-30 | BG4: 2009-06-30 | BH4: 2009-03-31
C5: 2T23 | D5: 1T23 | E5: 4T22 | F5: 3T22 | G5: 2T22 | H5: 1T22 | I5: 4T21 | J5: 3T21 | K5: 2T21 | L5: 1T21 | M5: 4T20 | N5: 3T20 | O5: 2T20 | P5: 1T20 | Q5: 4T19 | R5: 3T19 | S5: 2T19 | T5: 1T19 | U5: 4T18 | V5: 3T18 | W5: 2T18 | X5: 1T18 | Y5: 4T17 | Z5: 3T17 | AA5: 2T17 | AB5: 1T17 | AC5: 4T16 | AD5: 3T16 | AE5: 2T16 | AF5: 1T16 | AG5: 4T15 | AH5: 3T15 | AI5: 2T15 | AJ5: 1T15 | AK5: 4T14 | AL5: 3T14 | AM5: 2T14 | AN5: 1T14 | AO5: 4T13 | AP5: 3T13 | AQ5: 2T13 | AR5: 1T13 | AS5: 4T12 | AT5: 3T12 | AU5: 2T12 | AV5: 1T12 | AW5: 4T11 | AX5: 3T11 | AY5: 2T11 | AZ5: 1T11 | BA5: 4T10 | BB5: 3T10 | BC5: 2T10 | BD5: 1T10 | BE5: 4T09 | BF5: 3T09 | BG5: 2T09 | BH5: 1T09 | BJ5: 2021 | BK5: 2020 | BL5: 2019 | BM5: 2018 | BN5: 2017 | BO5: 2016 | BP5: 2015 | BQ5: 2014 | BR5: 2013 | BS5: 2012 | BT5: 2011 | BU5: 2010 | BV5: 2009
A7: Receitas | B7: Receita operacional líquida | C7: 3562189 | D7: 3745567 | E7: 3982396 | F7: 4086589 | G7: 3617436 | H7: 3706852 | I7: 4665960 | J7: 5177330 | K7: 3398529 | L7: 3430667 | M7: 4320117 | N7: 3006907 | O7: 2601582 | P7: 3279078 | Q7: 3617237 | R7: 3435764 | S7: 2676012 | T7: 2827823 | U7: 2952522 | V7: 3803757 | W7: 3255823 | X7: 2834294 | Y7: 3548326 | Z7: 3328217 | AA7: 2581699 | AB7: 2306609 | AC7: 2393877 | AD7: 2382864 | AE7: 2025798 | AF7: 2081583 | AG7: 2981039 | AH7: 2342045 | AI7: 2529955 | AJ7: 2090052 | AK7: 2755089 | AL7: 1981135 | AM7: 1767551 | AN7: 2100898 | AO7: 1700062 | AP7: 1648482 | AQ7: 1575689 | AR7: 1846534 | AS7: 1821193 | AT7: 1509028 | AU7: 1441193 | AV7: 1447338 | AW7: 1355096 | AX7: 1320559 | AY7: 1341180 | AZ7: 1384827 | BA7: 1362823 | BB7: 1246715.214 | BC7: 1224370.206 | BD7: 1200408 | BE7: 1205766.182 | BF7: 1183158 | BG7: 1116423 | BH7: 1116355 | BJ7: =SUM(I7:L7) -> 16672486 | BK7: =SUM(M7:P7) -> 13207684 | BL7: 12556836 | BM7: 12846396 | BN7: 11764851 | BO7: 8884122 | BP7: 9943091 | BQ7: 8604673 | BR7: 6770767 | BS7: 6218752 | BT7: 5401662 | BU7: 5034316.42 | BV7: 4621702.182
B8: Receita com construção da infraestrutura | C8: =-C47 -> 533883 | D8: =-D47 -> 565290 | E8: 561815 | F8: =-F47 -> 524006 | G8: 482111 | H8: 419688 | I8: 572645 | J8: 538615 | K8: 538775 | L8: 500771 | M8: 605496 | N8: 453719 | O8: 383594 | P8: 329873 | Q8: 1076230 | R8: 477293 | S8: 602409 | T8: 433915 | U8: 304221 | V8: 349263 | W8: 197651 | X8: 119494 | Y8: 183646 | Z8: 149606 | AA8: 127105 | AB8: 142170 | AC8: 138018 | AD8: 157785 | AE8: 115169 | AF8: 69678 | AG8: 120457 | AH8: 77966 | AI8: 64270 | AJ8: 54650 | AK8: 58245 | AL8: 96375 | AM8: 70293 | AN8: 69142 | AO8: 123058 | AP8: 91690 | AQ8: 66734 | AR8: 44243 | AS8: 85564 | AT8: 66553 | AU8: 19140 | AV8: 64479 | AW8: 72536 | AX8: 96841 | AY8: 134370 | AZ8: 0 | BA8: 0 | BB8: 0 | BC8: 0 | BD8: 0 | BE8: 0 | BF8: 0 | BG8: 0 | BH8: 0 | BJ8: =SUM(I8:L8) -> 2150806 | BK8: =SUM(M8:P8) -> 1772682 | BL8: 2589847 | BM8: 970629 | BN8: 602527 | BO8: 480650 | BP8: 317343 | BQ8: 294055 | BR8: 325725 | BS8: 235736 | BT8: 303747 | BU8: 0 | BV8: 0
B9: Margem de Construção Transmissão | C9: -18733 | D9: 4200 | E9: -21423 | F9: -21978 | G9: -34408 | H9: -15429 | I9: -4940 | J9: -22677 | K9: 17124 | L9: 61355 | M9: 15517 | N9: -7566 | O9: -860 | P9: -3657 | Q9: 46330 | R9: 2915 | S9: 3415 | T9: 28993 | U9: 17899 | V9: -704 | W9: 0 | X9: 0 | Y9: -7823 | Z9: 0 | AA9: 0 | AB9: 0 | AC9: 0 | AD9: 0 | AE9: 0 | AF9: 0 | AG9: 0 | AH9: 0 | AI9: 0 | AJ9: 0 | AK9: 0 | AL9: 0 | AM9: 0 | AN9: 0 | AO9: 0 | AP9: 0 | AQ9: 0 | AR9: 0 | AS9: 0 | AT9: 0 | AU9: 0 | AV9: 0 | AW9: 0 | AX9: 0 | AY9: 0 | AZ9: 0 | BA9: 0 | BB9: 0 | BC9: 0 | BD9: 0 | BE9: 0 | BF9: 0 | BG9: 0 | BH9: 0 | BJ9: =SUM(I9:L9) -> 50862 | BK9: =SUM(M9:P9) -> 3434 | BL9: 81653 | BM9: 17195 | BN9: -7823 | BO9: 0 | BP9: 0 | BQ9: 0 | BR9: 0 | BS9: 0 | BT9: 0 | BU9: 0 | BV9: 0
B10: Gastos não gerenciáveis | C10: =SUM(C11:C24) -> -2054993 | D10: -2005462 | E10: -2346147 | F10: -2221148 | G10: -1998694 | H10: -2034348 | I10: =SUM(I11:I24) -> -3199496 | J10: -3708619 | K10: -2247747 | L10: -2106458 | M10: -2505921 | N10: -1976603 | O10: -1684156 | P10: -2214929 | Q10: -2538616 | R10: -2316456 | S10: -1789878 | T10: -1834555 | U10: -2054974 | V10: -2809413 | W10: -2298405 | X10: -1879304 | Y10: -2638750 | Z10: -2463762 | AA10: -1719799 | AB10: -1427193 | AC10: -1642477 | AD10: -1447472 | AE10: -1226019 | AF10: -1278888 | AG10: -1948802 | AH10: -1468906 | AI10: -1911767 | AJ10: -1423145 | AK10: -1680268 | AL10: -1423118 | AM10: -1493445 | AN10: -1465242 | AO10: -1191460 | AP10: -823900 | AQ10: -991524 | AR10: -1150377 | AS10: -1322009 | AT10: -1005053 | AU10: -942021 | AV10: -828091 | AW10: -806701 | AX10: -760025 | AY10: -711926 | AZ10: -724249 | BA10: -782096 | BB10: -724697 | BC10: -634732 | BD10: -599817 | BE10: -558514 | BF10: -637277 | BG10: -592550 | BH10: -591394 | BJ10: =SUM(I10:L10) -> -11262320 | BK10: -8381609 | BL10: -8479505 | BM10: -9042096 | BN10: -8249504 | BO10: -5594856 | BP10: -6752620 | BQ10: -6062073 | BR10: -4157261 | BS10: -4097174 | BT10: -3002901 | BU10: -2741342 | BV10: -2379735
A11: Energia elétrica comprada para revenda | B11: Energia comprada para revenda | C11: -1645576 | D11: -1614956 | E11: -1809847 | F11: -1794640 | G11: -1592270 | H11: -1719619 | I11: -2231431 | J11: -3133432 | K11: -1806074 | L11: -1663393 | M11: -2224774 | N11: -1665941 | O11: -1405209 | P11: -1908627 | Q11: -2115561 | R11: -1927604 | S11: -1460738 | T11: -1422516 | U11: -1750434 | V11: -2406796 | W11: -1833395 | X11: -1402184 | Y11: -2157392 | Z11: -2076847 | AA11: -1410601 | AB11: -1134295 | AC11: -1330341 | AD11: -1184082 | AE11: -1039423 | AF11: -1056709 | AG11: -1739117 | AH11: -1270964 | AI11: -1738990 | AJ11: -1306999 | AK11: -1719412 | AL11: -1297300 | AM11: -1391895 | AN11: -1361257 | AO11: -1100500 | AP11: -730192 | AQ11: -908046 | AR11: -1061188 | AS11: -1149985 | AT11: -912706 | AU11: -763850 | AV11: -642861 | AW11: -623785 | AX11: -578521 | AY11: -547368 | AZ11: -553148 | BA11: -612275 | BB11: -561439 | BC11: -475984 | BD11: -433376 | BE11: -542751 | BF11: -548529 | BG11: -522120 | BH11: -504311 | BJ11: -8834330 | BK11: -7204551 | BL11: -6926419 | BM11: -7392809 | BN11: -6779135 | BO11: -4610555 | BP11: -6056070 | BQ11: -5769864 | BR11: -3799926 | BS11: -3469402 | BT11: -2302822 | BU11: -2083074 | BV11: -2117711
B12: Moeda Estrangeira - Itaipu | N12: 0 | O12: 0 | P12: 0 | Q12: 0 | R12: 0 | S12: 0 | T12: 0 | U12: 0 | V12: 0 | W12: 0 | X12: 0 | Y12: 0 | Z12: 0 | AA12: 0 | AB12: 0 | AC12: 0 | AD12: 0 | AE12: 0 | AF12: 0 | AG12: -309029 | AH12: -319525 | AI12: -243493 | AJ12: -224242 | AK12: -131325 | AL12: -124921 | AM12: -118871 | AN12: -122952 | AO12: -131690 | AP12: -130959 | AQ12: -124866 | AR12: -113375 | AS12: -113645 | AT12: -113773 | AU12: -110073 | AV12: -96360 | AW12: -100194 | AX12: -95127 | AY12: -85483 | AZ12: -91818 | BA12: -94767 | BB12: -96770 | BC12: -98655 | BD12: -101148 | BE12: -99596 | BF12: -105932 | BG12: -115984 | BH12: -132701 | BJ12: 0 | BK12: 0 | BL12: 0 | BM12: 0 | BN12: 0 | BO12: 0 | BP12: -1096289 | BQ12: -498069 | BR12: -500890 | BS12: -433851 | BT12: -372622 | BU12: -391340 | BV12: -454213
B13: Moeda Nacional | N13: 0 | O13: 0 | P13: 0 | Q13: 0 | R13: 0 | S13: 0 | T13: 0 | U13: 0 | V13: 0 | W13: 0 | X13: 0 | Y13: 0 | Z13: 0 | AA13: 0 | AB13: 0 | AC13: 0 | AD13: 0 | AE13: 0 | AF13: 0 | AG13: -1048686 | AH13: -1128697 | AI13: -1499193 | AJ13: -1337749 | AK13: -1588087 | AL13: -1446223 | AM13: -1273024 | AN13: -1639795 | AO13: -1563549 | AP13: -599233 | AQ13: -783180 | AR13: -947813 | AS13: -1036340 | AT13: -798933 | AU13: -653777 | AV13: -546501 | AW13: -523591 | AX13: -483394 | AY13: -461885 | AZ13: -461330 | BA13: -517508 | BB13: -464669 | BC13: -377329 | BD13: -332228 | BE13: 1220343 | BF13: -442597 | BG13: -406136 | BH13: -371610 | BJ13: 0 | BK13: 0 | BL13: 0 | BM13: 0 | BN13: 0 | BO13: 0 | BP13: -5014325 | BQ13: -5947129 | BR13: -3893775 | BS13: -3035551 | BT13: -1930200 | BU13: -1691734 | BV13: 0
B14: Ressarcimento CDE / CCEE / CONER | N14: 0 | O14: 0 | P14: 0 | Q14: 0 | R14: 0 | S14: 0 | T14: 0 | U14: 0 | V14: 0 | W14: 0 | X14: 0 | Y14: 0 | Z14: 0 | AA14: 0 | AB14: 0 | AC14: 0 | AD14: 0 | AE14: 0 | AF14: 0 | AG14: -381402 | AH14: 177258 | AI14: 3696 | AJ14: 254992 | AK14: 171025 | AL14: 273844 | AM14: 0 | AN14: 401490 | AO14: 594739 | AP14: 0 | AQ14: 0 | AR14: 0 | AS14: 0 | AT14: 0 | AU14: 0 | AV14: 0 | AW14: 0 | AX14: 0 | AY14: 0 | AZ14: 0 | BA14: 0 | BB14: 0 | BC14: 0 | BD14: 0 | BE14: 0 | BJ14: 0 | BK14: 0 | BL14: 0 | BM14: 0 | BN14: 0 | BO14: 0 | BP14: 54544 | BQ14: 846359 | BR14: 594739 | BS14: 0 | BT14: 0 | BU14: 0 | BV14: 0
B15: Leilão | N15: 0 | O15: 0 | P15: 0 | Q15: 0 | R15: 0 | S15: 0 | T15: 0 | U15: 0 | V15: 0 | W15: 0 | X15: 0 | Y15: 0 | Z15: 0 | AA15: 0 | AB15: 0 | AC15: 0 | AD15: 0 | AE15: 0 | AF15: 0 | AH15: 0 | AI15: 0 | AJ15: 0 | AK15: 0 | AL15: 0 | AM15: 0 | AN15: 0 | AO15: 0 | AP15: 0 | AQ15: 0 | AR15: 0 | AS15: 0 | AT15: 0 | AU15: 0 | AV15: 0 | AW15: 0 | AX15: 0 | AY15: 0 | AZ15: 0 | BA15: 0 | BB15: 0 | BC15: 0 | BD15: 0 | BE15: -201485 | BF15: -185941 | BG15: -175744 | BH15: -148642 | BJ15: 0 | BK15: 0 | BL15: 0 | BM15: 0 | BN15: 0 | BO15: 0 | BP15: 0 | BQ15: 0 | BR15: 0 | BS15: 0 | BT15: 0 | BU15: 0 | BV15: -711812
B16: PROINFA | N16: 0 | O16: 0 | P16: 0 | Q16: 0 | R16: 0 | S16: 0 | T16: 0 | U16: 0 | V16: 0 | W16: 0 | X16: 0 | Y16: 0 | Z16: 0 | AA16: 0 | AB16: 0 | AC16: 0 | AD16: 0 | AE16: 0 | AF16: 0 | AH16: 0 | AI16: 0 | AJ16: 0 | AK16: 0 | AL16: 0 | AM16: 0 | AN16: 0 | AO16: 0 | AP16: 0 | AQ16: 0 | AR16: 0 | AS16: 0 | AT16: 0 | AU16: 0 | AV16: 0 | AW16: 0 | AX16: 0 | AY16: 0 | AZ16: 0 | BA16: 0 | BB16: 0 | BC16: 0 | BD16: 0 | BE16: 11386 | BF16: -22883 | BG16: -22883 | BH16: -26263 | BJ16: 0 | BK16: 0 | BL16: 0 | BM16: 0 | BN16: 0 | BO16: 0 | BP16: 0 | BQ16: 0 | BR16: 0 | BS16: 0 | BT16: 0 | BU16: 0 | BV16: -60643
B17: Contratos bilaterais | N17: 0 | O17: 0 | P17: 0 | Q17: 0 | R17: 0 | S17: 0 | T17: 0 | U17: 0 | V17: 0 | W17: 0 | X17: 0 | Y17: 0 | Z17: 0 | AA17: 0 | AB17: 0 | AC17: 0 | AD17: 0 | AE17: 0 | AF17: 0 | AH17: 0 | AI17: 0 | AJ17: 0 | AK17: 0 | AL17: 0 | AM17: 0 | AN17: 0 | AO17: 0 | AP17: 0 | AQ17: 0 | AR17: 0 | AS17: 0 | AT17: 0 | AU17: 0 | AV17: 0 | AW17: 0 | AX17: 0 | AY17: 0 | AZ17: 0 | BA17: 0 | BB17: 0 | BC17: 0 | BD17: 0 | BE17: -800746 | BF17: 1478 | BG17: -1478 | BH17: 0 | BJ17: 0 | BK17: 0 | BL17: 0 | BM17: 0 | BN17: 0 | BO17: 0 | BP17: 0 | BQ17: 0 | BR17: 0 | BS17: 0 | BT17: 0 | BU17: 0 | BV17: -800746
B18: Energia de curto prazo - CCEE | N18: 0 | O18: 0 | P18: 0 | Q18: 0 | R18: 0 | S18: 0 | T18: 0 | U18: 0 | V18: 0 | W18: 0 | X18: 0 | Y18: 0 | Z18: 0 | AA18: 0 | AB18: 0 | AC18: 0 | AD18: 0 | AE18: 0 | AF18: 0 | AH18: 0 | AI18: 0 | AJ18: 0 | AK18: 0 | AL18: 0 | AM18: 0 | AN18: 0 | AO18: 0 | AP18: 0 | AQ18: 0 | AR18: 0 | AS18: 0 | AT18: 0 | AU18: 0 | AV18: 0 | AW18: 0 | AX18: 0 | AY18: 0 | AZ18: 0 | BA18: 0 | BB18: 0 | BC18: 0 | BD18: 0 | BE18: -9219 | BF18: -17022 | BG18: -10213 | BH18: -31865 | BJ18: 0 | BK18: 0 | BL18: 0 | BM18: 0 | BN18: 0 | BO18: 0 | BP18: 0 | BQ18: 0 | BR18: 0 | BS18: 0 | BT18: 0 | BU18: 0 | BV18: -68319
B19: Outros supridores | N19: 0 | O19: 0 | P19: 0 | Q19: 0 | R19: 0 | S19: 0 | T19: 0 | U19: 0 | V19: 0 | W19: 0 | X19: 0 | Y19: 0 | Z19: 0 | AA19: 0 | AB19: 0 | AC19: 0 | AD19: 0 | AE19: 0 | AF19: 0 | AH19: 0 | AI19: 0 | AJ19: 0 | AK19: 0 | AL19: 0 | AM19: 0 | AN19: 0 | AO19: 0 | AP19: 0 | AQ19: 0 | AR19: 0 | AS19: 0 | AT19: 0 | AU19: 0 | AV19: 0 | AW19: 0 | AX19: 0 | AY19: 0 | AZ19: 0 | BA19: 0 | BB19: 0 | BC19: 0 | BD19: 0 | BE19: 571809 | BF19: -211726 | BG19: -194673 | BH19: -187388 | BJ19: 0 | BK19: 0 | BL19: 0 | BM19: 0 | BN19: 0 | BO19: 0 | BP19: 0 | BQ19: 0 | BR19: 0 | BS19: 0 | BT19: 0 | BU19: 0 | BV19: -21978
B20: Efeito líquido da CVA | N20: 0 | O20: 0 | P20: 0 | Q20: 0 | R20: 0 | S20: 0 | T20: 0 | U20: 0 | V20: 0 | W20: 0 | X20: 0 | Y20: 0 | Z20: 0 | AA20: 0 | AB20: 0 | AC20: 0 | AD20: 0 | AE20: 0 | AF20: 0 | AH20: 0 | AI20: 0 | AJ20: 0 | AK20: 0 | AL20: 0 | AM20: 0 | AN20: 0 | AO20: 0 | AP20: 0 | AQ20: 0 | AR20: 0 | AS20: 0 | AT20: 0 | AU20: 0 | AV20: 0 | AW20: 0 | AX20: 0 | AY20: 0 | AZ20: 0 | BA20: 0 | BB20: 0 | BC20: 0 | BD20: 0 | BE20: -14900 | BF20: -6503 | BG20: -1145 | BH20: 22548 | BJ20: 0 | BK20: 0 | BL20: 0 | BM20: 0 | BN20: 0 | BO20: 0 | BP20: 0 | BQ20: 0 | BR20: 0 | BS20: 0 | BT20: 0 | BU20: 0 | BV20: 0
A21: Encargos de uso da rede elétrica | B21: Encargos de uso do sistema | C21: -360858 | D21: -341993 | E21: -354784 | F21: -325283 | G21: -303821 | H21: -306876 | I21: -301427 | J21: -291020 | K21: -323334 | L21: -323017 | M21: -327991 | N21: -315734 | O21: -230394 | P21: -246890 | Q21: -263003 | R21: -247043 | S21: -223089 | T21: -224204 | U21: -226157 | V21: -213701 | W21: -266973 | X21: -260721 | Y21: -244013 | Z21: -188432 | AA21: -123117 | AB21: -124474 | AC21: -122936 | AD21: -120499 | AE21: -114331 | AF21: -117644 | AG21: -116991 | AH21: -115829 | AI21: -119745 | AJ21: -113196 | AK21: -117126 | AL21: -114938 | AM21: -86212 | AN21: -83452 | AO21: -79518 | AP21: -84299 | AQ21: -71044 | AR21: -74722 | AS21: -157302 | AT21: -82364 | AU21: -165614 | AV21: -169008 | AW21: -169774 | AX21: -171850 | AY21: -153377 | AZ21: -156397 | BA21: -157388 | BB21: -154568 | BC21: -148822 | BD21: -154368 | BE21: -95800 | BF21: -156603 | BG21: -128930 | BH21: -141322 | BJ21: -1238798 | BK21: -1121009 | BL21: -957339 | BM21: -967552 | BN21: -680036 | BO21: -475410 | BP21: -465761 | BQ21: -401728 | BR21: -309583 | BS21: -574288 | BT21: -651398 | BU21: -615146 | BV21: -522655
B22: Prêmio de risco - GSF | C22: 0 | D22: 0 | E22: 3269 | F22: 0 | G22: 0 | H22: 0 | I22: -1 | J22: 141789 | K22: 0 | L22: 23296 | M22: 388859 | BJ22: 165084 | BK22: 388859
B23: Compromissos futuros | C23: -6218 | D23: 0 | E23: 0 | F23: 0 | G23: 0 | H23: 0 | I23: 0 | J23: 0 | K23: 0 | L23: 0 | M23: -180145 | BJ23: 0 | BK23: -180145
B24: Outras | C24: =C30+C31 -> -42341 | D24: -48513 | E24: =E30+E31 -> -184785 | F24: -101225 | G24: -102603 | H24: -7853 | I24: -666637 | J24: -425956 | K24: =K30+K31 -> -118339 | L24: -143344 | M24: -161870 | N24: 5072 | O24: -48553 | P24: -59412 | Q24: -160052 | R24: -141809 | S24: -106051 | T24: -187835 | U24: -78383 | V24: -188916 | W24: -198037 | X24: -216399 | Y24: -237345 | Z24: -180460 | AA24: -193634 | AB24: -165543 | AC24: -189200 | AD24: -142891 | AE24: -72265 | AF24: -104535 | AG24: -92694 | AH24: -82113 | AI24: -53032 | AJ24: -2950 | AK24: -14755 | AL24: -10880 | AM24: -15338 | AN24: -20533 | AO24: -11442 | AP24: -9409 | AQ24: -12434 | AR24: -14467 | AS24: -14722 | AT24: -9983 | AU24: -12557 | AV24: -16222 | AW24: -13142 | AX24: -9654 | AY24: -11181 | AZ24: -14704 | BA24: -12433 | BB24: -8690 | BC24: -9926 | BD24: -12073 | BE24: 80037 | BF24: 67855 | BG24: 58500 | BH24: 54239 | BJ24: -1354276 | BK24: -264763 | BL24: -595747 | BM24: -681735 | BN24: -776982 | BO24: -508891 | BP24: -230789 | BQ24: -61506 | BR24: -47752 | BS24: -53484 | BT24: -48681 | BU24: -43122 | BV24: 260631
B25: Programa de eficiência energética | C25: 0 | D25: 0 | E25: 0 | F25: 0 | G25: 0 | H25: 0 | I25: 0 | J25: 0 | K25: 0 | L25: 0 | M25: 0 | N25: 0 | O25: 0 | P25: 0 | Q25: 0 | R25: 0 | S25: 0 | T25: 0 | U25: 0 | V25: 0 | W25: 0 | X25: 0 | Y25: 0 | Z25: 0 | AA25: 0 | AB25: 0 | AC25: 0 | AD25: 0 | AE25: 0 | AF25: 0 | AH25: 0 | AI25: 0 | AJ25: 0 | AK25: 0 | AL25: 0 | AM25: 0 | AN25: 0 | AO25: 0 | AP25: 0 | AQ25: 0 | AR25: 0 | AS25: 0 | AT25: 0 | AU25: 0 | AV25: 0 | AW25: 0 | AX25: 0 | AY25: 0 | AZ25: 0 | BA25: 0 | BB25: 0 | BE25: 0 | BF25: -124 | BG25: -98 | BH25: -50 | BJ25: 0 | BK25: 0 | BL25: 0 | BM25: 0 | BN25: 0 | BO25: 0 | BP25: 0 | BQ25: 0 | BR25: 0 | BS25: 0 | BT25: 0 | BU25: 0 | BV25: -272
B26: PIS/Cofins | C26: 0 | D26: 0 | E26: 0 | F26: 0 | G26: 0 | H26: 0 | I26: 0 | J26: 0 | K26: 0 | L26: 0 | M26: 0 | N26: 0 | O26: 0 | P26: 0 | Q26: 0 | R26: 0 | S26: 0 | T26: 0 | U26: 0 | V26: 0 | W26: 0 | X26: 0 | Y26: 0 | Z26: 0 | AA26: 0 | AB26: 0 | AC26: 0 | AD26: 0 | AE26: 0 | AF26: 0 | AH26: 0 | AI26: 0 | AJ26: 0 | AK26: 0 | AL26: 0 | AM26: 0 | AN26: 0 | AO26: 0 | AP26: 0 | AQ26: 0 | AR26: 0 | AS26: 0 | AT26: 0 | AU26: 0 | AV26: 0 | AW26: 0 | AX26: 0 | AY26: 0 | AZ26: 0 | BA26: 0 | BB26: 0 | BE26: 83739 | BF26: 76971 | BG26: 71472 | BH26: 67875 | BJ26: 0 | BK26: 0 | BL26: 0 | BM26: 0 | BN26: 0 | BO26: 0 | BP26: 0 | BQ26: 0 | BR26: 0 | BS26: 0 | BT26: 0 | BU26: 0 | BV26: 300057
B27: Taxa de fiscalização | C27: 0 | D27: 0 | E27: 0 | F27: 0 | G27: 0 | H27: 0 | I27: 0 | J27: 0 | K27: 0 | L27: 0 | M27: 0 | N27: 0 | O27: 0 | P27: 0 | Q27: 0 | R27: 0 | S27: 0 | T27: 0 | U27: 0 | V27: 0 | W27: 0 | X27: 0 | Y27: 0 | Z27: 0 | AA27: 0 | AB27: 0 | AC27: 0 | AD27: 0 | AE27: 0 | AF27: 0 | AG27: 28 | AH27: -9 | AI27: -9 | AJ27: -10 | AK27: -2959 | AL27: -2530 | AM27: -2572 | AN27: -2577 | AO27: -2511 | AP27: -3408 | AQ27: -3579 | AR27: -3580 | AS27: -3629 | AT27: -3185 | AU27: -4005 | AV27: -3586 | AW27: -3446 | AX27: -3434 | AY27: -3462 | AZ27: -3457 | BA27: -3423 | BB27: -3201 | BC27: -2994 | BD27: -3013 | BE27: -2576 | BF27: -3004 | BG27: -3029 | BH27: -2978 | BJ27: 0 | BK27: 0 | BL27: 0 | BM27: 0 | BN27: 0 | BO27: 0 | BP27: 0 | BQ27: -10638 | BR27: -13078 | BS27: -14405 | BT27: -13799 | BU27: -12631 | BV27: -11587
B28: Direito de outorga - UBP | C28: 0 | D28: 0 | E28: 0 | F28: 0 | G28: 0 | H28: 0 | I28: 0 | J28: 0 | K28: 0 | L28: 0 | M28: 0 | N28: 0 | O28: 0 | P28: 0 | Q28: 0 | R28: 0 | S28: 0 | T28: 0 | U28: 0 | V28: 0 | W28: 0 | X28: 0 | Y28: 0 | Z28: 0 | AA28: 0 | AB28: 0 | AC28: 0 | AD28: 0 | AE28: 0 | AF28: 0 | AH28: 0 | AJ28: 0 | AK28: 0 | AL28: 0 | AM28: 0 | AN28: 0 | AO28: 0 | AP28: 0 | AQ28: 0 | AR28: 0 | AS28: 0 | AT28: 0 | AU28: 0 | AV28: 0 | AW28: 0 | AX28: 0 | AY28: 0 | AZ28: 0 | BA28: 0 | BB28: 0 | BE28: 0 | BF28: -2038 | BG28: -2038 | BH28: -2038 | BJ28: 0 | BK28: 0 | BL28: 0 | BM28: 0 | BN28: 0 | BO28: 0 | BP28: 0 | BQ28: 0 | BR28: 0 | BS28: 0 | BT28: 0 | BU28: 0 | BV28: 0
B29: Compensações financeiras | C29: 0 | D29: 0 | E29: 0 | F29: 0 | G29: 0 | H29: 0 | I29: 0 | J29: 0 | K29: 0 | L29: 0 | M29: 0 | N29: 0 | O29: 0 | P29: 0 | Q29: 0 | R29: 0 | S29: 0 | T29: 0 | U29: 0 | V29: 0 | W29: 0 | X29: 0 | Y29: 0 | Z29: 0 | AA29: 0 | AB29: 0 | AC29: 0 | AD29: 0 | AE29: 0 | AF29: 0 | AG29: 0 | AH29: 0 | AI29: 0 | AJ29: 0 | AK29: -9912 | AL29: -6863 | AM29: -8503 | AN29: -12350 | AO29: -8931 | AP29: -6001 | AQ29: -8855 | AR29: -10887 | AS29: -11093 | AT29: -6798 | AU29: -8552 | AV29: -12636 | AW29: -9696 | AX29: -6220 | AY29: -7719 | AZ29: -11247 | BA29: -9010 | BB29: -5489 | BC29: -6932 | BD29: -9060 | BE29: -7240 | BF29: -3950 | BG29: -7807 | BH29: -8570 | BJ29: 0 | BK29: 0 | BL29: 0 | BM29: 0 | BN29: 0 | BO29: 0 | BP29: 0 | BQ29: -37628 | BR29: -34674 | BS29: -39079 | BT29: -34882 | BU29: -30491 | BV29: -27567
B30: Outras | C30: -1480 | D30: -1189 | E30: -73662 | F30: -1476 | G30: -1242 | H30: -1300 | I30: -1211 | J30: -1239 | K30: -1364 | L30: -1782 | M30: 15882 | N30: 20417 | O30: -42410 | P30: -1838 | Q30: -1711 | R30: -72 | S30: -1343 | T30: -2061 | U30: -353 | V30: -3654 | W30: -1206 | X30: -1393 | Y30: -3520 | Z30: -2340 | AA30: -812 | AB30: -5 | AC30: -17 | AD30: -47 | AE30: -27 | AF30: -1971 | AG30: -8530 | AH30: -3632 | AI30: -3717 | AJ30: -2940 | AK30: -1884 | AL30: -1487 | AM30: -4263 | AN30: -5606 | AO30: 0 | AP30: 0 | AQ30: 0 | AR30: 0 | AS30: 0 | AT30: 0 | AU30: 0 | AV30: 0 | AW30: 0 | AX30: 0 | AY30: 0 | AZ30: 0 | BA30: 0 | BB30: 0 | BC30: 0 | BD30: 0 | BE30: 0 | BF30: 0 | BG30: 0 | BH30: 0 | BJ30: -5596 | BK30: -7949 | BL30: -5187 | BM30: -6606 | BN30: -6677 | BO30: -2062 | BP30: -18819 | BQ30: -13240 | BR30: 0 | BS30: 0 | BT30: 0 | BU30: 0 | BV30: 0
B31: Custo da matéria prima consumida | C31: -40861 | D31: -47324 | E31: -111123 | F31: -99749 | G31: -101361 | H31: -6553 | I31: -665426 | J31: -424717 | K31: -116975 | L31: -141562 | M31: -177752 | N31: -15345 | O31: -6143 | P31: -57574 | Q31: -158341 | R31: -141737 | S31: -104708 | T31: -185774 | U31: -78030 | V31: -185262 | W31: -196831 | X31: -215006 | Y31: -233825 | Z31: -178120 | AA31: -192822 | AB31: -165538 | AC31: -194310 | AD31: -143662 | AE31: -131645 | AF31: -132727 | AG31: -162256 | AH31: -135704 | AI31: -63920 | AJ31: 0 | AK31: 0 | AL31: 0 | AM31: 0 | AN31: 0 | AO31: 0 | AP31: 0 | AQ31: 0 | AR31: 0 | AS31: 0 | AT31: 0 | AU31: 0 | AV31: 0 | AW31: 0 | AX31: 0 | AY31: 0 | AZ31: 0 | BA31: 0 | BB31: 0 | BC31: 0 | BD31: 0 | BE31: 0 | BF31: 0 | BG31: 0 | BH31: 0 | BJ31: -1348680 | BK31: -256814 | BL31: -590560 | BM31: -675129 | BN31: -770305 | BO31: -602344 | BP31: -361880 | BQ31: 0 | BR31: 0 | BS31: 0 | BT31: 0 | BU31: 0 | BV31: 0
B32: Ressarcimento por indisponibilidade | C32: 0 | D32: 0 | E32: 0 | F32: 0 | G32: 0 | H32: 0 | I32: 0 | J32: 0 | K32: 0 | L32: 0 | M32: 0 | N32: 0 | O32: 0 | P32: 0 | Q32: - | R32: - | S32: 0 | T32: 0 | U32: 0 | V32: 0 | W32: 0 | X32: 0 | Y32: 0 | Z32: -18023 | AA32: 7553 | AB32: -2881 | AC32: 5127 | AD32: 818 | AE32: 59407 | AF32: 30163 | AG32: 78064 | AH32: 57232 | AI32: 14614 | AJ32: 0 | AK32: 0 | AL32: 0 | AM32: 0 | AN32: 0 | AO32: 0 | AP32: 0 | AQ32: 0 | AR32: 0 | AS32: 0 | AT32: 0 | AU32: 0 | AV32: 0 | AW32: 0 | AX32: 0 | AY32: 0 | AZ32: 0 | BA32: 0 | BB32: 0 | BC32: 0 | BD32: 0 | BE32: 0 | BF32: 0 | BG32: 0 | BH32: 0 | BJ32: 0 | BK32: 0 | BL32: 0 | BM32: 0 | BN32: -13351 | BO32: 95515 | BP32: 149910 | BQ32: 0 | BR32: 0 | BS32: 0 | BT32: 0 | BU32: 0 | BV32: 0
B33: Margem Bruta | C33: =C7+C10+C9 -> 1488463 | D33: =D7+D10+D9 -> 1744305 | E33: 1614826 | F33: =F7+F10+F9 -> 1843463 | G33: 1584334 | H33: 1657075 | I33: 1461524 | J33: 1446034 | K33: 1167906 | L33: 1385564 | M33: 1829713 | N33: 1022738 | O33: 916566 | P33: =P7+P10+P9 -> 1060492 | Q33: 1124951 | R33: 1122223 | S33: 889549 | T33: 1022261 | U33: 915447 | V33: 993640 | W33: 957418 | X33: 954990 | Y33: 901753 | Z33: 864455 | AA33: 861900 | AB33: 879416 | AC33: 751400 | AD33: 935392 | AE33: 799779 | AF33: 802695 | AG33: 1032237 | AH33: 873139 | AI33: 618188 | AJ33: 666907 | AK33: 1074821 | AL33: 558017 | AM33: 274106 | AN33: 635656 | AO33: 508602 | AP33: 824582 | AQ33: 584165 | AR33: 696157 | AS33: 499184 | AT33: 503975 | AU33: 499172 | AV33: 619247 | AW33: 548395 | AX33: 560534 | AY33: 629254 | AZ33: 660578 | BA33: 580727 | BB33: 522018.214 | BC33: 589638.2061 | BD33: 600591 | BE33: 647252.1816 | BF33: 545881 | BG33: 523873 | BH33: 524961 | BI33: 0 | BJ33: =SUM(I33:L33) -> 5461028 | BK33: =SUM(M33:P33) -> 4829509 | BL33: 4158984 | BM33: 3821495 | BN33: 3507524 | BO33: 3289266 | BP33: 3190471 | BQ33: 2542600 | BR33: 2613506 | BS33: 2121578 | BT33: 2398761 | BU33: 2292974.42 | BV33: 2241967.182
B34: Gastos gerenciáveis | C34: =C35+C45+C46+C47+C51 -> -1765899 | D34: -1194843 | E34: -2425742 | F34: -1246233 | G34: -1158224 | H34: -979970 | I34: -1237108 | J34: =J35+J45+J46+J47+J51 -> -1031052 | K34: -1083311 | L34: -1006341 | M34: -1201175 | N34: -940122 | O34: -880207 | P34: -847376 | Q34: -1473489 | R34: -974761 | S34: -1098338 | T34: -909931 | U34: -862227 | V34: -848901 | W34: -705230 | X34: -590118 | Y34: -678546 | Z34: -606744 | AA34: -595356 | AB34: -621109 | AC34: -631716 | AD34: -602645 | AE34: -589397 | AF34: -466926 | AG34: -608830 | AH34: -495410 | AI34: -454567 | AJ34: -400673 | AK34: -457519 | AL34: -421032 | AM34: -409172 | AN34: -383030 | AO34: -482119 | AP34: -430826 | AQ34: -408741 | AR34: -364450 | AS34: -242044 | AT34: -385709 | AU34: -298231 | AV34: -348334 | AW34: -405882 | AX34: -386635 | AY34: -425791 | AZ34: -292221 | BA34: -257578 | BB34: -296300 | BC34: -278746 | BD34: -275418 | BE34: -314945 | BF34: -253614 | BG34: -254268 | BH34: -256974 | BJ34: -4357812 | BK34: -3868880 | BL34: -4456519 | BM34: -3006476 | BN34: -2501755 | BO34: -2290684 | BP34: -1959480 | BQ34: -1670753 | BR34: -1686136 | BS34: -1274318 | BT34: -1510529 | BU34: -1108042 | BV34: -1079801
B35: Total do PMSO | C35: =C36+C37+C38+C39+C42 -> -420813 | D35: =D36+D37+D38+D39+D42 -> -402276 | E35: -353686 | F35: =F36+F37+F38+F39+F42 -> -468645 | G35: -440834 | H35: -363633 | I35: -419876 | J35: -296779 | K35: -351533 | L35: -327029 | M35: -406054 | N35: -302851 | O35: -311032 | P35: -333861 | Q35: -215844 | R35: -322507 | S35: -316393 | T35: -296637 | U35: -379861 | V35: -319190 | W35: -336364 | X35: -298527 | Y35: -319109 | Z35: -293628 | AA35: -316058 | AB35: -319663 | AC35: -327382 | AD35: -293094 | AE35: -326120 | AF35: -308648 | AG35: -315465 | AH35: -277517 | AI35: -271673 | AJ35: -251334 | AK35: -282093 | AL35: -211747 | AM35: -237925 | AN35: -231161 | AO35: -258139 | AP35: -207826 | AQ35: -257233 | AR35: -233824 | AS35: -70216 | AT35: -232882 | AU35: -194558 | AV35: -203359 | AW35: -251435 | AX35: -208246 | AY35: -207857 | AZ35: -193655 | BA35: -198972 | BB35: -207025 | BC35: -189831 | BD35: -188356 | BE35: -199733 | BF35: -181545 | BG35: -179564 | BH35: -184853 | BJ35: -1395217 | BK35: -1353798 | BL35: -1151381 | BM35: -1333942 | BN35: -1248458 | BO35: -1255244 | BP35: -1115989 | BQ35: -962926 | BR35: -957022 | BS35: -701015 | BT35: -861193 | BU35: -784184 | BV35: -745695
A36: Pessoal, Administradores e Entidade de previdência privada | B36: Pessoal | C36: -167381 | D36: -163277 | E36: -164227 | F36: -157312 | G36: -178557 | H36: -150686 | I36: -152152 | J36: -118427 | K36: -138867 | L36: -130591 | M36: -150354 | N36: -122594 | O36: -118179 | P36: -132103 | Q36: -1597 | R36: -122805 | S36: -128810 | T36: -123717 | U36: -136606 | V36: -114541 | W36: -121647 | X36: -116345 | Y36: -120223 | Z36: -114219 | AA36: -116532 | AB36: -116704 | AC36: -110409 | AD36: -107063 | AE36: -118518 | AF36: -111320 | AG36: -127412 | AH36: -98334 | AI36: -98641 | AJ36: -95031 | AK36: -109543 | AL36: -84466 | AM36: -94853 | AN36: -88654 | AO36: -110576 | AP36: -93982 | AQ36: -83171 | AR36: -85483 | AS36: -84885 | AT36: -78716 | AU36: -68383 | AV36: -83889 | AW36: -85320 | AX36: -68723 | AY36: -66330 | AZ36: -67245 | BA36: -60820 | BB36: -63089 | BC36: -63219 | BD36: -64797 | BE36: -66846 | BF36: -54129 | BG36: -64715 | BH36: -75896 | BJ36: -540037 | BK36: -523230 | BL36: -376929 | BM36: -489139 | BN36: -467678 | BO36: -447310 | BP36: -419418 | BQ36: -377516 | BR36: -373212 | BS36: -315873 | BT36: -287618 | BU36: -251925 | BV36: -261586
B37: Material | C37: -11264 | D37: -17126 | E37: 32891 | F37: -54590 | G37: -32735 | H37: -16097 | I37: -21122 | J37: -16058 | K37: -19074 | L37: -15469 | M37: -46299 | N37: -14623 | O37: -11189 | P37: -13927 | Q37: -24596 | R37: -14339 | S37: -14257 | T37: -10504 | U37: -18080 | V37: -31466 | W37: -14908 | X37: -11836 | Y37: -14111 | Z37: -13062 | AA37: -13269 | AB37: -12691 | AC37: -11421 | AD37: -15706 | AE37: -13418 | AF37: -11408 | AG37: -12628 | AH37: -10446 | AI37: -8216 | AJ37: -6116 | AK37: -8214 | AL37: -7021 | AM37: -7811 | AN37: -6869 | AO37: -12168 | AP37: -7925 | AQ37: -7812 | AR37: -6618 | AS37: -7128 | AT37: -8377 | AU37: -6271 | AV37: -6281 | AW37: -6176 | AX37: -8479 | AY37: -6761 | AZ37: -5150 | BA37: -6916 | BB37: -6503 | BC37: -4717 | BD37: -5342 | BE37: -5500 | BF37: -6015 | BG37: -6164 | BH37: -6557 | BJ37: -71723 | BK37: -86038 | BL37: -63696 | BM37: -76290 | BN37: -53133 | BO37: -51953 | BP37: -37406 | BQ37: -29915 | BR37: -34523 | BS37: -28057 | BT37: -26566 | BU37: -23478 | BV37: -24236
A38: Serviços de terceiros | B38: Serviços de terceiros | C38: -149065 | D38: -141734 | E38: -171583 | F38: -149248 | G38: -148252 | H38: -114602 | I38: -155384 | J38: -123650 | K38: -126924 | L38: -115902 | M38: -142305 | N38: -100592 | O38: -109141 | P38: -117669 | Q38: -136169 | R38: -114754 | S38: -118212 | T38: -103241 | U38: -142365 | V38: -118472 | W38: -121353 | X38: -109649 | Y38: -129221 | Z38: -124033 | AA38: -122465 | AB38: -115852 | AC38: -140117 | AD38: -116555 | AE38: -115410 | AF38: -106547 | AG38: -113219 | AH38: -110850 | AI38: -105791 | AJ38: -95406 | AK38: -138378 | AL38: -92534 | AM38: -89809 | AN38: -89539 | AO38: -112437 | AP38: -91574 | AQ38: -96612 | AR38: -88575 | AS38: -101496 | AT38: -83742 | AU38: -84077 | AV38: -87448 | AW38: -106942 | AX38: -85853 | AY38: -77380 | AZ38: -76395 | BA38: -91454 | BB38: -81930 | BC38: -77049 | BD38: -72182 | BE38: -83684 | BF38: -68076 | BG38: -72417 | BH38: -60476 | BJ38: -521860 | BK38: -469707 | BL38: -472376 | BM38: -491839 | BN38: -491571 | BO38: -478629 | BP38: -425266 | BQ38: -410260 | BR38: -389198 | BS38: -356763 | BT38: -346570 | BU38: -322615 | BV38: -284653
B39: Provisões | C39: =C40+C41 -> -58007 | D39: =D40+D41 -> -50294 | E39: =E40+E41 -> -29293 | F39: =F40+F41 -> -74713 | G39: -54669 | H39: -53776 | I39: -47278 | J39: -39665 | K39: -40094 | L39: -39431 | M39: -53486 | N39: =N40+N41 -> -45594 | O39: -48352 | P39: -43976 | Q39: -30781 | R39: -46813 | S39: -44833 | T39: -34749 | U39: -27514 | V39: -30923 | W39: -44839 | X39: -29078 | Y39: -24233 | Z39: -13242 | AA39: -35428 | AB39: -39295 | AC39: -30002 | AD39: -19604 | AE39: -43152 | AF39: -39554 | AG39: -28166 | AH39: -27849 | AI39: -24409 | AJ39: -28943 | AK39: -7790 | AL39: -1352 | AM39: -24772 | AN39: -19223 | AO39: -6788 | AP39: -19198 | AQ39: -45459 | AR39: -30833 | AS39: 18017 | AT39: -25520 | AU39: -15583 | AV39: -14390 | AW39: -29206 | AX39: -19455 | AY39: -19166 | AZ39: -14989 | BA39: -14739 | BB39: -29961 | BC39: -17093 | BD39: -21639 | BE39: 6011 | BF39: -36916 | BG39: -20598 | BH39: -20037 | BJ39: -166468 | BK39: -191408 | BL39: -157176 | BM39: -132354 | BN39: -112198 | BO39: -132312 | BP39: -109367 | BQ39: -53137 | BR39: -102278 | BS39: -37476 | BT39: -82816 | BU39: -83432 | BV39: -71540
A40: PECLD / perdas líquidas | B40: Provisão p/créd.liq.duvidosa / perdas líquidas | C40: -35029 | D40: -39261 | E40: -32584 | F40: -42393 | G40: -42348 | H40: -42489 | I40: -44437 | J40: -31740 | K40: -34050 | L40: -24931 | M40: -40111 | N40: -32240 | O40: -39575 | P40: -34229 | Q40: -19510 | R40: -33721 | S40: -36945 | T40: -22824 | U40: -12051 | V40: -24346 | W40: -23755 | X40: -24990 | Y40: -9503 | Z40: -11363 | AA40: -32277 | AB40: -29152 | AC40: -14327 | AD40: -19557 | AE40: -36716 | AF40: -32201 | AG40: -15143 | AH40: -20233 | AI40: -17504 | AJ40: -21634 | AK40: 3218 | AL40: -2098 | AM40: -13151 | AN40: -15407 | AO40: -6491 | AP40: -10676 | AQ40: -10115 | AR40: -25156 | AS40: 30586 | AT40: -14017 | AU40: -16901 | AV40: -9308 | AW40: -16781 | AX40: -14916 | AY40: 7420 | AZ40: -12979 | BA40: -18711 | BB40: -24751 | BC40: -16651 | BD40: -16798 | BE40: 19306 | BF40: -19524 | BG40: -18963 | BH40: -17501 | BJ40: -135158 | BK40: -146155 | BL40: -113000 | BM40: -85142 | BN40: -82295 | BO40: -102801 | BP40: -74514 | BQ40: -27438 | BR40: -52438 | BS40: -9640 | BT40: -37256 | BU40: -76911 | BV40: -36682
A41: Provisões cíveis, fiscais e trabalhistas | B41: Provisões para contingências | C41: -22978 | D41: -11033 | E41: 3291 | F41: -32320 | G41: -12321 | H41: -11287 | I41: -2841 | J41: -7925 | K41: -6044 | L41: -14500 | M41: -13375 | N41: -13354 | O41: -8777 | P41: -9747 | Q41: -11271 | R41: -13092 | S41: 0 | T41: 0 | U41: -15463 | V41: -6577 | W41: -21084 | X41: -4088 | Y41: -14730 | Z41: -1879 | AA41: -3151 | AB41: -10143 | AC41: -15675 | AD41: -47 | AE41: -6436 | AF41: -7353 | AG41: -13023 | AH41: -7616 | AI41: -6905 | AJ41: -7309 | AK41: -11008 | AL41: 746 | AM41: -11621 | AN41: -3816 | AO41: -297 | AP41: -8522 | AQ41: -35344 | AR41: -5677 | AS41: -12569 | AT41: -11503 | AU41: 1318 | AV41: -5082 | AW41: -12425 | AX41: -4539 | AY41: -26586 | AZ41: -2010 | BA41: 3972 | BB41: -5210 | BC41: -442 | BD41: -4841 | BE41: -13295 | BF41: -17392 | BG41: -1635 | BH41: -2536 | BJ41: -31310 | BK41: -45253 | BL41: -24363 | BM41: -47212 | BN41: -29903 | BO41: -29511 | BP41: -34853 | BQ41: -25699 | BR41: -49840 | BS41: -27836 | BT41: -45560 | BU41: -6521 | BV41: -34858
B42: Outros | C42: =C43+C44 -> -35096 | D42: =D43+D44 -> -29845 | E42: -21474 | F42: =F43+F44 -> -32782 | G42: -26621 | H42: -28472 | I42: -43940 | J42: 1021 | K42: -26574 | L42: -25636 | M42: -13610 | N42: =N43+N44 -> -19448 | O42: -24171 | P42: -26186 | Q42: -22701 | R42: -23796 | S42: -10281 | T42: -24426 | U42: -55296 | V42: -23788 | W42: -33617 | X42: -31619 | Y42: -31321 | Z42: -29072 | AA42: -28364 | AB42: -35121 | AC42: -35433 | AD42: -34166 | AE42: -35622 | AF42: -39819 | AG42: -34040 | AH42: -82113 | AI42: -34616 | AJ42: -25838 | AK42: -18168 | AL42: -26374 | AM42: -20680 | AN42: -20533 | AO42: -16170 | AP42: 4853 | AQ42: -24179 | AR42: -22315 | AS42: 105276 | AT42: -36527 | AU42: -20244 | AV42: -11351 | AW42: -23791 | AX42: -25736 | AY42: -38220 | AZ42: -29876 | BA42: -25043 | BB42: -25542 | BC42: -27753 | BD42: -24396 | BE42: -49714 | BF42: -16409 | BG42: -15670 | BH42: -21887 | BJ42: -95129 | BK42: -83415 | BL42: -81204 | BM42: -144320 | BN42: -123878 | BO42: -145040 | BP42: -176607 | BQ42: -85755 | BR42: -57811 | BS42: 37154 | BT42: -117623 | BU42: -102734 | BV42: -103680
A43: Arrendamentos e aluguéis | B43: Aluguéis e arrendamentos | C43: -1954 | D43: -4323 | E43: 1008 | F43: -3474 | G43: -771 | H43: -1892 | I43: -2400 | J43: -1863 | K43: -824 | L43: 315 | M43: 639 | N43: -1403 | O43: -1014 | P43: -3306 | Q43: -2876 | R43: -2028 | S43: -2372 | T43: -869 | U43: -5006 | V43: -6992 | W43: -8179 | X43: -7071 | Y43: -7592 | Z43: -6901 | AA43: -6242 | AB43: -5898 | AC43: -5501 | AD43: -6603 | AE43: -6979 | AF43: -5711 | AG43: -5403 | AH43: -5495 | AI43: -6138 | AJ43: -4581 | AK43: -4469 | AL43: -4687 | AM43: -4985 | AN43: -4470 | AO43: -5519 | AP43: -5208 | AQ43: -4851 | AR43: -3426 | AS43: -3399 | AT43: -3444 | AU43: -2936 | AV43: -2828 | AW43: -2827 | AX43: -2046 | AY43: -2530 | AZ43: -2717 | BA43: -2482 | BB43: 4562 | BC43: -9183 | BD43: -2233 | BE43: -2114 | BF43: -2186 | BG43: -2427 | BH43: -2106 | BJ43: -4772 | BK43: -5084 | BL43: -8145 | BM43: -27248 | BN43: -26633 | BO43: -24794 | BP43: -21617 | BQ43: -18611 | BR43: -19004 | BS43: -12607 | BT43: -10120 | BU43: -9336 | BV43: -8833
B44: Outras | C44: -33142 | D44: -25522 | E44: -22482 | F44: -29308 | G44: -25850 | H44: -26580 | I44: -41540 | J44: 2884 | K44: -25750 | L44: -25951 | M44: -14249 | N44: -18045 | O44: -23157 | P44: -22880 | Q44: -19825 | R44: -21768 | S44: -7909 | T44: -23557 | U44: -50290 | V44: -16796 | W44: -25438 | X44: -24548 | Y44: -23379 | Z44: -22171 | AA44: -22122 | AB44: -29223 | AC44: -29932 | AD44: -27563 | AE44: -28643 | AF44: -34108 | AG44: -28637 | AH44: -3632 | AI44: -28478 | AJ44: -21257 | AK44: -13699 | AL44: -21687 | AM44: -15695 | AN44: -5606 | AO44: -10651 | AP44: -34616 | AQ44: -17390 | AR44: -10258 | AS44: 22785 | AT44: -28471 | AU44: -9166 | AV44: -18688 | AW44: -10502 | AX44: -12159 | AY44: -35690 | AZ44: -27159 | BA44: -22561 | BB44: -30104 | BC44: -18570 | BD44: -22163 | BE44: -47600 | BF44: -14223 | BG44: -13243 | BH44: -19781 | BJ44: -90357 | BK44: -78331 | BL44: -73059 | BM44: -117072 | BN44: -96895 | BO44: -120246 | BP44: -82004 | BQ44: -56687 | BR44: -72915 | BS44: -33540 | BT44: -85510 | BU44: -93398 | BV44: -94847
B45: Ganhos e perdas na desativação e alienação de bens | C45: -36856 | D45: -33429 | E45: -27542 | F45: -60862 | G45: -18225 | H45: -26898 | I45: -21141 | J45: -25120 | K45: -17150 | L45: -9884 | M45: -26269 | N45: -20479 | O45: -19054 | P45: -28048 | Q45: -35140 | R45: -20919 | S45: -17399 | T45: -19990 | U45: -28827 | V45: -28943 | W45: -24760 | X45: -11663 | Y45: -20827 | Z45: -19617 | AA45: -12295 | AB45: -20019 | AC45: -29174 | AD45: -15739 | AE45: -14092 | AF45: 44648 | AG45: -12307 | AH45: -11491 | AI45: -22086 | AJ45: -22331 | AK45: -43743 | AL45: -8322 | AM45: -5549 | AN45: -12933 | AO45: -2402 | AP45: 44677 | AQ45: -8701 | AR45: -14446 | AS45: -16549 | AT45: -4612 | AU45: -8142 | AV45: 10165 | AW45: -10462 | AX45: -11531 | AY45: 0 | AZ45: 0 | BA45: 0 | BB45: 0 | BC45: 0 | BD45: 0 | BE45: 0 | BF45: 0 | BG45: 0 | BH45: 0 | BJ45: -73295 | BK45: -93850 | BL45: -93448 | BM45: -94193 | BN45: -72758 | BO45: -14357 | BP45: -68215 | BQ45: -70547 | BR45: 19128 | BS45: -19138 | BT45: -21993 | BU45: 0 | BV45: 0
B46: Valor justo do ativo financeiro indenizável | C46: 0 | D46: 0 | E46: 0 | F46: 0 | G46: 0 | H46: 0 | I46: 0 | J46: 0 | K46: 0 | L46: 0 | M46: 0 | N46: 0 | O46: 0 | P46: 0 | Q46: 0 | R46: 0 | S46: 0 | T46: 0 | U46: 0 | V46: 0 | W46: 0 | X46: 0 | Y46: 0 | Z46: 0 | AA46: 0 | AB46: 0 | AC46: 0 | AD46: 0 | AE46: 0 | AF46: 0 | AG46: -30622 | AH46: 2735 | AI46: 12578 | AJ46: 15309 | AK46: 10871 | AL46: -20149 | AM46: -8528 | AN46: 14839 | AO46: -13235 | AP46: 14850 | AQ46: 6763 | AR46: 5815 | AS46: 102439 | AT46: 0 | AU46: 0 | AV46: 0 | AW46: 0 | AX46: 0 | AY46: 0 | AZ46: 0 | BA46: 0 | BB46: 0 | BC46: 0 | BD46: 0 | BE46: 0 | BF46: 0 | BG46: 0 | BH46: 0 | BJ46: 0 | BK46: 0 | BL46: 0 | BM46: 0 | BN46: 0 | BO46: 0 | BP46: 0 | BQ46: -2967 | BR46: 14193 | BS46: 102439 | BT46: 0 | BU46: 0 | BV46: 0
B47: Custo com construção da infraestrutura | C47: -533883 | D47: -565290 | E47: -561815 | F47: -524006 | G47: -482111 | H47: -419688 | I47: -572645 | J47: -538615 | K47: -538775 | L47: -500771 | M47: -605496 | N47: -453719 | O47: -383594 | P47: -329873 | Q47: -1076230 | R47: -477293 | S47: -602409 | T47: -433915 | U47: -304221 | V47: -349263 | W47: -197651 | X47: -119495 | Y47: -183646 | Z47: -149276 | AA47: -127105 | AB47: -142170 | AC47: -138018 | AD47: -157785 | AE47: -115169 | AF47: -69678 | AG47: -120457 | AH47: -77966 | AI47: -64270 | AJ47: -54650 | AK47: -58245 | AL47: -96375 | AM47: -70293 | AN47: -69142 | AO47: -123058 | AP47: -91690 | AQ47: -66734 | AR47: -44243 | AS47: -85564 | AT47: -66553 | AU47: -19140 | AV47: -64479 | AW47: -72536 | AX47: -96841 | AY47: -134370 | AZ47: 0 | BA47: 0 | BB47: 0 | BC47: 0 | BD47: 0 | BE47: 0 | BF47: 0 | BG47: 0 | BH47: 0 | BJ47: -2150806 | BK47: -1772682 | BL47: -2589847 | BM47: -970630 | BN47: -602197 | BO47: -480650 | BP47: -317343 | BQ47: -294055 | BR47: -325725 | BS47: -235736 | BT47: -303747 | BU47: 0 | BV47: 0
B48: Ganho na alienação de investimento | C48: 0 | D48: 0 | E48: 326252 | F48: 0 | G48: -410 | H48: 410 | I48: 320556 | J48: 0 | K48: 0 | L48: 0 | M48: 0 | N48: 0 | O48: 0 | P48: 0 | Q48: - | R48: - | S48: 0 | T48: 0 | U48: 340587 | V48: 34068 | W48: 0 | X48: 0 | Y48: 0 | Z48: 0 | AA48: 0 | AB48: 0 | AC48: 0 | AD48: 0 | AE48: 0 | AF48: 278139 | AG48: 68946 | AH48: 0 | AI48: 884697 | AJ48: 0 | AK48: 422 | AL48: -17 | AM48: 408011 | AN48: 0 | AP48: 0 | AQ48: 0 | AR48: 0 | AS48: 0 | AT48: 0 | AU48: 0 | AV48: 0 | AW48: 0 | AX48: 0 | AY48: 0 | AZ48: 0 | BA48: 0 | BB48: 0 | BC48: 0 | BD48: 0 | BE48: 0 | BF48: 0 | BG48: 0 | BH48: 0 | BJ48: 320556 | BK48: 0 | BL48: 0 | BM48: 374655 | BN48: 0 | BO48: 278139 | BP48: 953643 | BQ48: 408416 | BR48: 0 | BS48: 0 | BT48: 0 | BU48: 0 | BV48: 0
B49: EBITDA | C49: =C55-C51 -> 1030794 | D49: =D55-D51 -> 1308600 | E49: 1559850 | F49: 1313956 | G49: 1124865 | H49: 1266954 | I49: 1341063 | J49: =J7+J8+J10+J34-J51+J9 -> 1124135 | K49: 799223 | L49: 1048651 | M49: 1397390 | N49: 699408 | O49: 586480 | P49: 698583 | Q49: 873967 | R49: 778797 | S49: 555757 | T49: 705634 | U49: 847346 | V49: 679575 | W49: 596294 | X49: 644799 | Y49: 561817 | Z49: 551540 | AA49: 533547 | AB49: 539734 | AC49: 394844 | AD49: 626559 | AE49: 459567 | AF49: 816834 | AG49: 742789 | AH49: 586866 | AI49: 1221704 | AJ49: 408551 | AK49: 760278 | AL49: 317782 | AM49: 430115 | AN49: 406401 | AO49: 234826 | AP49: 631606 | AQ49: 326932 | AR49: 462333 | AS49: 428968 | AT49: 271093 | AU49: 304614 | AV49: 415888 | AW49: 296960 | AX49: 352288 | AY49: 421397 | AZ49: 466923 | BA49: 381755 | BB49: 314993.214 | BC49: 399807.2061 | BD49: 412235 | BE49: 447519.1816 | BF49: 364336 | BG49: 344309 | BH49: 340108 | BJ49: 4313072 | BK49: 3381861 | BL49: 2914155 | BM49: 2768014 | BN49: 2186638 | BO49: 2297804 | BP49: 2959910 | BQ49: 1914576 | BR49: 1655697 | BS49: 1420563 | BT49: 1537568 | BU49: 1508790.42 | BV49: 1496272.182
B50: Margem EBITDA | C50: =C49/C7 -> 0.2893709458 | D50: =D49/D7 -> 0.3493730055 | E50: 0.3916863115 | F50: =F49/F7 -> 0.321528786 | G50: 0.3109564343 | H50: 0.3417870473 | I50: 0.2874141656 | J50: 0.2171263953 | K50: 0.2351673327 | L50: 0.3056697138 | M50: 0.323461147 | N50: 0.2326004762 | O50: 0.225432064 | P50: 0.2130425077 | Q50: 0.2416117606 | R50: 0.2266736016 | S50: 0.2076810567 | T50: 0.249532591 | U50: 0.2869905796 | V50: 0.1786588891 | W50: 0.183146934 | X50: 0.2274989821 | Y50: 0.1583329717 | Z50: 0.165716358 | AA50: 0.2066650682 | AB50: 0.2339945782 | AC50: 0.1649391343 | AD50: 0.2629436678 | AE50: 0.2268572681 | AF50: 0.3924100072 | AG50: 0.2491711782 | AH50: -0.03431382194 | AI50: 0.4828955456 | AJ50: 0.1954740839 | AK50: 0.2759540617 | AL50: 0.1604040108 | AM50: 0.2433395133 | AN50: 0.1872781147 | AO50: 0.1381279036 | AP50: 0.3831440076 | AQ50: 0.2074851065 | AR50: 0.2503788178 | AS50: 0.2355423066 | AT50: 0.1796474287 | AU50: 0.2113623921 | AV50: 0.2873468395 | AW50: 0.2191431456 | AX50: 0.2667718746 | AY50: 0.3141986907 | AZ50: 0.3371706358 | BA50: 0.2801207494 | BB50: 0.2526585145 | BC50: 0.32654111 | BD50: 0.3434124064 | BE50: -0.5972491222 | BF50: 0.3079352039 | BG50: 0.3084037144 | BH50: 0.3046593601 | BJ50: 1.045377607 | BK50: 0.9945361949 | BL50: 0.9254990099 | BM50: 0.8762953848 | BN50: 0.7647089761 | BO50: 1.047150077 | BP50: 0.8932269858 | BQ50: 0.8669757005 | BR50: 0.9791358356 | BS50: 0.9138989669 | BT50: 1.137284347 | BU50: 1.20273278 | BV50: 0.3237491562
B51: Depreciação e amortização | C51: =SUM(C52:C54) -> -774347 | D51: -193848 | E51: -1482699 | F51: -192720 | G51: -217054 | H51: -169751 | I51: -223446 | J51: =SUM(J52:J54) -> -170538 | K51: -175853 | L51: -168657 | M51: -163356 | N51: -163073 | O51: -166527 | P51: -155594 | Q51: -146275 | R51: -154042 | S51: -162137 | T51: -159389 | U51: -149318 | V51: -151505 | W51: -146454 | X51: -160433 | Y51: -154964 | Z51: -144223 | AA51: -139898 | AB51: -139257 | AC51: -137142 | AD51: -136027 | AE51: -134016 | AF51: -133248 | AG51: -129979 | AH51: -131171 | AI51: -109116 | AJ51: -87667 | AK51: -84309 | AL51: -84439 | AM51: -86877 | AN51: -84633 | AO51: -85285 | AP51: -146160 | AQ51: -84774 | AR51: -86383 | AS51: -86264 | AT51: -86274 | AU51: -84533 | AV51: -80496 | AW51: -81911 | AX51: -81548 | AY51: -83564 | AZ51: -98566 | BA51: -58606 | BB51: -89275 | BC51: -88915 | BD51: -87062 | BE51: -115212 | BF51: -72069 | BG51: -74704 | BH51: -72121 | BJ51: -738494 | BK51: -648550 | BL51: -621843 | BM51: -607710 | BN51: -578342 | BO51: -540433 | BP51: -457933 | BQ51: -340258 | BR51: -402602 | BS51: -337567 | BT51: -345589 | BU51: -323858 | BV51: -334106
A52: Depreciação - Imobilizado em serviço | B52: Depreciação | C52: -644224 | D52: -67913 | E52: -1294788 | F52: -83532 | G52: -80162 | H52: -77933 | I52: -52160 | J52: -83869 | K52: -84513 | L52: -83374 | M52: -32735 | N52: -83783 | O52: -88697 | P52: -79091 | Q52: -79129 | R52: -79118 | S52: -87137 | T52: -82511 | U52: -82340 | V52: -86194 | W52: -81965 | X52: -81916 | Y52: -89998 | Z52: -81400 | AA52: -80086 | AB52: -80333 | AC52: -79498 | AD52: -79758 | AE52: -76687 | AF52: -77552 | AG52: -76501 | AH52: -76024 | AI52: -54114 | AJ52: -33485 | AK52: -29823 | AL52: -29382 | AM52: -29505 | AN52: -29155 | AO52: -25483 | AP52: -17503 | AQ52: -29028 | AR52: -28996 | AS52: -30403 | AT52: -15861 | AU52: -27895 | AV52: -27922 | AW52: -44884 | AX52: -9398 | AY52: -28296 | AZ52: -43113 | BA52: -46638 | BB52: 10579 | BC52: -40469 | BD52: -40382 | BE52: 0 | BF52: 0 | BG52: 0 | BH52: 0 | BJ52: -303916 | BK52: -284306 | BL52: -327895 | BM52: -332415 | BN52: -331817 | BO52: -313495 | BP52: -240124 | BQ52: -117865 | BR52: -101010 | BS52: -102081 | BT52: -125691 | BU52: -116910 | BV52: 0
A53: Depreciação - Ativos de direito de uso | B53: Depreciação - Ativos de direito de uso | C53: -3478 | D53: -3773 | E53: -3732 | F53: -2997 | G53: -3258 | H53: -3231 | I53: -43211 | J53: -2463 | K53: -6357 | L53: -5432 | M53: -57331 | N53: -7318 | O53: -6825 | P53: -6575 | Q53: -5747 | R53: -5086 | S53: -6343 | T53: -8833 | U53: - | V53: - | W53: - | X53: - | Y53: - | Z53: - | AA53: - | AB53: - | AC53: - | AD53: - | AE53: - | AF53: - | AG53: - | AH53: - | AI53: - | AJ53: - | AK53: - | AL53: - | AM53: - | AN53: - | AO53: - | AP53: - | AQ53: - | AR53: - | AS53: - | AT53: - | AU53: - | AV53: - | AW53: - | AX53: - | AY53: - | AZ53: - | BA53: - | BB53: - | BC53: - | BD53: - | BE53: - | BF53: - | BG53: - | BH53: - | BJ53: -57463 | BK53: -78049 | BL53: -26009 | BM53: 0 | BN53: 0 | BO53: 0 | BP53: 0 | BQ53: 0 | BR53: 0 | BS53: 0 | BT53: 0 | BU53: 0 | BV53: 0
A54: Amortização | B54: Amortização | C54: -126645 | D54: -122162 | E54: -184179 | F54: -106191 | G54: -133634 | H54: -88587 | I54: -128075 | J54: -84206 | K54: -84983 | L54: -79851 | M54: -73290 | N54: -71972 | O54: -71005 | P54: -69928 | Q54: -61399 | R54: -69838 | S54: -68657 | T54: -68045 | U54: -66978 | V54: -65311 | W54: -64489 | X54: -78517 | Y54: -64966 | Z54: -62823 | AA54: -59812 | AB54: -58924 | AC54: -57644 | AD54: -56269 | AE54: -57329 | AF54: -55696 | AG54: -53478 | AH54: -55147 | AI54: -55002 | AJ54: -54182 | AK54: -54486 | AL54: -55057 | AM54: -57372 | AN54: -55478 | AO54: -59802 | AP54: -128657 | AQ54: -55746 | AR54: -57387 | AS54: -55861 | AT54: -70413 | AU54: -56638 | AV54: -52574 | AW54: -37027 | AX54: -72150 | AY54: -55268 | AZ54: -55453 | BA54: -11968 | BB54: -99854 | BC54: -48446 | BD54: -46680 | BE54: 0 | BF54: 0 | BG54: 0 | BH54: 0 | BJ54: -377115 | BK54: -286195 | BL54: -267939 | BM54: -275295 | BN54: -246525 | BO54: -226938 | BP54: -217809 | BQ54: -222393 | BR54: -301592 | BS54: -235486 | BT54: -219898 | BU54: -206948 | BV54: 0
B55: Resultado do serviço (EBIT) | C55: =C7+C8+C10+C34+C9+C48 -> 256447 | D55: =D7+D8+D10+D34+D9+D48 -> 1114752 | E55: 77151 | F55: 1121236 | G55: 907811 | H55: 1097203 | I55: 1117617 | J55: =J7+J8+J10+J34+J9 -> 953597 | K55: 623370 | L55: 879994 | M55: 1234034 | N55: 536335 | O55: 419953 | P55: 542989 | Q55: 727692 | R55: 624755 | S55: 393620 | T55: 546245 | U55: 698028 | V55: 528070 | W55: 449839 | X55: 484366 | Y55: 406853 | Z55: 407317 | AA55: 393649 | AB55: 400477 | AC55: 257702 | AD55: 490532 | AE55: 325551 | AF55: 683586 | AG55: 612810 | AH55: 455695 | AI55: 1112588 | AJ55: 320884 | AK55: 675969 | AL55: 233343 | AM55: 343238 | AN55: 321768 | AO55: 149541 | AP55: 485446 | AQ55: 242158 | AR55: 375950 | AS55: 342704 | AT55: 184819 | AU55: 220081 | AV55: 335392 | AW55: 215049 | AX55: 270740 | AY55: 337833 | AZ55: 368357 | BA55: 323149 | BB55: 225718.214 | BC55: 310892.2061 | BD55: 325173 | BE55: 332307.1816 | BF55: 292267 | BG55: 269605 | BH55: 267987 | BJ55: 3574578 | BK55: 2733311 | BL55: 2292312 | BM55: 2160303 | BN55: 1608296 | BO55: 1757371 | BP55: 2501977 | BQ55: 1574318 | BR55: 1253095 | BS55: 1082996 | BT55: 1191979 | BU55: 1184932.42 | BV55: 1162166.182
B56: Resultado das participações societárias | C56: 83726 | D56: 47472 | E56: 45167 | F56: 40352 | G56: 88508 | H56: 39937 | I56: 76736 | J56: 44377 | K56: 52953 | L56: 68350 | M56: 26912 | N56: 11480 | O56: 41924 | P56: -356 | Q56: 45361 | R56: 6780 | S56: 14985 | T56: 1022 | U56: 5222 | V56: 4762 | W56: -7927 | X56: 918 | Y56: -8950 | Z56: -2573 | AA56: -1293 | AB56: -3520 | AC56: -84341 | AD56: -11193 | AE56: -11520 | AF56: -8389 | AG56: 5989 | AH56: -10053 | AI56: -71469 | AJ56: -38241 | AK56: -85541 | AL56: 49146 | AM56: -21085 | AN56: -13969 | AO56: -11628 | AP56: -22455 | AQ56: -44780 | AR56: -61564 | AS56: -58338 | AT56: -22816.44 | AU56: -17254.56 | AV56: -8315 | AW56: -407.22123 | AX56: -2702.050571 | AY56: 1997.271801 | AZ56: -2370 | BA56: -939 | BB56: 18 | BC56: -325.8846023 | BD56: -590 | BE56: -198 | BF56: -454 | BG56: 56 | BH56: 189 | BJ56: 242416 | BK56: 79960 | BL56: 68148 | BM56: 2975 | BN56: -16336 | BO56: -115443 | BP56: -113774 | BQ56: -71449 | BR56: -140427 | BS56: -106724 | BT56: -3482 | BU56: -1836.884602 | BV56: -407
B57: Resultado financeiro líquido | C57: =C58+C59 -> -370698 | D57: -406690 | E57: -372707 | F57: -327915 | G57: -417595 | H57: -348384 | I57: =I58+I59 -> -289175 | J57: -166332 | K57: -136093 | L57: -209982 | M57: -204263 | N57: -61013 | O57: -85313 | P57: -100671 | Q57: -133299 | R57: -78966 | S57: -115941 | T57: -104974 | U57: -119217 | V57: -71410 | W57: -74017 | X57: -101681 | Y57: -150916 | Z57: -128300 | AA57: -121114 | AB57: -147470 | AC57: -167668 | AD57: -130787 | AE57: -153085 | AF57: -201201 | AG57: -141780 | AH57: -275840 | AI57: -113452 | AJ57: -94445 | AK57: -105467 | AL57: -74451 | AM57: -48824 | AN57: -87247 | AO57: -90434 | AP57: -71973 | AQ57: -77173 | AR57: -59479 | AS57: -39492 | AT57: -59488 | AU57: -58612 | AV57: -39822 | AW57: -79017 | AX57: -66616 | AY57: -86937 | AZ57: -50873 | BA57: -48817 | BB57: -48701.52059 | BC57: -72933.57349 | BD57: -26937 | BE57: -7809.86955 | BF57: -58931 | BG57: 18583 | BH57: -33854 | BJ57: -801582 | BK57: -451260 | BL57: -433180 | BM57: -366325 | BN57: -547800 | BO57: -652741 | BP57: -625517 | BQ57: -315989 | BR57: -299059 | BS57: -197414 | BT57: -283443 | BU57: -197389.0941 | BV57: -82011.86955
B58: Receitas financeiras | C58: 196952 | D58: 213498 | E58: 186438 | F58: 83066 | G58: 239946 | H58: 156773 | I58: 57390 | J58: 85550 | K58: 80009 | L58: 83404 | M58: 64306 | N58: 166738 | O58: 72729 | P58: 95018 | Q58: 278530 | R58: 115441 | S58: 269364 | T58: 95081 | U58: 49656 | V58: 101188 | W58: 194921 | X58: 114105 | Y58: 56889 | Z58: 146818 | AA58: 85147 | AB58: 98233 | AC58: 43077 | AD58: 52459 | AE58: 258970 | AF58: 251805 | AG58: -27983 | AH58: 296797 | AI58: 112161 | AJ58: 73446 | AK58: 55841 | AL58: 59417 | AM58: 85228 | AN58: 58283 | AO58: 59165 | AP58: 42750 | AQ58: 44013 | AR58: 36207 | AS58: 63039 | AT58: 34184 | AU58: 46203 | AV58: 52402 | AW58: 61672 | AX58: 27136 | AY58: 69882 | AZ58: 51566 | BA58: 77939 | BB58: 70281.91108 | BC58: 36284.99483 | BD58: 73618 | BE58: 115214.9604 | BF58: 33600 | BG58: 106842 | BH58: 40901 | BJ58: 306353 | BK58: 396572 | BL58: 758416 | BM58: 459870 | BN58: 387087 | BO58: 606311 | BP58: 454421 | BQ58: 258769 | BR58: 182135 | BS58: 195828 | BT58: 210256 | BU58: 258123.9059 | BV58: 296557.9604
B59: Despesas financeiras | C59: -567650 | D59: -620188 | E59: -559145 | F59: -410981 | G59: -657541 | H59: -505157 | I59: -346565 | J59: -251882 | K59: -216102 | L59: -293386 | M59: -268569 | N59: -227751 | O59: -158042 | P59: -195689 | Q59: -411829 | R59: -194407 | S59: -385305 | T59: -200055 | U59: -168873 | V59: -172598 | W59: -268938 | X59: -215786 | Y59: -207805 | Z59: -275118 | AA59: -206261 | AB59: -245703 | AC59: -210745 | AD59: -183246 | AE59: -412055 | AF59: -453006 | AG59: -113797 | AH59: -572637 | AI59: -225613 | AJ59: -167891 | AK59: -161308 | AL59: -133868 | AM59: -134052 | AN59: -145530 | AO59: -149599 | AP59: -114723 | AQ59: -121186 | AR59: -95686 | AS59: -102531 | AT59: -93672 | AU59: -104815 | AV59: -92224 | AW59: -140689 | AX59: -93752 | AY59: -156819 | AZ59: -102439 | BA59: -126756 | BB59: -118983.4317 | BC59: -109218.5683 | BD59: -100555 | BE59: -123024.8299 | BF59: -92531 | BG59: -88259 | BH59: -74755 | BJ59: -1107935 | BK59: -847832 | BL59: -1191596 | BM59: -826195 | BN59: -934887 | BO59: -1259052 | BP59: -1079938 | BQ59: -574758 | BR59: -481194 | BS59: -393242 | BT59: -493699 | BU59: -455513 | BV59: -378569.8299
B60: Outros resultados | C60: 0 | D60: 0 | E60: 0 | F60: 0 | G60: 0 | H60: 0 | I60: 0 | J60: 0 | K60: - | L60: - | M60: - | N60: 0 | O60: 0 | P60: 0 | Q60: - | R60: - | S60: 0 | T60: 0 | U60: 0 | V60: 0 | W60: 0 | X60: 0 | Y60: 0 | BJ60: 0 | BK60: 0 | BL60: 0 | BM60: 0 | BN60: 0 | BO60: 0 | BP60: 0 | BQ60: 0 | BR60: 0 | BS60: 0 | BT60: 0 | BU60: 0 | BV60: 0
B61: LAIR | C61: =C55+C57+C56 -> -30525 | D61: 755534 | E61: -250389 | F61: 833673 | G61: 578724 | H61: 788756 | I61: =I55+I57+I56 -> 905178 | J61: 831642 | K61: 540230 | L61: 738362 | M61: 1056683 | N61: 486802 | O61: 376564 | P61: 441962 | Q61: 639754 | R61: 552569 | S61: 292664 | T61: 442293 | U61: 584033 | V61: 461422 | W61: 367895 | X61: 383603 | Y61: 246987 | Z61: 276444 | AA61: 271242 | AB61: 249487 | AC61: 5693 | AD61: 348552 | AE61: 160946 | AF61: 473996 | AG61: 477019 | AH61: 169802 | AI61: 927667 | AJ61: 188198 | AK61: 484961 | AL61: 208038 | AM61: 273329 | AN61: 220552 | AO61: 47479 | AP61: 391018 | AQ61: 120205 | AR61: 254907 | AS61: 244874 | AT61: 102514.56 | AU61: 144214.44 | AV61: 287255 | AW61: 135624.7788 | AX61: 201421.9494 | AY61: 252893.2718 | AZ61: 315114 | BA61: 273393 | BB61: 177034.6934 | BC61: 237632.748 | BD61: 297646 | BE61: 322875.3121 | BF61: 230735 | BG61: 323295 | BH61: 230163 | BJ61: 3015412 | BK61: =SUM(M61:P61) -> 2362011 | BL61: 1927280 | BM61: 1796953 | BN61: 1044160 | BO61: 989187 | BP61: 1762686 | BQ61: 1186880 | BR61: 813609 | BS61: 778858 | BT61: 905054 | BU61: 985706.4415 | BV61: 1107068.312
B62: IR e Contribuição social | C62: =C63+C64 -> -140315 | D62: =D63+D64 -> -225080 | E62: -85922 | F62: =F63+F64 -> -263755 | G62: -159715 | H62: -228645 | I62: -34079 | J62: -241248 | K62: -159480 | L62: -213060 | M62: -239541 | N62: -164804 | O62: -104471 | P62: -139275 | Q62: -97134 | R62: -172034 | S62: -79551 | T62: -96106 | U62: -12852 | V62: -125977 | W62: -122037 | X62: -121337 | Y62: -67886 | Z62: -108178 | AA62: -94386 | AB62: -85372 | AC62: 87807 | AD62: -87486 | AE62: -25384 | AF62: -133169 | AG62: -29355 | AH62: -73039 | AI62: -175131 | AJ62: -78789 | AK62: -144772 | AL62: -54975 | AM62: -64634 | AN62: -84138 | AO62: 55227 | AP62: -153532 | AQ62: -58741 | AR62: -102473 | AS62: -44966 | AT62: -48600 | AU62: -54926 | AV62: -95003 | AW62: 19259.09786 | AX62: -65157.09786 | AY62: -64340 | AZ62: -103100 | BA62: -17169.20996 | BB62: -61860.2534 | BC62: -72816.91655 | BD62: -97218 | BE62: -17043.24801 | BF62: -73852 | BG62: -80383 | BH62: -77474 | BJ62: -647867 | BK62: -648091 | BL62: -444825 | BM62: -382203 | BN62: -355822 | BO62: -158232 | BP62: -356314 | BQ62: -348519 | BR62: -259519 | BS62: -243495 | BT62: -213338 | BU62: -249064.3799 | BV62: -248752.248
B63: Imposto de renda e contribuição social correntes | C63: -130985 | D63: -165855 | E63: -97477 | F63: -136607 | G63: -137945 | H63: -197597 | I63: -28040 | J63: -100597 | K63: -113493 | L63: -140243 | M63: -44633 | N63: -173821 | O63: -84574 | P63: -103125 | Q63: -34465 | R63: -86293 | S63: -66882 | T63: -100261 | U63: -8717 | V63: -100905 | W63: -82324 | X63: -105768 | Y63: -67241 | Z63: 27937 | AA63: -73696 | AB63: -88468 | AC63: 101321 | AD63: -96358 | AE63: -144161 | AF63: -282433 | AG63: -9363 | AH63: -36648 | AI63: -13934 | AJ63: -67329 | AK63: 43283 | AL63: -26796 | AM63: -59644 | AN63: -65486 | AO63: -13806 | AP63: -80591 | AQ63: -55448 | AR63: -104148 | AS63: 38998 | AT63: -50984 | AU63: -47967 | AV63: -86374 | AW63: 20704 | AX63: -68403 | AY63: -90925 | AZ63: -95963 | BA63: -5695 | BB63: -59362 | BC63: -71007 | BD63: -93190 | BE63: 2923.161891 | BF63: -65181 | BG63: -66664 | BH63: -67877 | BJ63: -382373 | BK63: -406153 | BL63: -287901 | BM63: -297714 | BN63: -201468 | BO63: -421631 | BP63: -127274 | BQ63: -108643 | BR63: -253993 | BS63: -146327 | BT63: -234587 | BU63: -229254 | BV63: -196798.8381
B64: Imposto de renda e contribuição social diferidos | C64: -9330 | D64: -59225 | E64: 11555 | F64: -127148 | G64: -21770 | H64: -31048 | I64: -6039 | J64: -140651 | K64: -45987 | L64: -72817 | M64: -194908 | N64: 9017 | O64: -19897 | P64: -36150 | Q64: -62669 | R64: -85741 | S64: -12669 | T64: 4155 | U64: -4135 | V64: -25072 | W64: -39713 | X64: -15569 | Y64: -645 | Z64: -136115 | AA64: -20690 | AB64: 3096 | AC64: -13514 | AD64: 8872 | AE64: 118777 | AF64: 149264 | AG64: -19992 | AH64: -36391 | AI64: -161197 | AJ64: -11460 | AK64: -188055 | AL64: -28179 | AM64: -4990 | AN64: -18652 | AO64: 69033 | AP64: -72941 | AQ64: -3293 | AR64: 1675 | AS64: -83964 | AT64: 2384 | AU64: -6959 | AV64: -8629 | AW64: -1444.902141 | AX64: 3245.902141 | AY64: 26585 | AZ64: -7137 | BA64: -11474.20996 | BB64: -2498.253397 | BC64: -1809.916547 | BD64: -4028 | BE64: -19966.4099 | BF64: -8671 | BG64: -13719 | BH64: -9597 | BJ64: -265494 | BK64: -241938 | BL64: -156924 | BM64: -84489 | BN64: -154354 | BO64: 263399 | BP64: -229040 | BQ64: -239876 | BR64: -5526 | BS64: -97168 | BT64: 21249 | BU64: -19810.37991 | BV64: -51953.4099
B65: Lucro líquido antes de minoritários | C65: =C61+C62 -> -170840 | D65: 530454 | E65: -336311 | F65: 569918 | G65: 419009 | H65: 560111 | I65: =I61+I62 -> 871099 | J65: 590394 | K65: 380750 | L65: 525302 | M65: 817142 | N65: 321998 | O65: 272093 | P65: 302687 | Q65: 542620 | R65: 380535 | S65: 213113 | T65: 346187 | U65: 571181 | V65: 335445 | W65: 245858 | X65: 262266 | Y65: 179101 | Z65: 168266 | AA65: 176856 | AB65: 164115 | AC65: 93500 | AD65: 261066 | AE65: 135562 | AF65: 340827 | AG65: 447664 | AH65: 96763 | AI65: 752536 | AJ65: 109409 | AK65: 340189 | AL65: 153063 | AM65: 208695 | AN65: 136414 | AO65: 102706 | AP65: 237486 | AQ65: 61464 | AR65: 152434 | AS65: 199908 | AT65: 53914.56 | AU65: 89288.44 | AV65: 192252 | AW65: 154883.8766 | AX65: 136264.8516 | AY65: 188553.2718 | AZ65: 212014 | BA65: 256223.79 | BB65: 115174.44 | BC65: 164815.8315 | BD65: 200428 | BE65: 305832.0641 | BF65: 156883 | BG65: 242912 | BH65: 152689 | BJ65: 2367545 | BK65: 1713920 | BL65: 1482455 | BM65: 1414750 | BN65: 688338 | BO65: 830955 | BP65: 1406372 | BQ65: 838361 | BR65: 554090 | BS65: 535363 | BT65: 691716 | BU65: 736642.0616 | BV65: 858316.0641
B66: Reversão dos juros sobre capital próprio | G66: 0 | H66: 0 | I66: 0 | J66: 0 | K66: 0 | L66: 0 | M66: 0 | N66: 0 | O66: 0 | P66: 0 | Q66: - | R66: - | S66: 0 | T66: 0 | U66: 0 | V66: 0 | W66: 0 | X66: 0 | Y66: 0 | Z66: 0 | AA66: 0 | AB66: 0 | AC66: 0 | AD66: 0 | AE66: 0 | AF66: 0 | AG66: 0 | AH66: 0 | AI66: 0 | AJ66: 0 | AK66: 0 | AL66: 0 | AM66: 0 | AN66: 0 | AO66: 0 | AP66: 0 | AQ66: 0 | AR66: 0 | AS66: 0 | AT66: 0 | AU66: 0 | AV66: 0 | AW66: 0 | AX66: 0 | AY66: 0 | AZ66: 0 | BA66: 0 | BB66: 0 | BC66: 0 | BD66: 0 | BE66: 0 | BF66: 0 | BG66: 0 | BH66: 0 | BJ66: 0 | BK66: 0 | BL66: 0 | BM66: 0 | BN66: 0 | BO66: 0 | BP66: 0 | BQ66: 0 | BR66: 0 | BS66: 0 | BT66: 0 | BU66: 0 | BV66: 0
A67: Atribuível aos acionistas não controladores | B67: Participações dos acionistas não controladores | C67: -51914 | D67: -43928 | E67: -60595 | F67: -55485 | G67: -37898 | H67: -37313 | I67: -62052 | J67: -79876 | K67: -36260 | L67: -29521 | M67: -117171 | N67: -22226 | O67: -34855 | P67: -31652 | Q67: -43327 | R67: -26567 | S67: -24153 | T67: -50552 | U67: -47082 | V67: -28503 | W67: -18182 | X67: -48150 | Y67: 21478 | Z67: -28194 | AA67: -34858 | AB67: -29356 | AC67: -57603 | AD67: -30268 | AE67: -37716 | AF67: -38766 | AG67: -64609 | AH67: -41440 | AI67: -8577 | AJ67: -25810 | AK67: -22902.1 | AL67: -10055 | AM67: -25072.8 | AN67: -36829 | AO67: -61210.8 | AP67: -38094.3 | AQ67: -16858 | AR67: -62159 | AS67: -49219.16 | AT67: -43524.34 | AU67: -49392.08 | AV67: -49764.36 | AW67: -73048.47828 | AX67: -43926.22172 | AY67: -61864 | AZ67: -22163 | BA67: -48674.81934 | BB67: -37281.46788 | BC67: -25959.48554 | BD67: -25011 | BE67: -53646.30449 | BF67: -33152 | BG67: -27892 | BH67: -32160 | BJ67: -207709 | BK67: -205904 | BL67: -144599 | BM67: -141917 | BN67: -70930 | BO67: -164353 | BP67: -140436 | BQ67: -94858.9 | BR67: -178322.1 | BS67: -191899.94 | BT67: -201001.7 | BU67: -136926.7728 | BV67: -146850.3045
B68: Partes Beneficiárias | G68: 0 | H68: 0 | I68: 0 | J68: 0 | K68: 0 | L68: 0 | M68: 0 | N68: 0 | O68: 0 | P68: 0 | Q68: - | R68: - | S68: 0 | T68: 0 | U68: 0 | V68: 0 | W68: 0 | X68: 0 | Y68: 0 | Z68: 0 | AA68: 0 | AB68: 0 | AC68: 0 | AD68: 0 | AE68: 0 | AF68: 0 | AG68: 0 | AH68: 0 | AI68: 0 | AJ68: 0 | AK68: 0 | AL68: 0 | AM68: 0 | AN68: 0 | AO68: 0 | AP68: 0 | AQ68: 0 | AR68: 0 | AS68: 0 | AT68: 0 | AU68: 0 | AV68: 0 | AW68: 0 | AX68: 0 | AY68: 2109 | AZ68: -2109 | BA68: -6870 | BB68: -4932 | BC68: -2911 | BD68: -2444 | BE68: -6473 | BF68: -3621 | BG68: -2497 | BH68: -3181 | BJ68: 0 | BK68: 0 | BL68: 0 | BM68: 0 | BN68: 0 | BO68: 0 | BP68: 0 | BQ68: 0 | BR68: 0 | BS68: 0 | BT68: 0 | BU68: -17157 | BV68: -15772
B69: Lucro líquido | C69: =C65+C67 -> -222754 | D69: =D65+D67 -> 486526 | E69: -396906 | F69: 514433 | G69: 381111 | H69: 522798 | I69: 809047 | J69: =J65+J67 -> 510518 | K69: 344490 | L69: 495781 | M69: 699971 | N69: 299772 | O69: 237238 | P69: 271035 | Q69: 499293 | R69: 353968 | S69: 188960 | T69: 295635 | U69: 524099 | V69: 306942 | W69: 227676 | X69: 214116 | Y69: 200579 | Z69: 140072 | AA69: 141998 | AB69: 134759 | AC69: 35897 | AD69: 230798 | AE69: 97846 | AF69: 302061 | AG69: 383055 | AH69: 55323 | AI69: 743959 | AJ69: 83599 | AK69: 317286.9 | AL69: 143008 | AM69: 183622.2 | AN69: 99585 | AO69: 41495.2 | AP69: 199391.7 | AQ69: 44606 | AR69: 90275 | AS69: 150688.84 | AT69: 10390.22 | AU69: 39896.36 | AV69: 142487.64 | AW69: 81835.39835 | AX69: 92338.62985 | AY69: 128798.2718 | AZ69: 187742 | BA69: 200678.9707 | BB69: 72960.97216 | BC69: 135945.3459 | BD69: 172973 | BE69: 245712.7596 | BF69: 120110 | BG69: 212523 | BH69: 117348 | BJ69: =SUM(I69:L69) -> 2159836 | BK69: 1508016 | BL69: 1337856 | BM69: 1272833 | BN69: 617408 | BO69: 666602 | BP69: 1265936 | BQ69: 743502.1 | BR69: 375767.9 | BS69: 343463.06 | BT69: 490714.3 | BU69: 582558.2888 | BV69: 695693.7596

Sheet EDP Energias do Brasil EN
B2: EDP Energias do Brasil Consolidated
B4: R$ Thousand | C4: Jun-23 | D4: Mar-23 | E4: Dec-22 | F4: Sep-22 | G4: 2022-06-01 | H4: 2022-03-01 | I4: Dec-21 | J4: Sep-21 | K4: 2021-06-30 | L4: 2021-03-31 | M4: 2020-12-30 | N4: 2020-09-30 | O4: 2020-06-30 | P4: 2020-03-31 | Q4: 2019-12-30 | R4: 2019-09-30 | S4: 2019-06-30 | T4: 2019-03-31 | U4: 2018-12-30 | V4: 2018-09-30 | W4: 2018-06-30 | X4: 2018-03-31 | Y4: 2017-12-31 | Z4: 2017-09-30 | AA4: 2017-06-30 | AB4: 2017-03-31 | AC4: 2016-12-31 | AD4: 2016-09-30 | AE4: 2016-06-30 | AF4: 2016-03-31 | AG4: 2015-12-31 | AH4: 2015-09-30 | AI4: 2015-06-30 | AJ4: 2015-03-31 | AK4: 2014-12-31 | AL4: 2014-09-30 | AM4: 2014-06-30 | AN4: 2014-03-31 | AO4: 2013-12-31 | AP4: 2013-09-30 | AQ4: 2013-06-30 | AR4: 2013-03-31 | AS4: 2012-12-30 | AT4: 2012-09-30 | AU4: 2012-06-30 | AV4: 2012-03-31 | AW4: 2011-12-31 | AX4: 2011-09-30 | AY4: 2011-06-30 | AZ4: 2011-03-31 | BA4: 2010-12-31 | BB4: 2010-09-30 | BC4: 2010-06-30 | BD4: 2010-03-31 | BE4: 2009-12-31 | BF4: 2009-09-30 | BG4: 2009-06-30 | BH4: 2009-03-31
C5: 2Q23 | D5: 1Q23 | E5: 4Q22 | F5: 3Q22 | G5: 2Q22 | H5: 1Q22 | I5: 4Q21 | J5: 3Q21 | K5: 2Q21 | L5: 1Q21 | M5: 4Q20 | N5: 3Q20 | O5: 2Q20 | P5: 1Q20 | Q5: 4Q19 | R5: 3Q19 | S5: 2Q19 | T5: 1Q19 | U5: 4Q18 | V5: 3Q18 | W5: 2Q18 | X5: 1Q18 | Y5: 4Q17 | Z5: 3Q17 | AA5: 2Q17 | AB5: 1Q17 | AC5: 4Q16 | AD5: 3Q16 | AE5: 2Q16 | AF5: 1Q16 | AG5: 4Q15 | AH5: 3Q15 | AI5: 2Q15 | AJ5: 1Q15 | AK5: 4Q14 | AL5: 3Q14 | AM5: 2Q14 | AN5: 1Q14 | AO5: 4Q13 | AP5: 3Q13 | AQ5: 2Q13 | AR5: 1Q13 | AS5: 4Q12 | AT5: 3Q12 | AU5: 2Q12 | AV5: 1Q12 | AW5: 4Q11 | AX5: 3Q11 | AY5: 2Q11 | AZ5: 1Q11 | BA5: 4Q10 | BB5: 3Q10 | BC5: 2Q10 | BD5: 1Q10 | BE5: 4Q09 | BF5: 3Q09 | BG5: 2Q09 | BH5: 1Q09 | BJ5: 2021 | BK5: 2020 | BL5: 2019 | BM5: 2018 | BN5: 2017 | BO5: 2016 | BP5: 2015 | BQ5: 2014 | BR5: 2013 | BS5: 2012 | BT5: 2011 | BU5: 2010 | BV5: 2009
B7: Net operating revenue | C7: ='EDP Energias do Brasil'!C7 -> 3562189 | D7: ='EDP Energias do Brasil'!D7 -> 3745567 | E7: ='EDP Energias do Brasil'!E7 -> 3982396 | F7: ='EDP Energias do Brasil'!F7 -> 4086589 | G7: ='EDP Energias do Brasil'!G7 -> 3617436 | H7: ='EDP Energias do Brasil'!H7 -> 3706852 | I7: ='EDP Energias do Brasil'!I7 -> 4665960 | J7: ='EDP Energias do Brasil'!J7 -> 5177330 | K7: ='EDP Energias do Brasil'!K7 -> 3398529 | L7: ='EDP Energias do Brasil'!L7 -> 3430667 | M7: ='EDP Energias do Brasil'!M7 -> 4320117 | N7: ='EDP Energias do Brasil'!N7 -> 3006907 | O7: 2601582 | P7: 3279078 | Q7: 3617237 | R7: 3435764 | S7: 2676012 | T7: 2827823 | U7: 2952522 | V7: 3803757 | W7: 3255823 | X7: 2834294 | Y7: 3548326 | Z7: 3328217 | AA7: 2581699 | AB7: 2306609 | AC7: 2393877 | AD7: 2382864 | AE7: 2025798 | AF7: 2081583 | AG7: 2981039 | AH7: 2342045 | AI7: 2529955 | AJ7: 2090052 | AK7: 2755089 | AL7: 1981135 | AM7: 1767551 | AN7: 2100898 | AO7: 1700062 | AP7: 1648482 | AQ7: 1575689 | AR7: 1846534 | AS7: 1821193 | AT7: 1509028 | AU7: 1441193 | AV7: 1447338 | AW7: 1355096 | AX7: 1320559 | AY7: 1341180 | AZ7: 1384827 | BA7: 1362823 | BB7: 1246715.214 | BC7: 1224370.206 | BD7: 1200408 | BE7: 1205766.182 | BF7: 1183158 | BG7: 1116423 | BH7: 1116355 | BJ7: 18895006 | BK7: ='EDP Energias do Brasil'!BK7 -> 13207684 | BL7: 12556836 | BM7: 12846396 | BN7: 11764851 | BO7: 8884122 | BP7: 9943091 | BQ7: 8604673 | BR7: 6770767 | BS7: 6218752 | BT7: 5401662 | BU7: 5034316.42 | BV7: 4621702.182
B8: Infrastructure revenue | C8: ='EDP Energias do Brasil'!C8 -> 533883 | D8: ='EDP Energias do Brasil'!D8 -> 565290 | E8: ='EDP Energias do Brasil'!E8 -> 561815 | F8: ='EDP Energias do Brasil'!F8 -> 524006 | G8: ='EDP Energias do Brasil'!G8 -> 482111 | H8: ='EDP Energias do Brasil'!H8 -> 419688 | I8: ='EDP Energias do Brasil'!I8 -> 572645 | J8: ='EDP Energias do Brasil'!J8 -> 538615 | K8: ='EDP Energias do Brasil'!K8 -> 538775 | L8: ='EDP Energias do Brasil'!L8 -> 500771 | M8: ='EDP Energias do Brasil'!M8 -> 605496 | N8: ='EDP Energias do Brasil'!N8 -> 453719 | O8: 383594 | P8: 329873 | Q8: 1076230 | R8: 477293 | S8: 602409 | T8: 433915 | U8: 304221 | V8: 349263 | W8: 197651 | X8: 119494 | Y8: 183646 | Z8: 149606 | AA8: 127105 | AB8: 142170 | AC8: 138018 | AD8: 157785 | AE8: 115169 | AF8: 69678 | AG8: 120457 | AH8: 77966 | AI8: 64270 | AJ8: 54650 | AK8: 58245 | AL8: 96375 | AM8: 70293 | AN8: 69142 | AO8: 123058 | AP8: 91690 | AQ8: 66734 | AR8: 44243 | AS8: 85564 | AT8: 66553 | AU8: 19140 | AV8: 64479 | AW8: 72536 | AX8: 96841 | AY8: 134370 | AZ8: 0 | BA8: 0 | BB8: 0 | BC8: 0 | BD8: 0 | BE8: 0 | BF8: 0 | BG8: 0 | BH8: 0 | BJ8: -71714 | BK8: ='EDP Energias do Brasil'!BK8 -> 1772682 | BL8: 2589847 | BM8: 970629 | BN8: 602527 | BO8: 480650 | BP8: 317343 | BQ8: 294055 | BR8: 325725 | BS8: 235736 | BT8: 303747 | BU8: 0 | BV8: 0
B9: Transmission Construction Margin | C9: ='EDP Energias do Brasil'!C9 -> -18733 | D9: ='EDP Energias do Brasil'!D9 -> 4200 | E9: ='EDP Energias do Brasil'!E9 -> -21423 | F9: ='EDP Energias do Brasil'!F9 -> -21978 | G9: ='EDP Energias do Brasil'!G9 -> -34408 | H9: ='EDP Energias do Brasil'!H9 -> -15429 | I9: ='EDP Energias do Brasil'!I9 -> -4940 | J9: ='EDP Energias do Brasil'!J9 -> -22677 | K9: ='EDP Energias do Brasil'!K9 -> 17124 | L9: ='EDP Energias do Brasil'!L9 -> 61355 | M9: ='EDP Energias do Brasil'!M9 -> 15517 | N9: ='EDP Energias do Brasil'!N9 -> -7566 | O9: -860 | P9: -3657 | Q9: 46330 | R9: 2915 | S9: 3415 | T9: 28993 | U9: 17899 | V9: -704 | W9: 0 | X9: 0 | Y9: -7823 | Z9: 0 | AA9: 0 | AB9: 0 | AC9: 0 | AD9: 0 | AE9: 0 | AF9: 0 | AG9: 0 | AH9: 0 | AI9: 0 | AJ9: 0 | AK9: 0 | AL9: 0 | AM9: 0 | AN9: 0 | AO9: 0 | AP9: 0 | AQ9: 0 | AR9: 0 | AS9: 0 | AT9: 0 | AU9: 0 | AV9: 0 | AW9: 0 | AX9: 0 | AY9: 0 | AZ9: 0 | BA9: 0 | BB9: 0 | BC9: 0 | BD9: 0 | BE9: 0 | BF9: 0 | BG9: 0 | BH9: 0 | BJ9: 50862 | BK9: ='EDP Energias do Brasil'!BK9 -> 3434 | BL9: 81653 | BM9: 17195 | BN9: -7823 | BO9: 0 | BP9: 0 | BQ9: 0 | BR9: 0 | BS9: 0 | BT9: 0 | BU9: 0 | BV9: 0
B10: Non-manageable expenditures | C10: ='EDP Energias do Brasil'!C10 -> -2054993 | D10: ='EDP Energias do Brasil'!D10 -> -2005462 | E10: ='EDP Energias do Brasil'!E10 -> -2346147 | F10: ='EDP Energias do Brasil'!F10 -> -2221148 | G10: ='EDP Energias do Brasil'!G10 -> -1998694 | H10: ='EDP Energias do Brasil'!H10 -> -2034348 | I10: ='EDP Energias do Brasil'!I10 -> -3199496 | J10: ='EDP Energias do Brasil'!J10 -> -3708619 | K10: ='EDP Energias do Brasil'!K10 -> -2247747 | L10: ='EDP Energias do Brasil'!L10 -> -2106458 | M10: ='EDP Energias do Brasil'!M10 -> -2505921 | N10: ='EDP Energias do Brasil'!N10 -> -1976603 | O10: -1684156 | P10: -2214929 | Q10: -2538616 | R10: -2316456 | S10: -1789878 | T10: -1834555 | U10: -2054974 | V10: -2809413 | W10: -2298405 | X10: -1879304 | Y10: -2638750 | Z10: -2463762 | AA10: -1719799 | AB10: -1427193 | AC10: -1642477 | AD10: -1447472 | AE10: -1226019 | AF10: -1278888 | AG10: -1948802 | AH10: -1468906 | AI10: -1911767 | AJ10: -1423145 | AK10: -1680268 | AL10: -1423118 | AM10: -1493445 | AN10: -1465242 | AO10: -1191460 | AP10: -823900 | AQ10: -991524 | AR10: -1150377 | AS10: -1322009 | AT10: -1005053 | AU10: -942021 | AV10: -828091 | AW10: -806701 | AX10: -760025 | AY10: -711926 | AZ10: -724249 | BA10: -782096 | BB10: -724697 | BC10: -634732 | BD10: -599817 | BE10: -558514 | BF10: -637277 | BG10: -592550 | BH10: -591394 | BJ10: -11262320 | BK10: ='EDP Energias do Brasil'!BK10 -> -8381609 | BL10: -8479505 | BM10: -9042096 | BN10: -8249504 | BO10: -5594856 | BP10: -6752620 | BQ10: -6062073 | BR10: -4157261 | BS10: -4097174 | BT10: -3002901 | BU10: -2741342 | BV10: -2379735
B11: Energy purchased to resell | C11: ='EDP Energias do Brasil'!C11 -> -1645576 | D11: ='EDP Energias do Brasil'!D11 -> -1614956 | E11: ='EDP Energias do Brasil'!E11 -> -1809847 | F11: ='EDP Energias do Brasil'!F11 -> -1794640 | G11: ='EDP Energias do Brasil'!G11 -> -1592270 | H11: ='EDP Energias do Brasil'!H11 -> -1719619 | I11: ='EDP Energias do Brasil'!I11 -> -2231431 | J11: ='EDP Energias do Brasil'!J11 -> -3133432 | K11: ='EDP Energias do Brasil'!K11 -> -1806074 | L11: ='EDP Energias do Brasil'!L11 -> -1663393 | M11: ='EDP Energias do Brasil'!M11 -> -2224774 | N11: ='EDP Energias do Brasil'!N11 -> -1665941 | O11: -1405209 | P11: -1908627 | Q11: -2115561 | R11: -1927604 | S11: -1460738 | T11: -1422516 | U11: -1750434 | V11: -2406796 | W11: -1833395 | X11: -1402184 | Y11: -2157392 | Z11: -2076847 | AA11: -1410601 | AB11: -1134295 | AC11: -1330341 | AD11: -1184082 | AE11: -1039423 | AF11: -1056709 | AG11: -1739117 | AH11: -1270964 | AI11: -1738990 | AJ11: -1306999 | AK11: -1719412 | AL11: -1297300 | AM11: -1391895 | AN11: -1361257 | AO11: -1100500 | AP11: -730192 | AQ11: -908046 | AR11: -1061188 | AS11: -1149985 | AT11: -912706 | AU11: -763850 | AV11: -642861 | AW11: -623785 | AX11: -578521 | AY11: -547368 | AZ11: -553148 | BA11: -612275 | BB11: -561439 | BC11: -475984 | BD11: -433376 | BE11: -542751 | BF11: -548529 | BG11: -522120 | BH11: -504311 | BJ11: -8834330 | BK11: ='EDP Energias do Brasil'!BK11 -> -7204551 | BL11: -6926419 | BM11: -7392809 | BN11: -6779135 | BO11: -4610555 | BP11: -6056070 | BQ11: -5769864 | BR11: -3799926 | BS11: -3469402 | BT11: -2302822 | BU11: -2083074 | BV11: -2117711
B12: Itaipu - Foreign Exchange | C12: ='EDP Energias do Brasil'!C12 -> 0 | D12: ='EDP Energias do Brasil'!D12 -> 0 | E12: ='EDP Energias do Brasil'!E12 -> 0 | F12: ='EDP Energias do Brasil'!F12 -> 0 | G12: ='EDP Energias do Brasil'!G12 -> 0 | H12: ='EDP Energias do Brasil'!H12 -> 0 | I12: ='EDP Energias do Brasil'!I12 -> 0 | J12: ='EDP Energias do Brasil'!J12 -> 0 | K12: ='EDP Energias do Brasil'!K12 -> 0 | L12: ='EDP Energias do Brasil'!L12 -> 0 | M12: ='EDP Energias do Brasil'!M12 -> 0 | N12: ='EDP Energias do Brasil'!N12 -> 0 | O12: 0 | P12: 0 | Q12: 0 | R12: 0 | S12: 0 | T12: 0 | U12: 0 | V12: 0 | W12: 0 | X12: 0 | Y12: 0 | Z12: 0 | AA12: 0 | AB12: 0 | AC12: 0 | AD12: 0 | AE12: 0 | AF12: 0 | AG12: -309029 | AH12: -319525 | AI12: -243493 | AJ12: -224242 | AK12: -131325 | AL12: -124921 | AM12: -118871 | AN12: -122952 | AO12: -131690 | AP12: -130959 | AQ12: -124866 | AR12: -113375 | AS12: -113645 | AT12: -113773 | AU12: -110073 | AV12: -96360 | AW12: -100194 | AX12: -95127 | AY12: -85483 | AZ12: -91818 | BA12: -94767 | BB12: -96770 | BC12: -98655 | BD12: -101148 | BE12: -99596 | BF12: -105932 | BG12: -115984 | BH12: -132701 | BJ12: 0 | BK12: ='EDP Energias do Brasil'!BK12 -> 0 | BL12: 0 | BM12: 0 | BN12: 0 | BO12: 0 | BP12: -1096289 | BQ12: -498069 | BR12: -500890 | BS12: -433851 | BT12: -372622 | BU12: -391340 | BV12: -454213
B13: National Currency | C13: ='EDP Energias do Brasil'!C13 -> 0 | D13: ='EDP Energias do Brasil'!D13 -> 0 | E13: ='EDP Energias do Brasil'!E13 -> 0 | F13: ='EDP Energias do Brasil'!F13 -> 0 | G13: ='EDP Energias do Brasil'!G13 -> 0 | H13: ='EDP Energias do Brasil'!H13 -> 0 | I13: ='EDP Energias do Brasil'!I13 -> 0 | J13: ='EDP Energias do Brasil'!J13 -> 0 | K13: ='EDP Energias do Brasil'!K13 -> 0 | L13: ='EDP Energias do Brasil'!L13 -> 0 | M13: ='EDP Energias do Brasil'!M13 -> 0 | N13: ='EDP Energias do Brasil'!N13 -> 0 | O13: 0 | P13: 0 | Q13: 0 | R13: 0 | S13: 0 | T13: 0 | U13: 0 | V13: 0 | W13: 0 | X13: 0 | Y13: 0 | Z13: 0 | AA13: 0 | AB13: 0 | AC13: 0 | AD13: 0 | AE13: 0 | AF13: 0 | AG13: -1048686 | AH13: -1128697 | AI13: -1499193 | AJ13: -1337749 | AK13: -1588087 | AL13: -1446223 | AM13: -1273024 | AN13: -1639795 | AO13: -1563549 | AP13: -599233 | AQ13: -783180 | AR13: -947813 | AS13: -1036340 | AT13: -798933 | AU13: -653777 | AV13: -546501 | AW13: -523591 | AX13: -483394 | AY13: -461885 | AZ13: -461330 | BA13: -517508 | BB13: -464669 | BC13: -377329 | BD13: -332228 | BE13: 1220343 | BF13: -442597 | BG13: -406136 | BH13: -371610 | BJ13: 0 | BK13: ='EDP Energias do Brasil'!BK13 -> 0 | BL13: 0 | BM13: 0 | BN13: 0 | BO13: 0 | BP13: -5014325 | BQ13: -5947129 | BR13: -3893775 | BS13: -3035551 | BT13: -1930200 | BU13: -1691734 | BV13: 0
B14: CDE / CCEE / CONER Reimbursement | C14: ='EDP Energias do Brasil'!C14 -> 0 | D14: ='EDP Energias do Brasil'!D14 -> 0 | E14: ='EDP Energias do Brasil'!E14 -> 0 | F14: ='EDP Energias do Brasil'!F14 -> 0 | G14: ='EDP Energias do Brasil'!G14 -> 0 | H14: ='EDP Energias do Brasil'!H14 -> 0 | I14: ='EDP Energias do Brasil'!I14 -> 0 | J14: ='EDP Energias do Brasil'!J14 -> 0 | K14: ='EDP Energias do Brasil'!K14 -> 0 | L14: ='EDP Energias do Brasil'!L14 -> 0 | M14: ='EDP Energias do Brasil'!M14 -> 0 | N14: ='EDP Energias do Brasil'!N14 -> 0 | O14: 0 | P14: 0 | Q14: 0 | R14: 0 | S14: 0 | T14: 0 | U14: 0 | V14: 0 | W14: 0 | X14: 0 | Y14: 0 | Z14: 0 | AA14: 0 | AB14: 0 | AC14: 0 | AD14: 0 | AE14: 0 | AF14: 0 | AG14: -381402 | AH14: 177258 | AI14: 3696 | AJ14: 254992 | AK14: 171025 | AL14: 273844 | AM14: 0 | AN14: 401490 | AO14: 594739 | AP14: 0 | AQ14: 0 | AR14: 0 | AS14: 0 | AT14: 0 | AU14: 0 | AV14: 0 | AW14: 0 | AX14: 0 | AY14: 0 | AZ14: 0 | BA14: 0 | BB14: 0 | BC14: 0 | BD14: 0 | BE14: 0 | BF14: 0 | BG14: 0 | BH14: 0 | BJ14: 0 | BK14: ='EDP Energias do Brasil'!BK14 -> 0 | BL14: 0 | BM14: 0 | BN14: 0 | BO14: 0 | BP14: 54544 | BQ14: 846359 | BR14: 594739 | BS14: 0 | BT14: 0 | BU14: 0 | BV14: 0
B15: Auction | C15: ='EDP Energias do Brasil'!C15 -> 0 | D15: ='EDP Energias do Brasil'!D15 -> 0 | E15: ='EDP Energias do Brasil'!E15 -> 0 | F15: ='EDP Energias do Brasil'!F15 -> 0 | G15: ='EDP Energias do Brasil'!G15 -> 0 | H15: ='EDP Energias do Brasil'!H15 -> 0 | I15: ='EDP Energias do Brasil'!I15 -> 0 | J15: ='EDP Energias do Brasil'!J15 -> 0 | K15: ='EDP Energias do Brasil'!K15 -> 0 | L15: ='EDP Energias do Brasil'!L15 -> 0 | M15: ='EDP Energias do Brasil'!M15 -> 0 | N15: ='EDP Energias do Brasil'!N15 -> 0 | O15: 0 | P15: 0 | Q15: 0 | R15: 0 | S15: 0 | T15: 0 | U15: 0 | V15: 0 | W15: 0 | X15: 0 | Y15: 0 | Z15: 0 | AA15: 0 | AB15: 0 | AC15: 0 | AD15: 0 | AE15: 0 | AF15: 0 | AG15: 0 | AH15: 0 | AI15: 0 | AJ15: 0 | AK15: 0 | AL15: 0 | AM15: 0 | AN15: 0 | AO15: 0 | AP15: 0 | AQ15: 0 | AR15: 0 | AS15: 0 | AT15: 0 | AU15: 0 | AV15: 0 | AW15: 0 | AX15: 0 | AY15: 0 | AZ15: 0 | BA15: 0 | BB15: 0 | BC15: 0 | BD15: 0 | BE15: -201485 | BF15: -185941 | BG15: -175744 | BH15: -148642 | BJ15: 0 | BK15: ='EDP Energias do Brasil'!BK15 -> 0 | BL15: 0 | BM15: 0 | BN15: 0 | BO15: 0 | BP15: 0 | BQ15: 0 | BR15: 0 | BS15: 0 | BT15: 0 | BU15: 0 | BV15: -711812
B16: PROINFA | C16: ='EDP Energias do Brasil'!C16 -> 0 | D16: ='EDP Energias do Brasil'!D16 -> 0 | E16: ='EDP Energias do Brasil'!E16 -> 0 | F16: ='EDP Energias do Brasil'!F16 -> 0 | G16: ='EDP Energias do Brasil'!G16 -> 0 | H16: ='EDP Energias do Brasil'!H16 -> 0 | I16: ='EDP Energias do Brasil'!I16 -> 0 | J16: ='EDP Energias do Brasil'!J16 -> 0 | K16: ='EDP Energias do Brasil'!K16 -> 0 | L16: ='EDP Energias do Brasil'!L16 -> 0 | M16: ='EDP Energias do Brasil'!M16 -> 0 | N16: ='EDP Energias do Brasil'!N16 -> 0 | O16: 0 | P16: 0 | Q16: 0 | R16: 0 | S16: 0 | T16: 0 | U16: 0 | V16: 0 | W16: 0 | X16: 0 | Y16: 0 | Z16: 0 | AA16: 0 | AB16: 0 | AC16: 0 | AD16: 0 | AE16: 0 | AF16: 0 | AG16: 0 | AH16: 0 | AI16: 0 | AJ16: 0 | AK16: 0 | AL16: 0 | AM16: 0 | AN16: 0 | AO16: 0 | AP16: 0 | AQ16: 0 | AR16: 0 | AS16: 0 | AT16: 0 | AU16: 0 | AV16: 0 | AW16: 0 | AX16: 0 | AY16: 0 | AZ16: 0 | BA16: 0 | BB16: 0 | BC16: 0 | BD16: 0 | BE16: 11386 | BF16: -22883 | BG16: -22883 | BH16: -26263 | BJ16: 0 | BK16: ='EDP Energias do Brasil'!BK16 -> 0 | BL16: 0 | BM16: 0 | BN16: 0 | BO16: 0 | BP16: 0 | BQ16: 0 | BR16: 0 | BS16: 0 | BT16: 0 | BU16: 0 | BV16: -60643
B17: Bilateral contracts | C17: ='EDP Energias do Brasil'!C17 -> 0 | D17: ='EDP Energias do Brasil'!D17 -> 0 | E17: ='EDP Energias do Brasil'!E17 -> 0 | F17: ='EDP Energias do Brasil'!F17 -> 0 | G17: ='EDP Energias do Brasil'!G17 -> 0 | H17: ='EDP Energias do Brasil'!H17 -> 0 | I17: ='EDP Energias do Brasil'!I17 -> 0 | J17: ='EDP Energias do Brasil'!J17 -> 0 | K17: ='EDP Energias do Brasil'!K17 -> 0 | L17: ='EDP Energias do Brasil'!L17 -> 0 | M17: ='EDP Energias do Brasil'!M17 -> 0 | N17: ='EDP Energias do Brasil'!N17 -> 0 | O17: 0 | P17: 0 | Q17: 0 | R17: 0 | S17: 0 | T17: 0 | U17: 0 | V17: 0 | W17: 0 | X17: 0 | Y17: 0 | Z17: 0 | AA17: 0 | AB17: 0 | AC17: 0 | AD17: 0 | AE17: 0 | AF17: 0 | AG17: 0 | AH17: 0 | AI17: 0 | AJ17: 0 | AK17: 0 | AL17: 0 | AM17: 0 | AN17: 0 | AO17: 0 | AP17: 0 | AQ17: 0 | AR17: 0 | AS17: 0 | AT17: 0 | AU17: 0 | AV17: 0 | AW17: 0 | AX17: 0 | AY17: 0 | AZ17: 0 | BA17: 0 | BB17: 0 | BC17: 0 | BD17: 0 | BE17: -800746 | BF17: 1478 | BG17: -1478 | BH17: 0 | BJ17: 0 | BK17: ='EDP Energias do Brasil'!BK17 -> 0 | BL17: 0 | BM17: 0 | BN17: 0 | BO17: 0 | BP17: 0 | BQ17: 0 | BR17: 0 | BS17: 0 | BT17: 0 | BU17: 0 | BV17: -800746
B18: Short-term energy - CCEE | C18: ='EDP Energias do Brasil'!C18 -> 0 | D18: ='EDP Energias do Brasil'!D18 -> 0 | E18: ='EDP Energias do Brasil'!E18 -> 0 | F18: ='EDP Energias do Brasil'!F18 -> 0 | G18: ='EDP Energias do Brasil'!G18 -> 0 | H18: ='EDP Energias do Brasil'!H18 -> 0 | I18: ='EDP Energias do Brasil'!I18 -> 0 | J18: ='EDP Energias do Brasil'!J18 -> 0 | K18: ='EDP Energias do Brasil'!K18 -> 0 | L18: ='EDP Energias do Brasil'!L18 -> 0 | M18: ='EDP Energias do Brasil'!M18 -> 0 | N18: ='EDP Energias do Brasil'!N18 -> 0 | O18: 0 | P18: 0 | Q18: 0 | R18: 0 | S18: 0 | T18: 0 | U18: 0 | V18: 0 | W18: 0 | X18: 0 | Y18: 0 | Z18: 0 | AA18: 0 | AB18: 0 | AC18: 0 | AD18: 0 | AE18: 0 | AF18: 0 | AG18: 0 | AH18: 0 | AI18: 0 | AJ18: 0 | AK18: 0 | AL18: 0 | AM18: 0 | AN18: 0 | AO18: 0 | AP18: 0 | AQ18: 0 | AR18: 0 | AS18: 0 | AT18: 0 | AU18: 0 | AV18: 0 | AW18: 0 | AX18: 0 | AY18: 0 | AZ18: 0 | BA18: 0 | BB18: 0 | BC18: 0 | BD18: 0 | BE18: -9219 | BF18: -17022 | BG18: -10213 | BH18: -31865 | BJ18: 0 | BK18: ='EDP Energias do Brasil'!BK18 -> 0 | BL18: 0 | BM18: 0 | BN18: 0 | BO18: 0 | BP18: 0 | BQ18: 0 | BR18: 0 | BS18: 0 | BT18: 0 | BU18: 0 | BV18: -68319
B19: Other suppliers | C19: ='EDP Energias do Brasil'!C19 -> 0 | D19: ='EDP Energias do Brasil'!D19 -> 0 | E19: ='EDP Energias do Brasil'!E19 -> 0 | F19: ='EDP Energias do Brasil'!F19 -> 0 | G19: ='EDP Energias do Brasil'!G19 -> 0 | H19: ='EDP Energias do Brasil'!H19 -> 0 | I19: ='EDP Energias do Brasil'!I19 -> 0 | J19: ='EDP Energias do Brasil'!J19 -> 0 | K19: ='EDP Energias do Brasil'!K19 -> 0 | L19: ='EDP Energias do Brasil'!L19 -> 0 | M19: ='EDP Energias do Brasil'!M19 -> 0 | N19: ='EDP Energias do Brasil'!N19 -> 0 | O19: 0 | P19: 0 | Q19: 0 | R19: 0 | S19: 0 | T19: 0 | U19: 0 | V19: 0 | W19: 0 | X19: 0 | Y19: 0 | Z19: 0 | AA19: 0 | AB19: 0 | AC19: 0 | AD19: 0 | AE19: 0 | AF19: 0 | AG19: 0 | AH19: 0 | AI19: 0 | AJ19: 0 | AK19: 0 | AL19: 0 | AM19: 0 | AN19: 0 | AO19: 0 | AP19: 0 | AQ19: 0 | AR19: 0 | AS19: 0 | AT19: 0 | AU19: 0 | AV19: 0 | AW19: 0 | AX19: 0 | AY19: 0 | AZ19: 0 | BA19: 0 | BB19: 0 | BC19: 0 | BD19: 0 | BE19: 571809 | BF19: -211726 | BG19: -194673 | BH19: -187388 | BJ19: 0 | BK19: ='EDP Energias do Brasil'!BK19 -> 0 | BL19: 0 | BM19: 0 | BN19: 0 | BO19: 0 | BP19: 0 | BQ19: 0 | BR19: 0 | BS19: 0 | BT19: 0 | BU19: 0 | BV19: -21978
B20: Net effect of CVA | C20: ='EDP Energias do Brasil'!C20 -> 0 | D20: ='EDP Energias do Brasil'!D20 -> 0 | E20: ='EDP Energias do Brasil'!E20 -> 0 | F20: ='EDP Energias do Brasil'!F20 -> 0 | G20: ='EDP Energias do Brasil'!G20 -> 0 | H20: ='EDP Energias do Brasil'!H20 -> 0 | I20: ='EDP Energias do Brasil'!I20 -> 0 | J20: ='EDP Energias do Brasil'!J20 -> 0 | K20: ='EDP Energias do Brasil'!K20 -> 0 | L20: ='EDP Energias do Brasil'!L20 -> 0 | M20: ='EDP Energias do Brasil'!M20 -> 0 | N20: ='EDP Energias do Brasil'!N20 -> 0 | O20: 0 | P20: 0 | Q20: 0 | R20: 0 | S20: 0 | T20: 0 | U20: 0 | V20: 0 | W20: 0 | X20: 0 | Y20: 0 | Z20: 0 | AA20: 0 | AB20: 0 | AC20: 0 | AD20: 0 | AE20: 0 | AF20: 0 | AG20: 0 | AH20: 0 | AI20: 0 | AJ20: 0 | AK20: 0 | AL20: 0 | AM20: 0 | AN20: 0 | AO20: 0 | AP20: 0 | AQ20: 0 | AR20: 0 | AS20: 0 | AT20: 0 | AU20: 0 | AV20: 0 | AW20: 0 | AX20: 0 | AY20: 0 | AZ20: 0 | BA20: 0 | BB20: 0 | BC20: 0 | BD20: 0 | BE20: -14900 | BF20: -6503 | BG20: -1145 | BH20: 22548 | BJ20: 0 | BK20: ='EDP Energias do Brasil'!BK20 -> 0 | BL20: 0 | BM20: 0 | BN20: 0 | BO20: 0 | BP20: 0 | BQ20: 0 | BR20: 0 | BS20: 0 | BT20: 0 | BU20: 0 | BV20: 0
B21: Charges for usage of basic network | C21: ='EDP Energias do Brasil'!C21 -> -360858 | D21: ='EDP Energias do Brasil'!D21 -> -341993 | E21: ='EDP Energias do Brasil'!E21 -> -354784 | F21: ='EDP Energias do Brasil'!F21 -> -325283 | G21: ='EDP Energias do Brasil'!G21 -> -303821 | H21: ='EDP Energias do Brasil'!H21 -> -306876 | I21: ='EDP Energias do Brasil'!I21 -> -301427 | J21: ='EDP Energias do Brasil'!J21 -> -291020 | K21: ='EDP Energias do Brasil'!K21 -> -323334 | L21: ='EDP Energias do Brasil'!L21 -> -323017 | M21: ='EDP Energias do Brasil'!M21 -> -327991 | N21: ='EDP Energias do Brasil'!N21 -> -315734 | O21: -230394 | P21: -246890 | Q21: -263003 | R21: -247043 | S21: -223089 | T21: -224204 | U21: -226157 | V21: -213701 | W21: -266973 | X21: -260721 | Y21: -244013 | Z21: -188432 | AA21: -123117 | AB21: -124474 | AC21: -122936 | AD21: -120499 | AE21: -114331 | AF21: -117644 | AG21: -116991 | AH21: -115829 | AI21: -119745 | AJ21: -113196 | AK21: -117126 | AL21: -114938 | AM21: -86212 | AN21: -83452 | AO21: -79518 | AP21: -84299 | AQ21: -71044 | AR21: -74722 | AS21: -157302 | AT21: -82364 | AU21: -165614 | AV21: -169008 | AW21: -169774 | AX21: -171850 | AY21: -153377 | AZ21: -156397 | BA21: -157388 | BB21: -154568 | BC21: -148822 | BD21: -154368 | BE21: -95800 | BF21: -156603 | BG21: -128930 | BH21: -141322 | BJ21: -1238798 | BK21: ='EDP Energias do Brasil'!BK21 -> -1121009 | BL21: -957339 | BM21: -967552 | BN21: -680036 | BO21: -475410 | BP21: -465761 | BQ21: -401728 | BR21: -309583 | BS21: -574288 | BT21: -651398 | BU21: -615146 | BV21: -522655
B22: Risk Premium - GSF | C22: ='EDP Energias do Brasil'!C22 -> 0 | D22: ='EDP Energias do Brasil'!D22 -> 0 | E22: ='EDP Energias do Brasil'!E22 -> 3269 | F22: ='EDP Energias do Brasil'!F22 -> 0 | G22: ='EDP Energias do Brasil'!G22 -> 0 | H22: ='EDP Energias do Brasil'!H22 -> 0 | I22: ='EDP Energias do Brasil'!I22 -> -1 | J22: ='EDP Energias do Brasil'!J22 -> 141789 | K22: ='EDP Energias do Brasil'!K22 -> 0 | L22: ='EDP Energias do Brasil'!L22 -> 23296 | M22: ='EDP Energias do Brasil'!M22 -> 388859 | N22: ='EDP Energias do Brasil'!N22 -> 0 | BJ22: 165084 | BK22: ='EDP Energias do Brasil'!BK22 -> 388859
B23: Future commitments | C23: ='EDP Energias do Brasil'!C23 -> -6218 | D23: ='EDP Energias do Brasil'!D23 -> 0 | E23: ='EDP Energias do Brasil'!E23 -> 0 | F23: ='EDP Energias do Brasil'!F23 -> 0 | G23: ='EDP Energias do Brasil'!G23 -> 0 | H23: ='EDP Energias do Brasil'!H23 -> 0 | I23: ='EDP Energias do Brasil'!I23 -> 0 | J23: ='EDP Energias do Brasil'!J23 -> 0 | K23: ='EDP Energias do Brasil'!K23 -> 0 | L23: ='EDP Energias do Brasil'!L23 -> 0 | M23: ='EDP Energias do Brasil'!M23 -> -180145 | N23: ='EDP Energias do Brasil'!N23 -> 0 | BJ23: 0 | BK23: ='EDP Energias do Brasil'!BK23 -> -180145
B24: Others | C24: ='EDP Energias do Brasil'!C24 -> -42341 | D24: ='EDP Energias do Brasil'!D24 -> -48513 | E24: ='EDP Energias do Brasil'!E24 -> -184785 | F24: ='EDP Energias do Brasil'!F24 -> -101225 | G24: ='EDP Energias do Brasil'!G24 -> -102603 | H24: ='EDP Energias do Brasil'!H24 -> -7853 | I24: ='EDP Energias do Brasil'!I24 -> -666637 | J24: ='EDP Energias do Brasil'!J24 -> -425956 | K24: ='EDP Energias do Brasil'!K24 -> -118339 | L24: ='EDP Energias do Brasil'!L24 -> -143344 | M24: ='EDP Energias do Brasil'!M24 -> -161870 | N24: ='EDP Energias do Brasil'!N24 -> 5072 | O24: -48553 | P24: -59412 | Q24: -160052 | R24: -141809 | S24: -106051 | T24: -187835 | U24: -78383 | V24: -188916 | W24: -198037 | X24: -216399 | Y24: -237345 | Z24: -180460 | AA24: -193634 | AB24: -165543 | AC24: -189200 | AD24: -142891 | AE24: -72265 | AF24: -104535 | AG24: -92694 | AH24: -82113 | AI24: -53032 | AJ24: -2950 | AK24: -14755 | AL24: -10880 | AM24: -15338 | AN24: -20533 | AO24: -11442 | AP24: -9409 | AQ24: -12434 | AR24: -14467 | AS24: -14722 | AT24: -9983 | AU24: -12557 | AV24: -16222 | AW24: -13142 | AX24: -9654 | AY24: -11181 | AZ24: -14704 | BA24: -12433 | BB24: -8690 | BC24: -9926 | BD24: -12073 | BE24: 80037 | BF24: 67855 | BG24: 58500 | BH24: 54239 | BJ24: -1354276 | BK24: ='EDP Energias do Brasil'!BK24 -> -264763 | BL24: -595747 | BM24: -681735 | BN24: -776982 | BO24: -508891 | BP24: -230789 | BQ24: -61506 | BR24: -47752 | BS24: -53484 | BT24: -48681 | BU24: -43122 | BV24: 260631
B25: Efficiency Energy Program | C25: ='EDP Energias do Brasil'!C25 -> 0 | D25: ='EDP Energias do Brasil'!D25 -> 0 | E25: ='EDP Energias do Brasil'!E25 -> 0 | F25: ='EDP Energias do Brasil'!F25 -> 0 | G25: ='EDP Energias do Brasil'!G25 -> 0 | H25: ='EDP Energias do Brasil'!H25 -> 0 | I25: ='EDP Energias do Brasil'!I25 -> 0 | J25: ='EDP Energias do Brasil'!J25 -> 0 | K25: ='EDP Energias do Brasil'!K25 -> 0 | L25: ='EDP Energias do Brasil'!L25 -> 0 | M25: ='EDP Energias do Brasil'!M25 -> 0 | N25: ='EDP Energias do Brasil'!N25 -> 0 | O25: 0 | P25: 0 | Q25: 0 | R25: 0 | S25: 0 | T25: 0 | U25: 0 | V25: 0 | W25: 0 | X25: 0 | Y25: 0 | Z25: 0 | AA25: 0 | AB25: 0 | AC25: 0 | AD25: 0 | AE25: 0 | AF25: 0 | AG25: 0 | AH25: 0 | AI25: 0 | AJ25: 0 | AK25: 0 | AL25: 0 | AM25: 0 | AN25: 0 | AO25: 0 | AP25: 0 | AQ25: 0 | AR25: 0 | AS25: 0 | AT25: 0 | AU25: 0 | AV25: 0 | AW25: 0 | AX25: 0 | AY25: 0 | AZ25: 0 | BA25: 0 | BB25: 0 | BC25: 0 | BD25: 0 | BE25: 0 | BF25: -124 | BG25: -98 | BH25: -50 | BJ25: 0 | BK25: ='EDP Energias do Brasil'!BK25 -> 0 | BL25: 0 | BM25: 0 | BN25: 0 | BO25: 0 | BP25: 0 | BQ25: 0 | BR25: 0 | BS25: 0 | BT25: 0 | BU25: 0 | BV25: -272
B26: PIS/Cofins | C26: ='EDP Energias do Brasil'!C26 -> 0 | D26: ='EDP Energias do Brasil'!D26 -> 0 | E26: ='EDP Energias do Brasil'!E26 -> 0 | F26: ='EDP Energias do Brasil'!F26 -> 0 | G26: ='EDP Energias do Brasil'!G26 -> 0 | H26: ='EDP Energias do Brasil'!H26 -> 0 | I26: ='EDP Energias do Brasil'!I26 -> 0 | J26: ='EDP Energias do Brasil'!J26 -> 0 | K26: ='EDP Energias do Brasil'!K26 -> 0 | L26: ='EDP Energias do Brasil'!L26 -> 0 | M26: ='EDP Energias do Brasil'!M26 -> 0 | N26: ='EDP Energias do Brasil'!N26 -> 0 | O26: 0 | P26: 0 | Q26: 0 | R26: 0 | S26: 0 | T26: 0 | U26: 0 | V26: 0 | W26: 0 | X26: 0 | Y26: 0 | Z26: 0 | AA26: 0 | AB26: 0 | AC26: 0 | AD26: 0 | AE26: 0 | AF26: 0 | AG26: 0 | AH26: 0 | AI26: 0 | AJ26: 0 | AK26: 0 | AL26: 0 | AM26: 0 | AN26: 0 | AO26: 0 | AP26: 0 | AQ26: 0 | AR26: 0 | AS26: 0 | AT26: 0 | AU26: 0 | AV26: 0 | AW26: 0 | AX26: 0 | AY26: 0 | AZ26: 0 | BA26: 0 | BB26: 0 | BC26: 0 | BD26: 0 | BE26: 83739 | BF26: 76971 | BG26: 71472 | BH26: 67875 | BJ26: 0 | BK26: ='EDP Energias do Brasil'!BK26 -> 0 | BL26: 0 | BM26: 0 | BN26: 0 | BO26: 0 | BP26: 0 | BQ26: 0 | BR26: 0 | BS26: 0 | BT26: 0 | BU26: 0 | BV26: 300057
B27: Inspection fee | C27: ='EDP Energias do Brasil'!C27 -> 0 | D27: ='EDP Energias do Brasil'!D27 -> 0 | E27: ='EDP Energias do Brasil'!E27 -> 0 | F27: ='EDP Energias do Brasil'!F27 -> 0 | G27: ='EDP Energias do Brasil'!G27 -> 0 | H27: ='EDP Energias do Brasil'!H27 -> 0 | I27: ='EDP Energias do Brasil'!I27 -> 0 | J27: ='EDP Energias do Brasil'!J27 -> 0 | K27: ='EDP Energias do Brasil'!K27 -> 0 | L27: ='EDP Energias do Brasil'!L27 -> 0 | M27: ='EDP Energias do Brasil'!M27 -> 0 | N27: ='EDP Energias do Brasil'!N27 -> 0 | O27: 0 | P27: 0 | Q27: 0 | R27: 0 | S27: 0 | T27: 0 | U27: 0 | V27: 0 | W27: 0 | X27: 0 | Y27: 0 | Z27: 0 | AA27: 0 | AB27: 0 | AC27: 0 | AD27: 0 | AE27: 0 | AF27: 0 | AG27: 28 | AH27: -9 | AI27: -9 | AJ27: -10 | AK27: -2959 | AL27: -2530 | AM27: -2572 | AN27: -2577 | AO27: -2511 | AP27: -3408 | AQ27: -3579 | AR27: -3580 | AS27: -3629 | AT27: -3185 | AU27: -4005 | AV27: -3586 | AW27: -3446 | AX27: -3434 | AY27: -3462 | AZ27: -3457 | BA27: -3423 | BB27: -3201 | BC27: -2994 | BD27: -3013 | BE27: -2576 | BF27: -3004 | BG27: -3029 | BH27: -2978 | BJ27: 0 | BK27: ='EDP Energias do Brasil'!BK27 -> 0 | BL27: 0 | BM27: 0 | BN27: 0 | BO27: 0 | BP27: 0 | BQ27: -10638 | BR27: -13078 | BS27: -14405 | BT27: -13799 | BU27: -12631 | BV27: -11587
B28: Granting rights | C28: ='EDP Energias do Brasil'!C28 -> 0 | D28: ='EDP Energias do Brasil'!D28 -> 0 | E28: ='EDP Energias do Brasil'!E28 -> 0 | F28: ='EDP Energias do Brasil'!F28 -> 0 | G28: ='EDP Energias do Brasil'!G28 -> 0 | H28: ='EDP Energias do Brasil'!H28 -> 0 | I28: ='EDP Energias do Brasil'!I28 -> 0 | J28: ='EDP Energias do Brasil'!J28 -> 0 | K28: ='EDP Energias do Brasil'!K28 -> 0 | L28: ='EDP Energias do Brasil'!L28 -> 0 | M28: ='EDP Energias do Brasil'!M28 -> 0 | N28: ='EDP Energias do Brasil'!N28 -> 0 | O28: 0 | P28: 0 | Q28: 0 | R28: 0 | S28: 0 | T28: 0 | U28: 0 | V28: 0 | W28: 0 | X28: 0 | Y28: 0 | Z28: 0 | AA28: 0 | AB28: 0 | AC28: 0 | AD28: 0 | AE28: 0 | AF28: 0 | AG28: 0 | AH28: 0 | AI28: 0 | AJ28: 0 | AK28: 0 | AL28: 0 | AM28: 0 | AN28: 0 | AO28: 0 | AP28: 0 | AQ28: 0 | AR28: 0 | AS28: 0 | AT28: 0 | AU28: 0 | AV28: 0 | AW28: 0 | AX28: 0 | AY28: 0 | AZ28: 0 | BA28: 0 | BB28: 0 | BC28: 0 | BD28: 0 | BE28: 0 | BF28: -2038 | BG28: -2038 | BH28: -2038 | BJ28: 0 | BK28: ='EDP Energias do Brasil'!BK28 -> 0 | BL28: 0 | BM28: 0 | BN28: 0 | BO28: 0 | BP28: 0 | BQ28: 0 | BR28: 0 | BS28: 0 | BT28: 0 | BU28: 0 | BV28: 0
B29: Financial compensations | C29: ='EDP Energias do Brasil'!C29 -> 0 | D29: ='EDP Energias do Brasil'!D29 -> 0 | E29: ='EDP Energias do Brasil'!E29 -> 0 | F29: ='EDP Energias do Brasil'!F29 -> 0 | G29: ='EDP Energias do Brasil'!G29 -> 0 | H29: ='EDP Energias do Brasil'!H29 -> 0 | I29: ='EDP Energias do Brasil'!I29 -> 0 | J29: ='EDP Energias do Brasil'!J29 -> 0 | K29: ='EDP Energias do Brasil'!K29 -> 0 | L29: ='EDP Energias do Brasil'!L29 -> 0 | M29: ='EDP Energias do Brasil'!M29 -> 0 | N29: ='EDP Energias do Brasil'!N29 -> 0 | O29: 0 | P29: 0 | Q29: 0 | R29: 0 | S29: 0 | T29: 0 | U29: 0 | V29: 0 | W29: 0 | X29: 0 | Y29: 0 | Z29: 0 | AA29: 0 | AB29: 0 | AC29: 0 | AD29: 0 | AE29: 0 | AF29: 0 | AG29: 0 | AH29: 0 | AI29: 0 | AJ29: 0 | AK29: -9912 | AL29: -6863 | AM29: -8503 | AN29: -12350 | AO29: -8931 | AP29: -6001 | AQ29: -8855 | AR29: -10887 | AS29: -11093 | AT29: -6798 | AU29: -8552 | AV29: -12636 | AW29: -9696 | AX29: -6220 | AY29: -7719 | AZ29: -11247 | BA29: -9010 | BB29: -5489 | BC29: -6932 | BD29: -9060 | BE29: -7240 | BF29: -3950 | BG29: -7807 | BH29: -8570 | BJ29: 0 | BK29: ='EDP Energias do Brasil'!BK29 -> 0 | BL29: 0 | BM29: 0 | BN29: 0 | BO29: 0 | BP29: 0 | BQ29: -37628 | BR29: -34674 | BS29: -39079 | BT29: -34882 | BU29: -30491 | BV29: -27567
B30: Others | C30: ='EDP Energias do Brasil'!C30 -> -1480 | D30: ='EDP Energias do Brasil'!D30 -> -1189 | E30: ='EDP Energias do Brasil'!E30 -> -73662 | F30: ='EDP Energias do Brasil'!F30 -> -1476 | G30: ='EDP Energias do Brasil'!G30 -> -1242 | H30: ='EDP Energias do Brasil'!H30 -> -1300 | I30: ='EDP Energias do Brasil'!I30 -> -1211 | J30: ='EDP Energias do Brasil'!J30 -> -1239 | K30: ='EDP Energias do Brasil'!K30 -> -1364 | L30: ='EDP Energias do Brasil'!L30 -> -1782 | M30: ='EDP Energias do Brasil'!M30 -> 15882 | N30: ='EDP Energias do Brasil'!N30 -> 20417 | O30: -42410 | P30: -1838 | Q30: -1711 | R30: -72 | S30: -1343 | T30: -2061 | U30: -353 | V30: -3654 | W30: -1206 | X30: -1393 | Y30: -3520 | Z30: -2340 | AA30: -812 | AB30: -5 | AC30: -17 | AD30: -47 | AE30: -27 | AF30: -1971 | AG30: -8530 | AH30: -3632 | AI30: -3717 | AJ30: -2940 | AK30: -1884 | AL30: -1487 | AM30: -4263 | AN30: -5606 | AO30: 0 | AP30: 0 | AQ30: 0 | AR30: 0 | AS30: 0 | AT30: 0 | AU30: 0 | AV30: 0 | AW30: 0 | AX30: 0 | AY30: 0 | AZ30: 0 | BA30: 0 | BB30: 0 | BC30: 0 | BD30: 0 | BE30: 0 | BF30: 0 | BG30: 0 | BH30: 0 | BJ30: -5596 | BK30: ='EDP Energias do Brasil'!BK30 -> -7949 | BL30: -5187 | BM30: -6606 | BN30: -6677 | BO30: -2062 | BP30: -18819 | BQ30: -13240 | BR30: 0 | BS30: 0 | BT30: 0 | BU30: 0 | BV30: 0
B31: Cost of consumed materials | C31: ='EDP Energias do Brasil'!C31 -> -40861 | D31: ='EDP Energias do Brasil'!D31 -> -47324 | E31: ='EDP Energias do Brasil'!E31 -> -111123 | F31: ='EDP Energias do Brasil'!F31 -> -99749 | G31: ='EDP Energias do Brasil'!G31 -> -101361 | H31: ='EDP Energias do Brasil'!H31 -> -6553 | I31: ='EDP Energias do Brasil'!I31 -> -665426 | J31: ='EDP Energias do Brasil'!J31 -> -424717 | K31: ='EDP Energias do Brasil'!K31 -> -116975 | L31: ='EDP Energias do Brasil'!L31 -> -141562 | M31: ='EDP Energias do Brasil'!M31 -> -177752 | N31: ='EDP Energias do Brasil'!N31 -> -15345 | O31: -6143 | P31: -57574 | Q31: -158341 | R31: -141737 | S31: -104708 | T31: -185774 | U31: -78030 | V31: -185262 | W31: -196831 | X31: -215006 | Y31: -233825 | Z31: -178120 | AA31: -192822 | AB31: -165538 | AC31: -194310 | AD31: -143662 | AE31: -131645 | AF31: -132727 | AG31: -162256 | AH31: -135704 | AI31: -63920 | AJ31: 0 | AK31: 0 | AL31: 0 | AM31: 0 | AN31: 0 | AO31: 0 | AP31: 0 | AQ31: 0 | AR31: 0 | AS31: 0 | AT31: 0 | AU31: 0 | AV31: 0 | AW31: 0 | AX31: 0 | AY31: 0 | AZ31: 0 | BA31: 0 | BB31: 0 | BC31: 0 | BD31: 0 | BE31: 0 | BF31: 0 | BG31: 0 | BH31: 0 | BJ31: -1348680 | BK31: ='EDP Energias do Brasil'!BK31 -> -256814 | BL31: -590560 | BM31: -675129 | BN31: -770305 | BO31: -602344 | BP31: -361880 | BQ31: 0 | BR31: 0 | BS31: 0 | BT31: 0 | BU31: 0 | BV31: 0
B32: Reimbursement for downtime | C32: ='EDP Energias do Brasil'!C32 -> 0 | D32: ='EDP Energias do Brasil'!D32 -> 0 | E32: ='EDP Energias do Brasil'!E32 -> 0 | F32: ='EDP Energias do Brasil'!F32 -> 0 | G32: ='EDP Energias do Brasil'!G32 -> 0 | H32: ='EDP Energias do Brasil'!H32 -> 0 | I32: ='EDP Energias do Brasil'!I32 -> 0 | J32: ='EDP Energias do Brasil'!J32 -> 0 | K32: ='EDP Energias do Brasil'!K32 -> 0 | L32: ='EDP Energias do Brasil'!L32 -> 0 | M32: ='EDP Energias do Brasil'!M32 -> 0 | N32: ='EDP Energias do Brasil'!N32 -> 0 | O32: 0 | P32: 0 | Q32: - | R32: - | S32: 0 | T32: 0 | U32: 0 | V32: 0 | W32: 0 | X32: 0 | Y32: 0 | Z32: -18023 | AA32: 7553 | AB32: -2881 | AC32: 5127 | AD32: 818 | AE32: 59407 | AF32: 30163 | AG32: 78064 | AH32: 57232 | AI32: 14614 | AJ32: 0 | AK32: 0 | AL32: 0 | AM32: 0 | AN32: 0 | AO32: 0 | AP32: 0 | AQ32: 0 | AR32: 0 | AS32: 0 | AT32: 0 | AU32: 0 | AV32: 0 | AW32: 0 | AX32: 0 | AY32: 0 | AZ32: 0 | BA32: 0 | BB32: 0 | BC32: 0 | BD32: 0 | BE32: 0 | BF32: 0 | BG32: 0 | BH32: 0 | BJ32: 0 | BK32: ='EDP Energias do Brasil'!BK32 -> 0 | BL32: 0 | BM32: 0 | BN32: -13351 | BO32: 95515 | BP32: 149910 | BQ32: 0 | BR32: 0 | BS32: 0 | BT32: 0 | BU32: 0 | BV32: 0
B33: Gross Margin | C33: ='EDP Energias do Brasil'!C33 -> 1488463 | D33: ='EDP Energias do Brasil'!D33 -> 1744305 | E33: ='EDP Energias do Brasil'!E33 -> 1614826 | F33: ='EDP Energias do Brasil'!F33 -> 1843463 | G33: ='EDP Energias do Brasil'!G33 -> 1584334 | H33: ='EDP Energias do Brasil'!H33 -> 1657075 | I33: ='EDP Energias do Brasil'!I33 -> 1461524 | J33: ='EDP Energias do Brasil'!J33 -> 1446034 | K33: ='EDP Energias do Brasil'!K33 -> 1167906 | L33: ='EDP Energias do Brasil'!L33 -> 1385564 | M33: ='EDP Energias do Brasil'!M33 -> 1829713 | N33: ='EDP Energias do Brasil'!N33 -> 1022738 | O33: 916566 | P33: 1064149 | Q33: 1124951 | R33: 1122223 | S33: 889549 | T33: 1022261 | U33: 915447 | V33: 993640 | W33: 957418 | X33: 954990 | Y33: 901753 | Z33: 864455 | AA33: 861900 | AB33: 879416 | AC33: 751400 | AD33: 935392 | AE33: 799779 | AF33: 802695 | AG33: 1032237 | AH33: 873139 | AI33: 618188 | AJ33: 666907 | AK33: 1074821 | AL33: 558017 | AM33: 274106 | AN33: 635656 | AO33: 508602 | AP33: 824582 | AQ33: 584165 | AR33: 696157 | AS33: 499184 | AT33: 503975 | AU33: 499172 | AV33: 619247 | AW33: 548395 | AX33: 560534 | AY33: 629254 | AZ33: 660578 | BA33: 580727 | BB33: 522018.214 | BC33: 589638.2061 | BD33: 600591 | BE33: 647252.1816 | BF33: 545881 | BG33: 523873 | BH33: 524961 | BI33: 0 | BJ33: 7683548 | BK33: ='EDP Energias do Brasil'!BK33 -> 4829509 | BL33: 4158984 | BM33: 3821495 | BN33: 3507524 | BO33: 3289266 | BP33: 3190471 | BQ33: 2542600 | BR33: 2613506 | BS33: 2121578 | BT33: 2398761 | BU33: 2292974.42 | BV33: 2241967.182
B34: Manageable expenditures | C34: ='EDP Energias do Brasil'!C34 -> -1765899 | D34: ='EDP Energias do Brasil'!D34 -> -1194843 | E34: ='EDP Energias do Brasil'!E34 -> -2425742 | F34: ='EDP Energias do Brasil'!F34 -> -1246233 | G34: ='EDP Energias do Brasil'!G34 -> -1158224 | H34: ='EDP Energias do Brasil'!H34 -> -979970 | I34: ='EDP Energias do Brasil'!I34 -> -1237108 | J34: ='EDP Energias do Brasil'!J34 -> -1031052 | K34: ='EDP Energias do Brasil'!K34 -> -1083311 | L34: ='EDP Energias do Brasil'!L34 -> -1006341 | M34: ='EDP Energias do Brasil'!M34 -> -1201175 | N34: ='EDP Energias do Brasil'!N34 -> -940122 | O34: -880207 | P34: -847376 | Q34: -1473489 | R34: -974761 | S34: -1098338 | T34: -909931 | U34: -862227 | V34: -848901 | W34: -705230 | X34: -590118 | Y34: -678546 | Z34: -606744 | AA34: -595356 | AB34: -621109 | AC34: -631716 | AD34: -602645 | AE34: -589397 | AF34: -466926 | AG34: -608830 | AH34: -495410 | AI34: -454567 | AJ34: -400673 | AK34: -457519 | AL34: -421032 | AM34: -409172 | AN34: -383030 | AO34: -482119 | AP34: -430826 | AQ34: -408741 | AR34: -364450 | AS34: -242044 | AT34: -385709 | AU34: -298231 | AV34: -348334 | AW34: -405882 | AX34: -386635 | AY34: -425791 | AZ34: -292221 | BA34: -257578 | BB34: -296300 | BC34: -278746 | BD34: -275418 | BE34: -314945 | BF34: -253614 | BG34: -254268 | BH34: -256974 | BJ34: -4357812 | BK34: ='EDP Energias do Brasil'!BK34 -> -3868880 | BL34: -4456519 | BM34: -3006476 | BN34: -2501755 | BO34: -2290684 | BP34: -1959480 | BQ34: -1670753 | BR34: -1686136 | BS34: -1274318 | BT34: -1510529 | BU34: -1108042 | BV34: -1079801
B35: Total PMTO | C35: ='EDP Energias do Brasil'!C35 -> -420813 | D35: ='EDP Energias do Brasil'!D35 -> -402276 | E35: ='EDP Energias do Brasil'!E35 -> -353686 | F35: ='EDP Energias do Brasil'!F35 -> -468645 | G35: ='EDP Energias do Brasil'!G35 -> -440834 | H35: ='EDP Energias do Brasil'!H35 -> -363633 | I35: ='EDP Energias do Brasil'!I35 -> -419876 | J35: ='EDP Energias do Brasil'!J35 -> -296779 | K35: ='EDP Energias do Brasil'!K35 -> -351533 | L35: ='EDP Energias do Brasil'!L35 -> -327029 | M35: ='EDP Energias do Brasil'!M35 -> -406054 | N35: ='EDP Energias do Brasil'!N35 -> -302851 | O35: -311032 | P35: -333861 | Q35: -215844 | R35: -322507 | S35: -316393 | T35: -296637 | U35: -379861 | V35: -319190 | W35: -336364 | X35: -298527 | Y35: -319109 | Z35: -293628 | AA35: -316058 | AB35: -319663 | AC35: -327382 | AD35: -293094 | AE35: -326120 | AF35: -308648 | AG35: -315465 | AH35: -277517 | AI35: -271673 | AJ35: -251334 | AK35: -282093 | AL35: -211747 | AM35: -237925 | AN35: -231161 | AO35: -258139 | AP35: -207826 | AQ35: -257233 | AR35: -233824 | AS35: -70216 | AT35: -232882 | AU35: -194558 | AV35: -203359 | AW35: -251435 | AX35: -208246 | AY35: -207857 | AZ35: -193655 | BA35: -198972 | BB35: -207025 | BC35: -189831 | BD35: -188356 | BE35: -199733 | BF35: -181545 | BG35: -179564 | BH35: -184853 | BJ35: -1395217 | BK35: ='EDP Energias do Brasil'!BK35 -> -1353798 | BL35: -1151381 | BM35: -1333942 | BN35: -1248458 | BO35: -1255244 | BP35: -1115989 | BQ35: -962926 | BR35: -957022 | BS35: -701015 | BT35: -861193 | BU35: -784184 | BV35: -745695
B36: Personnel | C36: ='EDP Energias do Brasil'!C36 -> -167381 | D36: ='EDP Energias do Brasil'!D36 -> -163277 | E36: ='EDP Energias do Brasil'!E36 -> -164227 | F36: ='EDP Energias do Brasil'!F36 -> -157312 | G36: ='EDP Energias do Brasil'!G36 -> -178557 | H36: ='EDP Energias do Brasil'!H36 -> -150686 | I36: ='EDP Energias do Brasil'!I36 -> -152152 | J36: ='EDP Energias do Brasil'!J36 -> -118427 | K36: ='EDP Energias do Brasil'!K36 -> -138867 | L36: ='EDP Energias do Brasil'!L36 -> -130591 | M36: ='EDP Energias do Brasil'!M36 -> -150354 | N36: ='EDP Energias do Brasil'!N36 -> -122594 | O36: -118179 | P36: -132103 | Q36: -1597 | R36: -122805 | S36: -128810 | T36: -123717 | U36: -136606 | V36: -114541 | W36: -121647 | X36: -116345 | Y36: -120223 | Z36: -114219 | AA36: -116532 | AB36: -116704 | AC36: -110409 | AD36: -107063 | AE36: -118518 | AF36: -111320 | AG36: -127412 | AH36: -98334 | AI36: -98641 | AJ36: -95031 | AK36: -109543 | AL36: -84466 | AM36: -94853 | AN36: -88654 | AO36: -110576 | AP36: -93982 | AQ36: -83171 | AR36: -85483 | AS36: -84885 | AT36: -78716 | AU36: -68383 | AV36: -83889 | AW36: -85320 | AX36: -68723 | AY36: -66330 | AZ36: -67245 | BA36: -60820 | BB36: -63089 | BC36: -63219 | BD36: -64797 | BE36: -66846 | BF36: -54129 | BG36: -64715 | BH36: -75896 | BJ36: -540037 | BK36: ='EDP Energias do Brasil'!BK36 -> -523230 | BL36: -376929 | BM36: -489139 | BN36: -467678 | BO36: -447310 | BP36: -419418 | BQ36: -377516 | BR36: -373212 | BS36: -315873 | BT36: -287618 | BU36: -251925 | BV36: -261586
B37: Material | C37: ='EDP Energias do Brasil'!C37 -> -11264 | D37: ='EDP Energias do Brasil'!D37 -> -17126 | E37: ='EDP Energias do Brasil'!E37 -> 32891 | F37: ='EDP Energias do Brasil'!F37 -> -54590 | G37: ='EDP Energias do Brasil'!G37 -> -32735 | H37: ='EDP Energias do Brasil'!H37 -> -16097 | I37: ='EDP Energias do Brasil'!I37 -> -21122 | J37: ='EDP Energias do Brasil'!J37 -> -16058 | K37: ='EDP Energias do Brasil'!K37 -> -19074 | L37: ='EDP Energias do Brasil'!L37 -> -15469 | M37: ='EDP Energias do Brasil'!M37 -> -46299 | N37: ='EDP Energias do Brasil'!N37 -> -14623 | O37: -11189 | P37: -13927 | Q37: -24596 | R37: -14339 | S37: -14257 | T37: -10504 | U37: -18080 | V37: -31466 | W37: -14908 | X37: -11836 | Y37: -14111 | Z37: -13062 | AA37: -13269 | AB37: -12691 | AC37: -11421 | AD37: -15706 | AE37: -13418 | AF37: -11408 | AG37: -12628 | AH37: -10446 | AI37: -8216 | AJ37: -6116 | AK37: -8214 | AL37: -7021 | AM37: -7811 | AN37: -6869 | AO37: -12168 | AP37: -7925 | AQ37: -7812 | AR37: -6618 | AS37: -7128 | AT37: -8377 | AU37: -6271 | AV37: -6281 | AW37: -6176 | AX37: -8479 | AY37: -6761 | AZ37: -5150 | BA37: -6916 | BB37: -6503 | BC37: -4717 | BD37: -5342 | BE37: -5500 | BF37: -6015 | BG37: -6164 | BH37: -6557 | BJ37: -71723 | BK37: ='EDP Energias do Brasil'!BK37 -> -86038 | BL37: -63696 | BM37: -76290 | BN37: -53133 | BO37: -51953 | BP37: -37406 | BQ37: -29915 | BR37: -34523 | BS37: -28057 | BT37: -26566 | BU37: -23478 | BV37: -24236
B38: Third-party services | C38: ='EDP Energias do Brasil'!C38 -> -149065 | D38: ='EDP Energias do Brasil'!D38 -> -141734 | E38: ='EDP Energias do Brasil'!E38 -> -171583 | F38: ='EDP Energias do Brasil'!F38 -> -149248 | G38: ='EDP Energias do Brasil'!G38 -> -148252 | H38: ='EDP Energias do Brasil'!H38 -> -114602 | I38: ='EDP Energias do Brasil'!I38 -> -155384 | J38: ='EDP Energias do Brasil'!J38 -> -123650 | K38: ='EDP Energias do Brasil'!K38 -> -126924 | L38: ='EDP Energias do Brasil'!L38 -> -115902 | M38: ='EDP Energias do Brasil'!M38 -> -142305 | N38: ='EDP Energias do Brasil'!N38 -> -100592 | O38: -109141 | P38: -117669 | Q38: -136169 | R38: -114754 | S38: -118212 | T38: -103241 | U38: -142365 | V38: -118472 | W38: -121353 | X38: -109649 | Y38: -129221 | Z38: -124033 | AA38: -122465 | AB38: -115852 | AC38: -140117 | AD38: -116555 | AE38: -115410 | AF38: -106547 | AG38: -113219 | AH38: -110850 | AI38: -105791 | AJ38: -95406 | AK38: -138378 | AL38: -92534 | AM38: -89809 | AN38: -89539 | AO38: -112437 | AP38: -91574 | AQ38: -96612 | AR38: -88575 | AS38: -101496 | AT38: -83742 | AU38: -84077 | AV38: -87448 | AW38: -106942 | AX38: -85853 | AY38: -77380 | AZ38: -76395 | BA38: -91454 | BB38: -81930 | BC38: -77049 | BD38: -72182 | BE38: -83684 | BF38: -68076 | BG38: -72417 | BH38: -60476 | BJ38: -521860 | BK38: ='EDP Energias do Brasil'!BK38 -> -469707 | BL38: -472376 | BM38: -491839 | BN38: -491571 | BO38: -478629 | BP38: -425266 | BQ38: -410260 | BR38: -389198 | BS38: -356763 | BT38: -346570 | BU38: -322615 | BV38: -284653
B39: Provisions | C39: ='EDP Energias do Brasil'!C39 -> -58007 | D39: ='EDP Energias do Brasil'!D39 -> -50294 | E39: ='EDP Energias do Brasil'!E39 -> -29293 | F39: ='EDP Energias do Brasil'!F39 -> -74713 | G39: ='EDP Energias do Brasil'!G39 -> -54669 | H39: ='EDP Energias do Brasil'!H39 -> -53776 | I39: ='EDP Energias do Brasil'!I39 -> -47278 | J39: ='EDP Energias do Brasil'!J39 -> -39665 | K39: ='EDP Energias do Brasil'!K39 -> -40094 | L39: ='EDP Energias do Brasil'!L39 -> -39431 | M39: ='EDP Energias do Brasil'!M39 -> -53486 | N39: ='EDP Energias do Brasil'!N39 -> -45594 | O39: -48352 | P39: -43976 | Q39: -30781 | R39: -46813 | S39: -44833 | T39: -34749 | U39: -27514 | V39: -30923 | W39: -44839 | X39: -29078 | Y39: -24233 | Z39: -13242 | AA39: -35428 | AB39: -39295 | AC39: -30002 | AD39: -19604 | AE39: -43152 | AF39: -39554 | AG39: -28166 | AH39: -27849 | AI39: -24409 | AJ39: -28943 | AK39: -7790 | AL39: -1352 | AM39: -24772 | AN39: -19223 | AO39: -6788 | AP39: -19198 | AQ39: -45459 | AR39: -30833 | AS39: 18017 | AT39: -25520 | AU39: -15583 | AV39: -14390 | AW39: -29206 | AX39: -19455 | AY39: -19166 | AZ39: -14989 | BA39: -14739 | BB39: -29961 | BC39: -17093 | BD39: -21639 | BE39: 6011 | BF39: -36916 | BG39: -20598 | BH39: -20037 | BJ39: -166468 | BK39: ='EDP Energias do Brasil'!BK39 -> -191408 | BL39: -157176 | BM39: -132354 | BN39: -112198 | BO39: -132312 | BP39: -109367 | BQ39: -53137 | BR39: -102278 | BS39: -37476 | BT39: -82816 | BU39: -83432 | BV39: -71540
B40: Provision for doubtful account/net losses | C40: ='EDP Energias do Brasil'!C40 -> -35029 | D40: ='EDP Energias do Brasil'!D40 -> -39261 | E40: ='EDP Energias do Brasil'!E40 -> -32584 | F40: ='EDP Energias do Brasil'!F40 -> -42393 | G40: ='EDP Energias do Brasil'!G40 -> -42348 | H40: ='EDP Energias do Brasil'!H40 -> -42489 | I40: ='EDP Energias do Brasil'!I40 -> -44437 | J40: ='EDP Energias do Brasil'!J40 -> -31740 | K40: ='EDP Energias do Brasil'!K40 -> -34050 | L40: ='EDP Energias do Brasil'!L40 -> -24931 | M40: ='EDP Energias do Brasil'!M40 -> -40111 | N40: ='EDP Energias do Brasil'!N40 -> -32240 | O40: -39575 | P40: -34229 | Q40: -19510 | R40: -33721 | S40: -36945 | T40: -22824 | U40: -12051 | V40: -24346 | W40: -23755 | X40: -24990 | Y40: -9503 | Z40: -11363 | AA40: -32277 | AB40: -29152 | AC40: -14327 | AD40: -19557 | AE40: -36716 | AF40: -32201 | AG40: -15143 | AH40: -20233 | AI40: -17504 | AJ40: -21634 | AK40: 3218 | AL40: -2098 | AM40: -13151 | AN40: -15407 | AO40: -6491 | AP40: -10676 | AQ40: -10115 | AR40: -25156 | AS40: 30586 | AT40: -14017 | AU40: -16901 | AV40: -9308 | AW40: -16781 | AX40: -14916 | AY40: 7420 | AZ40: -12979 | BA40: -18711 | BB40: -24751 | BC40: -16651 | BD40: -16798 | BE40: 19306 | BF40: -19524 | BG40: -18963 | BH40: -17501 | BJ40: -135158 | BK40: ='EDP Energias do Brasil'!BK40 -> -146155 | BL40: -113000 | BM40: -85142 | BN40: -82295 | BO40: -102801 | BP40: -74514 | BQ40: -27438 | BR40: -52438 | BS40: -9640 | BT40: -37256 | BU40: -76911 | BV40: -36682
B41: Provision for contingencies | C41: ='EDP Energias do Brasil'!C41 -> -22978 | D41: ='EDP Energias do Brasil'!D41 -> -11033 | E41: ='EDP Energias do Brasil'!E41 -> 3291 | F41: ='EDP Energias do Brasil'!F41 -> -32320 | G41: ='EDP Energias do Brasil'!G41 -> -12321 | H41: ='EDP Energias do Brasil'!H41 -> -11287 | I41: ='EDP Energias do Brasil'!I41 -> -2841 | J41: ='EDP Energias do Brasil'!J41 -> -7925 | K41: ='EDP Energias do Brasil'!K41 -> -6044 | L41: ='EDP Energias do Brasil'!L41 -> -14500 | M41: ='EDP Energias do Brasil'!M41 -> -13375 | N41: ='EDP Energias do Brasil'!N41 -> -13354 | O41: -8777 | P41: -9747 | Q41: -11271 | R41: -13092 | S41: 0 | T41: 0 | U41: -15463 | V41: -6577 | W41: -21084 | X41: -4088 | Y41: -14730 | Z41: -1879 | AA41: -3151 | AB41: -10143 | AC41: -15675 | AD41: -47 | AE41: -6436 | AF41: -7353 | AG41: -13023 | AH41: -7616 | AI41: -6905 | AJ41: -7309 | AK41: -11008 | AL41: 746 | AM41: -11621 | AN41: -3816 | AO41: -297 | AP41: -8522 | AQ41: -35344 | AR41: -5677 | AS41: -12569 | AT41: -11503 | AU41: 1318 | AV41: -5082 | AW41: -12425 | AX41: -4539 | AY41: -26586 | AZ41: -2010 | BA41: 3972 | BB41: -5210 | BC41: -442 | BD41: -4841 | BE41: -13295 | BF41: -17392 | BG41: -1635 | BH41: -2536 | BJ41: -31310 | BK41: ='EDP Energias do Brasil'!BK41 -> -45253 | BL41: -24363 | BM41: -47212 | BN41: -29903 | BO41: -29511 | BP41: -34853 | BQ41: -25699 | BR41: -49840 | BS41: -27836 | BT41: -45560 | BU41: -6521 | BV41: -34858
B42: Other | C42: ='EDP Energias do Brasil'!C42 -> -35096 | D42: ='EDP Energias do Brasil'!D42 -> -29845 | E42: ='EDP Energias do Brasil'!E42 -> -21474 | F42: ='EDP Energias do Brasil'!F42 -> -32782 | G42: ='EDP Energias do Brasil'!G42 -> -26621 | H42: ='EDP Energias do Brasil'!H42 -> -28472 | I42: ='EDP Energias do Brasil'!I42 -> -43940 | J42: ='EDP Energias do Brasil'!J42 -> 1021 | K42: ='EDP Energias do Brasil'!K42 -> -26574 | L42: ='EDP Energias do Brasil'!L42 -> -25636 | M42: ='EDP Energias do Brasil'!M42 -> -13610 | N42: ='EDP Energias do Brasil'!N42 -> -19448 | O42: -24171 | P42: -26186 | Q42: -22701 | R42: -23796 | S42: -10281 | T42: -24426 | U42: -55296 | V42: -23788 | W42: -33617 | X42: -31619 | Y42: -31321 | Z42: -29072 | AA42: -28364 | AB42: -35121 | AC42: -35433 | AD42: -34166 | AE42: -35622 | AF42: -39819 | AG42: -34040 | AH42: -82113 | AI42: -34616 | AJ42: -25838 | AK42: -18168 | AL42: -26374 | AM42: -20680 | AN42: -20533 | AO42: -16170 | AP42: 4853 | AQ42: -24179 | AR42: -22315 | AS42: 105276 | AT42: -36527 | AU42: -20244 | AV42: -11351 | AW42: -23791 | AX42: -25736 | AY42: -38220 | AZ42: -29876 | BA42: -25043 | BB42: -25542 | BC42: -27753 | BD42: -24396 | BE42: -49714 | BF42: -16409 | BG42: -15670 | BH42: -21887 | BJ42: -95129 | BK42: ='EDP Energias do Brasil'!BK42 -> -83415 | BL42: -81204 | BM42: -144320 | BN42: -123878 | BO42: -145040 | BP42: -176607 | BQ42: -85755 | BR42: -57811 | BS42: 37154 | BT42: -117623 | BU42: -102734 | BV42: -103680
B43: Rent and leasing | C43: ='EDP Energias do Brasil'!C43 -> -1954 | D43: ='EDP Energias do Brasil'!D43 -> -4323 | E43: ='EDP Energias do Brasil'!E43 -> 1008 | F43: ='EDP Energias do Brasil'!F43 -> -3474 | G43: ='EDP Energias do Brasil'!G43 -> -771 | H43: ='EDP Energias do Brasil'!H43 -> -1892 | I43: ='EDP Energias do Brasil'!I43 -> -2400 | J43: ='EDP Energias do Brasil'!J43 -> -1863 | K43: ='EDP Energias do Brasil'!K43 -> -824 | L43: ='EDP Energias do Brasil'!L43 -> 315 | M43: ='EDP Energias do Brasil'!M43 -> 639 | N43: ='EDP Energias do Brasil'!N43 -> -1403 | O43: -1014 | P43: -3306 | Q43: -2876 | R43: -2028 | S43: -2372 | T43: -869 | U43: -5006 | V43: -6992 | W43: -8179 | X43: -7071 | Y43: -7592 | Z43: -6901 | AA43: -6242 | AB43: -5898 | AC43: -5501 | AD43: -6603 | AE43: -6979 | AF43: -5711 | AG43: -5403 | AH43: -5495 | AI43: -6138 | AJ43: -4581 | AK43: -4469 | AL43: -4687 | AM43: -4985 | AN43: -4470 | AO43: -5519 | AP43: -5208 | AQ43: -4851 | AR43: -3426 | AS43: -3399 | AT43: -3444 | AU43: -2936 | AV43: -2828 | AW43: -2827 | AX43: -2046 | AY43: -2530 | AZ43: -2717 | BA43: -2482 | BB43: 4562 | BC43: -9183 | BD43: -2233 | BE43: -2114 | BF43: -2186 | BG43: -2427 | BH43: -2106 | BJ43: -4772 | BK43: ='EDP Energias do Brasil'!BK43 -> -5084 | BL43: -8145 | BM43: -27248 | BN43: -26633 | BO43: -24794 | BP43: -21617 | BQ43: -18611 | BR43: -19004 | BS43: -12607 | BT43: -10120 | BU43: -9336 | BV43: -8833
B44: Others | C44: ='EDP Energias do Brasil'!C44 -> -33142 | D44: ='EDP Energias do Brasil'!D44 -> -25522 | E44: ='EDP Energias do Brasil'!E44 -> -22482 | F44: ='EDP Energias do Brasil'!F44 -> -29308 | G44: ='EDP Energias do Brasil'!G44 -> -25850 | H44: ='EDP Energias do Brasil'!H44 -> -26580 | I44: ='EDP Energias do Brasil'!I44 -> -41540 | J44: ='EDP Energias do Brasil'!J44 -> 2884 | K44: ='EDP Energias do Brasil'!K44 -> -25750 | L44: ='EDP Energias do Brasil'!L44 -> -25951 | M44: ='EDP Energias do Brasil'!M44 -> -14249 | N44: ='EDP Energias do Brasil'!N44 -> -18045 | O44: -23157 | P44: -22880 | Q44: -19825 | R44: -21768 | S44: -7909 | T44: -23557 | U44: -50290 | V44: -16796 | W44: -25438 | X44: -24548 | Y44: -23379 | Z44: -22171 | AA44: -22122 | AB44: -29223 | AC44: -29932 | AD44: -27563 | AE44: -28643 | AF44: -34108 | AG44: -28637 | AH44: -3632 | AI44: -28478 | AJ44: -21257 | AK44: -13699 | AL44: -21687 | AM44: -15695 | AN44: -5606 | AO44: -10651 | AP44: -34616 | AQ44: -17390 | AR44: -10258 | AS44: 22785 | AT44: -28471 | AU44: -9166 | AV44: -18688 | AW44: -10502 | AX44: -12159 | AY44: -35690 | AZ44: -27159 | BA44: -22561 | BB44: -30104 | BC44: -18570 | BD44: -22163 | BE44: -47600 | BF44: -14223 | BG44: -13243 | BH44: -19781 | BJ44: -90357 | BK44: ='EDP Energias do Brasil'!BK44 -> -78331 | BL44: -73059 | BM44: -117072 | BN44: -96895 | BO44: -120246 | BP44: -82004 | BQ44: -56687 | BR44: -72915 | BS44: -33540 | BT44: -85510 | BU44: -93398 | BV44: -94847
B45: Gains/Losses on Deactivation/Asset Sale | C45: ='EDP Energias do Brasil'!C45 -> -36856 | D45: ='EDP Energias do Brasil'!D45 -> -33429 | E45: ='EDP Energias do Brasil'!E45 -> -27542 | F45: ='EDP Energias do Brasil'!F45 -> -60862 | G45: ='EDP Energias do Brasil'!G45 -> -18225 | H45: ='EDP Energias do Brasil'!H45 -> -26898 | I45: ='EDP Energias do Brasil'!I45 -> -21141 | J45: ='EDP Energias do Brasil'!J45 -> -25120 | K45: ='EDP Energias do Brasil'!K45 -> -17150 | L45: ='EDP Energias do Brasil'!L45 -> -9884 | M45: ='EDP Energias do Brasil'!M45 -> -26269 | N45: ='EDP Energias do Brasil'!N45 -> -20479 | O45: -19054 | P45: -28048 | Q45: -35140 | R45: -20919 | S45: -17399 | T45: -19990 | U45: -28827 | V45: -28943 | W45: -24760 | X45: -11663 | Y45: -20827 | Z45: -19617 | AA45: -12295 | AB45: -20019 | AC45: -29174 | AD45: -15739 | AE45: -14092 | AF45: 44648 | AG45: -12307 | AH45: -11491 | AI45: -22086 | AJ45: -22331 | AK45: -43743 | AL45: -8322 | AM45: -5549 | AN45: -12933 | AO45: -2402 | AP45: 44677 | AQ45: -8701 | AR45: -14446 | AS45: -16549 | AT45: -4612 | AU45: -8142 | AV45: 10165 | AW45: -10462 | AX45: -11531 | AY45: 0 | AZ45: 0 | BA45: 0 | BB45: 0 | BC45: 0 | BD45: 0 | BE45: 0 | BF45: 0 | BG45: 0 | BH45: 0 | BJ45: -73295 | BK45: ='EDP Energias do Brasil'!BK45 -> -93850 | BL45: -93448 | BM45: -94193 | BN45: -72758 | BO45: -14357 | BP45: -68215 | BQ45: -70547 | BR45: 19128 | BS45: -19138 | BT45: -21993 | BU45: 0 | BV45: 0
B46: Value of Indemnified financial asset | C46: ='EDP Energias do Brasil'!C46 -> 0 | D46: ='EDP Energias do Brasil'!D46 -> 0 | E46: ='EDP Energias do Brasil'!E46 -> 0 | F46: ='EDP Energias do Brasil'!F46 -> 0 | G46: ='EDP Energias do Brasil'!G46 -> 0 | H46: ='EDP Energias do Brasil'!H46 -> 0 | I46: ='EDP Energias do Brasil'!I46 -> 0 | J46: ='EDP Energias do Brasil'!J46 -> 0 | K46: ='EDP Energias do Brasil'!K46 -> 0 | L46: ='EDP Energias do Brasil'!L46 -> 0 | M46: ='EDP Energias do Brasil'!M46 -> 0 | N46: ='EDP Energias do Brasil'!N46 -> 0 | R46: 0 | S46: 0 | T46: 0 | U46: 0 | V46: 0 | W46: 0 | X46: 0 | Y46: 0 | Z46: 0 | AA46: 0 | AB46: 0 | AC46: 0 | AD46: 0 | AE46: 0 | AF46: 0 | AG46: -30622 | AH46: 2735 | AI46: 12578 | AJ46: 15309 | AK46: 10871 | AL46: -20149 | AM46: -8528 | AN46: 14839 | AO46: -13235 | AP46: 14850 | AQ46: 6763 | AR46: 5815 | AS46: 102439 | AT46: 0 | AU46: 0 | AV46: 0 | AW46: 0 | AX46: 0 | AY46: 0 | AZ46: 0 | BA46: 0 | BB46: 0 | BC46: 0 | BD46: 0 | BE46: 0 | BF46: 0 | BG46: 0 | BH46: 0 | BJ46: 0 | BK46: ='EDP Energias do Brasil'!BK46 -> 0 | BL46: 0 | BM46: 0 | BN46: 0 | BO46: 0 | BP46: 0 | BQ46: -2967 | BR46: 14193 | BS46: 102439 | BT46: 0 | BU46: 0 | BV46: 0
B47: Construction Costs | C47: ='EDP Energias do Brasil'!C47 -> -533883 | D47: ='EDP Energias do Brasil'!D47 -> -565290 | E47: ='EDP Energias do Brasil'!E47 -> -561815 | F47: ='EDP Energias do Brasil'!F47 -> -524006 | G47: ='EDP Energias do Brasil'!G47 -> -482111 | H47: ='EDP Energias do Brasil'!H47 -> -419688 | I47: ='EDP Energias do Brasil'!I47 -> -572645 | J47: ='EDP Energias do Brasil'!J47 -> -538615 | K47: ='EDP Energias do Brasil'!K47 -> -538775 | L47: ='EDP Energias do Brasil'!L47 -> -500771 | M47: ='EDP Energias do Brasil'!M47 -> -605496 | N47: ='EDP Energias do Brasil'!N47 -> -453719 | O47: -383594 | P47: -329873 | Q47: -1076230 | R47: -477293 | S47: -602409 | T47: -433915 | U47: -304221 | V47: -349263 | W47: -197651 | X47: -119495 | Y47: -183646 | Z47: -149276 | AA47: -127105 | AB47: -142170 | AC47: -138018 | AD47: -157785 | AE47: -115169 | AF47: -69678 | AG47: -120457 | AH47: -77966 | AI47: -64270 | AJ47: -54650 | AK47: -58245 | AL47: -96375 | AM47: -70293 | AN47: -69142 | AO47: -123058 | AP47: -91690 | AQ47: -66734 | AR47: -44243 | AS47: -85564 | AT47: -66553 | AU47: -19140 | AV47: -64479 | AW47: -72536 | AX47: -96841 | AY47: -134370 | AZ47: 0 | BA47: 0 | BB47: 0 | BC47: 0 | BD47: 0 | BE47: 0 | BF47: 0 | BG47: 0 | BH47: 0 | BJ47: -2150806 | BK47: ='EDP Energias do Brasil'!BK47 -> -1772682 | BL47: -2589847 | BM47: -970630 | BN47: -602197 | BO47: -480650 | BP47: -317343 | BQ47: -294055 | BR47: -325725 | BS47: -235736 | BT47: -303747 | BU47: 0 | BV47: 0
B48: Gains on the sale of financial assets | C48: ='EDP Energias do Brasil'!C48 -> 0 | D48: ='EDP Energias do Brasil'!D48 -> 0 | E48: ='EDP Energias do Brasil'!E48 -> 326252 | F48: ='EDP Energias do Brasil'!F48 -> 0 | G48: ='EDP Energias do Brasil'!G48 -> -410 | H48: ='EDP Energias do Brasil'!H48 -> 410 | I48: ='EDP Energias do Brasil'!I48 -> 320556 | J48: ='EDP Energias do Brasil'!J48 -> 0 | K48: ='EDP Energias do Brasil'!K48 -> 0 | L48: ='EDP Energias do Brasil'!L48 -> 0 | M48: ='EDP Energias do Brasil'!M48 -> 0 | N48: ='EDP Energias do Brasil'!N48 -> 0 | O48: 0 | P48: 0 | Q48: - | R48: - | S48: 0 | T48: 0 | U48: 340587 | V48: 34068 | W48: 0 | X48: 0 | Y48: 0 | Z48: 0 | AA48: 0 | AB48: 0 | AC48: 0 | AD48: 0 | AE48: 0 | AF48: 278139 | AG48: 68946 | AH48: 0 | AI48: 884697 | AJ48: 0 | AK48: 422 | AL48: -17 | AM48: 408011 | AN48: 0 | AO48: 0 | AP48: 0 | AQ48: 0 | AR48: 0 | AS48: 0 | AT48: 0 | AU48: 0 | AV48: 0 | AW48: 0 | AX48: 0 | AY48: 0 | AZ48: 0 | BA48: 0 | BB48: 0 | BC48: 0 | BD48: 0 | BE48: 0 | BF48: 0 | BG48: 0 | BH48: 0 | BJ48: 320556 | BK48: ='EDP Energias do Brasil'!BK48 -> 0 | BL48: 0 | BM48: 374655 | BN48: 0 | BO48: 278139 | BP48: 953643 | BQ48: 408416 | BR48: 0 | BS48: 0 | BT48: 0 | BU48: 0 | BV48: 0
B49: EBITDA | C49: ='EDP Energias do Brasil'!C49 -> 1030794 | D49: ='EDP Energias do Brasil'!D49 -> 1308600 | E49: ='EDP Energias do Brasil'!E49 -> 1559850 | F49: ='EDP Energias do Brasil'!F49 -> 1313956 | G49: ='EDP Energias do Brasil'!G49 -> 1124865 | H49: ='EDP Energias do Brasil'!H49 -> 1266954 | I49: ='EDP Energias do Brasil'!I49 -> 1341063 | J49: ='EDP Energias do Brasil'!J49 -> 1124135 | K49: ='EDP Energias do Brasil'!K49 -> 799223 | L49: ='EDP Energias do Brasil'!L49 -> 1048651 | M49: ='EDP Energias do Brasil'!M49 -> 1397390 | N49: ='EDP Energias do Brasil'!N49 -> 699408 | O49: 586480 | P49: 698583 | Q49: 873967 | R49: 778797 | S49: 555757 | T49: 705634 | U49: 847346 | V49: 679575 | W49: 596294 | X49: 644799 | Y49: 561817 | Z49: 551540 | AA49: 533547 | AB49: 539734 | AC49: 394844 | AD49: 626559 | AE49: 459567 | AF49: 816834 | AG49: 742789 | AH49: 586866 | AI49: 1221704 | AJ49: 408551 | AK49: 760278 | AL49: 317782 | AM49: 430115 | AN49: 406401 | AO49: 234826 | AP49: 631606 | AQ49: 326932 | AR49: 462333 | AS49: 428968 | AT49: 271093 | AU49: 304614 | AV49: 415888 | AW49: 296960 | AX49: 352288 | AY49: 421397 | AZ49: 466923 | BA49: 381755 | BB49: 314993.214 | BC49: 399807.2061 | BD49: 412235 | BE49: 447519.1816 | BF49: 364336 | BG49: 344309 | BH49: 340108 | BJ49: 4313072 | BK49: ='EDP Energias do Brasil'!BK49 -> 3381861 | BL49: 2914155 | BM49: 2768014 | BN49: 2186638 | BO49: 2297804 | BP49: 2959910 | BQ49: 1914576 | BR49: 1655697 | BS49: 1420563 | BT49: 1537568 | BU49: 1508790.42 | BV49: 1496272.182
B50: EBITDA Margin | C50: ='EDP Energias do Brasil'!C50 -> 0.2893709458 | D50: ='EDP Energias do Brasil'!D50 -> 0.3493730055 | E50: ='EDP Energias do Brasil'!E50 -> 0.3916863115 | F50: ='EDP Energias do Brasil'!F50 -> 0.321528786 | G50: ='EDP Energias do Brasil'!G50 -> 0.3109564343 | H50: ='EDP Energias do Brasil'!H50 -> 0.3417870473 | I50: ='EDP Energias do Brasil'!I50 -> 0.2874141656 | J50: ='EDP Energias do Brasil'!J50 -> 0.2171263953 | K50: ='EDP Energias do Brasil'!K50 -> 0.2351673327 | L50: ='EDP Energias do Brasil'!L50 -> 0.3056697138 | M50: ='EDP Energias do Brasil'!M50 -> 0.323461147 | N50: ='EDP Energias do Brasil'!N50 -> 0.2326004762 | O50: 0.225432064 | P50: 0.2130425077 | Q50: 0.2416117606 | R50: 0.2266736016 | S50: 0.2076810567 | T50: 0.249532591 | U50: 0.2869905796 | V50: 0.1786588891 | W50: 0.183146934 | X50: 0.2274989821 | Y50: 0.1583329717 | Z50: 0.165716358 | AA50: 0.2066650682 | AB50: 0.2339945782 | AC50: 0.1649391343 | AD50: 0.2629436678 | AE50: 0.2268572681 | AF50: 0.3924100072 | AG50: 0.2491711782 | AH50: -0.03431382194 | AI50: 0.4828955456 | AJ50: 0.1954740839 | AK50: 0.2759540617 | AL50: 0.1604040108 | AM50: 0.2433395133 | AN50: 0.1872781147 | AO50: 0.1381279036 | AP50: 0.3831440076 | AQ50: 0.2074851065 | AR50: 0.2503788178 | AS50: 0.2355423066 | AT50: 0.1796474287 | AU50: 0.2113623921 | AV50: 0.2873468395 | AW50: 0.2191431456 | AX50: 0.2667718746 | AY50: 0.3141986907 | AZ50: 0.3371706358 | BA50: 0.2801207494 | BB50: 0.2526585145 | BC50: 0.32654111 | BD50: 0.3434124064 | BE50: -0.5972491222 | BF50: 0.3079352039 | BG50: 0.3084037144 | BH50: 0.3046593601 | BJ50: 0.9513376592 | BK50: ='EDP Energias do Brasil'!BK50 -> 0.9945361949 | BL50: 0.9254990099 | BM50: 0.8762953848 | BN50: 0.7647089761 | BO50: 1.047150077 | BP50: 0.8932269858 | BQ50: 0.8669757005 | BR50: 0.9791358356 | BS50: 0.9138989669 | BT50: 1.137284347 | BU50: 1.20273278 | BV50: 0.3237491562
B51: Depreciation and amortization | C51: ='EDP Energias do Brasil'!C51 -> -774347 | D51: ='EDP Energias do Brasil'!D51 -> -193848 | E51: ='EDP Energias do Brasil'!E51 -> -1482699 | F51: ='EDP Energias do Brasil'!F51 -> -192720 | G51: ='EDP Energias do Brasil'!G51 -> -217054 | H51: ='EDP Energias do Brasil'!H51 -> -169751 | I51: ='EDP Energias do Brasil'!I51 -> -223446 | J51: ='EDP Energias do Brasil'!J51 -> -170538 | K51: ='EDP Energias do Brasil'!K51 -> -175853 | L51: ='EDP Energias do Brasil'!L51 -> -168657 | M51: ='EDP Energias do Brasil'!M51 -> -163356 | N51: ='EDP Energias do Brasil'!N51 -> -163073 | O51: -166527 | P51: -155594 | Q51: -146275 | R51: -154042 | S51: -162137 | T51: -159389 | U51: -149318 | V51: -151505 | W51: -146454 | X51: -160433 | Y51: -154964 | Z51: -144223 | AA51: -139898 | AB51: -139257 | AC51: -137142 | AD51: -136027 | AE51: -134016 | AF51: -133248 | AG51: -129979 | AH51: -131171 | AI51: -109116 | AJ51: -87667 | AK51: -84309 | AL51: -84439 | AM51: -86877 | AN51: -84633 | AO51: -85285 | AP51: -146160 | AQ51: -84774 | AR51: -86383 | AS51: -86264 | AT51: -86274 | AU51: -84533 | AV51: -80496 | AW51: -81911 | AX51: -81548 | AY51: -83564 | AZ51: -98566 | BA51: -58606 | BB51: -89275 | BC51: -88915 | BD51: -87062 | BE51: -115212 | BF51: -72069 | BG51: -74704 | BH51: -72121 | BJ51: -738494 | BK51: ='EDP Energias do Brasil'!BK51 -> -648550 | BL51: -621843 | BM51: -607710 | BN51: -578342 | BO51: -540433 | BP51: -457933 | BQ51: -340258 | BR51: -402602 | BS51: -337567 | BT51: -345589 | BU51: -323858 | BV51: -334106
B52: Depreciation | C52: ='EDP Energias do Brasil'!C52 -> -644224 | D52: ='EDP Energias do Brasil'!D52 -> -67913 | E52: ='EDP Energias do Brasil'!E52 -> -1294788 | F52: ='EDP Energias do Brasil'!F52 -> -83532 | G52: ='EDP Energias do Brasil'!G52 -> -80162 | H52: ='EDP Energias do Brasil'!H52 -> -77933 | I52: ='EDP Energias do Brasil'!I52 -> -52160 | J52: ='EDP Energias do Brasil'!J52 -> -83869 | K52: ='EDP Energias do Brasil'!K52 -> -84513 | L52: ='EDP Energias do Brasil'!L52 -> -83374 | M52: ='EDP Energias do Brasil'!M52 -> -32735 | N52: ='EDP Energias do Brasil'!N52 -> -83783 | O52: -88697 | P52: -79091 | Q52: -79129 | R52: -79118 | S52: -87137 | T52: -82511 | U52: -82340 | V52: -86194 | W52: -81965 | X52: -81916 | Y52: -89998 | Z52: -81400 | AA52: -80086 | AB52: -80333 | AC52: -79498 | AD52: -79758 | AE52: -76687 | AF52: -77552 | AG52: -76501 | AH52: -76024 | AI52: -54114 | AJ52: -33485 | AK52: -29823 | AL52: -29382 | AM52: -29505 | AN52: -29155 | AO52: -25483 | AP52: -17503 | AQ52: -29028 | AR52: -28996 | AS52: -30403 | AT52: -15861 | AU52: -27895 | AV52: -27922 | AW52: -44884 | AX52: -9398 | AY52: -28296 | AZ52: -43113 | BA52: -46638 | BB52: 10579 | BC52: -40469 | BD52: -40382 | BE52: 0 | BF52: 0 | BG52: 0 | BH52: 0 | BJ52: -303916 | BK52: ='EDP Energias do Brasil'!BK52 -> -284306 | BL52: -327895 | BM52: -332415 | BN52: -331817 | BO52: -313495 | BP52: -240124 | BQ52: -117865 | BR52: -101010 | BS52: -102081 | BT52: -125691 | BU52: -116910 | BV52: 0
B53: Depreciation - Asset right of usage | C53: ='EDP Energias do Brasil'!C53 -> -3478 | D53: ='EDP Energias do Brasil'!D53 -> -3773 | E53: ='EDP Energias do Brasil'!E53 -> -3732 | F53: ='EDP Energias do Brasil'!F53 -> -2997 | G53: ='EDP Energias do Brasil'!G53 -> -3258 | H53: ='EDP Energias do Brasil'!H53 -> -3231 | I53: ='EDP Energias do Brasil'!I53 -> -43211 | J53: ='EDP Energias do Brasil'!J53 -> -2463 | K53: ='EDP Energias do Brasil'!K53 -> -6357 | L53: ='EDP Energias do Brasil'!L53 -> -5432 | M53: ='EDP Energias do Brasil'!M53 -> -57331 | N53: ='EDP Energias do Brasil'!N53 -> -7318 | O53: -6825 | P53: -6575 | Q53: -5747 | R53: -5086 | S53: -6343 | T53: -8833 | U53: - | V53: - | W53: - | X53: - | Y53: - | Z53: - | AA53: - | AB53: - | AC53: - | AD53: - | AE53: - | AF53: - | AG53: - | AH53: - | AI53: - | AJ53: - | AK53: - | AL53: - | AM53: - | AN53: - | AO53: - | AP53: - | AQ53: - | AR53: - | AS53: - | AT53: - | AU53: - | AV53: - | AW53: - | AX53: - | AY53: - | AZ53: - | BA53: - | BB53: - | BC53: - | BD53: - | BE53: - | BF53: - | BG53: - | BH53: - | BJ53: -57463 | BK53: ='EDP Energias do Brasil'!BK53 -> -78049 | BL53: -26009 | BM53: 0 | BN53: 0 | BO53: 0 | BP53: 0 | BQ53: 0 | BR53: 0 | BS53: 0 | BT53: 0 | BU53: 0 | BV53: 0
B54: Amortization | C54: ='EDP Energias do Brasil'!C54 -> -126645 | D54: ='EDP Energias do Brasil'!D54 -> -122162 | E54: ='EDP Energias do Brasil'!E54 -> -184179 | F54: ='EDP Energias do Brasil'!F54 -> -106191 | G54: ='EDP Energias do Brasil'!G54 -> -133634 | H54: ='EDP Energias do Brasil'!H54 -> -88587 | I54: ='EDP Energias do Brasil'!I54 -> -128075 | J54: ='EDP Energias do Brasil'!J54 -> -84206 | K54: ='EDP Energias do Brasil'!K54 -> -84983 | L54: ='EDP Energias do Brasil'!L54 -> -79851 | M54: ='EDP Energias do Brasil'!M54 -> -73290 | N54: ='EDP Energias do Brasil'!N54 -> -71972 | O54: -71005 | P54: -69928 | Q54: -61399 | R54: -69838 | S54: -68657 | T54: -68045 | U54: -66978 | V54: -65311 | W54: -64489 | X54: -78517 | Y54: -64966 | Z54: -62823 | AA54: -59812 | AB54: -58924 | AC54: -57644 | AD54: -56269 | AE54: -57329 | AF54: -55696 | AG54: -53478 | AH54: -55147 | AI54: -55002 | AJ54: -54182 | AK54: -54486 | AL54: -55057 | AM54: -57372 | AN54: -55478 | AO54: -59802 | AP54: -128657 | AQ54: -55746 | AR54: -57387 | AS54: -55861 | AT54: -70413 | AU54: -56638 | AV54: -52574 | AW54: -37027 | AX54: -72150 | AY54: -55268 | AZ54: -55453 | BA54: -11968 | BB54: -99854 | BC54: -48446 | BD54: -46680 | BE54: 0 | BF54: 0 | BG54: 0 | BH54: 0 | BJ54: -377115 | BK54: ='EDP Energias do Brasil'!BK54 -> -286195 | BL54: -267939 | BM54: -275295 | BN54: -246525 | BO54: -226938 | BP54: -217809 | BQ54: -222393 | BR54: -301592 | BS54: -235486 | BT54: -219898 | BU54: -206948 | BV54: 0
B55: Result from Service - EBIT | C55: ='EDP Energias do Brasil'!C55 -> 256447 | D55: ='EDP Energias do Brasil'!D55 -> 1114752 | E55: ='EDP Energias do Brasil'!E55 -> 77151 | F55: ='EDP Energias do Brasil'!F55 -> 1121236 | G55: ='EDP Energias do Brasil'!G55 -> 907811 | H55: ='EDP Energias do Brasil'!H55 -> 1097203 | I55: ='EDP Energias do Brasil'!I55 -> 1117617 | J55: ='EDP Energias do Brasil'!J55 -> 953597 | K55: ='EDP Energias do Brasil'!K55 -> 623370 | L55: ='EDP Energias do Brasil'!L55 -> 879994 | M55: ='EDP Energias do Brasil'!M55 -> 1234034 | N55: ='EDP Energias do Brasil'!N55 -> 536335 | O55: 419953 | P55: 542989 | Q55: 727692 | R55: 624755 | S55: 393620 | T55: 546245 | U55: 698028 | V55: 528070 | W55: 449839 | X55: 484366 | Y55: 406853 | Z55: 407317 | AA55: 393649 | AB55: 400477 | AC55: 257702 | AD55: 490532 | AE55: 325551 | AF55: 683586 | AG55: 612810 | AH55: 455695 | AI55: 1112588 | AJ55: 320884 | AK55: 675969 | AL55: 233343 | AM55: 343238 | AN55: 321768 | AO55: 149541 | AP55: 485446 | AQ55: 242158 | AR55: 375950 | AS55: 342704 | AT55: 184819 | AU55: 220081 | AV55: 335392 | AW55: 215049 | AX55: 270740 | AY55: 337833 | AZ55: 368357 | BA55: 323149 | BB55: 225718.214 | BC55: 310892.2061 | BD55: 325173 | BE55: 332307.1816 | BF55: 292267 | BG55: 269605 | BH55: 267987 | BJ55: 3574578 | BK55: ='EDP Energias do Brasil'!BK55 -> 2733311 | BL55: 2292312 | BM55: 2160303 | BN55: 1608296 | BO55: 1757371 | BP55: 2501977 | BQ55: 1574318 | BR55: 1253095 | BS55: 1082996 | BT55: 1191979 | BU55: 1184932.42 | BV55: 1162166.182
B56: Result from corporate participation | C56: ='EDP Energias do Brasil'!C56 -> 83726 | D56: ='EDP Energias do Brasil'!D56 -> 47472 | E56: ='EDP Energias do Brasil'!E56 -> 45167 | F56: ='EDP Energias do Brasil'!F56 -> 40352 | G56: ='EDP Energias do Brasil'!G56 -> 88508 | H56: ='EDP Energias do Brasil'!H56 -> 39937 | I56: ='EDP Energias do Brasil'!I56 -> 76736 | J56: ='EDP Energias do Brasil'!J56 -> 44377 | K56: ='EDP Energias do Brasil'!K56 -> 52953 | L56: ='EDP Energias do Brasil'!L56 -> 68350 | M56: ='EDP Energias do Brasil'!M56 -> 26912 | N56: ='EDP Energias do Brasil'!N56 -> 11480 | O56: 41924 | P56: -356 | Q56: 45361 | R56: 6780 | S56: 14985 | T56: 1022 | U56: 5222 | V56: 4762 | W56: -7927 | X56: 918 | Y56: -8950 | Z56: -2573 | AA56: -1293 | AB56: -3520 | AC56: -84341 | AD56: -11193 | AE56: -11520 | AF56: -8389 | AG56: 5989 | AH56: -10053 | AI56: -71469 | AJ56: -38241 | AK56: -85541 | AL56: 49146 | AM56: -21085 | AN56: -13969 | AO56: -11628 | AP56: -22455 | AQ56: -44780 | AR56: -61564 | AS56: -58338 | AT56: -22816.44 | AU56: -17254.56 | AV56: -8315 | AW56: -407.22123 | AX56: -2702.050571 | AY56: 1997.271801 | AZ56: -2370 | BA56: -939 | BB56: 18 | BC56: -325.8846023 | BD56: -590 | BE56: -198 | BF56: -454 | BG56: 56 | BH56: 189 | BJ56: 242416 | BK56: ='EDP Energias do Brasil'!BK56 -> 79960 | BL56: 68148 | BM56: 2975 | BN56: -16336 | BO56: -115443 | BP56: -113774 | BQ56: -71449 | BR56: -140427 | BS56: -106724 | BT56: -3482 | BU56: -1836.884602 | BV56: -407
B57: Net Financial Result | C57: ='EDP Energias do Brasil'!C57 -> -370698 | D57: ='EDP Energias do Brasil'!D57 -> -406690 | E57: ='EDP Energias do Brasil'!E57 -> -372707 | F57: ='EDP Energias do Brasil'!F57 -> -327915 | G57: ='EDP Energias do Brasil'!G57 -> -417595 | H57: ='EDP Energias do Brasil'!H57 -> -348384 | I57: ='EDP Energias do Brasil'!I57 -> -289175 | J57: ='EDP Energias do Brasil'!J57 -> -166332 | K57: ='EDP Energias do Brasil'!K57 -> -136093 | L57: ='EDP Energias do Brasil'!L57 -> -209982 | M57: ='EDP Energias do Brasil'!M57 -> -204263 | N57: ='EDP Energias do Brasil'!N57 -> -61013 | O57: -85313 | P57: -100671 | Q57: -133299 | R57: -78966 | S57: -115941 | T57: -104974 | U57: -119217 | V57: -71410 | W57: -74017 | X57: -101681 | Y57: -150916 | Z57: -128300 | AA57: -121114 | AB57: -147470 | AC57: -167668 | AD57: -130787 | AE57: -153085 | AF57: -201201 | AG57: -141780 | AH57: -275840 | AI57: -113452 | AJ57: -94445 | AK57: -105467 | AL57: -74451 | AM57: -48824 | AN57: -87247 | AO57: -90434 | AP57: -71973 | AQ57: -77173 | AR57: -59479 | AS57: -39492 | AT57: -59488 | AU57: -58612 | AV57: -39822 | AW57: -79017 | AX57: -66616 | AY57: -86937 | AZ57: -50873 | BA57: -48817 | BB57: -48701.52059 | BC57: -72933.57349 | BD57: -26937 | BE57: -7809.86955 | BF57: -58931 | BG57: 18583 | BH57: -33854 | BJ57: -801582 | BK57: ='EDP Energias do Brasil'!BK57 -> -451260 | BL57: -433180 | BM57: -366325 | BN57: -547800 | BO57: -652741 | BP57: -625517 | BQ57: -315989 | BR57: -299059 | BS57: -197414 | BT57: -283443 | BU57: -197389.0941 | BV57: -82011.86955
B58: Financial revenues | C58: ='EDP Energias do Brasil'!C58 -> 196952 | D58: ='EDP Energias do Brasil'!D58 -> 213498 | E58: ='EDP Energias do Brasil'!E58 -> 186438 | F58: ='EDP Energias do Brasil'!F58 -> 83066 | G58: ='EDP Energias do Brasil'!G58 -> 239946 | H58: ='EDP Energias do Brasil'!H58 -> 156773 | I58: ='EDP Energias do Brasil'!I58 -> 57390 | J58: ='EDP Energias do Brasil'!J58 -> 85550 | K58: ='EDP Energias do Brasil'!K58 -> 80009 | L58: ='EDP Energias do Brasil'!L58 -> 83404 | M58: ='EDP Energias do Brasil'!M58 -> 64306 | N58: ='EDP Energias do Brasil'!N58 -> 166738 | O58: 72729 | P58: 95018 | Q58: 278530 | R58: 115441 | S58: 269364 | T58: 95081 | U58: 49656 | V58: 101188 | W58: 194921 | X58: 114105 | Y58: 56889 | Z58: 146818 | AA58: 85147 | AB58: 98233 | AC58: 43077 | AD58: 52459 | AE58: 258970 | AF58: 251805 | AG58: -27983 | AH58: 296797 | AI58: 112161 | AJ58: 73446 | AK58: 55841 | AL58: 59417 | AM58: 85228 | AN58: 58283 | AO58: 59165 | AP58: 42750 | AQ58: 44013 | AR58: 36207 | AS58: 63039 | AT58: 34184 | AU58: 46203 | AV58: 52402 | AW58: 61672 | AX58: 27136 | AY58: 69882 | AZ58: 51566 | BA58: 77939 | BB58: 70281.91108 | BC58: 36284.99483 | BD58: 73618 | BE58: 115214.9604 | BF58: 33600 | BG58: 106842 | BH58: 40901 | BJ58: 306353 | BK58: ='EDP Energias do Brasil'!BK58 -> 396572 | BL58: 758416 | BM58: 459870 | BN58: 387087 | BO58: 606311 | BP58: 454421 | BQ58: 258769 | BR58: 182135 | BS58: 195828 | BT58: 210256 | BU58: 258123.9059 | BV58: 296557.9604
B59: Financial expenses | C59: ='EDP Energias do Brasil'!C59 -> -567650 | D59: ='EDP Energias do Brasil'!D59 -> -620188 | E59: ='EDP Energias do Brasil'!E59 -> -559145 | F59: ='EDP Energias do Brasil'!F59 -> -410981 | G59: ='EDP Energias do Brasil'!G59 -> -657541 | H59: ='EDP Energias do Brasil'!H59 -> -505157 | I59: ='EDP Energias do Brasil'!I59 -> -346565 | J59: ='EDP Energias do Brasil'!J59 -> -251882 | K59: ='EDP Energias do Brasil'!K59 -> -216102 | L59: ='EDP Energias do Brasil'!L59 -> -293386 | M59: ='EDP Energias do Brasil'!M59 -> -268569 | N59: ='EDP Energias do Brasil'!N59 -> -227751 | O59: -158042 | P59: -195689 | Q59: -411829 | R59: -194407 | S59: -385305 | T59: -200055 | U59: -168873 | V59: -172598 | W59: -268938 | X59: -215786 | Y59: -207805 | Z59: -275118 | AA59: -206261 | AB59: -245703 | AC59: -210745 | AD59: -183246 | AE59: -412055 | AF59: -453006 | AG59: -113797 | AH59: -572637 | AI59: -225613 | AJ59: -167891 | AK59: -161308 | AL59: -133868 | AM59: -134052 | AN59: -145530 | AO59: -149599 | AP59: -114723 | AQ59: -121186 | AR59: -95686 | AS59: -102531 | AT59: -93672 | AU59: -104815 | AV59: -92224 | AW59: -140689 | AX59: -93752 | AY59: -156819 | AZ59: -102439 | BA59: -126756 | BB59: -118983.4317 | BC59: -109218.5683 | BD59: -100555 | BE59: -123024.8299 | BF59: -92531 | BG59: -88259 | BH59: -74755 | BJ59: -1107935 | BK59: ='EDP Energias do Brasil'!BK59 -> -847832 | BL59: -1191596 | BM59: -826195 | BN59: -934887 | BO59: -1259052 | BP59: -1079938 | BQ59: -574758 | BR59: -481194 | BS59: -393242 | BT59: -493699 | BU59: -455513 | BV59: -378569.8299
B60: Other Income | C60: ='EDP Energias do Brasil'!C60 -> 0 | D60: ='EDP Energias do Brasil'!D60 -> 0 | E60: ='EDP Energias do Brasil'!E60 -> 0 | F60: ='EDP Energias do Brasil'!F60 -> 0 | G60: ='EDP Energias do Brasil'!G60 -> 0 | H60: ='EDP Energias do Brasil'!H60 -> 0 | I60: ='EDP Energias do Brasil'!I60 -> 0 | J60: ='EDP Energias do Brasil'!J60 -> 0 | K60: ='EDP Energias do Brasil'!K60 -> - | L60: ='EDP Energias do Brasil'!L60 -> - | M60: ='EDP Energias do Brasil'!M60 -> - | N60: ='EDP Energias do Brasil'!N60 -> 0 | O60: 0 | P60: 0 | Q60: - | R60: - | S60: 0 | T60: 0 | U60: 0 | V60: 0 | W60: 0 | X60: 0 | Y60: 0 | Z60: 0 | AA60: 0 | AB60: 0 | AC60: 0 | AD60: 0 | AE60: 0 | AF60: 0 | AG60: 0 | AH60: 0 | AI60: 0 | AJ60: 0 | AK60: 0 | AL60: 0 | AM60: 0 | AN60: 0 | AO60: 0 | AP60: 0 | AQ60: 0 | AR60: 0 | AS60: 0 | AT60: 0 | AU60: 0 | AV60: 0 | AW60: 0 | AX60: 0 | AY60: 0 | AZ60: 0 | BA60: 0 | BB60: 0 | BC60: 0 | BD60: 0 | BE60: 0 | BF60: 0 | BG60: 0 | BH60: 0 | BJ60: 0 | BK60: ='EDP Energias do Brasil'!BK60 -> 0 | BL60: 0 | BM60: 0 | BN60: 0 | BO60: 0 | BP60: 0 | BQ60: 0 | BR60: 0 | BS60: 0 | BT60: 0 | BU60: 0 | BV60: 0
B61: Income before income tax and social contribution | C61: ='EDP Energias do Brasil'!C61 -> -30525 | D61: ='EDP Energias do Brasil'!D61 -> 755534 | E61: ='EDP Energias do Brasil'!E61 -> -250389 | F61: ='EDP Energias do Brasil'!F61 -> 833673 | G61: ='EDP Energias do Brasil'!G61 -> 578724 | H61: ='EDP Energias do Brasil'!H61 -> 788756 | I61: ='EDP Energias do Brasil'!I61 -> 905178 | J61: ='EDP Energias do Brasil'!J61 -> 831642 | K61: ='EDP Energias do Brasil'!K61 -> 540230 | L61: ='EDP Energias do Brasil'!L61 -> 738362 | M61: ='EDP Energias do Brasil'!M61 -> 1056683 | N61: ='EDP Energias do Brasil'!N61 -> 486802 | O61: 376564 | P61: 441962 | Q61: 639754 | R61: 552569 | S61: 292664 | T61: 442293 | U61: 584033 | V61: 461422 | W61: 367895 | X61: 383603 | Y61: 246987 | Z61: 276444 | AA61: 271242 | AB61: 249487 | AC61: 5693 | AD61: 348552 | AE61: 160946 | AF61: 473996 | AG61: 477019 | AH61: 169802 | AI61: 927667 | AJ61: 188198 | AK61: 484961 | AL61: 208038 | AM61: 273329 | AN61: 220552 | AO61: 47479 | AP61: 391018 | AQ61: 120205 | AR61: 254907 | AS61: 244874 | AT61: 102514.56 | AU61: 144214.44 | AV61: 287255 | AW61: 135624.7788 | AX61: 201421.9494 | AY61: 252893.2718 | AZ61: 315114 | BA61: 273393 | BB61: 177034.6934 | BC61: 237632.748 | BD61: 297646 | BE61: 322875.3121 | BF61: 230735 | BG61: 323295 | BH61: 230163 | BJ61: 3015412 | BK61: ='EDP Energias do Brasil'!BK61 -> 2362011 | BL61: 1927280 | BM61: 1796953 | BN61: 1044160 | BO61: 989187 | BP61: 1762686 | BQ61: 1186880 | BR61: 813609 | BS61: 778858 | BT61: 905054 | BU61: 985706.4415 | BV61: 1107068.312
B62: Income Tax and Social Contribution | C62: ='EDP Energias do Brasil'!C62 -> -140315 | D62: ='EDP Energias do Brasil'!D62 -> -225080 | E62: ='EDP Energias do Brasil'!E62 -> -85922 | F62: ='EDP Energias do Brasil'!F62 -> -263755 | G62: ='EDP Energias do Brasil'!G62 -> -159715 | H62: ='EDP Energias do Brasil'!H62 -> -228645 | I62: ='EDP Energias do Brasil'!I62 -> -34079 | J62: ='EDP Energias do Brasil'!J62 -> -241248 | K62: ='EDP Energias do Brasil'!K62 -> -159480 | L62: ='EDP Energias do Brasil'!L62 -> -213060 | M62: ='EDP Energias do Brasil'!M62 -> -239541 | N62: ='EDP Energias do Brasil'!N62 -> -164804 | O62: -104471 | P62: -139275 | Q62: -97134 | R62: -172034 | S62: -79551 | T62: -96106 | U62: -12852 | V62: -125977 | W62: -122037 | X62: -121337 | Y62: -67886 | Z62: -108178 | AA62: -94386 | AB62: -85372 | AC62: 87807 | AD62: -87486 | AE62: -25384 | AF62: -133169 | AG62: -29355 | AH62: -73039 | AI62: -175131 | AJ62: -78789 | AK62: -144772 | AL62: -54975 | AM62: -64634 | AN62: -84138 | AO62: 55227 | AP62: -153532 | AQ62: -58741 | AR62: -102473 | AS62: -44966 | AT62: -48600 | AU62: -54926 | AV62: -95003 | AW62: 19259.09786 | AX62: -65157.09786 | AY62: -64340 | AZ62: -103100 | BA62: -17169.20996 | BB62: -61860.2534 | BC62: -72816.91655 | BD62: -97218 | BE62: -17043.24801 | BF62: -73852 | BG62: -80383 | BH62: -77474 | BJ62: -647867 | BK62: ='EDP Energias do Brasil'!BK62 -> -648091 | BL62: -444825 | BM62: -382203 | BN62: -355822 | BO62: -158232 | BP62: -356314 | BQ62: -348519 | BR62: -259519 | BS62: -243495 | BT62: -213338 | BU62: -249064.3799 | BV62: -248752.248
B63: Current income tax and social contribution | C63: ='EDP Energias do Brasil'!C63 -> -130985 | D63: ='EDP Energias do Brasil'!D63 -> -165855 | E63: ='EDP Energias do Brasil'!E63 -> -97477 | F63: ='EDP Energias do Brasil'!F63 -> -136607 | G63: ='EDP Energias do Brasil'!G63 -> -137945 | H63: ='EDP Energias do Brasil'!H63 -> -197597 | I63: ='EDP Energias do Brasil'!I63 -> -28040 | J63: ='EDP Energias do Brasil'!J63 -> -100597 | K63: ='EDP Energias do Brasil'!K63 -> -113493 | L63: ='EDP Energias do Brasil'!L63 -> -140243 | M63: ='EDP Energias do Brasil'!M63 -> -44633 | N63: ='EDP Energias do Brasil'!N63 -> -173821 | O63: -84574 | P63: -103125 | Q63: -34465 | R63: -86293 | S63: -66882 | T63: -100261 | U63: -8717 | V63: -100905 | W63: -82324 | X63: -105768 | Y63: -67241 | Z63: 27937 | AA63: -73696 | AB63: -88468 | AC63: 101321 | AD63: -96358 | AE63: -144161 | AF63: -282433 | AG63: -9363 | AH63: -36648 | AI63: -13934 | AJ63: -67329 | AK63: 43283 | AL63: -26796 | AM63: -59644 | AN63: -65486 | AO63: -13806 | AP63: -80591 | AQ63: -55448 | AR63: -104148 | AS63: 38998 | AT63: -50984 | AU63: -47967 | AV63: -86374 | AW63: 20704 | AX63: -68403 | AY63: -90925 | AZ63: -95963 | BA63: -5695 | BB63: -59362 | BC63: -71007 | BD63: -93190 | BE63: 2923.161891 | BF63: -65181 | BG63: -66664 | BH63: -67877 | BJ63: -382373 | BK63: ='EDP Energias do Brasil'!BK63 -> -406153 | BL63: -287901 | BM63: -297714 | BN63: -201468 | BO63: -421631 | BP63: -127274 | BQ63: -108643 | BR63: -253993 | BS63: -146327 | BT63: -234587 | BU63: -229254 | BV63: -196798.8381
B64: Deferred income tax and social contribution | C64: ='EDP Energias do Brasil'!C64 -> -9330 | D64: ='EDP Energias do Brasil'!D64 -> -59225 | E64: ='EDP Energias do Brasil'!E64 -> 11555 | F64: ='EDP Energias do Brasil'!F64 -> -127148 | G64: ='EDP Energias do Brasil'!G64 -> -21770 | H64: ='EDP Energias do Brasil'!H64 -> -31048 | I64: ='EDP Energias do Brasil'!I64 -> -6039 | J64: ='EDP Energias do Brasil'!J64 -> -140651 | K64: ='EDP Energias do Brasil'!K64 -> -45987 | L64: ='EDP Energias do Brasil'!L64 -> -72817 | M64: ='EDP Energias do Brasil'!M64 -> -194908 | N64: ='EDP Energias do Brasil'!N64 -> 9017 | O64: -19897 | P64: -36150 | Q64: -62669 | R64: -85741 | S64: -12669 | T64: 4155 | U64: -4135 | V64: -25072 | W64: -39713 | X64: -15569 | Y64: -645 | Z64: -136115 | AA64: -20690 | AB64: 3096 | AC64: -13514 | AD64: 8872 | AE64: 118777 | AF64: 149264 | AG64: -19992 | AH64: -36391 | AI64: -161197 | AJ64: -11460 | AK64: -188055 | AL64: -28179 | AM64: -4990 | AN64: -18652 | AO64: 69033 | AP64: -72941 | AQ64: -3293 | AR64: 1675 | AS64: -83964 | AT64: 2384 | AU64: -6959 | AV64: -8629 | AW64: -1444.902141 | AX64: 3245.902141 | AY64: 26585 | AZ64: -7137 | BA64: -11474.20996 | BB64: -2498.253397 | BC64: -1809.916547 | BD64: -4028 | BE64: -19966.4099 | BF64: -8671 | BG64: -13719 | BH64: -9597 | BJ64: -265494 | BK64: ='EDP Energias do Brasil'!BK64 -> -241938 | BL64: -156924 | BM64: -84489 | BN64: -154354 | BO64: 263399 | BP64: -229040 | BQ64: -239876 | BR64: -5526 | BS64: -97168 | BT64: 21249 | BU64: -19810.37991 | BV64: -51953.4099
B65: Net Income before minority interests | C65: ='EDP Energias do Brasil'!C65 -> -170840 | D65: ='EDP Energias do Brasil'!D65 -> 530454 | E65: ='EDP Energias do Brasil'!E65 -> -336311 | F65: ='EDP Energias do Brasil'!F65 -> 569918 | G65: ='EDP Energias do Brasil'!G65 -> 419009 | H65: ='EDP Energias do Brasil'!H65 -> 560111 | I65: ='EDP Energias do Brasil'!I65 -> 871099 | J65: ='EDP Energias do Brasil'!J65 -> 590394 | K65: ='EDP Energias do Brasil'!K65 -> 380750 | L65: ='EDP Energias do Brasil'!L65 -> 525302 | M65: ='EDP Energias do Brasil'!M65 -> 817142 | N65: ='EDP Energias do Brasil'!N65 -> 321998 | O65: 272093 | P65: 302687 | Q65: 542620 | R65: 380535 | S65: 213113 | T65: 346187 | U65: 571181 | V65: 335445 | W65: 245858 | X65: 262266 | Y65: 179101 | Z65: 168266 | AA65: 176856 | AB65: 164115 | AC65: 93500 | AD65: 261066 | AE65: 135562 | AF65: 340827 | AG65: 447664 | AH65: 96763 | AI65: 752536 | AJ65: 109409 | AK65: 340189 | AL65: 153063 | AM65: 208695 | AN65: 136414 | AO65: 102706 | AP65: 237486 | AQ65: 61464 | AR65: 152434 | AS65: 199908 | AT65: 53914.56 | AU65: 89288.44 | AV65: 192252 | AW65: 154883.8766 | AX65: 136264.8516 | AY65: 188553.2718 | AZ65: 212014 | BA65: 256223.79 | BB65: 115174.44 | BC65: 164815.8315 | BD65: 200428 | BE65: 305832.0641 | BF65: 156883 | BG65: 242912 | BH65: 152689 | BJ65: 2367545 | BK65: ='EDP Energias do Brasil'!BK65 -> 1713920 | BL65: 1482455 | BM65: 1414750 | BN65: 688338 | BO65: 830955 | BP65: 1406372 | BQ65: 838361 | BR65: 554090 | BS65: 535363 | BT65: 691716 | BU65: 736642.0616 | BV65: 858316.0641
B66: Reversal of interest on equity capital | C66: ='EDP Energias do Brasil'!C66 -> 0 | D66: ='EDP Energias do Brasil'!D66 -> 0 | E66: ='EDP Energias do Brasil'!E66 -> 0 | F66: ='EDP Energias do Brasil'!F66 -> 0 | G66: ='EDP Energias do Brasil'!G66 -> 0 | H66: ='EDP Energias do Brasil'!H66 -> 0 | I66: ='EDP Energias do Brasil'!I66 -> 0 | J66: ='EDP Energias do Brasil'!J66 -> 0 | K66: ='EDP Energias do Brasil'!K66 -> 0 | L66: ='EDP Energias do Brasil'!L66 -> 0 | M66: ='EDP Energias do Brasil'!M66 -> 0 | N66: ='EDP Energias do Brasil'!N66 -> 0 | O66: 0 | P66: 0 | Q66: - | R66: - | S66: 0 | T66: 0 | U66: 0 | V66: 0 | W66: 0 | X66: 0 | Y66: 0 | Z66: 0 | AA66: 0 | AB66: 0 | AC66: 0 | AD66: 0 | AE66: 0 | AF66: 0 | AG66: 0 | AH66: 0 | AI66: 0 | AJ66: 0 | AK66: 0 | AL66: 0 | AM66: 0 | AN66: 0 | AO66: 0 | AP66: 0 | AQ66: 0 | AR66: 0 | AS66: 0 | AT66: 0 | AU66: 0 | AV66: 0 | AW66: 0 | AX66: 0 | AY66: 0 | AZ66: 0 | BA66: 0 | BB66: 0 | BC66: 0 | BD66: 0 | BE66: 0 | BF66: 0 | BG66: 0 | BH66: 0 | BJ66: 0 | BK66: ='EDP Energias do Brasil'!BK66 -> 0 | BL66: 0 | BM66: 0 | BN66: 0 | BO66: 0 | BP66: 0 | BQ66: 0 | BR66: 0 | BS66: 0 | BT66: 0 | BU66: 0 | BV66: 0
B67: Minority interests | C67: ='EDP Energias do Brasil'!C67 -> -51914 | D67: ='EDP Energias do Brasil'!D67 -> -43928 | E67: ='EDP Energias do Brasil'!E67 -> -60595 | F67: ='EDP Energias do Brasil'!F67 -> -55485 | G67: ='EDP Energias do Brasil'!G67 -> -37898 | H67: ='EDP Energias do Brasil'!H67 -> -37313 | I67: ='EDP Energias do Brasil'!I67 -> -62052 | J67: ='EDP Energias do Brasil'!J67 -> -79876 | K67: ='EDP Energias do Brasil'!K67 -> -36260 | L67: ='EDP Energias do Brasil'!L67 -> -29521 | M67: ='EDP Energias do Brasil'!M67 -> -117171 | N67: ='EDP Energias do Brasil'!N67 -> -22226 | O67: -34855 | P67: -31652 | Q67: -43327 | R67: -26567 | S67: -24153 | T67: -50552 | U67: -47082 | V67: -28503 | W67: -18182 | X67: -48150 | Y67: 21478 | Z67: -28194 | AA67: -34858 | AB67: -29356 | AC67: -57603 | AD67: -30268 | AE67: -37716 | AF67: -38766 | AG67: -64609 | AH67: -41440 | AI67: -8577 | AJ67: -25810 | AK67: -22902.1 | AL67: -10055 | AM67: -25072.8 | AN67: -36829 | AO67: -61210.8 | AP67: -38094.3 | AQ67: -16858 | AR67: -62159 | AS67: -49219.16 | AT67: -43524.34 | AU67: -49392.08 | AV67: -49764.36 | AW67: -73048.47828 | AX67: -43926.22172 | AY67: -61864 | AZ67: -22163 | BA67: -48674.81934 | BB67: -37281.46788 | BC67: -25959.48554 | BD67: -25011 | BE67: -53646.30449 | BF67: -33152 | BG67: -27892 | BH67: -32160 | BJ67: -207709 | BK67: ='EDP Energias do Brasil'!BK67 -> -205904 | BL67: -144599 | BM67: -141917 | BN67: -70930 | BO67: -164353 | BP67: -140436 | BQ67: -94858.9 | BR67: -178322.1 | BS67: -191899.94 | BT67: -201001.7 | BU67: -136926.7728 | BV67: -146850.3045
B68: Founders' shares | C68: ='EDP Energias do Brasil'!C68 -> 0 | D68: ='EDP Energias do Brasil'!D68 -> 0 | E68: ='EDP Energias do Brasil'!E68 -> 0 | F68: ='EDP Energias do Brasil'!F68 -> 0 | G68: ='EDP Energias do Brasil'!G68 -> 0 | H68: ='EDP Energias do Brasil'!H68 -> 0 | I68: ='EDP Energias do Brasil'!I68 -> 0 | J68: ='EDP Energias do Brasil'!J68 -> 0 | K68: ='EDP Energias do Brasil'!K68 -> 0 | L68: ='EDP Energias do Brasil'!L68 -> 0 | M68: ='EDP Energias do Brasil'!M68 -> 0 | N68: ='EDP Energias do Brasil'!N68 -> 0 | O68: 0 | P68: 0 | Q68: - | R68: - | S68: 0 | T68: 0 | U68: 0 | V68: 0 | W68: 0 | X68: 0 | Y68: 0 | Z68: 0 | AA68: 0 | AB68: 0 | AC68: 0 | AD68: 0 | AE68: 0 | AF68: 0 | AG68: 0 | AH68: 0 | AI68: 0 | AJ68: 0 | AK68: 0 | AL68: 0 | AM68: 0 | AN68: 0 | AO68: 0 | AP68: 0 | AQ68: 0 | AR68: 0 | AS68: 0 | AT68: 0 | AU68: 0 | AV68: 0 | AW68: 0 | AX68: 0 | AY68: 2109 | AZ68: -2109 | BA68: -6870 | BB68: -4932 | BC68: -2911 | BD68: -2444 | BE68: -6473 | BF68: -3621 | BG68: -2497 | BH68: -3181 | BJ68: 0 | BK68: ='EDP Energias do Brasil'!BK68 -> 0 | BL68: 0 | BM68: 0 | BN68: 0 | BO68: 0 | BP68: 0 | BQ68: 0 | BR68: 0 | BS68: 0 | BT68: 0 | BU68: -17157 | BV68: -15772
B69: Net Income | C69: ='EDP Energias do Brasil'!C69 -> -222754 | D69: ='EDP Energias do Brasil'!D69 -> 486526 | E69: ='EDP Energias do Brasil'!E69 -> -396906 | F69: ='EDP Energias do Brasil'!F69 -> 514433 | G69: ='EDP Energias do Brasil'!G69 -> 381111 | H69: ='EDP Energias do Brasil'!H69 -> 522798 | I69: ='EDP Energias do Brasil'!I69 -> 809047 | J69: ='EDP Energias do Brasil'!J69 -> 510518 | K69: ='EDP Energias do Brasil'!K69 -> 344490 | L69: ='EDP Energias do Brasil'!L69 -> 495781 | M69: ='EDP Energias do Brasil'!M69 -> 699971 | N69: ='EDP Energias do Brasil'!N69 -> 299772 | O69: 237238 | P69: 271035 | Q69: 499293 | R69: 353968 | S69: 188960 | T69: 295635 | U69: 524099 | V69: 306942 | W69: 227676 | X69: 214116 | Y69: 200579 | Z69: 140072 | AA69: 141998 | AB69: 134759 | AC69: 35897 | AD69: 230798 | AE69: 97846 | AF69: 302061 | AG69: 383055 | AH69: 55323 | AI69: 743959 | AJ69: 83599 | AK69: 317286.9 | AL69: 143008 | AM69: 183622.2 | AN69: 99585 | AO69: 41495.2 | AP69: 199391.7 | AQ69: 44606 | AR69: 90275 | AS69: 150688.84 | AT69: 10390.22 | AU69: 39896.36 | AV69: 142487.64 | AW69: 81835.39835 | AX69: 92338.62985 | AY69: 128798.2718 | AZ69: 187742 | BA69: 200678.9707 | BB69: 72960.97216 | BC69: 135945.3459 | BD69: 172973 | BE69: 245712.7596 | BF69: 120110 | BG69: 212523 | BH69: 117348 | BJ69: 2159836 | BK69: ='EDP Energias do Brasil'!BK69 -> 1508016 | BL69: 1337856 | BM69: 1272833 | BN69: 617408 | BO69: 666602 | BP69: 1265936 | BQ69: 743502.1 | BR69: 375767.9 | BS69: 343463.06 | BT69: 490714.3 | BU69: 582558.2888 | BV69: 695693.7596

Sheet Controladora
B2: EDP Energias do Brasil Controladora
B4: R$ Mil | C4: 2023-06-01 | D4: 2023-03-01 | E4: 2022-12-01 | F4: 2022-09-01 | G4: 2022-06-01 | H4: 2022-03-01 | I4: 2021-12-01 | J4: 2021-09-01 | K4: 2021-06-30 | L4: 2021-03-31 | M4: 2020-12-30 | N4: 2020-09-30 | O4: 2020-06-30 | P4: 2020-03-31 | Q4: 2019-12-30 | R4: 2019-09-30 | S4: 2019-06-30 | T4: 2019-03-31 | U4: 2018-12-30 | V4: 2018-09-30 | W4: 2018-06-30 | X4: 2018-03-31 | Y4: 2017-12-31 | Z4: 2017-09-30 | AA4: 2017-06-30 | AB4: 2017-03-31 | AC4: 2016-12-31 | AD4: 2016-09-30 | AE4: 2016-06-30 | AF4: 2016-03-31 | AG4: 2015-12-31 | AH4: 2015-09-30 | AI4: 2015-06-30 | AJ4: 2015-03-31 | AK4: 2014-12-31 | AL4: 2014-09-30 | AM4: 2014-06-30 | AN4: 2014-03-31 | AO4: 2013-12-31 | AP4: 2013-09-30 | AQ4: 2013-06-30 | AR4: 2013-03-31 | AS4: 2012-12-30 | AT4: 2012-09-30 | AU4: 2012-06-30 | AV4: 2012-03-31 | AW4: 2011-12-31 | AX4: 2011-09-30 | AY4: 2011-06-30 | AZ4: 2011-03-31 | BA4: 2010-12-31 | BB4: 2010-12-31 | BC4: 2010-06-30 | BD4: 2010-03-31 | BE4: 2009-12-31 | BF4: 2009-09-30 | BG4: 2009-06-30 | BH4: 2009-03-31
C5: 2T23 | D5: 1T23 | E5: 4T22 | F5: 3T22 | G5: 2T22 | H5: 1T22 | I5: 4T21 | J5: 3T21 | K5: 2T21 | L5: 1T21 | M5: 4T20 | N5: 3T20 | O5: 2T20 | P5: 1T20 | Q5: 4T19 | R5: 3T19 | S5: 2T19 | T5: 1T19 | U5: 4T18 | V5: 3T18 | W5: 2T18 | X5: 1T18 | Y5: 4T17 | Z5: 3T17 | AA5: 2T17 | AB5: 1T17 | AC5: 4T16 | AD5: 3T16 | AE5: 2T16 | AF5: 1T16 | AG5: 4T15 | AH5: 3T15 | AI5: 2T15 | AJ5: 1T15 | AK5: 4T14 | AL5: 3T14 | AM5: 2T14 | AN5: 1T14 | AO5: 4T13 | AP5: 3T13 | AQ5: 2T13 | AR5: 1T13 | AS5: 4T12 | AT5: 3T12 | AU5: 2T12 | AV5: 1T12 | AW5: 4T11 | AX5: 3T11 | AY5: 2T11 | AZ5: 1T11 | BA5: 4T10 | BB5: 3T10 | BC5: 2T10 | BD5: 1T10 | BE5: 4T09 | BF5: 3T09 | BG5: 2T09 | BH5: 1T09 | BJ5: 2021 | BK5: 2020 | BL5: 2019 | BM5: 2018 | BN5: 2017 | BO5: 2016 | BP5: 2015 | BQ5: 2014 | BR5: 2013 | BS5: 2012 | BT5: 2011 | BU5: 2010 | BV5: 2009
A7: Receitas | B7: Receita operacional líquida | C7: 1189 | D7: 2812 | E7: 1296 | F7: 742 | G7: 799 | H7: 1563 | I7: 773 | J7: 790 | K7: 683 | L7: 735 | M7: 481 | N7: 1000 | O7: 640 | P7: 705 | Q7: 807 | R7: 1980 | S7: 1060 | T7: 787 | U7: 1219 | V7: 1183 | W7: 1023 | X7: 1723 | Y7: 578 | Z7: 1442 | AA7: 1817 | AB7: 1840 | AC7: 1237 | AD7: 2841 | AE7: 790 | AF7: 952 | AG7: -231 | AH7: 2871 | AI7: 903 | AJ7: 285 | AK7: 7750 | AL7: -493 | AM7: 345 | AN7: 238 | AO7: 238 | AP7: 177 | AQ7: 238 | AR7: 339 | AS7: 1540 | AT7: 96 | AU7: 141 | AV7: 0 | AW7: 1384 | AX7: 0 | AY7: 0 | AZ7: 0 | BA7: 0 | BB7: 0 | BC7: 0 | BD7: 0 | BE7: 0 | BF7: 0 | BG7: 0 | BH7: 0 | BJ7: =SUM(I7:L7) -> 2981 | BK7: =SUM(M7:P7) -> 2826 | BL7: 4634 | BM7: 5148 | BN7: 5677 | BO7: 5820 | BP7: 3828 | BQ7: 7840 | BR7: 992 | BS7: 1777 | BT7: 1384 | BU7: 0 | BV7: 0
B8: Receita com construção da infraestrutura | BJ8: =SUM(I8:L8) -> 0 | BK8: =SUM(M8:P8) -> 0 | BL8: 0 | BM8: 0 | BN8: 0 | BO8: 0 | BP8: 0 | BQ8: 0 | BR8: 0 | BS8: 0 | BT8: 0 | BU8: 0 | BV8: 0
B9: Margem de Construção Transmissão | BJ9: 0 | BK9: 0 | BL9: 0 | BM9: 0 | BN9: 0 | BO9: 0 | BP9: 0 | BQ9: 0 | BR9: 0 | BS9: 0 | BT9: 0 | BU9: 0 | BV9: 0
B10: Gastos não gerenciáveis | C10: =SUM(C11:C22) -> 0 | D10: 0 | E10: 0 | F10: 0 | G10: 0 | H10: 0 | I10: =SUM(I11:I22) -> 0 | J10: =SUM(J11:J22) -> 0 | K10: 0 | L10: 0 | M10: 0 | N10: 0 | O10: 0 | P10: 0 | Q10: 0 | R10: 0 | S10: 0 | T10: 0 | U10: 0 | V10: 0 | W10: 0 | X10: 0 | Y10: 0 | Z10: 0 | AA10: 0 | AB10: 0 | AC10: 0 | AE10: 0 | AF10: 0 | AG10: 0 | AH10: 0 | AI10: 0 | AJ10: 0 | AK10: 0 | AL10: 0 | AM10: 0 | AN10: 0 | AO10: 0 | AP10: 0 | AQ10: 0 | AR10: 0 | AS10: 0 | AT10: 0 | AU10: 0 | AV10: 0 | AW10: 0 | AX10: 0 | AY10: 0 | AZ10: 0 | BA10: 0 | BB10: 0 | BC10: 0 | BD10: 0 | BE10: 0 | BF10: 0 | BG10: 0 | BH10: 0 | BJ10: 0 | BK10: 0 | BL10: 0 | BM10: 0 | BN10: 0 | BO10: 0 | BP10: 0 | BQ10: 0 | BR10: 0 | BS10: 0 | BT10: 0 | BU10: 0 | BV10: 0
A11: Energia elétrica comprada para revenda | B11: Energia comprada para revenda | C11: 0 | D11: 0 | E11: 0 | F11: 0 | G11: 0 | H11: 0 | I11: 0 | J11: 0 | K11: 0 | L11: 0 | M11: 0 | N11: 0 | O11: 0 | P11: 0 | Q11: 0 | R11: 0 | S11: 0 | T11: 0 | U11: 0 | V11: 0 | W11: 0 | X11: 0 | Y11: 0 | Z11: 0 | AA11: 0 | AB11: 0 | AC11: 0 | AE11: 0 | AF11: 0 | AG11: 0 | AH11: 0 | AI11: 0 | AJ11: 0 | AK11: 0 | AL11: 0 | AM11: 0 | AN11: 0 | AO11: 0 | AP11: 0 | AQ11: 0 | AR11: 0 | AS11: 0 | AT11: 0 | AU11: 0 | AV11: 0 | AW11: 0 | AX11: 0 | AY11: 0 | AZ11: 0 | BA11: 0 | BB11: 0 | BC11: 0 | BD11: 0 | BE11: 0 | BF11: 0 | BG11: 0 | BH11: 0 | BJ11: 0 | BK11: 0 | BL11: 0 | BM11: 0 | BN11: 0 | BO11: 0 | BP11: 0 | BQ11: 0 | BR11: 0 | BS11: 0 | BT11: 0 | BU11: 0 | BV11: 0
B12: Moeda Estrangeira - Itaipu | Q12: 0 | R12: 0 | S12: 0 | T12: 0 | U12: 0 | V12: 0 | W12: 0 | X12: 0 | Y12: 0 | Z12: 0 | AA12: 0 | AB12: 0 | AC12: 0 | AD12: 0 | AE12: 0 | AF12: 0 | AG12: 0 | AH12: 0 | AI12: 0 | AJ12: 0 | AK12: 0 | AL12: 0 | AM12: 0 | AN12: 0 | AO12: 0 | AP12: 0 | AQ12: 0 | AR12: 0 | AS12: 0 | AT12: 0 | AU12: 0 | AV12: 0 | AW12: 0 | AX12: 0 | AY12: 0 | AZ12: 0 | BA12: 0 | BB12: 0 | BC12: 0 | BD12: 0 | BE12: 0 | BF12: 0 | BG12: 0 | BH12: 0 | BJ12: 0 | BK12: 0 | BL12: 0 | BM12: 0 | BN12: 0 | BO12: 0 | BP12: 0 | BQ12: 0 | BR12: 0 | BS12: 0 | BT12: 0 | BU12: 0 | BV12: 0
B13: Moeda Nacional | Q13: 0 | R13: 0 | S13: 0 | T13: 0 | U13: 0 | V13: 0 | W13: 0 | X13: 0 | Y13: 0 | Z13: 0 | AA13: 0 | AB13: 0 | AC13: 0 | AD13: 0 | AE13: 0 | AF13: 0 | AG13: 0 | AH13: 0 | AI13: 0 | AJ13: 0 | AK13: 0 | AL13: 0 | AM13: 0 | AN13: 0 | AO13: 0 | AP13: 0 | AQ13: 0 | AR13: 0 | AS13: 0 | AT13: 0 | AU13: 0 | AV13: 0 | AW13: 0 | AX13: 0 | AY13: 0 | AZ13: 0 | BA13: 0 | BB13: 0 | BC13: 0 | BD13: 0 | BJ13: 0 | BK13: 0 | BL13: 0 | BM13: 0 | BN13: 0 | BO13: 0 | BP13: 0 | BQ13: 0 | BR13: 0 | BS13: 0 | BT13: 0 | BU13: 0 | BV13: 0
B14: Ressarcimento CDE / CCEE / CONER | BJ14: 0 | BK14: 0 | BL14: 0 | BM14: 0 | BN14: 0 | BO14: 0 | BP14: 0 | BQ14: 0 | BR14: 0 | BS14: 0 | BT14: 0 | BU14: 0 | BV14: 0
B15: Leilão | Q15: 0 | R15: 0 | S15: 0 | T15: 0 | U15: 0 | V15: 0 | W15: 0 | X15: 0 | Y15: 0 | Z15: 0 | AA15: 0 | AB15: 0 | AC15: 0 | AD15: 0 | AE15: 0 | AF15: 0 | AG15: 0 | AH15: 0 | AI15: 0 | AJ15: 0 | AK15: 0 | AL15: 0 | AM15: 0 | AN15: 0 | AO15: 0 | AP15: 0 | AQ15: 0 | AR15: 0 | AS15: 0 | AT15: 0 | AU15: 0 | AV15: 0 | AW15: 0 | AX15: 0 | AY15: 0 | AZ15: 0 | BA15: 0 | BB15: 0 | BC15: 0 | BD15: 0 | BE15: 0 | BF15: 0 | BG15: 0 | BH15: 0 | BJ15: 0 | BK15: 0 | BL15: 0 | BM15: 0 | BN15: 0 | BO15: 0 | BP15: 0 | BQ15: 0 | BR15: 0 | BS15: 0 | BT15: 0 | BU15: 0 | BV15: 0
B16: PROINFA | Q16: 0 | R16: 0 | S16: 0 | T16: 0 | U16: 0 | V16: 0 | W16: 0 | X16: 0 | Y16: 0 | Z16: 0 | AA16: 0 | AB16: 0 | AC16: 0 | AD16: 0 | AE16: 0 | AF16: 0 | AG16: 0 | AH16: 0 | AI16: 0 | AJ16: 0 | AK16: 0 | AL16: 0 | AM16: 0 | AN16: 0 | AO16: 0 | AP16: 0 | AQ16: 0 | AR16: 0 | AS16: 0 | AT16: 0 | AU16: 0 | AV16: 0 | AW16: 0 | AX16: 0 | AY16: 0 | AZ16: 0 | BA16: 0 | BB16: 0 | BC16: 0 | BD16: 0 | BE16: 0 | BF16: 0 | BG16: 0 | BH16: 0 | BJ16: 0 | BK16: 0 | BL16: 0 | BM16: 0 | BN16: 0 | BO16: 0 | BP16: 0 | BQ16: 0 | BR16: 0 | BS16: 0 | BT16: 0 | BU16: 0 | BV16: 0
B17: Contratos bilaterais | Q17: 0 | R17: 0 | S17: 0 | T17: 0 | U17: 0 | V17: 0 | W17: 0 | X17: 0 | Y17: 0 | Z17: 0 | AA17: 0 | AB17: 0 | AC17: 0 | AD17: 0 | AE17: 0 | AF17: 0 | AG17: 0 | AH17: 0 | AI17: 0 | AJ17: 0 | AK17: 0 | AL17: 0 | AM17: 0 | AN17: 0 | AO17: 0 | AP17: 0 | AQ17: 0 | AR17: 0 | AS17: 0 | AT17: 0 | AU17: 0 | AV17: 0 | AW17: 0 | AX17: 0 | AY17: 0 | AZ17: 0 | BA17: 0 | BB17: 0 | BC17: 0 | BD17: 0 | BE17: 0 | BF17: 0 | BG17: 0 | BH17: 0 | BJ17: 0 | BK17: 0 | BL17: 0 | BM17: 0 | BN17: 0 | BO17: 0 | BP17: 0 | BQ17: 0 | BR17: 0 | BS17: 0 | BT17: 0 | BU17: 0 | BV17: 0
B18: Energia de curto prazo - CCEE | Q18: 0 | R18: 0 | S18: 0 | T18: 0 | U18: 0 | V18: 0 | W18: 0 | X18: 0 | Y18: 0 | Z18: 0 | AA18: 0 | AB18: 0 | AC18: 0 | AD18: 0 | AE18: 0 | AF18: 0 | AG18: 0 | AH18: 0 | AI18: 0 | AJ18: 0 | AK18: 0 | AL18: 0 | AM18: 0 | AN18: 0 | AO18: 0 | AP18: 0 | AQ18: 0 | AR18: 0 | AS18: 0 | AT18: 0 | AU18: 0 | AV18: 0 | AW18: 0 | AX18: 0 | AY18: 0 | AZ18: 0 | BA18: 0 | BB18: 0 | BC18: 0 | BD18: 0 | BE18: 0 | BF18: 0 | BG18: 0 | BH18: 0 | BJ18: 0 | BK18: 0 | BL18: 0 | BM18: 0 | BN18: 0 | BO18: 0 | BP18: 0 | BQ18: 0 | BR18: 0 | BS18: 0 | BT18: 0 | BU18: 0 | BV18: 0
B19: Outros supridores | Q19: 0 | R19: 0 | S19: 0 | T19: 0 | U19: 0 | V19: 0 | W19: 0 | X19: 0 | Y19: 0 | Z19: 0 | AA19: 0 | AB19: 0 | AC19: 0 | AD19: 0 | AE19: 0 | AF19: 0 | AG19: 0 | AH19: 0 | AI19: 0 | AJ19: 0 | AK19: 0 | AL19: 0 | AM19: 0 | AN19: 0 | AO19: 0 | AP19: 0 | AQ19: 0 | AR19: 0 | AS19: 0 | AT19: 0 | AU19: 0 | AV19: 0 | AW19: 0 | AX19: 0 | AY19: 0 | AZ19: 0 | BA19: 0 | BB19: 0 | BC19: 0 | BD19: 0 | BE19: 0 | BF19: 0 | BG19: 0 | BH19: 0 | BJ19: 0 | BK19: 0 | BL19: 0 | BM19: 0 | BN19: 0 | BO19: 0 | BP19: 0 | BQ19: 0 | BR19: 0 | BS19: 0 | BT19: 0 | BU19: 0 | BV19: 0
B20: Efeito líquido da CVA | Q20: 0 | R20: 0 | S20: 0 | T20: 0 | U20: 0 | V20: 0 | W20: 0 | X20: 0 | Y20: 0 | Z20: 0 | AA20: 0 | AB20: 0 | AC20: 0 | AD20: 0 | AE20: 0 | AF20: 0 | AG20: 0 | AH20: 0 | AI20: 0 | AJ20: 0 | AK20: 0 | AL20: 0 | AM20: 0 | AN20: 0 | AO20: 0 | AP20: 0 | AQ20: 0 | AR20: 0 | AS20: 0 | AT20: 0 | AU20: 0 | AV20: 0 | AW20: 0 | AX20: 0 | AY20: 0 | AZ20: 0 | BA20: 0 | BB20: 0 | BC20: 0 | BD20: 0 | BE20: 0 | BF20: 0 | BG20: 0 | BH20: 0 | BJ20: 0 | BK20: 0 | BL20: 0 | BM20: 0 | BN20: 0 | BO20: 0 | BP20: 0 | BQ20: 0 | BR20: 0 | BS20: 0 | BT20: 0 | BU20: 0 | BV20: 0
A21: Encargos de uso da rede elétrica | B21: Encargos de uso do sistema | C21: 0 | D21: 0 | E21: 0 | F21: 0 | G21: 0 | H21: 0 | I21: 0 | J21: 0 | K21: 0 | L21: 0 | M21: 0 | N21: 0 | O21: 0 | P21: 0 | Q21: 0 | R21: 0 | S21: 0 | T21: 0 | U21: 0 | V21: 0 | W21: 0 | X21: 0 | Y21: 0 | Z21: 0 | AA21: 0 | AB21: 0 | AC21: 0 | AD21: 0 | AE21: 0 | AF21: 0 | AG21: 0 | AH21: 0 | AI21: 0 | AJ21: 0 | AK21: 0 | AL21: 0 | AM21: 0 | AN21: 0 | AO21: 0 | AP21: 0 | AQ21: 0 | AR21: 0 | AS21: 0 | AT21: 0 | AU21: 0 | AV21: 0 | AW21: 0 | AX21: 0 | AY21: 0 | AZ21: 0 | BA21: 0 | BB21: 0 | BC21: 0 | BD21: 0 | BE21: 0 | BF21: 0 | BG21: 0 | BH21: 0 | BJ21: 0 | BK21: 0 | BL21: 0 | BM21: 0 | BN21: 0 | BO21: 0 | BP21: 0 | BQ21: 0 | BR21: 0 | BS21: 0 | BT21: 0 | BU21: 0 | BV21: 0
B22: Outras | C22: 0 | D22: 0 | E22: 0 | F22: 0 | G22: 0 | H22: 0 | I22: 0 | J22: 0 | K22: 0 | L22: 0 | M22: 0 | N22: 0 | O22: 0 | P22: 0 | Q22: 0 | R22: 0 | S22: 0 | T22: 0 | U22: 0 | V22: 0 | W22: 0 | X22: 0 | Y22: 0 | Z22: 0 | AA22: 0 | AB22: 0 | AC22: 0 | AD22: 0 | AE22: 0 | AF22: 0 | AG22: 0 | AH22: 0 | AI22: 0 | AJ22: 0 | AK22: 0 | AL22: 0 | AM22: 0 | AN22: 0 | AO22: 0 | AP22: 0 | AQ22: 0 | AR22: 0 | AS22: 0 | AT22: 0 | AU22: 0 | AV22: 0 | AW22: 0 | AX22: 0 | AY22: 0 | AZ22: 0 | BA22: 0 | BB22: 0 | BC22: 0 | BD22: 0 | BE22: 0 | BF22: 0 | BG22: 0 | BH22: 0 | BJ22: 0 | BK22: 0 | BL22: 0 | BM22: 0 | BN22: 0 | BO22: 0 | BP22: 0 | BQ22: 0 | BR22: 0 | BS22: 0 | BT22: 0 | BU22: 0 | BV22: 0
B23: Programa de eficiência energética | Q23: 0 | R23: 0 | S23: 0 | T23: 0 | U23: 0 | V23: 0 | W23: 0 | X23: 0 | Y23: 0 | Z23: 0 | AA23: 0 | AB23: 0 | AC23: 0 | AD23: 0 | AE23: 0 | AF23: 0 | AG23: 0 | AH23: 0 | AI23: 0 | AJ23: 0 | AK23: 0 | AL23: 0 | AM23: 0 | AN23: 0 | AO23: 0 | AP23: 0 | AQ23: 0 | AR23: 0 | AS23: 0 | AT23: 0 | AU23: 0 | AV23: 0 | AW23: 0 | AX23: 0 | AY23: 0 | AZ23: 0 | BA23: 0 | BB23: 0 | BC23: 0 | BD23: 0 | BE23: 0 | BF23: 0 | BG23: 0 | BH23: 0 | BJ23: 0 | BK23: 0 | BL23: 0 | BM23: 0 | BN23: 0 | BO23: 0 | BP23: 0 | BQ23: 0 | BR23: 0 | BS23: 0 | BT23: 0 | BU23: 0 | BV23: 0
B24: PIS/Cofins | Q24: 0 | R24: 0 | S24: 0 | T24: 0 | U24: 0 | V24: 0 | W24: 0 | X24: 0 | Y24: 0 | Z24: 0 | AA24: 0 | AB24: 0 | AC24: 0 | AD24: 0 | AE24: 0 | AF24: 0 | AG24: 0 | AH24: 0 | AI24: 0 | AJ24: 0 | AK24: 0 | AL24: 0 | AM24: 0 | AN24: 0 | AO24: 0 | AP24: 0 | AQ24: 0 | AR24: 0 | AS24: 0 | AT24: 0 | AU24: 0 | AV24: 0 | AW24: 0 | AX24: 0 | AY24: 0 | AZ24: 0 | BA24: 0 | BB24: 0 | BC24: 0 | BD24: 0 | BE24: 0 | BF24: 0 | BG24: 0 | BH24: 0 | BJ24: 0 | BK24: 0 | BL24: 0 | BM24: 0 | BN24: 0 | BO24: 0 | BP24: 0 | BQ24: 0 | BR24: 0 | BS24: 0 | BT24: 0 | BU24: 0 | BV24: 0
B25: Taxa de fiscalização | Q25: 0 | R25: 0 | S25: 0 | T25: 0 | U25: 0 | V25: 0 | W25: 0 | X25: 0 | Y25: 0 | Z25: 0 | AA25: 0 | AB25: 0 | AC25: 0 | AD25: 0 | AE25: 0 | AF25: 0 | AG25: 0 | AH25: 0 | AI25: 0 | AJ25: 0 | AK25: 0 | AL25: 0 | AM25: 0 | AN25: 0 | AO25: 0 | AP25: 0 | AQ25: 0 | AR25: 0 | AS25: 0 | AT25: 0 | AU25: 0 | AV25: 0 | AW25: 0 | AX25: 0 | AY25: 0 | AZ25: 0 | BA25: 0 | BB25: 0 | BC25: 0 | BD25: 0 | BE25: 0 | BF25: 0 | BG25: 0 | BH25: 0 | BJ25: 0 | BK25: 0 | BL25: 0 | BM25: 0 | BN25: 0 | BO25: 0 | BP25: 0 | BQ25: 0 | BR25: 0 | BS25: 0 | BT25: 0 | BU25: 0 | BV25: 0
B26: Direito de outorga - UBP | Q26: 0 | R26: 0 | S26: 0 | T26: 0 | U26: 0 | V26: 0 | W26: 0 | X26: 0 | Y26: 0 | Z26: 0 | AA26: 0 | AB26: 0 | AC26: 0 | AD26: 0 | AE26: 0 | AF26: 0 | AG26: 0 | AH26: 0 | AI26: 0 | AJ26: 0 | AK26: 0 | AL26: 0 | AM26: 0 | AN26: 0 | AO26: 0 | AP26: 0 | AQ26: 0 | AR26: 0 | AS26: 0 | AT26: 0 | AU26: 0 | AV26: 0 | AW26: 0 | AX26: 0 | AY26: 0 | AZ26: 0 | BA26: 0 | BB26: 0 | BC26: 0 | BD26: 0 | BE26: 0 | BF26: 0 | BG26: 0 | BH26: 0 | BJ26: 0 | BK26: 0 | BL26: 0 | BM26: 0 | BN26: 0 | BO26: 0 | BP26: 0 | BQ26: 0 | BR26: 0 | BS26: 0 | BT26: 0 | BU26: 0 | BV26: 0
B27: Compensações financeiras | Q27: 0 | R27: 0 | S27: 0 | T27: 0 | U27: 0 | V27: 0 | W27: 0 | X27: 0 | Y27: 0 | Z27: 0 | AA27: 0 | AB27: 0 | AC27: 0 | AD27: 0 | AE27: 0 | AF27: 0 | AG27: 0 | AH27: 0 | AI27: 0 | AJ27: 0 | AK27: 0 | AL27: 0 | AM27: 0 | AN27: 0 | AO27: 0 | AP27: 0 | AQ27: 0 | AR27: 0 | AS27: 0 | AT27: 0 | AU27: 0 | AV27: 0 | AW27: 0 | AX27: 0 | AY27: 0 | AZ27: 0 | BA27: 0 | BB27: 0 | BC27: 0 | BD27: 0 | BE27: 0 | BF27: 0 | BG27: 0 | BH27: 0 | BJ27: 0 | BK27: 0 | BL27: 0 | BM27: 0 | BN27: 0 | BO27: 0 | BP27: 0 | BQ27: 0 | BR27: 0 | BS27: 0 | BT27: 0 | BU27: 0 | BV27: 0
B28: Outras | BJ28: 0 | BK28: 0 | BL28: 0 | BM28: 0 | BN28: 0 | BO28: 0 | BP28: 0 | BQ28: 0 | BR28: 0 | BS28: 0 | BT28: 0 | BU28: 0 | BV28: 0
B29: Custo da matéria prima consumida | BJ29: 0 | BK29: 0 | BL29: 0 | BM29: 0 | BN29: 0 | BO29: 0 | BP29: 0 | BQ29: 0 | BR29: 0 | BS29: 0 | BT29: 0 | BU29: 0 | BV29: 0
B30: Ressarcimento por indisponibilidade | P30: 0 | BJ30: 0 | BK30: 0 | BL30: 0 | BM30: 0 | BN30: 0 | BO30: 0 | BP30: 0 | BQ30: 0 | BR30: 0 | BS30: 0 | BT30: 0 | BU30: 0 | BV30: 0
B31: Margem Bruta | C31: =C7+C10 -> 1189 | D31: 2812 | E31: 1296 | F31: 742 | G31: 799 | H31: 1563 | I31: =I7+I10 -> 773 | J31: 790 | K31: 683 | L31: 735 | M31: 481 | N31: 1000 | O31: 640 | P31: 705 | Q31: 807 | R31: 1980 | S31: 1060 | T31: 787 | U31: 1219 | V31: 1183 | W31: 1023 | X31: 1723 | Y31: 578 | Z31: 1442 | AA31: 1817 | AB31: 1840 | AC31: 1237 | AD31: 2841 | AE31: 790 | AF31: 952 | AG31: -231 | AH31: 2871 | AI31: 903 | AJ31: 285 | AK31: 7750 | AL31: -493 | AM31: 345 | AN31: 238 | AO31: 238 | AP31: 177 | AQ31: 238 | AR31: 339 | AS31: 1540 | AT31: 96 | AU31: 141 | AV31: 0 | AW31: 1384 | AX31: 0 | AY31: 0 | AZ31: 0 | BA31: 0 | BB31: 0 | BC31: 0 | BD31: 0 | BE31: 0 | BF31: 0 | BG31: 0 | BH31: 0 | BJ31: 2981 | BK31: 2826 | BL31: 4634 | BM31: 5148 | BN31: 5677 | BO31: 5820 | BP31: 3828 | BQ31: 7840 | BR31: 992 | BS31: 1777 | BT31: 1384 | BU31: 0 | BV31: 0
B32: Gastos gerenciáveis | C32: =C33+C43+C44+C45+C49 -> -636537 | D32: -34021 | E32: =E33+E43+E44+E45+E49 -> -61740 | F32: =F33+F43+F44+F45+F49 -> -48194 | G32: -44551 | H32: -26677 | I32: -48738 | J32: -39463 | K32: -28193 | L32: -28681 | M32: -33102 | N32: -20896 | O32: -22136 | P32: -24393 | Q32: -33703 | R32: -26219 | S32: -7080 | T32: -19532 | U32: -37466 | V32: -33099 | W32: -35816 | X32: -36563 | Y32: -37052 | Z32: -30555 | AA32: -30214 | AB32: -28211 | AC32: -43723 | AD32: -25139 | AE32: -27844 | AF32: -25816 | AG32: -28285 | AH32: -30984 | AI32: -37008 | AJ32: -29417 | AK32: -70081 | AL32: -24913 | AM32: -24873 | AN32: -27422 | AO32: -24832 | AP32: -30983 | AQ32: -29308 | AR32: -25429 | AS32: 12414 | AT32: -35020 | AU32: -26228 | AV32: -23825 | AW32: -19102 | AX32: -17506 | AY32: -18092 | AZ32: -14085 | BA32: -27308 | BB32: -29565 | BC32: -15877 | BD32: -18901 | BE32: -34750 | BF32: -30280 | BG32: -19785 | BH32: -22697 | BJ32: -145075 | BK32: -100527 | BL32: -86534 | BM32: -142944 | BN32: -126032 | BO32: -122522 | BP32: -125694 | BQ32: -147289 | BR32: -110552 | BS32: -72659 | BT32: -68785 | BU32: -91651 | BV32: -107512
B33: Total do PMSO | C33: =C34+C35+C36+C37+C40 -> -53132 | D33: -29750 | E33: =E34+E35+E36+E37+E40 -> -54318 | F33: =F34+F35+F36+F37+F40 -> -17443 | G33: -40003 | H33: -22448 | I33: -40441 | J33: -28273 | K33: -27407 | L33: -24545 | M33: -23314 | N33: -16621 | O33: -17977 | P33: -19967 | Q33: -27916 | R33: -21244 | S33: -2513 | T33: -15082 | U33: -33997 | V33: -29605 | W33: -32274 | X33: -16799 | Y33: -33243 | Z33: -27423 | AA33: -27492 | AB33: -25593 | AC33: -41233 | AD33: -22619 | AE33: -25664 | AF33: -23655 | AG33: -25800 | AH33: -28885 | AI33: -34753 | AJ33: -27145 | AK33: -67568 | AL33: -23224 | AM33: -23171 | AN33: -25726 | AO33: -24516 | AP33: -29223 | AQ33: -27736 | AR33: -23859 | AS33: 13970 | AT33: -33473 | AU33: -24674 | AV33: -22273 | AW33: -17553 | AX33: -15974 | AY33: -13536 | AZ33: -9530 | BA33: -23928 | BB33: -24696 | BC33: -11002 | BD33: -14032 | BE33: -30202 | BF33: -25688 | BG33: -14430 | BH33: -17272 | BJ33: -120666 | BK33: -77879 | BL33: -66755 | BM33: -112675 | BN33: -113751 | BO33: -113171 | BP33: -116583 | BQ33: -139689 | BR33: -105334 | BS33: -66450 | BT33: -56593 | BU33: -73658 | BV33: -87592
A34: Pessoal, Administradores e Entidade de previdência privada | B34: Pessoal | C34: -21475 | D34: -11593 | E34: -21505 | F34: -13806 | G34: -16289 | H34: -15938 | I34: -19102 | J34: -14594 | K34: -13926 | L34: -13202 | M34: -10197 | N34: -8492 | O34: -7776 | P34: -8110 | Q34: -10337 | R34: -9686 | S34: -8730 | T34: -7935 | U34: -9530 | V34: -14053 | W34: -16433 | X34: -9673 | Y34: -12699 | Z34: -11754 | AA34: -11122 | AB34: -11386 | AC34: -12253 | AD34: -11951 | AE34: -11939 | AF34: -10781 | AG34: -11335 | AH34: -11337 | AI34: -9992 | AJ34: -10579 | AK34: -12528 | AL34: -10211 | AM34: -8539 | AN34: -9168 | AO34: -8464 | AP34: -8581 | AQ34: -5748 | AR34: -6950 | AS34: -5067 | AT34: -11696 | AU34: -9630 | AV34: -10126 | AW34: -6753 | AX34: -5504 | AY34: -4075 | AZ34: -7286 | BA34: -5969 | BB34: -5109 | BC34: -5446 | BD34: -5103 | BE34: -4790 | BF34: -3751 | BG34: -4302 | BH34: -8440 | BJ34: -60824 | BK34: -34575 | BL34: -36688 | BM34: -49689 | BN34: -46961 | BO34: -46924 | BP34: -43243 | BQ34: -40446 | BR34: -29743 | BS34: -36519 | BT34: -23618 | BU34: -21627 | BV34: -21283
B35: Material | C35: -210 | D35: -193 | E35: -226 | F35: -74 | G35: -110 | H35: -49 | I35: -122 | J35: -144 | K35: -104 | L35: -559 | M35: 111 | N35: -151 | O35: -69 | P35: -295 | Q35: -61 | R35: -90 | S35: -37 | T35: -107 | U35: -11 | V35: 182 | W35: -70 | X35: -293 | Y35: -324 | Z35: -205 | AA35: -201 | AB35: -163 | AC35: -297 | AD35: -141 | AE35: -192 | AF35: -182 | AG35: -287 | AH35: -203 | AI35: -246 | AJ35: -199 | AK35: -324 | AL35: -155 | AM35: -234 | AN35: -258 | AO35: -179 | AP35: -846 | AQ35: -770 | AR35: -121 | AS35: -240 | AT35: -645 | AU35: -470 | AV35: -225 | AW35: -129 | AX35: -60 | AY35: -110 | AZ35: -158 | BA35: -428 | BB35: -179 | BC35: -137 | BD35: -223 | BE35: -302 | BF35: -157 | BG35: -77 | BH35: -81 | BJ35: -929 | BK35: -404 | BL35: -295 | BM35: -192 | BN35: -893 | BO35: -812 | BP35: -935 | BQ35: -971 | BR35: -1916 | BS35: -1580 | BT35: -457 | BU35: -967 | BV35: -617
B36: Serviços de terceiros | C36: -13413 | D36: -15104 | E36: -28936 | F36: -5858 | G36: -10147 | H36: -5935 | I36: -18240 | J36: -10060 | K36: -10953 | L36: -7136 | M36: -12854 | N36: -5699 | O36: -7819 | P36: -9355 | Q36: -16225 | R36: -6776 | S36: -7317 | T36: -3527 | U36: 4704 | V36: -9724 | W36: -13189 | X36: -4952 | Y36: -13600 | Z36: -11656 | AA36: -12318 | AB36: -10432 | AC36: -18391 | AD36: -10018 | AE36: -8392 | AF36: -9536 | AG36: -11188 | AH36: -11544 | AI36: -13078 | AJ36: -11489 | AK36: -39081 | AL36: -8646 | AM36: -8986 | AN36: -8420 | AO36: -9599 | AP36: -9106 | AQ36: -14899 | AR36: -10181 | AS36: -7875 | AT36: -7437 | AU36: -8912 | AV36: -5422 | AW36: -6813 | AX36: -5990 | AY36: -5363 | AZ36: -5814 | BA36: -8053 | BB36: -8013 | BC36: -5748 | BD36: -5025 | BE36: -10087 | BF36: -6790 | BG36: -6559 | BH36: -5231 | BJ36: -46389 | BK36: -35727 | BL36: -33845 | BM36: -23161 | BN36: -48006 | BO36: -46337 | BP36: -47299 | BQ36: -65133 | BR36: -43785 | BS36: -29646 | BT36: -23980 | BU36: -26839 | BV36: -28667
B37: Provisões | C37: =C38+C39 -> -2409 | D37: 687 | E37: =E38+E39 -> -292 | F37: =F38+F39 -> -327 | G37: -2838 | H37: 0 | I37: -242 | J37: -299 | K37: -57 | L37: -270 | M37: 3455 | N37: =N38+N39 -> -257 | O37: -63 | P37: 159 | Q37: -96 | R37: -872 | S37: 1653 | T37: -1622 | U37: -1323 | V37: -210 | W37: -1084 | X37: 160 | Y37: -1227 | Z37: -625 | AA37: -224 | AB37: -944 | AC37: -974 | AD37: 6429 | AE37: -1120 | AF37: -494 | AG37: 16 | AH37: -992 | AI37: 1830 | AJ37: 373 | AK37: -4910 | AL37: 4498 | AM37: -341 | AN37: -746 | AO37: 1106 | AP37: -1582 | AQ37: -1248 | AR37: -1495 | AS37: 1612 | AT37: -1752 | AU37: -1909 | AV37: -422 | AW37: 388 | AX37: 972 | AY37: 543 | AZ37: 85 | BA37: 222 | BB37: 1424 | BC37: 143 | BD37: -1180 | BE37: -9937 | BF37: -12283 | BG37: 0 | BH37: 0 | BJ37: -868 | BK37: 3294 | BL37: -937 | BM37: -2457 | BN37: -3020 | BO37: 3841 | BP37: 1227 | BQ37: -1499 | BR37: -3219 | BS37: -2471 | BT37: 1988 | BU37: 609 | BV37: -22220
A38: PECLD / perdas líquidas | B38: Provisão p/créd.liq.duvidosa / perdas líquidas | C38: 0 | D38: 0 | E38: 0 | F38: 0 | G38: 0 | H38: 0 | I38: 0 | J38: 0 | K38: 0 | L38: 0 | M38: 0 | N38: 0 | O38: 0 | P38: 0 | Q38: 0 | R38: 0 | S38: 0 | T38: 0 | U38: 0 | V38: 0 | W38: 0 | X38: 0 | Y38: 0 | Z38: 0 | AA38: 0 | AB38: 0 | AC38: 0 | AD38: 0 | AE38: 0 | AF38: 0 | AG38: 0 | AH38: 0 | AI38: 0 | AJ38: 0 | AK38: 0 | AL38: 0 | AM38: 0 | AN38: 0 | AO38: 0 | AP38: 0 | AQ38: 0 | AR38: 0 | AS38: 0 | AT38: 0 | AU38: 121 | AV38: -121 | AW38: 0 | AX38: 0 | AY38: 0 | AZ38: 0 | BA38: 0 | BB38: 0 | BC38: 0 | BD38: 0 | BE38: 0 | BF38: 0 | BG38: 0 | BH38: 0 | BJ38: 0 | BK38: 0 | BL38: 0 | BM38: 0 | BN38: 0 | BO38: 0 | BP38: 0 | BQ38: 0 | BR38: 0 | BS38: 0 | BT38: 0 | BU38: 0 | BV38: 0
A39: Provisões cíveis, fiscais e trabalhistas | B39: Provisões para contingências | C39: -2409 | D39: 687 | E39: -292 | F39: -327 | G39: -2838 | H39: 0 | I39: -242 | J39: -299 | K39: -57 | L39: -270 | M39: 3455 | N39: -257 | O39: -63 | P39: 159 | Q39: -96 | R39: -872 | S39: 0 | T39: 0 | U39: 0 | V39: -210 | W39: -1084 | X39: 160 | Y39: 0 | Z39: -625 | AA39: -224 | AB39: -944 | AC39: -974 | AD39: 6429 | AE39: -1120 | AF39: -494 | AG39: 16 | AH39: -992 | AI39: 1830 | AJ39: 373 | AK39: -4910 | AL39: 4498 | AM39: -341 | AN39: -746 | AO39: 1106 | AP39: -1582 | AQ39: -1248 | AR39: -1495 | AS39: 1612 | AT39: -1752 | AU39: -2030 | AV39: -301 | AW39: 388 | AX39: 972 | AY39: 543 | AZ39: 0 | BA39: 222 | BB39: 1424 | BC39: 143 | BD39: -1180 | BE39: -9937 | BF39: -12283 | BG39: 0 | BH39: 0 | BJ39: -868 | BK39: 3294 | BL39: -968 | BM39: -1134 | BN39: -1793 | BO39: 3841 | BP39: 1227 | BQ39: -1499 | BR39: -3219 | BS39: -2471 | BT39: 1903 | BU39: 609 | BV39: -22220
B40: Outros | C40: =C41+C42 -> -15625 | D40: -3547 | E40: =E41+E42 -> -3359 | F40: =F41+F42 -> 2622 | G40: -10619 | H40: -526 | I40: -2735 | J40: -3176 | K40: -2367 | L40: -3378 | M40: -3829 | N40: =N41+N42 -> -2022 | O40: -2250 | P40: -2366 | Q40: -1197 | R40: -3820 | S40: 11918 | T40: -1891 | U40: -27837 | V40: -5800 | W40: -1498 | X40: -2041 | Y40: -5393 | Z40: -3183 | AA40: -3627 | AB40: -2668 | AC40: -9318 | AD40: -6938 | AE40: -4021 | AF40: -2662 | AG40: -3006 | AH40: 0 | AI40: -13267 | AJ40: -5251 | AK40: -10725 | AL40: -8710 | AM40: -5071 | AN40: -7134 | AO40: -7380 | AP40: -9108 | AQ40: -5071 | AR40: -5112 | AS40: 25540 | AT40: -11943 | AU40: -3753 | AV40: -6078 | AW40: -4246 | AX40: -5392 | AY40: -4531 | AZ40: 3643 | BA40: -9700 | BB40: -12819 | BC40: 186 | BD40: -2501 | BE40: -5086 | BF40: -2707 | BG40: -3492 | BH40: -3520 | BJ40: -11656 | BK40: -10467 | BL40: 5010 | BM40: -37176 | BN40: -14871 | BO40: -22939 | BP40: -21524 | BQ40: -31640 | BR40: -26671 | BS40: 3766 | BT40: -10526 | BU40: -24834 | BV40: -14805
A41: Arrendamentos e aluguéis | B41: Aluguéis e arrendamentos | C41: 2 | D41: 82 | E41: 284 | F41: 322 | G41: -914 | H41: 1251 | I41: -179 | J41: -680 | K41: -302 | L41: -569 | M41: -372 | N41: 16 | O41: 106 | P41: -250 | Q41: -79 | R41: -432 | S41: -106 | T41: -19 | U41: -1156 | V41: -3705 | W41: 1919 | X41: -1192 | Y41: -1330 | Z41: -1097 | AA41: -1211 | AB41: -1286 | AC41: -1518 | AD41: -1262 | AE41: 1510 | AF41: -953 | AG41: 562 | AH41: -2908 | AI41: -2863 | AJ41: -2888 | AK41: -1534 | AL41: -1470 | AM41: -1467 | AN41: -1650 | AO41: -2142 | AP41: -2189 | AQ41: -3046 | AR41: -1102 | AS41: -1072 | AT41: -1057 | AU41: -828 | AV41: -716 | AW41: -682 | AX41: -664 | AY41: -307 | AZ41: -956 | BA41: -767 | BB41: -727 | BC41: -749 | BD41: -738 | BE41: -899 | BF41: -660 | BG41: -609 | BH41: -611 | BJ41: -1730 | BK41: -500 | BL41: -636 | BM41: -4134 | BN41: -4924 | BO41: -2223 | BP41: -8097 | BQ41: -6121 | BR41: -8479 | BS41: -3673 | BT41: -2609 | BU41: -2981 | BV41: -2779
B42: Outras | C42: -15627 | D42: -3629 | E42: -3643 | F42: 2300 | G42: -9705 | H42: -1777 | I42: -2556 | J42: -2496 | K42: -2065 | L42: -2809 | M42: -3457 | N42: -2038 | O42: -2356 | P42: -2116 | Q42: -1118 | R42: -3388 | S42: 12024 | T42: -1872 | U42: -26681 | V42: -2095 | W42: -3417 | X42: -849 | Y42: -4063 | Z42: -2086 | AA42: -2416 | AB42: -1382 | AC42: -7800 | AD42: -5676 | AE42: -5531 | AF42: -1709 | AG42: -3568 | AH42: 0 | AI42: -10404 | AJ42: -2363 | AK42: -9191 | AL42: -7240 | AM42: -3604 | AN42: -5484 | AO42: -5238 | AP42: -6896 | AQ42: -2025 | AR42: -4020 | AS42: 26624 | AT42: -10898 | AU42: -2925 | AV42: -5362 | AW42: -3564 | AX42: -4728 | AY42: -4224 | AZ42: 4599 | BA42: -8933 | BB42: -12092 | BC42: 935 | BD42: -1763 | BE42: -4187 | BF42: -2047 | BG42: -2883 | BH42: -2909 | BJ42: -9926 | BK42: -9967 | BL42: 5646 | BM42: -33042 | BN42: -9947 | BO42: -20716 | BP42: -16335 | BQ42: -25519 | BR42: -18179 | BS42: 7439 | BT42: -7917 | BU42: -21853 | BV42: -12026
B43: Ganhos e perdas na desativação e alienação de bens | C43: -1734 | D43: 0 | E43: -3065 | F43: -26350 | G43: 0 | H43: 0 | I43: -4022 | J43: -7286 | K43: 4465 | L43: 0 | M43: -5918 | N43: 214 | O43: 0 | P43: 0 | Q43: -2147 | R43: -270 | S43: 0 | T43: 0 | U43: 0 | V43: 0 | W43: 0 | X43: 0 | Y43: 9 | Z43: 0 | AA43: 0 | AB43: 0 | AC43: -50 | AD43: 0 | AE43: -12 | AF43: 12 | AG43: -151 | AH43: 0 | AI43: 0 | AJ43: 0 | AK43: -236 | AL43: 47 | AM43: 34 | AN43: 15 | AO43: 1345 | AP43: -23 | AR43: 10 | AS43: -12 | AT43: 12 | BJ43: -6843 | BK43: -5704 | BL43: -2417 | BM43: 0 | BN43: 9 | BO43: -50 | BP43: -151 | BQ43: -140 | BR43: 1332 | BS43: 0 | BT43: 0 | BU43: 0 | BV43: 0
B44: Valor justo do ativo financeiro indenizável | C44: 0 | D44: 0 | E44: 0 | F44: 0 | G44: 0 | H44: 0 | I44: 0 | J44: 0 | K44: 0 | L44: 0 | M44: 0 | N44: 0 | BJ44: 0 | BK44: 0 | BL44: 0 | BM44: 0 | BN44: 0 | BO44: 0 | BP44: 0 | BQ44: 0 | BR44: 0 | BS44: 0 | BT44: 0 | BU44: 0 | BV44: 0
B45: Custo com construção da infraestrutura | C45: 0 | D45: 0 | E45: 0 | F45: 0 | G45: 0 | H45: 0 | I45: 0 | J45: 0 | K45: 0 | L45: 0 | M45: 0 | N45: 0 | O45: 0 | P45: 0 | BJ45: 0 | BK45: 0 | BL45: 0 | BM45: 0 | BN45: 0 | BO45: 0 | BP45: 0 | BQ45: 0 | BR45: 0 | BS45: 0 | BT45: 0 | BU45: 0 | BV45: 0
B46: Ganho na alienação de investimento | C46: 0 | D46: 0 | E46: 326252 | F46: 0 | G46: -410 | H46: 410 | I46: 320556 | J46: 0 | K46: 0 | L46: 0 | M46: 0 | N46: 0 | O46: 0 | P46: 0 | Q46: 0 | R46: 0 | S46: 0 | T46: 0 | U46: 340587 | V46: 34068 | W46: 0 | X46: 0 | Y46: 0 | Z46: 0 | AA46: 0 | AB46: 0 | AC46: 0 | AD46: 0 | AE46: 0 | AF46: 278139 | AG46: 68946 | AH46: 0 | AI46: 884697 | AJ46: 0 | AK46: 422 | AL46: -17 | AM46: 408011 | AN46: 0 | AO46: 0 | AP46: 0 | AQ46: 0 | AR46: 0 | AS46: 0 | AT46: 0 | AU46: 0 | AV46: 0 | AW46: 0 | AX46: 0 | AY46: 0 | AZ46: 0 | BA46: 0 | BB46: 0 | BC46: 0 | BD46: 0 | BE46: 0 | BF46: 0 | BG46: 0 | BH46: 0 | BJ46: 320556 | BK46: 0 | BL46: 0 | BM46: 374655 | BN46: 0 | BO46: 278139 | BP46: 953643 | BQ46: 408416 | BR46: 0 | BS46: 0 | BT46: 0 | BU46: 0 | BV46: 0
B47: EBITDA | C47: =C53-C49 -> -53677 | D47: =D53-D49 -> -26938 | E47: 270165 | F47: -43051 | G47: -39614 | H47: -20475 | I47: 276866 | J47: =J7+J10+J32-J49 -> -34769 | K47: -22259 | L47: -23810 | M47: -28751 | N47: -15407 | O47: -17337 | P47: -19262 | Q47: -29256 | R47: -19534 | S47: -1453 | T47: -14295 | U47: 307809 | V47: 5646 | W47: -31251 | X47: -15076 | Y47: -32656 | Z47: -25981 | AA47: -25675 | AB47: -23753 | AC47: -33578 | AD47: -19778 | AE47: -24886 | AF47: 255448 | AG47: 42764 | AH47: -26014 | AI47: 850847 | AJ47: -26860 | AK47: -59632 | AL47: -23687 | AM47: 385219 | AN47: -25473 | AO47: -22933 | AP47: -29046 | AQ47: -27498 | AR47: -23520 | AS47: 15510 | AT47: -33377 | AU47: -24533 | AV47: -22273 | AW47: -16169 | AX47: -15974 | AY47: -13536 | AZ47: -9530 | BA47: -23928 | BB47: -24696 | BC47: -11002 | BD47: -14032 | BE47: -30202 | BF47: -25688 | BG47: -14430 | BH47: -17272 | BJ47: 196028 | BK47: -80757 | BL47: -64538 | BM47: 267128 | BN47: -108065 | BO47: 177206 | BP47: 840737 | BQ47: 276427 | BR47: -102997 | BS47: -64673 | BT47: -55209 | BU47: -73658 | BV47: -87592
B48: Margem EBITDA | C48: n.d | D48: n.d | E48: n.d | F48: n.d | G48: n.d | H48: n.d | I48: n.d | J48: n.d | K48: n.d | L48: n.d | M48: n.d | N48: n.d | O48: n.d | P48: n.d | Q48: n.d | R48: n.d | S48: n.d. | T48: n.d. | U48: n.d. | V48: n.d. | W48: n.d. | X48: n.d. | Y48: n.d. | Z48: n.d. | AA48: n.d. | AB48: n.d. | AC48: n.d. | AD48: n.d. | AE48: n.d. | AF48: n.d. | AG48: n.d. | AH48: n.d. | AI48: n.d. | AJ48: n.d. | AK48: n.d. | AL48: n.d. | AM48: n.d. | AN48: n.d. | AO48: n.d. | AP48: n.d. | AQ48: n.d. | AR48: n.d. | AS48: n.d. | AT48: n.d. | AU48: n.d. | AV48: n.d. | AW48: n.d. | AX48: n.d. | AY48: n.d. | AZ48: n.d. | BA48: n.d. | BB48: n.d. | BC48: n.d. | BD48: n.d. | BE48: n.d. | BF48: n.d. | BG48: n.d. | BH48: n.d. | BJ48: 0 | BK48: 0 | BL48: 0 | BM48: 0 | BN48: 0 | BO48: 0 | BP48: 0 | BQ48: 0 | BR48: 0 | BS48: 0 | BT48: 0 | BU48: 0 | BV48: 0
B49: Depreciação e amortização | C49: =SUM(C50:C52) -> -581671 | D49: =SUM(D50:D52) -> -4271 | E49: =SUM(E50:E52) -> -4357 | F49: =SUM(F50:F52) -> -4401 | G49: =SUM(G50:G52) -> -4548 | H49: =SUM(H50:H52) -> -4229 | I49: -4275 | J49: -3904 | K49: -5251 | L49: -4136 | M49: -3870 | N49: -4489 | O49: -4159 | P49: -4426 | Q49: -3640 | R49: -4705 | S49: -4567 | T49: -4450 | U49: -3469 | V49: -3494 | W49: -3542 | X49: -19764 | Y49: -3818 | Z49: -3132 | AA49: -2722 | AB49: -2618 | AC49: -2440 | AD49: -2520 | AE49: -2168 | AF49: -2173 | AG49: -2334 | AH49: -2099 | AI49: -2255 | AJ49: -2272 | AK49: -2277 | AL49: -1736 | AM49: -1736 | AN49: -1711 | AO49: -1661 | AP49: -1760 | AQ49: -1572 | AR49: -1570 | AS49: -1556 | AT49: -1547 | AU49: -1554 | AV49: -1552 | AW49: -1549 | AX49: -1532 | AY49: -4556 | AZ49: -4555 | BA49: -3380 | BB49: -4869 | BC49: -4875 | BD49: -4869 | BE49: -4548 | BF49: -4592 | BG49: -5355 | BH49: -5425 | BJ49: -17566 | BK49: -16944 | BL49: -17362 | BM49: -30269 | BN49: -12290 | BO49: -9301 | BP49: -8960 | BQ49: -7460 | BR49: -6563 | BS49: -6209 | BT49: -12192 | BU49: -17993 | BV49: -19920
A50: Depreciação - Imobilizado em serviço | B50: Depreciação | C50: -578160 | D50: -972 | E50: -974 | F50: -1009 | G50: -1011 | H50: -1003 | I50: -1202 | J50: -414 | K50: -897 | L50: -669 | M50: -665 | N50: -1953 | O50: -1002 | P50: -1041 | Q50: -1111 | R50: -1218 | S50: -1066 | T50: -1050 | U50: -926 | V50: -918 | W50: -923 | X50: -924 | Y50: -1022 | Z50: -996 | AA50: -830 | AB50: -792 | AC50: -784 | AD50: -958 | AE50: -727 | AF50: -731 | AG50: -714 | AH50: 2156 | AI50: -3573 | AJ50: -712 | AK50: -717 | AL50: -363 | AM50: -18 | AN50: -177 | AO50: -130 | AP50: -160 | AQ50: -84 | AR50: -82 | AS50: -5801 | AT50: -86 | AU50: -89 | AV50: -88 | AW50: -102 | AX50: -86 | AY50: -80 | AZ50: -80 | BA50: -79 | BB50: 9495 | BC50: -4875 | BD50: -4869 | BE50: 0 | BF50: 0 | BG50: 0 | BH50: 0 | BJ50: -3182 | BK50: -4661 | BL50: -4445 | BM50: -3691 | BN50: -3640 | BO50: -3200 | BP50: -2843 | BQ50: -1275 | BR50: -456 | BS50: -6064 | BT50: -348 | BU50: -328 | BV50: 0
A51: Depreciação - Ativos de direito de uso | B51: Depreciação - Ativos de direito de uso | C51: -622 | D51: -654 | E51: -666 | F51: -661 | G51: -630 | H51: -623 | I51: -234 | J51: -405 | K51: -730 | L51: -487 | M51: -364 | N51: -408 | O51: -431 | P51: -678 | Q51: 222 | R51: -741 | S51: -759 | T51: -678 | U51: 0 | V51: - | W51: - | X51: - | Y51: 0 | Z51: - | AA51: - | AB51: - | AC51: - | AD51: - | AE51: - | AF51: - | AG51: - | AH51: - | AI51: - | AJ51: - | AK51: - | AL51: - | AM51: - | AN51: - | AO51: - | AP51: - | AQ51: - | AR51: - | AS51: - | AT51: - | AU51: - | AV51: - | AW51: - | AX51: - | AY51: - | AZ51: - | BA51: - | BB51: - | BC51: - | BD51: - | BE51: - | BF51: - | BG51: - | BH51: - | BJ51: -1856 | BK51: -1881 | BL51: -1956 | BM51: 0 | BN51: 0 | BO51: 0 | BP51: 0 | BQ51: 0 | BR51: 0 | BS51: 0 | BT51: 0 | BU51: 0 | BV51: 0
A52: Amortização | B52: Amortização | C52: -2889 | D52: -2645 | E52: -2717 | F52: -2731 | G52: -2907 | H52: -2603 | I52: -2839 | J52: -3085 | K52: -3624 | L52: -2980 | M52: -2841 | N52: -2128 | O52: -2726 | P52: -2707 | Q52: -2751 | R52: -2746 | S52: -2742 | T52: -2722 | U52: -2543 | V52: -2576 | W52: -2619 | X52: -18840 | Y52: -2796 | Z52: -2136 | AA52: -1892 | AB52: -1826 | AC52: -1656 | AD52: -1562 | AE52: -1441 | AF52: -1442 | AG52: -1620 | AH52: -4255 | AI52: 1318 | AJ52: -1560 | AK52: -1560 | AL52: -1373 | AM52: -1718 | AN52: -1534 | AO52: -1531 | AP52: -1600 | AQ52: -1488 | AR52: -1488 | AS52: 4245 | AT52: -1461 | AU52: -1465 | AV52: -1464 | AW52: -1447 | AX52: -1446 | AY52: -4476 | AZ52: -4475 | BA52: -3301 | BB52: -14364 | BC52: 0 | BD52: 0 | BE52: 0 | BF52: 0 | BG52: 0 | BH52: 0 | BJ52: -12528 | BK52: -10402 | BL52: -10961 | BM52: -26578 | BN52: -8650 | BO52: -6101 | BP52: -6117 | BQ52: -6185 | BR52: -6107 | BS52: -145 | BT52: -11844 | BU52: -17665 | BV52: 0
B53: Resultado do serviço (EBIT) | C53: =C7+C10+C32+C46 -> -635348 | D53: =D7+D10+D32+D46 -> -31209 | E53: 265808 | F53: -47452 | G53: -44162 | H53: -24704 | I53: 272591 | J53: =J7+J10+J32 -> -38673 | K53: -27510 | L53: -27946 | M53: -32621 | N53: -19896 | O53: -21496 | P53: -23688 | Q53: -32896 | R53: -24239 | S53: -6020 | T53: -18745 | U53: 304340 | V53: 2152 | W53: -34793 | X53: -34840 | Y53: -36474 | Z53: -29113 | AA53: -28397 | AB53: -26371 | AC53: -36018 | AD53: -22298 | AE53: -27054 | AF53: 253275 | AG53: 40430 | AH53: -28113 | AI53: 848592 | AJ53: -29132 | AK53: -61909 | AL53: -25423 | AM53: 383483 | AN53: -27184 | AO53: -24594 | AP53: -30806 | AQ53: -29070 | AR53: -25090 | AS53: 13954 | AT53: -34924 | AU53: -26087 | AV53: -23825 | AW53: -17718 | AX53: -17506 | AY53: -18092 | AZ53: -14085 | BA53: -27308 | BB53: -29565 | BC53: -15877 | BD53: -18901 | BE53: -34750 | BF53: -30280 | BG53: -19785 | BH53: -22697 | BJ53: 178462 | BK53: -97701 | BL53: -81900 | BM53: 236859 | BN53: -120355 | BO53: 167905 | BP53: 831777 | BQ53: 268967 | BR53: -109560 | BS53: -70882 | BT53: -67401 | BU53: -91651 | BV53: -107512
B54: Resultado das participações societárias | C54: 368507 | D54: 471435 | E54: -683533 | F54: 542415 | G54: 438134 | H54: 545432 | I54: 581638 | J54: 555259 | K54: 372649 | L54: 541552 | M54: 780107 | N54: 343148 | O54: 260653 | P54: 312575 | Q54: 564295 | R54: 378028 | S54: 192792 | T54: 311882 | U54: 234196 | V54: 314306 | W54: 225931 | X54: 252534 | Y54: 257929 | Z54: 171360 | AA54: 175718 | AB54: 160545 | AC54: 46223 | AD54: 223300 | AE54: 131030 | AF54: 143701 | AG54: 406612 | AH54: 132748 | AI54: 47138 | AJ54: 128167 | AK54: 383134 | AL54: 168144 | AM54: -91497 | AN54: 142005 | AO54: 101441 | AP54: 244304 | AQ54: 90361 | AR54: 121368 | AS54: 160576 | AT54: 47465 | AU54: 68278 | AV54: 162005 | AW54: 115845 | AX54: 118160 | AY54: 142548 | AZ54: 193398 | BA54: 245892 | BB54: 97452.38361 | BC54: 154004.7318 | BD54: 175933 | BE54: 244758.224 | BF54: 150950 | BG54: 119725 | BH54: 145043 | BJ54: 2051098 | BK54: 1696483 | BL54: 1446997 | BM54: 1026967 | BN54: 765552 | BO54: 544254 | BP54: 714665 | BQ54: 601786 | BR54: 557474 | BS54: 438324 | BT54: 569951 | BU54: 673282.1154 | BV54: 660476.224
B55: Resultado financeiro líquido | C55: =C56+C57 -> 40181 | D55: 53931 | E55: =E56+E57 -> -6619 | F55: =F56+F57 -> 26579 | G55: -8780 | H55: 15932 | I55: -39366 | J55: -6469 | K55: 304 | L55: -18385 | M55: -48081 | N55: -24037 | O55: -2457 | P55: -18406 | Q55: -29988 | R55: 264 | S55: 1646 | T55: 1955 | U55: -9817 | V55: -10056 | W55: 57660 | X55: -3952 | Y55: -26850 | Z55: -2751 | AA55: -5899 | AB55: 800 | AC55: -3294 | AD55: 16677 | AE55: -20619 | AF55: -34146 | AG55: -61326 | AH55: -49883 | AI55: -32808 | AJ55: -15883 | AK55: -26555 | AL55: -5396 | AM55: -6879 | AN55: -15236 | AO55: -35363 | AP55: -14106 | AQ55: -16685 | AR55: -6003 | AS55: -22598 | AT55: -2151 | AU55: -2295 | AV55: 4308 | AW55: -15937 | AX55: -8316 | AY55: 2193 | AZ55: 8429 | BA55: -15127 | BB55: 5170.911082 | BC55: 3132.994832 | BD55: 6396 | BE55: -13887.38656 | BF55: -4928 | BG55: 70485 | BH55: -3980 | BJ55: -63916 | BK55: -92981 | BL55: -26123 | BM55: 33835 | BN55: -34700 | BO55: -41382 | BP55: -159900 | BQ55: -54066 | BR55: -72157 | BS55: -22736 | BT55: -13631 | BU55: -427.0940862 | BV55: 47689.61344
B56: Receitas financeiras | C56: 46409 | D56: 58641 | E56: 4791 | F56: 23030 | G56: 4763 | H56: 27936 | I56: -21186 | J56: 8943 | K56: 10967 | L56: 7118 | M56: -18486 | N56: 7540 | O56: 6924 | P56: 10513 | Q56: -9205 | R56: 15787 | S56: 20477 | T56: 20012 | U56: 6403 | V56: 18877 | W56: 82733 | X56: 22043 | Y56: -1707 | Z56: 30323 | AA56: 32338 | AB56: 47451 | AC56: 36363 | AD56: 68335 | AE56: 41379 | AF56: 29602 | AG56: 5937 | AH56: 19075 | AI56: 23314 | AJ56: 14352 | AK56: 13944 | AL56: 22867 | AM56: 16501 | AN56: 14822 | AO56: 10192 | AP56: 10657 | AQ56: 10391 | AR56: 6301 | AS56: 6459 | AT56: 6131 | AU56: 6869 | AV56: 7626 | AW56: 4857 | AX56: 6501 | AY56: 8642 | AZ56: 10647 | BA56: 6470 | BB56: 6280.911082 | BC56: 5030.994832 | BD56: 8646 | BE56: 4746.613441 | BJ56: 5842 | BK56: 6491 | BL56: 47071 | BM56: 130056 | BN56: 108405 | BO56: 175679 | BP56: 62678 | BQ56: 68134 | BR56: 37541 | BS56: 27085 | BT56: 30647 | BU56: 26427.90591 | BV56: 4746.613441
B57: Despesas financeiras | C57: -6228 | D57: -4710 | E57: -11410 | F57: 3549 | G57: -13543 | H57: -12004 | I57: -18180 | J57: -15412 | K57: -10663 | L57: -25503 | M57: -29595 | N57: -31577 | O57: -9381 | P57: -28919 | Q57: -20783 | R57: -15523 | S57: -18831 | T57: -18057 | U57: -16220 | V57: -28933 | W57: -25073 | X57: -25995 | Y57: -25143 | Z57: -33074 | AA57: -38237 | AB57: -46651 | AC57: -39657 | AD57: -51658 | AE57: -61998 | AF57: -63748 | AG57: -67263 | AH57: -68958 | AI57: -56122 | AJ57: -30235 | AK57: -40499 | AL57: -28263 | AM57: -23380 | AN57: -30058 | AO57: -45555 | AP57: -24763 | AQ57: -27076 | AR57: -12304 | AS57: -29057 | AT57: -8282 | AU57: -9164 | AV57: -3318 | AW57: -20794 | AX57: -14817 | AY57: -6449 | AZ57: -2218 | BA57: -21597 | BB57: -1110 | BC57: -1898 | BD57: -2250 | BE57: -18634 | BJ57: -69758 | BK57: -99472 | BL57: -73194 | BM57: -96221 | BN57: -143105 | BO57: -217061 | BP57: -222578 | BQ57: -122200 | BR57: -109698 | BS57: -49821 | BT57: -44278 | BU57: -26855 | BV57: -18634
B58: Outros resultados | P58: 0 | S58: 0 | T58: 0 | U58: 0 | V58: 0 | W58: 0 | X58: 0 | Y58: 0 | Z58: 0 | AA58: 0 | AB58: 0 | AC58: 0 | AD58: 0 | AH58: 0 | BC58: 0 | BD58: 0 | BE58: 5965 | BF58: -400 | BG58: 45876 | BH58: -1188 | BJ58: 0 | BK58: 0 | BL58: 0 | BM58: 0 | BN58: 0 | BO58: 0 | BP58: 0 | BQ58: 0 | BR58: 0 | BS58: 0 | BT58: 0 | BU58: 0 | BV58: 50253
B59: LAIR | C59: =C53+C54+C55 -> -226660 | D59: 494157 | E59: =E53+E54+E55 -> -424344 | F59: =F53+F54+F55 -> 521542 | G59: 385192 | H59: 536660 | I59: 814863 | J59: 510117 | K59: 345443 | L59: 495221 | M59: 699405 | N59: 299215 | O59: 236700 | P59: 270481 | Q59: 501411 | R59: 354053 | S59: 188418 | T59: 295092 | U59: 528719 | V59: 306402 | W59: 248798 | X59: 213742 | Y59: 194605 | Z59: 139496 | AA59: 141422 | AB59: 134974 | AC59: 443 | AD59: 217679 | AE59: 83357 | AF59: 362830 | AG59: 385716 | AH59: 54752 | AI59: 862922 | AJ59: 83152 | AK59: 294670 | AL59: 137325 | AM59: 285107 | AN59: 99585 | AO59: 41484 | AP59: 199392 | AQ59: 44606 | AR59: 90275 | AS59: 151932 | AT59: 10390 | AU59: 39896 | AV59: 142488 | AW59: 82190 | AX59: 92338 | AY59: 126649 | AZ59: 187742 | BA59: 203457 | BB59: 73058.29469 | BC59: 141260.7266 | BD59: 163428 | BE59: 202085.8374 | BF59: 115342 | BG59: 216301 | BH59: 117178 | BJ59: 2165644 | BK59: 1505801 | BL59: 1338974 | BM59: 1297661 | BN59: 610497 | BO59: 664309 | BP59: 1386542 | BQ59: 816687 | BR59: 375757 | BS59: 344706 | BT59: 488919 | BU59: 581204.0213 | BV59: 650906.8374
B60: IR e Contribuição social | C60: =C61+C62 -> 3906 | D60: -7331 | E60: 27437 | F60: -7107 | G60: -4081 | H60: -13862 | I60: -5815 | J60: =J61+J62 -> 401 | K60: -953 | L60: 561 | M60: 567 | N60: 557 | O60: 538 | P60: 554 | Q60: -2118 | R60: -85 | S60: 542 | T60: 543 | U60: -4620 | V60: 540 | W60: -21122 | X60: 374 | Y60: 421 | Z60: 576 | AA60: 576 | AB60: -215 | AC60: 35454 | AD60: -13119 | AE60: 14489 | AF60: -60769 | AG60: -2661 | AH60: 571 | AI60: -118963 | AJ60: 447 | AK60: 22617 | AL60: 5683 | AM60: -101485 | AN60: 0 | AO60: 11 | AP60: 0 | AQ60: 0 | AR60: 0 | AS60: -1243 | AT60: 0 | AU60: 0 | AV60: 0 | AW60: -355 | AX60: 1 | AY60: 2149 | AZ60: 0 | BA60: -2778 | BB60: -98 | BC60: 0 | BD60: 9545 | BE60: -2881 | BF60: 4368 | BG60: -4368 | BH60: 0 | BJ60: -5806 | BK60: 2216 | BL60: -1118 | BM60: -24828 | BN60: 1358 | BO60: -23945 | BP60: -120606 | BQ60: -73185 | BR60: 11 | BS60: -1243 | BT60: 1795 | BU60: 6669 | BV60: -2881
B61: Imposto de renda e contribuição social correntes | C61: 3436 | D61: -9102 | E61: 26952 | F61: -9137 | G61: -3993 | H61: -13822 | I61: -5979 | J61: 0 | K61: 0 | L61: 0 | M61: 0 | N61: 0 | O61: -24 | P61: 0 | Q61: -2118 | R61: -85 | S61: 0 | T61: 0 | U61: 0 | V61: 0 | W61: 0 | X61: 0 | Y61: -19 | Z61: 0 | AA61: 0 | AB61: -791 | AC61: 34878 | AD61: -12545 | AE61: 13917 | AF61: -61340 | AG61: -3233 | AH61: 0 | AI61: -10 | AJ61: 447 | AK61: 22007 | AL61: 3808 | AM61: -31763 | AN61: 0 | AO61: -1995 | AP61: 0 | AQ61: 0 | AR61: 0 | AS61: -1243 | AT61: 0 | AU61: 0 | AV61: 0 | AW61: -354 | AX61: 0 | AY61: 0 | BA61: -2778 | BB61: -98 | BC61: 0 | BD61: -239 | BE61: -2881 | BF61: 4368 | BG61: -4368 | BH61: 0 | BJ61: -5979 | BK61: -24 | BL61: -2203 | BM61: 0 | BN61: -810 | BO61: -25090 | BP61: -2796 | BQ61: -5948 | BR61: -1995 | BS61: -1243 | BT61: -354 | BU61: -3115 | BV61: -2881
B62: Imposto de renda e contribuição social diferidos | C62: 470 | D62: 1771 | E62: 485 | F62: 2030 | G62: -88 | H62: -40 | I62: 164 | J62: 401 | K62: -953 | L62: 561 | M62: 567 | N62: 557 | O62: 562 | P62: 554 | BJ62: 173 | BK62: 2240 | BL62: 0 | BM62: 0 | BN62: 0 | BO62: 0 | BP62: 0 | BQ62: 0 | BR62: 0 | BS62: 0 | BT62: 0 | BU62: 0 | BV62: 0
B63: Lucro líquido antes de minoritários | C63: =C59+C60 -> -222754 | D63: 486826 | E63: =E59+E60 -> -396907 | F63: =F59+F60 -> 514435 | G63: 381111 | H63: 522798 | I63: 809048 | J63: 510518 | K63: 344490 | L63: 495782 | M63: 699972 | N63: 299772 | O63: 237238 | P63: 271035 | Q63: 499293 | R63: 353968 | S63: 188960 | T63: 295635 | U63: 524099 | V63: 306942 | W63: 227676 | X63: 214116 | Y63: 195026 | Z63: 140072 | AA63: 141998 | AB63: 134759 | AC63: 35897 | AD63: 230798 | AE63: 97846 | AF63: 302061 | AG63: 383055 | AH63: 55323 | AI63: 743959 | AJ63: 83599 | AK63: 317287 | AL63: 143008 | AM63: 183622 | AN63: 99585 | AO63: 41495 | AP63: 199392 | AQ63: 44606 | AR63: 90275 | AS63: 150689 | AT63: 10390 | AU63: 39896 | AV63: 142488 | AW63: 81835 | AX63: 92339 | AY63: 128798 | AZ63: 187742 | BA63: 200679 | BB63: 72960.29469 | BC63: 141260.7266 | BD63: 172973 | BE63: 199204.8374 | BF63: 119710 | BG63: 211933 | BH63: 117178 | BJ63: 2159838 | BK63: 1508017 | BL63: 1337856 | BM63: 1272833 | BN63: 611855 | BO63: 666602 | BP63: 1265936 | BQ63: 743502 | BR63: 375768 | BS63: 343463 | BT63: 490714 | BU63: 587873.0213 | BV63: 648025.8374
B64: Reversão dos juros sobre capital próprio | C64: 0 | D64: 0 | E64: 0 | F64: 0 | G64: 0 | H64: 0 | I64: 0 | J64: 0 | K64: 0 | L64: 0 | M64: 0 | N64: 0 | O64: 0 | P64: 0 | Q64: - | R64: - | S64: 0 | T64: 0 | U64: 0 | V64: 0 | W64: 0 | X64: 0 | Y64: 0 | Z64: 0 | AA64: 0 | AB64: 0 | AC64: 0 | AD64: 0 | AE64: 0 | AF64: 0 | AG64: 0 | AH64: 0 | AI64: 0 | AJ64: 0 | AK64: 0 | AL64: 0 | AM64: 0 | AN64: 0 | AO64: 0 | AP64: 0 | AQ64: 0 | AR64: 0 | AS64: 0 | AT64: 0 | AU64: 0 | AV64: 0 | AW64: 0 | BB64: 0 | BC64: 0 | BD64: 0 | BE64: 0 | BF64: 0 | BH64: 0 | BJ64: 0 | BK64: 0 | BL64: 0 | BM64: 0 | BN64: 0 | BO64: 0 | BP64: 0 | BQ64: 0 | BR64: 0 | BS64: 0 | BT64: 0 | BU64: 0 | BV64: 0
A65: Atribuível aos acionistas não controladores | B65: Participações dos acionistas não controladores | C65: 0 | D65: 0 | E65: 0 | F65: 0 | G65: 0 | H65: 0 | I65: 0 | J65: 0 | K65: 0 | L65: 0 | M65: 0 | N65: 0 | O65: 0 | P65: 0 | Q65: - | R65: - | S65: 0 | T65: 0 | U65: 0 | V65: 0 | W65: 0 | X65: 0 | Y65: 0 | Z65: 0 | AA65: 0 | AB65: 0 | AC65: 0 | AD65: 0 | AE65: 0 | AF65: 0 | AG65: 0 | AH65: 0 | AI65: 0 | AJ65: 0 | AK65: 0 | AL65: 0 | AM65: 0 | AN65: 0 | AO65: 0 | AP65: 0 | AQ65: 0 | AR65: 0 | AS65: 0 | AT65: 0 | AU65: 0 | AV65: 0 | AW65: 0 | BA65: 0 | BB65: 0 | BC65: 0 | BD65: 0 | BE65: 0 | BF65: 0 | BG65: 0 | BH65: 0 | BJ65: 0 | BK65: 0 | BL65: 0 | BM65: 0 | BN65: 0 | BO65: 0 | BP65: 0 | BQ65: 0 | BR65: 0 | BS65: 0 | BT65: 0 | BU65: 0 | BV65: 0
B66: Partes Beneficiárias | C66: 0 | D66: 0 | E66: 0 | F66: 0 | G66: 0 | H66: 0 | I66: 0 | J66: 0 | K66: 0 | L66: 0 | M66: 0 | N66: 0 | O66: 0 | P66: 0 | Q66: - | R66: - | S66: 0 | T66: 0 | U66: 0 | V66: 0 | W66: 0 | X66: 0 | Y66: 0 | Z66: 0 | AA66: 0 | AB66: 0 | AC66: 0 | AD66: 0 | AE66: 0 | AF66: 0 | AG66: 0 | AH66: 0 | AI66: 0 | AJ66: 0 | AK66: 0 | AL66: 0 | AM66: 0 | AN66: 0 | AO66: 0 | AP66: 0 | AQ66: 0 | AS66: 0 | AT66: 0 | AU66: 0 | AV66: 0 | AW66: 0 | BA66: 0 | BB66: 0 | BC66: 0 | BD66: 0 | BE66: 0 | BF66: 0 | BG66: 0 | BH66: 0 | BJ66: 0 | BK66: 0 | BL66: 0 | BM66: 0 | BN66: 0 | BO66: 0 | BP66: 0 | BQ66: 0 | BR66: 0 | BS66: 0 | BT66: 0 | BU66: 0 | BV66: 0
B67: Lucro líquido | C67: =C63 -> -222754 | D67: 486826 | E67: =E63 -> -396907 | F67: =F63 -> 514435 | G67: 381111 | H67: 522798 | I67: 809048 | J67: 510518 | K67: 344490 | L67: 495782 | M67: 699972 | N67: 299772 | O67: 237238 | P67: 271035 | Q67: 499293 | R67: 353968 | S67: 188960 | T67: 295635 | U67: 524099 | V67: 306942 | W67: 227676 | X67: 214116 | Y67: 195026 | Z67: 140072 | AA67: 141998 | AB67: 134759 | AC67: 35897 | AD67: 230798 | AE67: 97846 | AF67: 302061 | AG67: 383055 | AH67: 55323 | AI67: 743959 | AJ67: 83599 | AK67: 317287 | AL67: 143008 | AM67: 183622 | AN67: 99585 | AO67: 41495 | AP67: 199392 | AQ67: 44606 | AR67: 90275 | AS67: 150689 | AT67: 10390 | AU67: 39896 | AV67: 142488 | AW67: 81835 | AX67: 92339 | AY67: 128798 | AZ67: 187742 | BA67: 200679 | BB67: 72960.29469 | BC67: 141260.7266 | BD67: 172973 | BE67: 199204.8374 | BF67: 119710 | BG67: 211933 | BH67: 117178 | BJ67: 2159838 | BK67: 1508017 | BL67: 1337856 | BM67: 1272833 | BN67: 611855 | BO67: 666602 | BP67: 1265936 | BQ67: 743502 | BR67: 375768 | BS67: 343463 | BT67: 490714 | BU67: 587873.0213 | BV67: 648025.8374

Sheet Controladora EN
B2: EDP Energias do Brasil - Holding
B4: R$ Thousand | C4: Jun-23 | D4: Mar-23 | E4: Dec-22 | F4: Sep-22 | G4: 2022-06-01 | H4: 2022-03-01 | I4: Dec-21 | J4: Sep-21 | K4: 2021-06-30 | L4: 2021-03-31 | M4: 2020-12-30 | N4: 2020-09-30 | O4: 2020-06-30 | P4: 2020-03-31 | Q4: 2019-12-30 | R4: 2019-09-30 | S4: 2019-06-30 | T4: 2019-03-31 | U4: 2018-12-30 | V4: 2018-09-30 | W4: 2018-06-30 | X4: 2018-03-31 | Y4: 2017-12-31 | Z4: 2017-09-30 | AA4: 2017-06-30 | AB4: 2017-03-31 | AC4: 2016-12-31 | AD4: 2016-09-30 | AE4: 2016-06-30 | AF4: 2016-03-31 | AG4: 2015-12-31 | AH4: 2015-09-30 | AI4: 2015-06-30 | AJ4: 2015-03-31 | AK4: 2014-12-31 | AL4: 2014-09-30 | AM4: 2014-06-30 | AN4: 2014-03-31 | AO4: 2013-12-31 | AP4: 2013-09-30 | AQ4: 2013-06-30 | AR4: 2013-03-31 | AS4: 2012-12-30 | AT4: 2012-09-30 | AU4: 2012-06-30 | AV4: 2012-03-31 | AW4: 2011-12-31 | AX4: 2011-09-30 | AY4: 2011-06-30 | AZ4: 2011-03-31 | BA4: 2010-12-31 | BB4: 2010-09-30 | BC4: 2010-06-30 | BD4: 2010-03-31 | BE4: 2009-12-31 | BF4: 2009-09-30 | BG4: 2009-06-30 | BH4: 2009-03-31
C5: 2Q23 | D5: 1Q23 | E5: 4Q22 | F5: 3Q22 | G5: 2Q22 | H5: 1Q22 | I5: 4Q21 | J5: 3Q21 | K5: 2Q21 | L5: 1Q21 | M5: 4Q20 | N5: 3Q20 | O5: 2Q20 | P5: 1Q20 | Q5: 4Q19 | R5: 3Q19 | S5: 2Q19 | T5: 1Q19 | U5: 4Q18 | V5: 3Q18 | W5: 2Q18 | X5: 1Q18 | Y5: 4Q17 | Z5: 3Q17 | AA5: 2Q17 | AB5: 1Q17 | AC5: 4Q16 | AD5: 3Q16 | AE5: 2Q16 | AF5: 1Q16 | AG5: 4Q15 | AH5: 3Q15 | AI5: 2Q15 | AJ5: 1Q15 | AK5: 4Q14 | AL5: 3Q14 | AM5: 2Q14 | AN5: 1Q14 | AO5: 4Q13 | AP5: 3Q13 | AQ5: 2Q13 | AR5: 1Q13 | AS5: 4Q12 | AT5: 3Q12 | AU5: 2Q12 | AV5: 1Q12 | AW5: 4Q11 | AX5: 3Q11 | AY5: 2Q11 | AZ5: 1Q11 | BA5: 4Q10 | BB5: 3Q10 | BC5: 2Q10 | BD5: 1Q10 | BE5: 4Q09 | BF5: 3Q09 | BG5: 2Q09 | BH5: 1Q09 | BJ5: 2021 | BK5: 2020 | BL5: 2019 | BM5: 2018 | BN5: 2017 | BO5: 2016 | BP5: 2015 | BQ5: 2014 | BR5: 2013 | BS5: 2012 | BT5: 2011 | BU5: 2010 | BV5: 2009
B7: Net operating revenue | C7: =Controladora!C7 -> 1189 | D7: =Controladora!D7 -> 2812 | E7: =Controladora!E7 -> 1296 | F7: =Controladora!F7 -> 742 | G7: =Controladora!G7 -> 799 | H7: =Controladora!H7 -> 1563 | I7: =Controladora!I7 -> 773 | J7: =Controladora!J7 -> 790 | K7: =Controladora!K7 -> 683 | L7: =Controladora!L7 -> 735 | M7: =Controladora!M7 -> 481 | N7: =Controladora!N7 -> 1000 | O7: 640 | P7: 705 | Q7: 807 | R7: 1980 | S7: 1060 | T7: 787 | U7: 1219 | V7: 1183 | W7: 1023 | X7: 1723 | Y7: 578 | Z7: 1442 | AA7: 1817 | AB7: 1840 | AC7: 1237 | AD7: 2841 | AE7: 790 | AF7: 952 | AG7: -231 | AH7: 2871 | AI7: 903 | AJ7: 285 | AK7: 7750 | AL7: -493 | AM7: 345 | AN7: 238 | AO7: 238 | AP7: 177 | AQ7: 238 | AR7: 339 | AS7: 1540 | AT7: 96 | AU7: 141 | AV7: 0 | AW7: 1384 | AX7: 0 | AY7: 0 | AZ7: 0 | BA7: 0 | BB7: 0 | BC7: 0 | BD7: 0 | BE7: 0 | BF7: 0 | BG7: 0 | BH7: 0 | BJ7: 2981 | BK7: =Controladora!BK7 -> 2826 | BL7: 4634 | BM7: 5148 | BN7: 5677 | BO7: 5820 | BP7: 3828 | BQ7: 7840 | BR7: 992 | BS7: 1777 | BT7: 1384 | BU7: 0 | BV7: 0
B8: Infrastructure revenue | C8: =Controladora!C8 -> 0 | D8: =Controladora!D8 -> 0 | E8: =Controladora!E8 -> 0 | F8: =Controladora!F8 -> 0 | G8: =Controladora!G8 -> 0 | H8: =Controladora!H8 -> 0 | I8: =Controladora!I8 -> 0 | J8: =Controladora!J8 -> 0 | K8: =Controladora!K8 -> 0 | L8: =Controladora!L8 -> 0 | M8: =Controladora!M8 -> 0 | N8: =Controladora!N8 -> 0 | R8: 0 | S8: 0 | T8: 0 | U8: 0 | V8: 0 | W8: 0 | X8: 0 | Y8: 0 | Z8: 0 | AA8: 0 | AB8: 0 | AC8: 0 | AD8: 0 | AE8: 0 | AF8: 0 | AG8: 0 | AH8: 0 | AI8: 0 | AJ8: 0 | AK8: 0 | AL8: 0 | AM8: 0 | AN8: 0 | AO8: 0 | AP8: 0 | AQ8: 0 | AR8: 0 | AS8: 0 | AT8: 0 | AU8: 0 | AV8: 0 | AW8: 0 | AX8: 0 | AY8: 0 | AZ8: 0 | BA8: 0 | BB8: 0 | BC8: 0 | BD8: 0 | BE8: 0 | BF8: 0 | BG8: 0 | BH8: 0 | BJ8: 0 | BK8: =Controladora!BK8 -> 0 | BL8: 0 | BM8: 0 | BN8: 0 | BO8: 0 | BP8: 0 | BQ8: 0 | BR8: 0 | BS8: 0 | BT8: 0 | BU8: 0 | BV8: 0
B9: Transmission Construction Margin | C9: =Controladora!C9 -> 0 | D9: =Controladora!D9 -> 0 | E9: =Controladora!E9 -> 0 | F9: =Controladora!F9 -> 0 | G9: =Controladora!G9 -> 0 | H9: =Controladora!H9 -> 0 | I9: =Controladora!I9 -> 0 | J9: =Controladora!J9 -> 0 | K9: =Controladora!K9 -> 0 | L9: =Controladora!L9 -> 0 | M9: =Controladora!M9 -> 0 | N9: =Controladora!N9 -> 0 | R9: 0 | S9: 0 | T9: 0 | U9: 0 | V9: 0 | W9: 0 | X9: 0 | Y9: 0 | Z9: 0 | AA9: 0 | AB9: 0 | AC9: 0 | AD9: 0 | AE9: 0 | AF9: 0 | AG9: 0 | AH9: 0 | AI9: 0 | AJ9: 0 | AK9: 0 | AL9: 0 | AM9: 0 | AN9: 0 | AO9: 0 | AP9: 0 | AQ9: 0 | AR9: 0 | AS9: 0 | AT9: 0 | AU9: 0 | AV9: 0 | AW9: 0 | AX9: 0 | AY9: 0 | AZ9: 0 | BA9: 0 | BB9: 0 | BC9: 0 | BD9: 0 | BE9: 0 | BF9: 0 | BG9: 0 | BH9: 0 | BJ9: 0 | BK9: =Controladora!BK9 -> 0 | BL9: 0 | BM9: 0 | BN9: 0 | BO9: 0 | BP9: 0 | BQ9: 0 | BR9: 0 | BS9: 0 | BT9: 0 | BU9: 0 | BV9: 0
B10: Non-manageable expenditures | C10: =Controladora!C10 -> 0 | D10: =Controladora!D10 -> 0 | E10: =Controladora!E10 -> 0 | F10: =Controladora!F10 -> 0 | G10: =Controladora!G10 -> 0 | H10: =Controladora!H10 -> 0 | I10: =Controladora!I10 -> 0 | J10: =Controladora!J10 -> 0 | K10: =Controladora!K10 -> 0 | L10: =Controladora!L10 -> 0 | M10: =Controladora!M10 -> 0 | N10: =Controladora!N10 -> 0 | O10: 0 | P10: 0 | Q10: 0 | R10: 0 | S10: 0 | T10: 0 | U10: 0 | V10: 0 | W10: 0 | X10: 0 | Y10: 0 | Z10: 0 | AA10: 0 | AB10: 0 | AC10: 0 | AD10: 0 | AE10: 0 | AF10: 0 | AG10: 0 | AH10: 0 | AI10: 0 | AJ10: 0 | AK10: 0 | AL10: 0 | AM10: 0 | AN10: 0 | AO10: 0 | AP10: 0 | AQ10: 0 | AR10: 0 | AS10: 0 | AT10: 0 | AU10: 0 | AV10: 0 | AW10: 0 | AX10: 0 | AY10: 0 | AZ10: 0 | BA10: 0 | BB10: 0 | BC10: 0 | BD10: 0 | BE10: 0 | BF10: 0 | BG10: 0 | BH10: 0 | BJ10: 0 | BK10: =Controladora!BK10 -> 0 | BL10: 0 | BM10: 0 | BN10: 0 | BO10: 0 | BP10: 0 | BQ10: 0 | BR10: 0 | BS10: 0 | BT10: 0 | BU10: 0 | BV10: 0
B11: Energy purchased to resell | C11: =Controladora!C11 -> 0 | D11: =Controladora!D11 -> 0 | E11: =Controladora!E11 -> 0 | F11: =Controladora!F11 -> 0 | G11: =Controladora!G11 -> 0 | H11: =Controladora!H11 -> 0 | I11: =Controladora!I11 -> 0 | J11: =Controladora!J11 -> 0 | K11: =Controladora!K11 -> 0 | L11: =Controladora!L11 -> 0 | M11: =Controladora!M11 -> 0 | N11: =Controladora!N11 -> 0 | O11: 0 | P11: 0 | Q11: - | R11: - | S11: 0 | T11: 0 | U11: 0 | V11: 0 | W11: 0 | X11: 0 | Y11: 0 | Z11: 0 | AA11: 0 | AB11: 0 | AC11: 0 | AD11: 0 | AE11: 0 | AF11: 0 | AG11: 0 | AH11: 0 | AI11: 0 | AJ11: 0 | AK11: 0 | AL11: 0 | AM11: 0 | AN11: 0 | AO11: 0 | AP11: 0 | AQ11: 0 | AR11: 0 | AS11: 0 | AT11: 0 | AU11: 0 | AV11: 0 | AW11: 0 | AX11: 0 | AY11: 0 | AZ11: 0 | BA11: 0 | BB11: 0 | BC11: 0 | BD11: 0 | BE11: 0 | BF11: 0 | BG11: 0 | BH11: 0 | BJ11: 0 | BK11: =Controladora!BK11 -> 0 | BL11: 0 | BM11: 0 | BN11: 0 | BO11: 0 | BP11: 0 | BQ11: 0 | BR11: 0 | BS11: 0 | BT11: 0 | BU11: 0 | BV11: 0
B12: Itaipu - Foreign Exchange | C12: =Controladora!C12 -> 0 | D12: =Controladora!D12 -> 0 | E12: =Controladora!E12 -> 0 | F12: =Controladora!F12 -> 0 | G12: =Controladora!G12 -> 0 | H12: =Controladora!H12 -> 0 | I12: =Controladora!I12 -> 0 | J12: =Controladora!J12 -> 0 | K12: =Controladora!K12 -> 0 | L12: =Controladora!L12 -> 0 | M12: =Controladora!M12 -> 0 | N12: =Controladora!N12 -> 0 | P12: 0 | Q12: 0 | R12: 0 | S12: 0 | T12: 0 | U12: 0 | V12: 0 | W12: 0 | X12: 0 | Y12: 0 | Z12: 0 | AA12: 0 | AB12: 0 | AC12: 0 | AD12: 0 | AE12: 0 | AF12: 0 | AG12: 0 | AH12: 0 | AI12: 0 | AJ12: 0 | AK12: 0 | AL12: 0 | AM12: 0 | AN12: 0 | AO12: 0 | AP12: 0 | AQ12: 0 | AR12: 0 | AS12: 0 | AT12: 0 | AU12: 0 | AV12: 0 | AW12: 0 | AX12: 0 | AY12: 0 | AZ12: 0 | BA12: 0 | BB12: 0 | BC12: 0 | BD12: 0 | BE12: 0 | BF12: 0 | BG12: 0 | BH12: 0 | BJ12: 0 | BK12: =Controladora!BK12 -> 0 | BL12: 0 | BM12: 0 | BN12: 0 | BO12: 0 | BP12: 0 | BQ12: 0 | BR12: 0 | BS12: 0 | BT12: 0 | BU12: 0 | BV12: 0
B13: National Currency | C13: =Controladora!C13 -> 0 | D13: =Controladora!D13 -> 0 | E13: =Controladora!E13 -> 0 | F13: =Controladora!F13 -> 0 | G13: =Controladora!G13 -> 0 | H13: =Controladora!H13 -> 0 | I13: =Controladora!I13 -> 0 | J13: =Controladora!J13 -> 0 | K13: =Controladora!K13 -> 0 | L13: =Controladora!L13 -> 0 | M13: =Controladora!M13 -> 0 | N13: =Controladora!N13 -> 0 | P13: 0 | Q13: 0 | R13: 0 | S13: 0 | T13: 0 | U13: 0 | V13: 0 | W13: 0 | X13: 0 | Y13: 0 | Z13: 0 | AA13: 0 | AB13: 0 | AC13: 0 | AD13: 0 | AE13: 0 | AF13: 0 | AG13: 0 | AH13: 0 | AI13: 0 | AJ13: 0 | AK13: 0 | AL13: 0 | AM13: 0 | AN13: 0 | AO13: 0 | AP13: 0 | AQ13: 0 | AR13: 0 | AS13: 0 | AT13: 0 | AU13: 0 | AV13: 0 | AW13: 0 | AX13: 0 | AY13: 0 | AZ13: 0 | BA13: 0 | BB13: 0 | BC13: 0 | BD13: 0 | BE13: 0 | BF13: 0 | BG13: 0 | BH13: 0 | BJ13: 0 | BK13: =Controladora!BK13 -> 0 | BL13: 0 | BM13: 0 | BN13: 0 | BO13: 0 | BP13: 0 | BQ13: 0 | BR13: 0 | BS13: 0 | BT13: 0 | BU13: 0 | BV13: 0
B14: CDE / CCEE / CONER Reimbursement | C14: =Controladora!C14 -> 0 | D14: =Controladora!D14 -> 0 | E14: =Controladora!E14 -> 0 | F14: =Controladora!F14 -> 0 | G14: =Controladora!G14 -> 0 | H14: =Controladora!H14 -> 0 | I14: =Controladora!I14 -> 0 | J14: =Controladora!J14 -> 0 | K14: =Controladora!K14 -> 0 | L14: =Controladora!L14 -> 0 | M14: =Controladora!M14 -> 0 | N14: =Controladora!N14 -> 0 | R14: 0 | S14: 0 | T14: 0 | U14: 0 | V14: 0 | W14: 0 | X14: 0 | Y14: 0 | Z14: 0 | AA14: 0 | AB14: 0 | AC14: 0 | AD14: 0 | AE14: 0 | AF14: 0 | AG14: 0 | AH14: 0 | AI14: 0 | AJ14: 0 | AK14: 0 | AL14: 0 | AM14: 0 | AN14: 0 | AO14: 0 | AP14: 0 | AQ14: 0 | AR14: 0 | AS14: 0 | AT14: 0 | AU14: 0 | AV14: 0 | AW14: 0 | AX14: 0 | AY14: 0 | AZ14: 0 | BA14: 0 | BB14: 0 | BC14: 0 | BD14: 0 | BE14: 0 | BF14: 0 | BG14: 0 | BH14: 0 | BJ14: 0 | BK14: =Controladora!BK14 -> 0 | BL14: 0 | BM14: 0 | BN14: 0 | BO14: 0 | BP14: 0 | BQ14: 0 | BR14: 0 | BS14: 0 | BT14: 0 | BU14: 0 | BV14: 0
B15: Auction | C15: =Controladora!C15 -> 0 | D15: =Controladora!D15 -> 0 | E15: =Controladora!E15 -> 0 | F15: =Controladora!F15 -> 0 | G15: =Controladora!G15 -> 0 | H15: =Controladora!H15 -> 0 | I15: =Controladora!I15 -> 0 | J15: =Controladora!J15 -> 0 | K15: =Controladora!K15 -> 0 | L15: =Controladora!L15 -> 0 | M15: =Controladora!M15 -> 0 | N15: =Controladora!N15 -> 0 | P15: 0 | Q15: 0 | R15: 0 | S15: 0 | T15: 0 | U15: 0 | V15: 0 | W15: 0 | X15: 0 | Y15: 0 | Z15: 0 | AA15: 0 | AB15: 0 | AC15: 0 | AD15: 0 | AE15: 0 | AF15: 0 | AG15: 0 | AH15: 0 | AI15: 0 | AJ15: 0 | AK15: 0 | AL15: 0 | AM15: 0 | AN15: 0 | AO15: 0 | AP15: 0 | AQ15: 0 | AR15: 0 | AS15: 0 | AT15: 0 | AU15: 0 | AV15: 0 | AW15: 0 | AX15: 0 | AY15: 0 | AZ15: 0 | BA15: 0 | BB15: 0 | BC15: 0 | BD15: 0 | BE15: 0 | BF15: 0 | BG15: 0 | BH15: 0 | BJ15: 0 | BK15: =Controladora!BK15 -> 0 | BL15: 0 | BM15: 0 | BN15: 0 | BO15: 0 | BP15: 0 | BQ15: 0 | BR15: 0 | BS15: 0 | BT15: 0 | BU15: 0 | BV15: 0
B16: PROINFA | C16: =Controladora!C16 -> 0 | D16: =Controladora!D16 -> 0 | E16: =Controladora!E16 -> 0 | F16: =Controladora!F16 -> 0 | G16: =Controladora!G16 -> 0 | H16: =Controladora!H16 -> 0 | I16: =Controladora!I16 -> 0 | J16: =Controladora!J16 -> 0 | K16: =Controladora!K16 -> 0 | L16: =Controladora!L16 -> 0 | M16: =Controladora!M16 -> 0 | N16: =Controladora!N16 -> 0 | P16: 0 | Q16: 0 | R16: 0 | S16: 0 | T16: 0 | U16: 0 | V16: 0 | W16: 0 | X16: 0 | Y16: 0 | Z16: 0 | AA16: 0 | AB16: 0 | AC16: 0 | AD16: 0 | AE16: 0 | AF16: 0 | AG16: 0 | AH16: 0 | AI16: 0 | AJ16: 0 | AK16: 0 | AL16: 0 | AM16: 0 | AN16: 0 | AO16: 0 | AP16: 0 | AQ16: 0 | AR16: 0 | AS16: 0 | AT16: 0 | AU16: 0 | AV16: 0 | AW16: 0 | AX16: 0 | AY16: 0 | AZ16: 0 | BA16: 0 | BB16: 0 | BC16: 0 | BD16: 0 | BE16: 0 | BF16: 0 | BG16: 0 | BH16: 0 | BJ16: 0 | BK16: =Controladora!BK16 -> 0 | BL16: 0 | BM16: 0 | BN16: 0 | BO16: 0 | BP16: 0 | BQ16: 0 | BR16: 0 | BS16: 0 | BT16: 0 | BU16: 0 | BV16: 0
B17: Bilateral contracts | C17: =Controladora!C17 -> 0 | D17: =Controladora!D17 -> 0 | E17: =Controladora!E17 -> 0 | F17: =Controladora!F17 -> 0 | G17: =Controladora!G17 -> 0 | H17: =Controladora!H17 -> 0 | I17: =Controladora!I17 -> 0 | J17: =Controladora!J17 -> 0 | K17: =Controladora!K17 -> 0 | L17: =Controladora!L17 -> 0 | M17: =Controladora!M17 -> 0 | N17: =Controladora!N17 -> 0 | P17: 0 | Q17: 0 | R17: 0 | S17: 0 | T17: 0 | U17: 0 | V17: 0 | W17: 0 | X17: 0 | Y17: 0 | Z17: 0 | AA17: 0 | AB17: 0 | AC17: 0 | AD17: 0 | AE17: 0 | AF17: 0 | AG17: 0 | AH17: 0 | AI17: 0 | AJ17: 0 | AK17: 0 | AL17: 0 | AM17: 0 | AN17: 0 | AO17: 0 | AP17: 0 | AQ17: 0 | AR17: 0 | AS17: 0 | AT17: 0 | AU17: 0 | AV17: 0 | AW17: 0 | AX17: 0 | AY17: 0 | AZ17: 0 | BA17: 0 | BB17: 0 | BC17: 0 | BD17: 0 | BE17: 0 | BF17: 0 | BG17: 0 | BH17: 0 | BJ17: 0 | BK17: =Controladora!BK17 -> 0 | BL17: 0 | BM17: 0 | BN17: 0 | BO17: 0 | BP17: 0 | BQ17: 0 | BR17: 0 | BS17: 0 | BT17: 0 | BU17: 0 | BV17: 0
B18: Short-term energy - CCEE | C18: =Controladora!C18 -> 0 | D18: =Controladora!D18 -> 0 | E18: =Controladora!E18 -> 0 | F18: =Controladora!F18 -> 0 | G18: =Controladora!G18 -> 0 | H18: =Controladora!H18 -> 0 | I18: =Controladora!I18 -> 0 | J18: =Controladora!J18 -> 0 | K18: =Controladora!K18 -> 0 | L18: =Controladora!L18 -> 0 | M18: =Controladora!M18 -> 0 | N18: =Controladora!N18 -> 0 | P18: 0 | Q18: 0 | R18: 0 | S18: 0 | T18: 0 | U18: 0 | V18: 0 | W18: 0 | X18: 0 | Y18: 0 | Z18: 0 | AA18: 0 | AB18: 0 | AC18: 0 | AD18: 0 | AE18: 0 | AF18: 0 | AG18: 0 | AH18: 0 | AI18: 0 | AJ18: 0 | AK18: 0 | AL18: 0 | AM18: 0 | AN18: 0 | AO18: 0 | AP18: 0 | AQ18: 0 | AR18: 0 | AS18: 0 | AT18: 0 | AU18: 0 | AV18: 0 | AW18: 0 | AX18: 0 | AY18: 0 | AZ18: 0 | BA18: 0 | BB18: 0 | BC18: 0 | BD18: 0 | BE18: 0 | BF18: 0 | BG18: 0 | BH18: 0 | BJ18: 0 | BK18: =Controladora!BK18 -> 0 | BL18: 0 | BM18: 0 | BN18: 0 | BO18: 0 | BP18: 0 | BQ18: 0 | BR18: 0 | BS18: 0 | BT18: 0 | BU18: 0 | BV18: 0
B19: Other suppliers | C19: =Controladora!C19 -> 0 | D19: =Controladora!D19 -> 0 | E19: =Controladora!E19 -> 0 | F19: =Controladora!F19 -> 0 | G19: =Controladora!G19 -> 0 | H19: =Controladora!H19 -> 0 | I19: =Controladora!I19 -> 0 | J19: =Controladora!J19 -> 0 | K19: =Controladora!K19 -> 0 | L19: =Controladora!L19 -> 0 | M19: =Controladora!M19 -> 0 | N19: =Controladora!N19 -> 0 | P19: 0 | Q19: 0 | R19: 0 | S19: 0 | T19: 0 | U19: 0 | V19: 0 | W19: 0 | X19: 0 | Y19: 0 | Z19: 0 | AA19: 0 | AB19: 0 | AC19: 0 | AD19: 0 | AE19: 0 | AF19: 0 | AG19: 0 | AH19: 0 | AI19: 0 | AJ19: 0 | AK19: 0 | AL19: 0 | AM19: 0 | AN19: 0 | AO19: 0 | AP19: 0 | AQ19: 0 | AR19: 0 | AS19: 0 | AT19: 0 | AU19: 0 | AV19: 0 | AW19: 0 | AX19: 0 | AY19: 0 | AZ19: 0 | BA19: 0 | BB19: 0 | BC19: 0 | BD19: 0 | BE19: 0 | BF19: 0 | BG19: 0 | BH19: 0 | BJ19: 0 | BK19: =Controladora!BK19 -> 0 | BL19: 0 | BM19: 0 | BN19: 0 | BO19: 0 | BP19: 0 | BQ19: 0 | BR19: 0 | BS19: 0 | BT19: 0 | BU19: 0 | BV19: 0
B20: Net effect of CVA | C20: =Controladora!C20 -> 0 | D20: =Controladora!D20 -> 0 | E20: =Controladora!E20 -> 0 | F20: =Controladora!F20 -> 0 | G20: =Controladora!G20 -> 0 | H20: =Controladora!H20 -> 0 | I20: =Controladora!I20 -> 0 | J20: =Controladora!J20 -> 0 | K20: =Controladora!K20 -> 0 | L20: =Controladora!L20 -> 0 | M20: =Controladora!M20 -> 0 | N20: =Controladora!N20 -> 0 | P20: 0 | Q20: 0 | R20: 0 | S20: 0 | T20: 0 | U20: 0 | V20: 0 | W20: 0 | X20: 0 | Y20: 0 | Z20: 0 | AA20: 0 | AB20: 0 | AC20: 0 | AD20: 0 | AE20: 0 | AF20: 0 | AG20: 0 | AH20: 0 | AI20: 0 | AJ20: 0 | AK20: 0 | AL20: 0 | AM20: 0 | AN20: 0 | AO20: 0 | AP20: 0 | AQ20: 0 | AR20: 0 | AS20: 0 | AT20: 0 | AU20: 0 | AV20: 0 | AW20: 0 | AX20: 0 | AY20: 0 | AZ20: 0 | BA20: 0 | BB20: 0 | BC20: 0 | BD20: 0 | BE20: 0 | BF20: 0 | BG20: 0 | BH20: 0 | BJ20: 0 | BK20: =Controladora!BK20 -> 0 | BL20: 0 | BM20: 0 | BN20: 0 | BO20: 0 | BP20: 0 | BQ20: 0 | BR20: 0 | BS20: 0 | BT20: 0 | BU20: 0 | BV20: 0
B21: Charges for usage of basic network | C21: =Controladora!C21 -> 0 | D21: =Controladora!D21 -> 0 | E21: =Controladora!E21 -> 0 | F21: =Controladora!F21 -> 0 | G21: =Controladora!G21 -> 0 | H21: =Controladora!H21 -> 0 | I21: =Controladora!I21 -> 0 | J21: =Controladora!J21 -> 0 | K21: =Controladora!K21 -> 0 | L21: =Controladora!L21 -> 0 | M21: =Controladora!M21 -> 0 | N21: =Controladora!N21 -> 0 | O21: 0 | P21: 0 | Q21: 0 | R21: 0 | S21: 0 | T21: 0 | U21: 0 | V21: 0 | W21: 0 | X21: 0 | Y21: 0 | Z21: 0 | AA21: 0 | AB21: 0 | AC21: 0 | AD21: 0 | AE21: 0 | AF21: 0 | AG21: 0 | AH21: 0 | AI21: 0 | AJ21: 0 | AK21: 0 | AL21: 0 | AM21: 0 | AN21: 0 | AO21: 0 | AP21: 0 | AQ21: 0 | AR21: 0 | AS21: 0 | AT21: 0 | AU21: 0 | AV21: 0 | AW21: 0 | AX21: 0 | AY21: 0 | AZ21: 0 | BA21: 0 | BB21: 0 | BC21: 0 | BD21: 0 | BE21: 0 | BF21: 0 | BG21: 0 | BH21: 0 | BJ21: 0 | BK21: =Controladora!BK21 -> 0 | BL21: 0 | BM21: 0 | BN21: 0 | BO21: 0 | BP21: 0 | BQ21: 0 | BR21: 0 | BS21: 0 | BT21: 0 | BU21: 0 | BV21: 0
B22: Others | C22: =Controladora!C22 -> 0 | D22: =Controladora!D22 -> 0 | E22: =Controladora!E22 -> 0 | F22: =Controladora!F22 -> 0 | G22: =Controladora!G22 -> 0 | H22: =Controladora!H22 -> 0 | I22: =Controladora!I22 -> 0 | J22: =Controladora!J22 -> 0 | K22: =Controladora!K22 -> 0 | L22: =Controladora!L22 -> 0 | M22: =Controladora!M22 -> 0 | N22: =Controladora!N22 -> 0 | O22: 0 | P22: 0 | Q22: 0 | R22: 0 | S22: 0 | T22: 0 | U22: 0 | V22: 0 | W22: 0 | X22: 0 | Y22: 0 | Z22: 0 | AA22: 0 | AB22: 0 | AC22: 0 | AD22: 0 | AE22: 0 | AF22: 0 | AG22: 0 | AH22: 0 | AI22: 0 | AJ22: 0 | AK22: 0 | AL22: 0 | AM22: 0 | AN22: 0 | AO22: 0 | AP22: 0 | AQ22: 0 | AR22: 0 | AS22: 0 | AT22: 0 | AU22: 0 | AV22: 0 | AW22: 0 | AX22: 0 | AY22: 0 | AZ22: 0 | BA22: 0 | BB22: 0 | BC22: 0 | BD22: 0 | BE22: 0 | BF22: 0 | BG22: 0 | BH22: 0 | BJ22: 0 | BK22: =Controladora!BK22 -> 0 | BL22: 0 | BM22: 0 | BN22: 0 | BO22: 0 | BP22: 0 | BQ22: 0 | BR22: 0 | BS22: 0 | BT22: 0 | BU22: 0 | BV22: 0
B23: Efficiency Energy Program | C23: =Controladora!C23 -> 0 | D23: =Controladora!D23 -> 0 | E23: =Controladora!E23 -> 0 | F23: =Controladora!F23 -> 0 | G23: =Controladora!G23 -> 0 | H23: =Controladora!H23 -> 0 | I23: =Controladora!I23 -> 0 | J23: =Controladora!J23 -> 0 | K23: =Controladora!K23 -> 0 | L23: =Controladora!L23 -> 0 | M23: =Controladora!M23 -> 0 | N23: =Controladora!N23 -> 0 | P23: 0 | Q23: 0 | R23: 0 | S23: 0 | T23: 0 | U23: 0 | V23: 0 | W23: 0 | X23: 0 | Y23: 0 | Z23: 0 | AA23: 0 | AB23: 0 | AC23: 0 | AD23: 0 | AE23: 0 | AF23: 0 | AG23: 0 | AH23: 0 | AI23: 0 | AJ23: 0 | AK23: 0 | AL23: 0 | AM23: 0 | AN23: 0 | AO23: 0 | AP23: 0 | AQ23: 0 | AR23: 0 | AS23: 0 | AT23: 0 | AU23: 0 | AV23: 0 | AW23: 0 | AX23: 0 | AY23: 0 | AZ23: 0 | BA23: 0 | BB23: 0 | BC23: 0 | BD23: 0 | BE23: 0 | BF23: 0 | BG23: 0 | BH23: 0 | BJ23: 0 | BK23: =Controladora!BK23 -> 0 | BL23: 0 | BM23: 0 | BN23: 0 | BO23: 0 | BP23: 0 | BQ23: 0 | BR23: 0 | BS23: 0 | BT23: 0 | BU23: 0 | BV23: 0
B24: PIS/Cofins | C24: =Controladora!C24 -> 0 | D24: =Controladora!D24 -> 0 | E24: =Controladora!E24 -> 0 | F24: =Controladora!F24 -> 0 | G24: =Controladora!G24 -> 0 | H24: =Controladora!H24 -> 0 | I24: =Controladora!I24 -> 0 | J24: =Controladora!J24 -> 0 | K24: =Controladora!K24 -> 0 | L24: =Controladora!L24 -> 0 | M24: =Controladora!M24 -> 0 | N24: =Controladora!N24 -> 0 | P24: 0 | Q24: 0 | R24: 0 | S24: 0 | T24: 0 | U24: 0 | V24: 0 | W24: 0 | X24: 0 | Y24: 0 | Z24: 0 | AA24: 0 | AB24: 0 | AC24: 0 | AD24: 0 | AE24: 0 | AF24: 0 | AG24: 0 | AH24: 0 | AI24: 0 | AJ24: 0 | AK24: 0 | AL24: 0 | AM24: 0 | AN24: 0 | AO24: 0 | AP24: 0 | AQ24: 0 | AR24: 0 | AS24: 0 | AT24: 0 | AU24: 0 | AV24: 0 | AW24: 0 | AX24: 0 | AY24: 0 | AZ24: 0 | BA24: 0 | BB24: 0 | BC24: 0 | BD24: 0 | BE24: 0 | BF24: 0 | BG24: 0 | BH24: 0 | BJ24: 0 | BK24: =Controladora!BK24 -> 0 | BL24: 0 | BM24: 0 | BN24: 0 | BO24: 0 | BP24: 0 | BQ24: 0 | BR24: 0 | BS24: 0 | BT24: 0 | BU24: 0 | BV24: 0
B25: Inspection fee | C25: =Controladora!C25 -> 0 | D25: =Controladora!D25 -> 0 | E25: =Controladora!E25 -> 0 | F25: =Controladora!F25 -> 0 | G25: =Controladora!G25 -> 0 | H25: =Controladora!H25 -> 0 | I25: =Controladora!I25 -> 0 | J25: =Controladora!J25 -> 0 | K25: =Controladora!K25 -> 0 | L25: =Controladora!L25 -> 0 | M25: =Controladora!M25 -> 0 | N25: =Controladora!N25 -> 0 | P25: 0 | Q25: 0 | R25: 0 | S25: 0 | T25: 0 | U25: 0 | V25: 0 | W25: 0 | X25: 0 | Y25: 0 | Z25: 0 | AA25: 0 | AB25: 0 | AC25: 0 | AD25: 0 | AE25: 0 | AF25: 0 | AG25: 0 | AH25: 0 | AI25: 0 | AJ25: 0 | AK25: 0 | AL25: 0 | AM25: 0 | AN25: 0 | AO25: 0 | AP25: 0 | AQ25: 0 | AR25: 0 | AS25: 0 | AT25: 0 | AU25: 0 | AV25: 0 | AW25: 0 | AX25: 0 | AY25: 0 | AZ25: 0 | BA25: 0 | BB25: 0 | BC25: 0 | BD25: 0 | BE25: 0 | BF25: 0 | BG25: 0 | BH25: 0 | BJ25: 0 | BK25: =Controladora!BK25 -> 0 | BL25: 0 | BM25: 0 | BN25: 0 | BO25: 0 | BP25: 0 | BQ25: 0 | BR25: 0 | BS25: 0 | BT25: 0 | BU25: 0 | BV25: 0
B26: Granting rights | C26: =Controladora!C26 -> 0 | D26: =Controladora!D26 -> 0 | E26: =Controladora!E26 -> 0 | F26: =Controladora!F26 -> 0 | G26: =Controladora!G26 -> 0 | H26: =Controladora!H26 -> 0 | I26: =Controladora!I26 -> 0 | J26: =Controladora!J26 -> 0 | K26: =Controladora!K26 -> 0 | L26: =Controladora!L26 -> 0 | M26: =Controladora!M26 -> 0 | N26: =Controladora!N26 -> 0 | P26: 0 | Q26: 0 | R26: 0 | S26: 0 | T26: 0 | U26: 0 | V26: 0 | W26: 0 | X26: 0 | Y26: 0 | Z26: 0 | AA26: 0 | AB26: 0 | AC26: 0 | AD26: 0 | AE26: 0 | AF26: 0 | AG26: 0 | AH26: 0 | AI26: 0 | AJ26: 0 | AK26: 0 | AL26: 0 | AM26: 0 | AN26: 0 | AO26: 0 | AP26: 0 | AQ26: 0 | AR26: 0 | AS26: 0 | AT26: 0 | AU26: 0 | AV26: 0 | AW26: 0 | AX26: 0 | AY26: 0 | AZ26: 0 | BA26: 0 | BB26: 0 | BC26: 0 | BD26: 0 | BE26: 0 | BF26: 0 | BG26: 0 | BH26: 0 | BJ26: 0 | BK26: =Controladora!BK26 -> 0 | BL26: 0 | BM26: 0 | BN26: 0 | BO26: 0 | BP26: 0 | BQ26: 0 | BR26: 0 | BS26: 0 | BT26: 0 | BU26: 0 | BV26: 0
B27: Financial compensations | C27: =Controladora!C27 -> 0 | D27: =Controladora!D27 -> 0 | E27: =Controladora!E27 -> 0 | F27: =Controladora!F27 -> 0 | G27: =Controladora!G27 -> 0 | H27: =Controladora!H27 -> 0 | I27: =Controladora!I27 -> 0 | J27: =Controladora!J27 -> 0 | K27: =Controladora!K27 -> 0 | L27: =Controladora!L27 -> 0 | M27: =Controladora!M27 -> 0 | N27: =Controladora!N27 -> 0 | P27: 0 | Q27: 0 | R27: 0 | S27: 0 | T27: 0 | U27: 0 | V27: 0 | W27: 0 | X27: 0 | Y27: 0 | Z27: 0 | AA27: 0 | AB27: 0 | AC27: 0 | AD27: 0 | AE27: 0 | AF27: 0 | AG27: 0 | AH27: 0 | AI27: 0 | AJ27: 0 | AK27: 0 | AL27: 0 | AM27: 0 | AN27: 0 | AO27: 0 | AP27: 0 | AQ27: 0 | AR27: 0 | AS27: 0 | AT27: 0 | AU27: 0 | AV27: 0 | AW27: 0 | AX27: 0 | AY27: 0 | AZ27: 0 | BA27: 0 | BB27: 0 | BC27: 0 | BD27: 0 | BE27: 0 | BF27: 0 | BG27: 0 | BH27: 0 | BJ27: 0 | BK27: =Controladora!BK27 -> 0 | BL27: 0 | BM27: 0 | BN27: 0 | BO27: 0 | BP27: 0 | BQ27: 0 | BR27: 0 | BS27: 0 | BT27: 0 | BU27: 0 | BV27: 0
B28: Others | C28: =Controladora!C28 -> 0 | D28: =Controladora!D28 -> 0 | E28: =Controladora!E28 -> 0 | F28: =Controladora!F28 -> 0 | G28: =Controladora!G28 -> 0 | H28: =Controladora!H28 -> 0 | I28: =Controladora!I28 -> 0 | J28: =Controladora!J28 -> 0 | K28: =Controladora!K28 -> 0 | L28: =Controladora!L28 -> 0 | M28: =Controladora!M28 -> 0 | N28: =Controladora!N28 -> 0 | P28: 0 | Q28: 0 | R28: 0 | S28: 0 | T28: 0 | U28: 0 | V28: 0 | W28: 0 | X28: 0 | Y28: 0 | Z28: 0 | AA28: 0 | AB28: 0 | AC28: 0 | AD28: 0 | AE28: 0 | AF28: 0 | AG28: 0 | AH28: 0 | AI28: 0 | AJ28: 0 | AK28: 0 | AL28: 0 | AM28: 0 | AN28: 0 | AO28: 0 | AP28: 0 | AQ28: 0 | AR28: 0 | AS28: 0 | AT28: 0 | AU28: 0 | AV28: 0 | AW28: 0 | AX28: 0 | AY28: 0 | AZ28: 0 | BA28: 0 | BB28: 0 | BC28: 0 | BD28: 0 | BE28: 0 | BF28: 0 | BG28: 0 | BH28: 0 | BJ28: 0 | BK28: =Controladora!BK28 -> 0 | BL28: 0 | BM28: 0 | BN28: 0 | BO28: 0 | BP28: 0 | BQ28: 0 | BR28: 0 | BS28: 0 | BT28: 0 | BU28: 0 | BV28: 0
B29: Cost of consumed materials | C29: =Controladora!C29 -> 0 | D29: =Controladora!D29 -> 0 | E29: =Controladora!E29 -> 0 | F29: =Controladora!F29 -> 0 | G29: =Controladora!G29 -> 0 | H29: =Controladora!H29 -> 0 | I29: =Controladora!I29 -> 0 | J29: =Controladora!J29 -> 0 | K29: =Controladora!K29 -> 0 | L29: =Controladora!L29 -> 0 | M29: =Controladora!M29 -> 0 | N29: =Controladora!N29 -> 0 | P29: 0 | Q29: 0 | R29: 0 | S29: 0 | T29: 0 | U29: 0 | V29: 0 | W29: 0 | X29: 0 | Y29: 0 | Z29: 0 | AA29: 0 | AB29: 0 | AC29: 0 | AD29: 0 | AE29: 0 | AF29: 0 | AG29: 0 | AH29: 0 | AI29: 0 | AJ29: 0 | AK29: 0 | AL29: 0 | AM29: 0 | AN29: 0 | AO29: 0 | AP29: 0 | AQ29: 0 | AR29: 0 | AS29: 0 | AT29: 0 | AU29: 0 | AV29: 0 | AW29: 0 | AX29: 0 | AY29: 0 | AZ29: 0 | BA29: 0 | BB29: 0 | BC29: 0 | BD29: 0 | BE29: 0 | BF29: 0 | BG29: 0 | BH29: 0 | BJ29: 0 | BK29: =Controladora!BK29 -> 0 | BL29: 0 | BM29: 0 | BN29: 0 | BO29: 0 | BP29: 0 | BQ29: 0 | BR29: 0 | BS29: 0 | BT29: 0 | BU29: 0 | BV29: 0
B30: Reimbursement for downtime | C30: =Controladora!C30 -> 0 | D30: =Controladora!D30 -> 0 | E30: =Controladora!E30 -> 0 | F30: =Controladora!F30 -> 0 | G30: =Controladora!G30 -> 0 | H30: =Controladora!H30 -> 0 | I30: =Controladora!I30 -> 0 | J30: =Controladora!J30 -> 0 | K30: =Controladora!K30 -> 0 | L30: =Controladora!L30 -> 0 | M30: =Controladora!M30 -> 0 | N30: =Controladora!N30 -> 0 | P30: 0 | R30: 0 | S30: 0 | T30: 0 | U30: 0 | V30: 0 | W30: 0 | X30: 0 | Y30: 0 | Z30: 0 | AA30: 0 | AB30: 0 | AC30: 0 | AD30: 0 | AE30: 0 | AF30: 0 | AG30: 0 | AH30: 0 | AI30: 0 | AJ30: 0 | AK30: 0 | AL30: 0 | AM30: 0 | AN30: 0 | AO30: 0 | AP30: 0 | AQ30: 0 | AR30: 0 | AS30: 0 | AT30: 0 | AU30: 0 | AV30: 0 | AW30: 0 | AX30: 0 | AY30: 0 | AZ30: 0 | BA30: 0 | BB30: 0 | BC30: 0 | BD30: 0 | BE30: 0 | BF30: 0 | BG30: 0 | BH30: 0 | BJ30: 0 | BK30: =Controladora!BK30 -> 0 | BL30: 0 | BM30: 0 | BN30: 0 | BO30: 0 | BP30: 0 | BQ30: 0 | BR30: 0 | BS30: 0 | BT30: 0 | BU30: 0 | BV30: 0
B31: Gross Margin | C31: =Controladora!C31 -> 1189 | D31: =Controladora!D31 -> 2812 | E31: =Controladora!E31 -> 1296 | F31: =Controladora!F31 -> 742 | G31: =Controladora!G31 -> 799 | H31: =Controladora!H31 -> 1563 | I31: =Controladora!I31 -> 773 | J31: =Controladora!J31 -> 790 | K31: =Controladora!K31 -> 683 | L31: =Controladora!L31 -> 735 | M31: =Controladora!M31 -> 481 | N31: =Controladora!N31 -> 1000 | O31: 640 | P31: 705 | Q31: 807 | R31: 1980 | S31: 1060 | T31: 787 | U31: 1219 | V31: 1183 | W31: 1023 | X31: 1723 | Y31: 578 | Z31: 1442 | AA31: 1817 | AB31: 1840 | AC31: 1237 | AD31: 2841 | AE31: 790 | AF31: 952 | AG31: -231 | AH31: 2871 | AI31: 903 | AJ31: 285 | AK31: 7750 | AL31: -493 | AM31: 345 | AN31: 238 | AO31: 238 | AP31: 177 | AQ31: 238 | AR31: 339 | AS31: 1540 | AT31: 96 | AU31: 141 | AV31: 0 | AW31: 1384 | AX31: 0 | AY31: 0 | AZ31: 0 | BA31: 0 | BB31: 0 | BC31: 0 | BD31: 0 | BE31: 0 | BF31: 0 | BG31: 0 | BH31: 0 | BJ31: 2981 | BK31: =Controladora!BK31 -> 2826 | BL31: 4634 | BM31: 5148 | BN31: 5677 | BO31: 5820 | BP31: 3828 | BQ31: 7840 | BR31: 992 | BS31: 1777 | BT31: 1384 | BU31: 0 | BV31: 0
B32: Manageable expenditures | C32: =Controladora!C32 -> -636537 | D32: =Controladora!D32 -> -34021 | E32: =Controladora!E32 -> -61740 | F32: =Controladora!F32 -> -48194 | G32: =Controladora!G32 -> -44551 | H32: =Controladora!H32 -> -26677 | I32: =Controladora!I32 -> -48738 | J32: =Controladora!J32 -> -39463 | K32: =Controladora!K32 -> -28193 | L32: =Controladora!L32 -> -28681 | M32: =Controladora!M32 -> -33102 | N32: =Controladora!N32 -> -20896 | O32: -22136 | P32: -24393 | Q32: -33703 | R32: -26219 | S32: -7080 | T32: -19532 | U32: -37466 | V32: -33099 | W32: -35816 | X32: -36563 | Y32: -37052 | Z32: -30555 | AA32: -30214 | AB32: -28211 | AC32: -43723 | AD32: -25139 | AE32: -27844 | AF32: -25816 | AG32: -28285 | AH32: -30984 | AI32: -37008 | AJ32: -29417 | AK32: -70081 | AL32: -24913 | AM32: -24873 | AN32: -27422 | AO32: -24832 | AP32: -30983 | AQ32: -29308 | AR32: -25429 | AS32: 12414 | AT32: -35020 | AU32: -26228 | AV32: -23825 | AW32: -19102 | AX32: -17506 | AY32: -18092 | AZ32: -14085 | BA32: -27308 | BB32: -29565 | BC32: -15877 | BD32: -18901 | BE32: -34750 | BF32: -30280 | BG32: -19785 | BH32: -22697 | BJ32: 175481 | BK32: =Controladora!BK32 -> -100527 | BL32: -86534 | BM32: -142944 | BN32: -126032 | BO32: -122522 | BP32: -125694 | BQ32: -147289 | BR32: -110552 | BS32: -72659 | BT32: -68785 | BU32: -91651 | BV32: -107512
B33: Total PMTO | C33: =Controladora!C33 -> -53132 | D33: =Controladora!D33 -> -29750 | E33: =Controladora!E33 -> -54318 | F33: =Controladora!F33 -> -17443 | G33: =Controladora!G33 -> -40003 | H33: =Controladora!H33 -> -22448 | I33: =Controladora!I33 -> -40441 | J33: =Controladora!J33 -> -28273 | K33: =Controladora!K33 -> -27407 | L33: =Controladora!L33 -> -24545 | M33: =Controladora!M33 -> -23314 | N33: =Controladora!N33 -> -16621 | O33: -17977 | P33: -19967 | Q33: -27916 | R33: -21244 | S33: -2513 | T33: -15082 | U33: -33997 | V33: -29605 | W33: -32274 | X33: -16799 | Y33: -33243 | Z33: -27423 | AA33: -27492 | AB33: -25593 | AC33: -41233 | AD33: -22619 | AE33: -25664 | AF33: -23655 | AG33: -25800 | AH33: -28885 | AI33: -34753 | AJ33: -27145 | AK33: -67568 | AL33: -23224 | AM33: -23171 | AN33: -25726 | AO33: -24516 | AP33: -29223 | AQ33: -27736 | AR33: -23859 | AS33: 13970 | AT33: -33473 | AU33: -24674 | AV33: -22273 | AW33: -17553 | AX33: -15974 | AY33: -13536 | AZ33: -9530 | BA33: -23928 | BB33: -24696 | BC33: -11002 | BD33: -14032 | BE33: -30202 | BF33: -25688 | BG33: -14430 | BH33: -17272 | BJ33: -120666 | BK33: =Controladora!BK33 -> -77879 | BL33: -66755 | BM33: -112675 | BN33: -113751 | BO33: -113171 | BP33: -116583 | BQ33: -139689 | BR33: -105334 | BS33: -66450 | BT33: -56593 | BU33: -73658 | BV33: -87592
B34: Personnel | C34: =Controladora!C34 -> -21475 | D34: =Controladora!D34 -> -11593 | E34: =Controladora!E34 -> -21505 | F34: =Controladora!F34 -> -13806 | G34: =Controladora!G34 -> -16289 | H34: =Controladora!H34 -> -15938 | I34: =Controladora!I34 -> -19102 | J34: =Controladora!J34 -> -14594 | K34: =Controladora!K34 -> -13926 | L34: =Controladora!L34 -> -13202 | M34: =Controladora!M34 -> -10197 | N34: =Controladora!N34 -> -8492 | O34: -7776 | P34: -8110 | Q34: -10337 | R34: -9686 | S34: -8730 | T34: -7935 | U34: -9530 | V34: -14053 | W34: -16433 | X34: -9673 | Y34: -12699 | Z34: -11754 | AA34: -11122 | AB34: -11386 | AC34: -12253 | AD34: -11951 | AE34: -11939 | AF34: -10781 | AG34: -11335 | AH34: -11337 | AI34: -9992 | AJ34: -10579 | AK34: -12528 | AL34: -10211 | AM34: -8539 | AN34: -9168 | AO34: -8464 | AP34: -8581 | AQ34: -5748 | AR34: -6950 | AS34: -5067 | AT34: -11696 | AU34: -9630 | AV34: -10126 | AW34: -6753 | AX34: -5504 | AY34: -4075 | AZ34: -7286 | BA34: -5969 | BB34: -5109 | BC34: -5446 | BD34: -5103 | BE34: -4790 | BF34: -3751 | BG34: -4302 | BH34: -8440 | BJ34: -60824 | BK34: =Controladora!BK34 -> -34575 | BL34: -36688 | BM34: -49689 | BN34: -46961 | BO34: -46924 | BP34: -43243 | BQ34: -40446 | BR34: -29743 | BS34: -36519 | BT34: -23618 | BU34: -21627 | BV34: -21283
B35: Material | C35: =Controladora!C35 -> -210 | D35: =Controladora!D35 -> -193 | E35: =Controladora!E35 -> -226 | F35: =Controladora!F35 -> -74 | G35: =Controladora!G35 -> -110 | H35: =Controladora!H35 -> -49 | I35: =Controladora!I35 -> -122 | J35: =Controladora!J35 -> -144 | K35: =Controladora!K35 -> -104 | L35: =Controladora!L35 -> -559 | M35: =Controladora!M35 -> 111 | N35: =Controladora!N35 -> -151 | O35: -69 | P35: -295 | Q35: -61 | R35: -90 | S35: -37 | T35: -107 | U35: -11 | V35: 182 | W35: -70 | X35: -293 | Y35: -324 | Z35: -205 | AA35: -201 | AB35: -163 | AC35: -297 | AD35: -141 | AE35: -192 | AF35: -182 | AG35: -287 | AH35: -203 | AI35: -246 | AJ35: -199 | AK35: -324 | AL35: -155 | AM35: -234 | AN35: -258 | AO35: -179 | AP35: -846 | AQ35: -770 | AR35: -121 | AS35: -240 | AT35: -645 | AU35: -470 | AV35: -225 | AW35: -129 | AX35: -60 | AY35: -110 | AZ35: -158 | BA35: -428 | BB35: -179 | BC35: -137 | BD35: -223 | BE35: -302 | BF35: -157 | BG35: -77 | BH35: -81 | BJ35: -929 | BK35: =Controladora!BK35 -> -404 | BL35: -295 | BM35: -192 | BN35: -893 | BO35: -812 | BP35: -935 | BQ35: -971 | BR35: -1916 | BS35: -1580 | BT35: -457 | BU35: -967 | BV35: -617
B36: Third-party services | C36: =Controladora!C36 -> -13413 | D36: =Controladora!D36 -> -15104 | E36: =Controladora!E36 -> -28936 | F36: =Controladora!F36 -> -5858 | G36: =Controladora!G36 -> -10147 | H36: =Controladora!H36 -> -5935 | I36: =Controladora!I36 -> -18240 | J36: =Controladora!J36 -> -10060 | K36: =Controladora!K36 -> -10953 | L36: =Controladora!L36 -> -7136 | M36: =Controladora!M36 -> -12854 | N36: =Controladora!N36 -> -5699 | O36: -7819 | P36: -9355 | Q36: -16225 | R36: -6776 | S36: -7317 | T36: -3527 | U36: 4704 | V36: -9724 | W36: -13189 | X36: -4952 | Y36: -13600 | Z36: -11656 | AA36: -12318 | AB36: -10432 | AC36: -18391 | AD36: -10018 | AE36: -8392 | AF36: -9536 | AG36: -11188 | AH36: -11544 | AI36: -13078 | AJ36: -11489 | AK36: -39081 | AL36: -8646 | AM36: -8986 | AN36: -8420 | AO36: -9599 | AP36: -9106 | AQ36: -14899 | AR36: -10181 | AS36: -7875 | AT36: -7437 | AU36: -8912 | AV36: -5422 | AW36: -6813 | AX36: -5990 | AY36: -5363 | AZ36: -5814 | BA36: -8053 | BB36: -8013 | BC36: -5748 | BD36: -5025 | BE36: -10087 | BF36: -6790 | BG36: -6559 | BH36: -5231 | BJ36: -46389 | BK36: =Controladora!BK36 -> -35727 | BL36: -33845 | BM36: -23161 | BN36: -48006 | BO36: -46337 | BP36: -47299 | BQ36: -65133 | BR36: -43785 | BS36: -29646 | BT36: -23980 | BU36: -26839 | BV36: -28667
B37: Provisions | C37: =Controladora!C37 -> -2409 | D37: =Controladora!D37 -> 687 | E37: =Controladora!E37 -> -292 | F37: =Controladora!F37 -> -327 | G37: =Controladora!G37 -> -2838 | H37: =Controladora!H37 -> 0 | I37: =Controladora!I37 -> -242 | J37: =Controladora!J37 -> -299 | K37: =Controladora!K37 -> -57 | L37: =Controladora!L37 -> -270 | M37: =Controladora!M37 -> 3455 | N37: =Controladora!N37 -> -257 | O37: -63 | P37: 159 | Q37: -96 | R37: -872 | S37: 1653 | T37: -1622 | U37: -1323 | V37: -210 | W37: -1084 | X37: 160 | Y37: -1227 | Z37: -625 | AA37: -224 | AB37: -944 | AC37: -974 | AD37: 6429 | AE37: -1120 | AF37: -494 | AG37: 16 | AH37: -992 | AI37: 1830 | AJ37: 373 | AK37: -4910 | AL37: 4498 | AM37: -341 | AN37: -746 | AO37: 1106 | AP37: -1582 | AQ37: -1248 | AR37: -1495 | AS37: 1612 | AT37: -1752 | AU37: -1909 | AV37: -422 | AW37: 388 | AX37: 972 | AY37: 543 | AZ37: 85 | BA37: 222 | BB37: 1424 | BC37: 143 | BD37: -1180 | BE37: -9937 | BF37: -12283 | BG37: 0 | BH37: 0 | BJ37: -868 | BK37: =Controladora!BK37 -> 3294 | BL37: -937 | BM37: -2457 | BN37: -3020 | BO37: 3841 | BP37: 1227 | BQ37: -1499 | BR37: -3219 | BS37: -2471 | BT37: 1988 | BU37: 609 | BV37: -22220
B38: Provision for doubtful account/net losses | C38: =Controladora!C38 -> 0 | D38: =Controladora!D38 -> 0 | E38: =Controladora!E38 -> 0 | F38: =Controladora!F38 -> 0 | G38: =Controladora!G38 -> 0 | H38: =Controladora!H38 -> 0 | I38: =Controladora!I38 -> 0 | J38: =Controladora!J38 -> 0 | K38: =Controladora!K38 -> 0 | L38: =Controladora!L38 -> 0 | M38: =Controladora!M38 -> 0 | N38: =Controladora!N38 -> 0 | O38: 0 | P38: 0 | Q38: 0 | R38: 0 | S38: 0 | T38: 0 | U38: 0 | V38: 0 | W38: 0 | X38: 0 | Y38: 0 | Z38: 0 | AA38: 0 | AB38: 0 | AC38: 0 | AD38: 0 | AE38: 0 | AF38: 0 | AG38: 0 | AH38: 0 | AI38: 0 | AJ38: 0 | AK38: 0 | AL38: 0 | AM38: 0 | AN38: 0 | AO38: 0 | AP38: 0 | AQ38: 0 | AR38: 0 | AS38: 0 | AT38: 0 | AU38: 121 | AV38: -121 | AW38: 0 | AX38: 0 | AY38: 0 | AZ38: 0 | BA38: 0 | BB38: 0 | BC38: 0 | BD38: 0 | BE38: 0 | BF38: 0 | BG38: 0 | BH38: 0 | BJ38: 0 | BK38: =Controladora!BK38 -> 0 | BL38: 0 | BM38: 0 | BN38: 0 | BO38: 0 | BP38: 0 | BQ38: 0 | BR38: 0 | BS38: 0 | BT38: 0 | BU38: 0 | BV38: 0
B39: Provision for contingencies | C39: =Controladora!C39 -> -2409 | D39: =Controladora!D39 -> 687 | E39: =Controladora!E39 -> -292 | F39: =Controladora!F39 -> -327 | G39: =Controladora!G39 -> -2838 | H39: =Controladora!H39 -> 0 | I39: =Controladora!I39 -> -242 | J39: =Controladora!J39 -> -299 | K39: =Controladora!K39 -> -57 | L39: =Controladora!L39 -> -270 | M39: =Controladora!M39 -> 3455 | N39: =Controladora!N39 -> -257 | O39: -63 | P39: 159 | Q39: -96 | R39: -872 | S39: 0 | T39: 0 | U39: 0 | V39: -210 | W39: -1084 | X39: 160 | Y39: 0 | Z39: -625 | AA39: -224 | AB39: -944 | AC39: -974 | AD39: 6429 | AE39: -1120 | AF39: -494 | AG39: 16 | AH39: -992 | AI39: 1830 | AJ39: 373 | AK39: -4910 | AL39: 4498 | AM39: -341 | AN39: -746 | AO39: 1106 | AP39: -1582 | AQ39: -1248 | AR39: -1495 | AS39: 1612 | AT39: -1752 | AU39: -2030 | AV39: -301 | AW39: 388 | AX39: 972 | AY39: 543 | AZ39: 0 | BA39: 222 | BB39: 1424 | BC39: 143 | BD39: -1180 | BE39: -9937 | BF39: -12283 | BG39: 0 | BH39: 0 | BJ39: -868 | BK39: =Controladora!BK39 -> 3294 | BL39: -968 | BM39: -1134 | BN39: -1793 | BO39: 3841 | BP39: 1227 | BQ39: -1499 | BR39: -3219 | BS39: -2471 | BT39: 1903 | BU39: 609 | BV39: -22220
B40: Other | C40: =Controladora!C40 -> -15625 | D40: =Controladora!D40 -> -3547 | E40: =Controladora!E40 -> -3359 | F40: =Controladora!F40 -> 2622 | G40: =Controladora!G40 -> -10619 | H40: =Controladora!H40 -> -526 | I40: =Controladora!I40 -> -2735 | J40: =Controladora!J40 -> -3176 | K40: =Controladora!K40 -> -2367 | L40: =Controladora!L40 -> -3378 | M40: =Controladora!M40 -> -3829 | N40: =Controladora!N40 -> -2022 | O40: -2250 | P40: -2366 | Q40: -1197 | R40: -3820 | S40: 11918 | T40: -1891 | U40: -27837 | V40: -5800 | W40: -1498 | X40: -2041 | Y40: -5393 | Z40: -3183 | AA40: -3627 | AB40: -2668 | AC40: -9318 | AD40: -6938 | AE40: -4021 | AF40: -2662 | AG40: -3006 | AH40: 0 | AI40: -13267 | AJ40: -5251 | AK40: -10725 | AL40: -8710 | AM40: -5071 | AN40: -7134 | AO40: -7380 | AP40: -9108 | AQ40: -5071 | AR40: -5112 | AS40: 25540 | AT40: -11943 | AU40: -3753 | AV40: -6078 | AW40: -4246 | AX40: -5392 | AY40: -4531 | AZ40: 3643 | BA40: -9700 | BB40: -12819 | BC40: 186 | BD40: -2501 | BE40: -5086 | BF40: -2707 | BG40: -3492 | BH40: -3520 | BJ40: -11656 | BK40: =Controladora!BK40 -> -10467 | BL40: 5010 | BM40: -37176 | BN40: -14871 | BO40: -22939 | BP40: -21524 | BQ40: -31640 | BR40: -26671 | BS40: 3766 | BT40: -10526 | BU40: -24834 | BV40: -14805
B41: Rent and leasing | C41: =Controladora!C41 -> 2 | D41: =Controladora!D41 -> 82 | E41: =Controladora!E41 -> 284 | F41: =Controladora!F41 -> 322 | G41: =Controladora!G41 -> -914 | H41: =Controladora!H41 -> 1251 | I41: =Controladora!I41 -> -179 | J41: =Controladora!J41 -> -680 | K41: =Controladora!K41 -> -302 | L41: =Controladora!L41 -> -569 | M41: =Controladora!M41 -> -372 | N41: =Controladora!N41 -> 16 | O41: 106 | P41: -250 | Q41: -79 | R41: -432 | S41: -106 | T41: -19 | U41: -1156 | V41: -3705 | W41: 1919 | X41: -1192 | Y41: -1330 | Z41: -1097 | AA41: -1211 | AB41: -1286 | AC41: -1518 | AD41: -1262 | AE41: 1510 | AF41: -953 | AG41: 562 | AH41: -2908 | AI41: -2863 | AJ41: -2888 | AK41: -1534 | AL41: -1470 | AM41: -1467 | AN41: -1650 | AO41: -2142 | AP41: -2189 | AQ41: -3046 | AR41: -1102 | AS41: -1072 | AT41: -1057 | AU41: -828 | AV41: -716 | AW41: -682 | AX41: -664 | AY41: -307 | AZ41: -956 | BA41: -767 | BB41: -727 | BC41: -749 | BD41: -738 | BE41: -899 | BF41: -660 | BG41: -609 | BH41: -611 | BJ41: -1730 | BK41: =Controladora!BK41 -> -500 | BL41: -636 | BM41: -4134 | BN41: -4924 | BO41: -2223 | BP41: -8097 | BQ41: -6121 | BR41: -8479 | BS41: -3673 | BT41: -2609 | BU41: -2981 | BV41: -2779
B42: Others | C42: =Controladora!C42 -> -15627 | D42: =Controladora!D42 -> -3629 | E42: =Controladora!E42 -> -3643 | F42: =Controladora!F42 -> 2300 | G42: =Controladora!G42 -> -9705 | H42: =Controladora!H42 -> -1777 | I42: =Controladora!I42 -> -2556 | J42: =Controladora!J42 -> -2496 | K42: =Controladora!K42 -> -2065 | L42: =Controladora!L42 -> -2809 | M42: =Controladora!M42 -> -3457 | N42: =Controladora!N42 -> -2038 | O42: -2356 | P42: -2116 | Q42: -1118 | R42: -3388 | S42: 12024 | T42: -1872 | U42: -26681 | V42: -2095 | W42: -3417 | X42: -849 | Y42: -4063 | Z42: -2086 | AA42: -2416 | AB42: -1382 | AC42: -7800 | AD42: -5676 | AE42: -5531 | AF42: -1709 | AG42: -3568 | AH42: 0 | AI42: -10404 | AJ42: -2363 | AK42: -9191 | AL42: -7240 | AM42: -3604 | AN42: -5484 | AO42: -5238 | AP42: -6896 | AQ42: -2025 | AR42: -4020 | AS42: 26624 | AT42: -10898 | AU42: -2925 | AV42: -5362 | AW42: -3564 | AX42: -4728 | AY42: -4224 | AZ42: 4599 | BA42: -8933 | BB42: -12092 | BC42: 935 | BD42: -1763 | BE42: -4187 | BF42: -2047 | BG42: -2883 | BH42: -2909 | BJ42: -9926 | BK42: =Controladora!BK42 -> -9967 | BL42: 5646 | BM42: -33042 | BN42: -9947 | BO42: -20716 | BP42: -16335 | BQ42: -25519 | BR42: -18179 | BS42: 7439 | BT42: -7917 | BU42: -21853 | BV42: -12026
B43: Gains/Losses on Deactivation/Asset Sale | C43: =Controladora!C43 -> -1734 | D43: =Controladora!D43 -> 0 | E43: =Controladora!E43 -> -3065 | F43: =Controladora!F43 -> -26350 | G43: =Controladora!G43 -> 0 | H43: =Controladora!H43 -> 0 | I43: =Controladora!I43 -> -4022 | J43: =Controladora!J43 -> -7286 | K43: =Controladora!K43 -> 4465 | L43: =Controladora!L43 -> 0 | M43: =Controladora!M43 -> -5918 | N43: =Controladora!N43 -> 214 | O43: 0 | P43: 0 | Q43: -2147 | R43: -270 | S43: 0 | T43: 0 | U43: 0 | V43: 0 | W43: 0 | X43: 0 | Y43: 9 | Z43: 0 | AA43: 0 | AB43: 0 | AC43: -50 | AD43: 0 | AE43: -12 | AF43: 12 | AG43: -151 | AH43: 0 | AI43: 0 | AJ43: 0 | AK43: -236 | AL43: 47 | AM43: 34 | AN43: 15 | AO43: 1345 | AP43: -23 | AQ43: 0 | AR43: 10 | AS43: -12 | AT43: 12 | AU43: 0 | AV43: 0 | AW43: 0 | AX43: 0 | AY43: 0 | AZ43: 0 | BA43: 0 | BB43: 0 | BC43: 0 | BD43: 0 | BE43: 0 | BF43: 0 | BG43: 0 | BH43: 0 | BJ43: 313713 | BK43: =Controladora!BK43 -> -5704 | BL43: -2417 | BM43: 0 | BN43: 9 | BO43: -50 | BP43: -151 | BQ43: -140 | BR43: 1332 | BS43: 0 | BT43: 0 | BU43: 0 | BV43: 0
B44: Value of Indemnified financial asset | C44: =Controladora!C44 -> 0 | D44: =Controladora!D44 -> 0 | E44: =Controladora!E44 -> 0 | F44: =Controladora!F44 -> 0 | G44: =Controladora!G44 -> 0 | H44: =Controladora!H44 -> 0 | I44: =Controladora!I44 -> 0 | J44: =Controladora!J44 -> 0 | K44: =Controladora!K44 -> 0 | L44: =Controladora!L44 -> 0 | M44: =Controladora!M44 -> 0 | N44: =Controladora!N44 -> 0 | P44: 0 | Q44: 0 | R44: 0 | S44: 0 | T44: 0 | U44: 0 | V44: 0 | W44: 0 | X44: 0 | Y44: 0 | Z44: 0 | AA44: 0 | AB44: 0 | AC44: 0 | AD44: 0 | AE44: 0 | AF44: 0 | AG44: 0 | AH44: 0 | AI44: 0 | AJ44: 0 | AK44: 0 | AL44: 0 | AM44: 0 | AN44: 0 | AO44: 0 | AP44: 0 | AQ44: 0 | AR44: 0 | AS44: 0 | AT44: 0 | AU44: 0 | AV44: 0 | AW44: 0 | AX44: 0 | AY44: 0 | AZ44: 0 | BA44: 0 | BB44: 0 | BC44: 0 | BD44: 0 | BE44: 0 | BF44: 0 | BG44: 0 | BH44: 0 | BJ44: 0 | BK44: =Controladora!BK44 -> 0 | BL44: 0 | BM44: 0 | BN44: 0 | BO44: 0 | BP44: 0 | BQ44: 0 | BR44: 0 | BS44: 0 | BT44: 0 | BU44: 0 | BV44: 0
B45: Construction Costs | C45: =Controladora!C45 -> 0 | D45: =Controladora!D45 -> 0 | E45: =Controladora!E45 -> 0 | F45: =Controladora!F45 -> 0 | G45: =Controladora!G45 -> 0 | H45: =Controladora!H45 -> 0 | I45: =Controladora!I45 -> 0 | J45: =Controladora!J45 -> 0 | K45: =Controladora!K45 -> 0 | L45: =Controladora!L45 -> 0 | M45: =Controladora!M45 -> 0 | N45: =Controladora!N45 -> 0 | O45: 0 | P45: 0 | Q45: 0 | R45: 0 | S45: 0 | T45: 0 | U45: 0 | V45: 0 | W45: 0 | X45: 0 | Y45: 0 | Z45: 0 | AA45: 0 | AB45: 0 | AC45: 0 | AD45: 0 | AE45: 0 | AF45: 0 | AG45: 0 | AH45: 0 | AI45: 0 | AJ45: 0 | AK45: 0 | AL45: 0 | AM45: 0 | AN45: 0 | AO45: 0 | AP45: 0 | AQ45: 0 | AR45: 0 | AS45: 0 | AT45: 0 | AU45: 0 | AV45: 0 | AW45: 0 | AX45: 0 | AY45: 0 | AZ45: 0 | BA45: 0 | BB45: 0 | BC45: 0 | BD45: 0 | BE45: 0 | BF45: 0 | BG45: 0 | BH45: 0 | BJ45: 0 | BK45: =Controladora!BK45 -> 0 | BL45: 0 | BM45: 0 | BN45: 0 | BO45: 0 | BP45: 0 | BQ45: 0 | BR45: 0 | BS45: 0 | BT45: 0 | BU45: 0 | BV45: 0
B46: Gains on the sale of financial assets | C46: =Controladora!C46 -> 0 | D46: =Controladora!D46 -> 0 | E46: =Controladora!E46 -> 326252 | F46: =Controladora!F46 -> 0 | G46: =Controladora!G46 -> -410 | H46: =Controladora!H46 -> 410 | I46: =Controladora!I46 -> 320556 | J46: =Controladora!J46 -> 0 | K46: =Controladora!K46 -> 0 | L46: =Controladora!L46 -> 0 | M46: =Controladora!M46 -> 0 | N46: =Controladora!N46 -> 0 | O46: 0 | P46: 0 | Q46: 0 | R46: 0 | S46: 0 | T46: 0 | U46: 340587 | V46: 34068 | W46: 0 | X46: 0 | Y46: 0 | Z46: 0 | AA46: 0 | AB46: 0 | AC46: 0 | AD46: 0 | AE46: 0 | AF46: 278139 | AG46: 68946 | AH46: 0 | AI46: 884697 | AJ46: 0 | AK46: 422 | AL46: -17 | AM46: 408011 | AN46: 0 | AO46: 0 | AP46: 0 | AQ46: 0 | AR46: 0 | AS46: 0 | AT46: 0 | AU46: 0 | AV46: 0 | AW46: 0 | AX46: 0 | AY46: 0 | AZ46: 0 | BA46: 0 | BB46: 0 | BC46: 0 | BD46: 0 | BE46: 0 | BF46: 0 | BG46: 0 | BH46: 0 | BJ46: 0 | BK46: =Controladora!BK46 -> 0 | BL46: 0 | BM46: 374655 | BN46: 0 | BO46: 278139 | BP46: 953643 | BQ46: 408416 | BR46: 0 | BS46: 0 | BT46: 0 | BU46: 0 | BV46: 0
B47: EBITDA | C47: =Controladora!C47 -> -53677 | D47: =Controladora!D47 -> -26938 | E47: =Controladora!E47 -> 270165 | F47: =Controladora!F47 -> -43051 | G47: =Controladora!G47 -> -39614 | H47: =Controladora!H47 -> -20475 | I47: =Controladora!I47 -> 276866 | J47: =Controladora!J47 -> -34769 | K47: =Controladora!K47 -> -22259 | L47: =Controladora!L47 -> -23810 | M47: =Controladora!M47 -> -28751 | N47: =Controladora!N47 -> -15407 | O47: -17337 | P47: -19262 | Q47: -29256 | R47: -19534 | S47: -1453 | T47: -14295 | U47: 307809 | V47: 5646 | W47: -31251 | X47: -15076 | Y47: -32656 | Z47: -25981 | AA47: -25675 | AB47: -23753 | AC47: -33578 | AD47: -19778 | AE47: -24886 | AF47: 255448 | AG47: 42764 | AH47: -26014 | AI47: 850847 | AJ47: -26860 | AK47: -59632 | AL47: -23687 | AM47: 385219 | AN47: -25473 | AO47: -22933 | AP47: -29046 | AQ47: -27498 | AR47: -23520 | AS47: 15510 | AT47: -33377 | AU47: -24533 | AV47: -22273 | AW47: -16169 | AX47: -15974 | AY47: -13536 | AZ47: -9530 | BA47: -23928 | BB47: -24696 | BC47: -11002 | BD47: -14032 | BE47: -30202 | BF47: -25688 | BG47: -14430 | BH47: -17272 | BJ47: 196028 | BK47: =Controladora!BK47 -> -80757 | BL47: -64538 | BM47: 267128 | BN47: -108065 | BO47: 177206 | BP47: 840737 | BQ47: 276427 | BR47: -102997 | BS47: -64673 | BT47: -55209 | BU47: -73658 | BV47: -87592
B48: EBITDA Margin | C48: =Controladora!C48 -> n.d | D48: =Controladora!D48 -> n.d | E48: =Controladora!E48 -> n.d | F48: =Controladora!F48 -> n.d | G48: =Controladora!G48 -> n.d | H48: =Controladora!H48 -> n.d | I48: =Controladora!I48 -> n.d | J48: =Controladora!J48 -> n.d | K48: =Controladora!K48 -> n.d | L48: =Controladora!L48 -> n.d | M48: =Controladora!M48 -> n.d | N48: =Controladora!N48 -> n.d | O48: n.d | P48: n.d | Q48: n.d | R48: n.d | S48: n.d. | T48: n.d. | U48: n.d. | V48: n.d. | W48: n.d. | X48: n.d. | Y48: n.d. | Z48: n.d. | AA48: n.d. | AB48: n.d. | AC48: n.d. | AD48: n.d. | AE48: n.d. | AF48: n.d. | AG48: n.d. | AH48: n.d. | AI48: n.d. | AJ48: n.d. | AK48: n.d. | AL48: n.d. | AM48: n.d. | AN48: n.d. | AO48: n.d. | AP48: n.d. | AQ48: n.d. | AR48: n.d. | AS48: n.d. | AT48: n.d. | AU48: n.d. | AV48: n.d. | AW48: n.d. | AX48: n.d. | AY48: n.d. | AZ48: n.d. | BA48: n.d. | BB48: n.d. | BC48: n.d. | BD48: n.d. | BE48: n.d. | BF48: n.d. | BG48: n.d. | BH48: n.d. | BJ48: 0 | BK48: =Controladora!BK48 -> 0 | BL48: 0 | BM48: 0 | BN48: 0 | BO48: 0 | BP48: 0 | BQ48: 0 | BR48: 0 | BS48: 0 | BT48: 0 | BU48: 0 | BV48: 0
B49: Depreciation and amortization | C49: =Controladora!C49 -> -581671 | D49: =Controladora!D49 -> -4271 | E49: =Controladora!E49 -> -4357 | F49: =Controladora!F49 -> -4401 | G49: =Controladora!G49 -> -4548 | H49: =Controladora!H49 -> -4229 | I49: =Controladora!I49 -> -4275 | J49: =Controladora!J49 -> -3904 | K49: =Controladora!K49 -> -5251 | L49: =Controladora!L49 -> -4136 | M49: =Controladora!M49 -> -3870 | N49: =Controladora!N49 -> -4489 | O49: -4159 | P49: -4426 | Q49: -3640 | R49: -4705 | S49: -4567 | T49: -4450 | U49: -3469 | V49: -3494 | W49: -3542 | X49: -19764 | Y49: -3818 | Z49: -3132 | AA49: -2722 | AB49: -2618 | AC49: -2440 | AD49: -2520 | AE49: -2168 | AF49: -2173 | AG49: -2334 | AH49: -2099 | AI49: -2255 | AJ49: -2272 | AK49: -2277 | AL49: -1736 | AM49: -1736 | AN49: -1711 | AO49: -1661 | AP49: -1760 | AQ49: -1572 | AR49: -1570 | AS49: -1556 | AT49: -1547 | AU49: -1554 | AV49: -1552 | AW49: -1549 | AX49: -1532 | AY49: -4556 | AZ49: -4555 | BA49: -3380 | BB49: -4869 | BC49: -4875 | BD49: -4869 | BE49: -4548 | BF49: -4592 | BG49: -5355 | BH49: -5425 | BJ49: -17566 | BK49: =Controladora!BK49 -> -16944 | BL49: -17362 | BM49: -30269 | BN49: -12290 | BO49: -9301 | BP49: -8960 | BQ49: -7460 | BR49: -6563 | BS49: -6209 | BT49: -12192 | BU49: -17993 | BV49: -19920
B50: Depreciation | C50: =Controladora!C50 -> -578160 | D50: =Controladora!D50 -> -972 | E50: =Controladora!E50 -> -974 | F50: =Controladora!F50 -> -1009 | G50: =Controladora!G50 -> -1011 | H50: =Controladora!H50 -> -1003 | I50: =Controladora!I50 -> -1202 | J50: =Controladora!J50 -> -414 | K50: =Controladora!K50 -> -897 | L50: =Controladora!L50 -> -669 | M50: =Controladora!M50 -> -665 | N50: =Controladora!N50 -> -1953 | O50: -1002 | P50: -1041 | Q50: -1111 | R50: -1218 | S50: -1066 | T50: -1050 | U50: -926 | V50: -918 | W50: -923 | X50: -924 | Y50: -1022 | Z50: -996 | AA50: -830 | AB50: -792 | AC50: -784 | AD50: -958 | AE50: -727 | AF50: -731 | AG50: -714 | AH50: 2156 | AI50: -3573 | AJ50: -712 | AK50: -717 | AL50: -363 | AM50: -18 | AN50: -177 | AO50: -130 | AP50: -160 | AQ50: -84 | AR50: -82 | AS50: -5801 | AT50: -86 | AU50: -89 | AV50: -88 | AW50: -102 | AX50: -86 | AY50: -80 | AZ50: -80 | BA50: -79 | BB50: 9495 | BC50: -4875 | BD50: -4869 | BE50: 0 | BF50: 0 | BG50: 0 | BH50: 0 | BJ50: -3182 | BK50: =Controladora!BK50 -> -4661 | BL50: -4445 | BM50: -3691 | BN50: -3640 | BO50: -3200 | BP50: -2843 | BQ50: -1275 | BR50: -456 | BS50: -6064 | BT50: -348 | BU50: -328 | BV50: 0
B51: Depreciation - Asset right of usage | C51: =Controladora!C51 -> -622 | D51: =Controladora!D51 -> -654 | E51: =Controladora!E51 -> -666 | F51: =Controladora!F51 -> -661 | G51: =Controladora!G51 -> -630 | H51: =Controladora!H51 -> -623 | I51: =Controladora!I51 -> -234 | J51: =Controladora!J51 -> -405 | K51: =Controladora!K51 -> -730 | L51: =Controladora!L51 -> -487 | M51: =Controladora!M51 -> -364 | N51: =Controladora!N51 -> -408 | O51: -431 | P51: -678 | Q51: 222 | R51: -741 | S51: -759 | T51: -678 | U51: 0 | V51: - | W51: - | X51: - | Y51: 0 | Z51: - | AA51: - | AB51: - | AC51: - | AD51: - | AE51: - | AF51: - | AG51: - | AH51: - | AI51: - | AJ51: - | AK51: - | AL51: - | AM51: - | AN51: - | AO51: - | AP51: - | AQ51: - | AR51: - | AS51: - | AT51: - | AU51: - | AV51: - | AW51: - | AX51: - | AY51: - | AZ51: - | BA51: - | BB51: - | BC51: - | BD51: - | BE51: - | BF51: - | BG51: - | BH51: - | BJ51: -1856 | BK51: =Controladora!BK51 -> -1881 | BL51: -1956 | BM51: 0 | BN51: 0 | BO51: 0 | BP51: 0 | BQ51: 0 | BR51: 0 | BS51: 0 | BT51: 0 | BU51: 0 | BV51: 0
B52: Amortization | C52: =Controladora!C52 -> -2889 | D52: =Controladora!D52 -> -2645 | E52: =Controladora!E52 -> -2717 | F52: =Controladora!F52 -> -2731 | G52: =Controladora!G52 -> -2907 | H52: =Controladora!H52 -> -2603 | I52: =Controladora!I52 -> -2839 | J52: =Controladora!J52 -> -3085 | K52: =Controladora!K52 -> -3624 | L52: =Controladora!L52 -> -2980 | M52: =Controladora!M52 -> -2841 | N52: =Controladora!N52 -> -2128 | O52: -2726 | P52: -2707 | Q52: -2751 | R52: -2746 | S52: -2742 | T52: -2722 | U52: -2543 | V52: -2576 | W52: -2619 | X52: -18840 | Y52: -2796 | Z52: -2136 | AA52: -1892 | AB52: -1826 | AC52: -1656 | AD52: -1562 | AE52: -1441 | AF52: -1442 | AG52: -1620 | AH52: -4255 | AI52: 1318 | AJ52: -1560 | AK52: -1560 | AL52: -1373 | AM52: -1718 | AN52: -1534 | AO52: -1531 | AP52: -1600 | AQ52: -1488 | AR52: -1488 | AS52: 4245 | AT52: -1461 | AU52: -1465 | AV52: -1464 | AW52: -1447 | AX52: -1446 | AY52: -4476 | AZ52: -4475 | BA52: -3301 | BB52: -14364 | BC52: 0 | BD52: 0 | BE52: 0 | BF52: 0 | BG52: 0 | BH52: 0 | BJ52: -12528 | BK52: =Controladora!BK52 -> -10402 | BL52: -10961 | BM52: -26578 | BN52: -8650 | BO52: -6101 | BP52: -6117 | BQ52: -6185 | BR52: -6107 | BS52: -145 | BT52: -11844 | BU52: -17665 | BV52: 0
B53: Result from Service - EBIT | C53: =Controladora!C53 -> -635348 | D53: =Controladora!D53 -> -31209 | E53: =Controladora!E53 -> 265808 | F53: =Controladora!F53 -> -47452 | G53: =Controladora!G53 -> -44162 | H53: =Controladora!H53 -> -24704 | I53: =Controladora!I53 -> 272591 | J53: =Controladora!J53 -> -38673 | K53: =Controladora!K53 -> -27510 | L53: =Controladora!L53 -> -27946 | M53: =Controladora!M53 -> -32621 | N53: =Controladora!N53 -> -19896 | O53: -21496 | P53: -23688 | Q53: -32896 | R53: -24239 | S53: -6020 | T53: -18745 | U53: 304340 | V53: 2152 | W53: -34793 | X53: -34840 | Y53: -36474 | Z53: -29113 | AA53: -28397 | AB53: -26371 | AC53: -36018 | AD53: -22298 | AE53: -27054 | AF53: 253275 | AG53: 40430 | AH53: -28113 | AI53: 848592 | AJ53: -29132 | AK53: -61909 | AL53: -25423 | AM53: 383483 | AN53: -27184 | AO53: -24594 | AP53: -30806 | AQ53: -29070 | AR53: -25090 | AS53: 13954 | AT53: -34924 | AU53: -26087 | AV53: -23825 | AW53: -17718 | AX53: -17506 | AY53: -18092 | AZ53: -14085 | BA53: -27308 | BB53: -29565 | BC53: -15877 | BD53: -18901 | BE53: -34750 | BF53: -30280 | BG53: -19785 | BH53: -22697 | BJ53: 178462 | BK53: =Controladora!BK53 -> -97701 | BL53: -81900 | BM53: 236859 | BN53: -120355 | BO53: 167905 | BP53: 831777 | BQ53: 268967 | BR53: -109560 | BS53: -70882 | BT53: -67401 | BU53: -91651 | BV53: -107512
B54: Result from corporate participation | C54: =Controladora!C54 -> 368507 | D54: =Controladora!D54 -> 471435 | E54: =Controladora!E54 -> -683533 | F54: =Controladora!F54 -> 542415 | G54: =Controladora!G54 -> 438134 | H54: =Controladora!H54 -> 545432 | I54: =Controladora!I54 -> 581638 | J54: =Controladora!J54 -> 555259 | K54: =Controladora!K54 -> 372649 | L54: =Controladora!L54 -> 541552 | M54: =Controladora!M54 -> 780107 | N54: =Controladora!N54 -> 343148 | O54: 260653 | P54: 312575 | Q54: 564295 | R54: 378028 | S54: 192792 | T54: 311882 | U54: 234196 | V54: 314306 | W54: 225931 | X54: 252534 | Y54: 257929 | Z54: 171360 | AA54: 175718 | AB54: 160545 | AC54: 46223 | AD54: 223300 | AE54: 131030 | AF54: 143701 | AG54: 406612 | AH54: 132748 | AI54: 47138 | AJ54: 128167 | AK54: 383134 | AL54: 168144 | AM54: -91497 | AN54: 142005 | AO54: 101441 | AP54: 244304 | AQ54: 90361 | AR54: 121368 | AS54: 160576 | AT54: 47465 | AU54: 68278 | AV54: 162005 | AW54: 115845 | AX54: 118160 | AY54: 142548 | AZ54: 193398 | BA54: 245892 | BB54: 97452.38361 | BC54: 154004.7318 | BD54: 175933 | BE54: 244758.224 | BF54: 150950 | BG54: 119725 | BH54: 145043 | BJ54: 2051098 | BK54: =Controladora!BK54 -> 1696483 | BL54: 1446997 | BM54: 1026967 | BN54: 765552 | BO54: 544254 | BP54: 714665 | BQ54: 601786 | BR54: 557474 | BS54: 438324 | BT54: 569951 | BU54: 673282.1154 | BV54: 660476.224
B55: Net Financial Result | C55: =Controladora!C55 -> 40181 | D55: =Controladora!D55 -> 53931 | E55: =Controladora!E55 -> -6619 | F55: =Controladora!F55 -> 26579 | G55: =Controladora!G55 -> -8780 | H55: =Controladora!H55 -> 15932 | I55: =Controladora!I55 -> -39366 | J55: =Controladora!J55 -> -6469 | K55: =Controladora!K55 -> 304 | L55: =Controladora!L55 -> -18385 | M55: =Controladora!M55 -> -48081 | N55: =Controladora!N55 -> -24037 | O55: -2457 | P55: -18406 | Q55: -29988 | R55: 264 | S55: 1646 | T55: 1955 | U55: -9817 | V55: -10056 | W55: 57660 | X55: -3952 | Y55: -26850 | Z55: -2751 | AA55: -5899 | AB55: 800 | AC55: -3294 | AD55: 16677 | AE55: -20619 | AF55: -34146 | AG55: -61326 | AH55: -49883 | AI55: -32808 | AJ55: -15883 | AK55: -26555 | AL55: -5396 | AM55: -6879 | AN55: -15236 | AO55: -35363 | AP55: -14106 | AQ55: -16685 | AR55: -6003 | AS55: -22598 | AT55: -2151 | AU55: -2295 | AV55: 4308 | AW55: -15937 | AX55: -8316 | AY55: 2193 | AZ55: 8429 | BA55: -15127 | BB55: 5170.911082 | BC55: 3132.994832 | BD55: 6396 | BE55: -13887.38656 | BF55: -4928 | BG55: 70485 | BH55: -3980 | BJ55: -63916 | BK55: =Controladora!BK55 -> -92981 | BL55: -26123 | BM55: 33835 | BN55: -34700 | BO55: -41382 | BP55: -159900 | BQ55: -54066 | BR55: -72157 | BS55: -22736 | BT55: -13631 | BU55: -427.0940862 | BV55: 47689.61344
B56: Financial revenues | C56: =Controladora!C56 -> 46409 | D56: =Controladora!D56 -> 58641 | E56: =Controladora!E56 -> 4791 | F56: =Controladora!F56 -> 23030 | G56: =Controladora!G56 -> 4763 | H56: =Controladora!H56 -> 27936 | I56: =Controladora!I56 -> -21186 | J56: =Controladora!J56 -> 8943 | K56: =Controladora!K56 -> 10967 | L56: =Controladora!L56 -> 7118 | M56: =Controladora!M56 -> -18486 | N56: =Controladora!N56 -> 7540 | O56: 6924 | P56: 10513 | Q56: -9205 | R56: 15787 | S56: 20477 | T56: 20012 | U56: 6403 | V56: 18877 | W56: 82733 | X56: 22043 | Y56: -1707 | Z56: 30323 | AA56: 32338 | AB56: 47451 | AC56: 36363 | AD56: 68335 | AE56: 41379 | AF56: 29602 | AG56: 5937 | AH56: 19075 | AI56: 23314 | AJ56: 14352 | AK56: 13944 | AL56: 22867 | AM56: 16501 | AN56: 14822 | AO56: 10192 | AP56: 10657 | AQ56: 10391 | AR56: 6301 | AS56: 6459 | AT56: 6131 | AU56: 6869 | AV56: 7626 | AW56: 4857 | AX56: 6501 | AY56: 8642 | AZ56: 10647 | BA56: 6470 | BB56: 6280.911082 | BC56: 5030.994832 | BD56: 8646 | BE56: 4746.613441 | BF56: 0 | BG56: 0 | BH56: 0 | BJ56: 5842 | BK56: =Controladora!BK56 -> 6491 | BL56: 47071 | BM56: 130056 | BN56: 108405 | BO56: 175679 | BP56: 62678 | BQ56: 68134 | BR56: 37541 | BS56: 27085 | BT56: 30647 | BU56: 26427.90591 | BV56: 4746.613441
B57: Financial expenses | C57: =Controladora!C57 -> -6228 | D57: =Controladora!D57 -> -4710 | E57: =Controladora!E57 -> -11410 | F57: =Controladora!F57 -> 3549 | G57: =Controladora!G57 -> -13543 | H57: =Controladora!H57 -> -12004 | I57: =Controladora!I57 -> -18180 | J57: =Controladora!J57 -> -15412 | K57: =Controladora!K57 -> -10663 | L57: =Controladora!L57 -> -25503 | M57: =Controladora!M57 -> -29595 | N57: =Controladora!N57 -> -31577 | O57: -9381 | P57: -28919 | Q57: -20783 | R57: -15523 | S57: -18831 | T57: -18057 | U57: -16220 | V57: -28933 | W57: -25073 | X57: -25995 | Y57: -25143 | Z57: -33074 | AA57: -38237 | AB57: -46651 | AC57: -39657 | AD57: -51658 | AE57: -61998 | AF57: -63748 | AG57: -67263 | AH57: -68958 | AI57: -56122 | AJ57: -30235 | AK57: -40499 | AL57: -28263 | AM57: -23380 | AN57: -30058 | AO57: -45555 | AP57: -24763 | AQ57: -27076 | AR57: -12304 | AS57: -29057 | AT57: -8282 | AU57: -9164 | AV57: -3318 | AW57: -20794 | AX57: -14817 | AY57: -6449 | AZ57: -2218 | BA57: -21597 | BB57: -1110 | BC57: -1898 | BD57: -2250 | BE57: -18634 | BF57: 0 | BG57: 0 | BH57: 0 | BJ57: -69758 | BK57: =Controladora!BK57 -> -99472 | BL57: -73194 | BM57: -96221 | BN57: -143105 | BO57: -217061 | BP57: -222578 | BQ57: -122200 | BR57: -109698 | BS57: -49821 | BT57: -44278 | BU57: -26855 | BV57: -18634
B58: Other Income | C58: =Controladora!C58 -> 0 | D58: =Controladora!D58 -> 0 | E58: =Controladora!E58 -> 0 | F58: =Controladora!F58 -> 0 | G58: =Controladora!G58 -> 0 | H58: =Controladora!H58 -> 0 | I58: =Controladora!I58 -> 0 | J58: =Controladora!J58 -> 0 | K58: =Controladora!K58 -> 0 | L58: =Controladora!L58 -> 0 | M58: =Controladora!M58 -> 0 | N58: =Controladora!N58 -> 0 | P58: 0 | Q58: 0 | R58: 0 | S58: 0 | T58: 0 | U58: 0 | V58: 0 | W58: 0 | X58: 0 | Y58: 0 | Z58: 0 | AA58: 0 | AB58: 0 | AC58: 0 | AD58: 0 | AE58: 0 | AF58: 0 | AG58: 0 | AH58: 0 | AI58: 0 | AJ58: 0 | AK58: 0 | AL58: 0 | AM58: 0 | AN58: 0 | AO58: 0 | AP58: 0 | AQ58: 0 | AR58: 0 | AS58: 0 | AT58: 0 | AU58: 0 | AV58: 0 | AW58: 0 | AX58: 0 | AY58: 0 | AZ58: 0 | BA58: 0 | BB58: 0 | BC58: 0 | BD58: 0 | BE58: 5965 | BF58: -400 | BG58: 45876 | BH58: -1188 | BJ58: 0 | BK58: =Controladora!BK58 -> 0 | BL58: 0 | BM58: 0 | BN58: 0 | BO58: 0 | BP58: 0 | BQ58: 0 | BR58: 0 | BS58: 0 | BT58: 0 | BU58: 0 | BV58: 50253
B59: Income before income tax and social contribution | C59: =Controladora!C59 -> -226660 | D59: =Controladora!D59 -> 494157 | E59: =Controladora!E59 -> -424344 | F59: =Controladora!F59 -> 521542 | G59: =Controladora!G59 -> 385192 | H59: =Controladora!H59 -> 536660 | I59: =Controladora!I59 -> 814863 | J59: =Controladora!J59 -> 510117 | K59: =Controladora!K59 -> 345443 | L59: =Controladora!L59 -> 495221 | M59: =Controladora!M59 -> 699405 | N59: =Controladora!N59 -> 299215 | O59: 236700 | P59: 270481 | Q59: 501411 | R59: 354053 | S59: 188418 | T59: 295092 | U59: 528719 | V59: 306402 | W59: 248798 | X59: 213742 | Y59: 194605 | Z59: 139496 | AA59: 141422 | AB59: 134974 | AC59: 443 | AD59: 217679 | AE59: 83357 | AF59: 362830 | AG59: 385716 | AH59: 54752 | AI59: 862922 | AJ59: 83152 | AK59: 294670 | AL59: 137325 | AM59: 285107 | AN59: 99585 | AO59: 41484 | AP59: 199392 | AQ59: 44606 | AR59: 90275 | AS59: 151932 | AT59: 10390 | AU59: 39896 | AV59: 142488 | AW59: 82190 | AX59: 92338 | AY59: 126649 | AZ59: 187742 | BA59: 203457 | BB59: 73058.29469 | BC59: 141260.7266 | BD59: 163428 | BE59: 202085.8374 | BF59: 115342 | BG59: 216301 | BH59: 117178 | BJ59: 2165644 | BK59: =Controladora!BK59 -> 1505801 | BL59: 1338974 | BM59: 1297661 | BN59: 610497 | BO59: 664309 | BP59: 1386542 | BQ59: 816687 | BR59: 375757 | BS59: 344706 | BT59: 488919 | BU59: 581204.0213 | BV59: 650906.8374
B60: Income Tax and Social Contribution | C60: =Controladora!C60 -> 3906 | D60: =Controladora!D60 -> -7331 | E60: =Controladora!E60 -> 27437 | F60: =Controladora!F60 -> -7107 | G60: =Controladora!G60 -> -4081 | H60: =Controladora!H60 -> -13862 | I60: =Controladora!I60 -> -5815 | J60: =Controladora!J60 -> 401 | K60: =Controladora!K60 -> -953 | L60: =Controladora!L60 -> 561 | M60: =Controladora!M60 -> 567 | N60: =Controladora!N60 -> 557 | O60: 538 | P60: 554 | Q60: -2118 | R60: -85 | S60: 542 | T60: 543 | U60: -4620 | V60: 540 | W60: -21122 | X60: 374 | Y60: 421 | Z60: 576 | AA60: 576 | AB60: -215 | AC60: 35454 | AD60: -13119 | AE60: 14489 | AF60: -60769 | AG60: -2661 | AH60: 571 | AI60: -118963 | AJ60: 447 | AK60: 22617 | AL60: 5683 | AM60: -101485 | AN60: 0 | AO60: 11 | AP60: 0 | AQ60: 0 | AR60: 0 | AS60: -1243 | AT60: 0 | AU60: 0 | AV60: 0 | AW60: -355 | AX60: 1 | AY60: 2149 | AZ60: 0 | BA60: -2778 | BB60: -98 | BC60: 0 | BD60: 9545 | BE60: -2881 | BF60: 4368 | BG60: -4368 | BH60: 0 | BJ60: -5806 | BK60: =Controladora!BK60 -> 2216 | BL60: -1118 | BM60: -24828 | BN60: 1358 | BO60: -23945 | BP60: -120606 | BQ60: -73185 | BR60: 11 | BS60: -1243 | BT60: 1795 | BU60: 6669 | BV60: -2881
B61: Current income tax and social contribution | C61: =Controladora!C61 -> 3436 | D61: =Controladora!D61 -> -9102 | E61: =Controladora!E61 -> 26952 | F61: =Controladora!F61 -> -9137 | G61: =Controladora!G61 -> -3993 | H61: =Controladora!H61 -> -13822 | I61: =Controladora!I61 -> -5979 | J61: =Controladora!J61 -> 0 | K61: =Controladora!K61 -> 0 | L61: =Controladora!L61 -> 0 | M61: =Controladora!M61 -> 0 | N61: =Controladora!N61 -> 0 | O61: -24 | P61: 0 | Q61: -2118 | R61: -85 | S61: 0 | T61: 0 | U61: 0 | V61: 0 | W61: 0 | X61: 0 | Y61: -19 | Z61: 0 | AA61: 0 | AB61: -791 | AC61: 34878 | AD61: -12545 | AE61: 13917 | AF61: -61340 | AG61: -3233 | AH61: 0 | AI61: -10 | AJ61: 447 | AK61: 22007 | AL61: 3808 | AM61: -31763 | AN61: 0 | AO61: -1995 | AP61: 0 | AQ61: 0 | AR61: 0 | AS61: -1243 | AT61: 0 | AU61: 0 | AV61: 0 | AW61: -354 | AX61: 0 | AY61: 0 | AZ61: 0 | BA61: -2778 | BB61: -98 | BC61: 0 | BD61: -239 | BE61: -2881 | BF61: 4368 | BG61: -4368 | BH61: 0 | BJ61: -5979 | BK61: =Controladora!BK61 -> -24 | BL61: -2203 | BM61: 0 | BN61: -810 | BO61: -25090 | BP61: -2796 | BQ61: -5948 | BR61: -1995 | BS61: -1243 | BT61: -354 | BU61: -3115 | BV61: -2881
B62: Deferred income tax and social contribution | C62: =Controladora!C62 -> 470 | D62: =Controladora!D62 -> 1771 | E62: =Controladora!E62 -> 485 | F62: =Controladora!F62 -> 2030 | G62: =Controladora!G62 -> -88 | H62: =Controladora!H62 -> -40 | I62: =Controladora!I62 -> 164 | J62: =Controladora!J62 -> 401 | K62: =Controladora!K62 -> -953 | L62: =Controladora!L62 -> 561 | M62: =Controladora!M62 -> 567 | N62: =Controladora!N62 -> 557 | O62: 562 | P62: 554 | Q62: 0 | R62: 0 | S62: 0 | T62: 0 | U62: 0 | V62: 0 | W62: 0 | X62: 0 | Y62: 0 | Z62: 0 | AA62: 0 | AB62: 0 | AC62: 0 | AD62: 0 | AE62: 0 | AF62: 0 | AG62: 0 | AH62: 0 | AI62: 0 | AJ62: 0 | AK62: 0 | AL62: 0 | AM62: 0 | AN62: 0 | AO62: 0 | AP62: 0 | AQ62: 0 | AR62: 0 | AS62: 0 | AT62: 0 | AU62: 0 | AV62: 0 | AW62: 0 | AX62: 0 | AY62: 0 | AZ62: 0 | BA62: 0 | BB62: 0 | BC62: 0 | BD62: 0 | BE62: 0 | BF62: 0 | BG62: 0 | BH62: 0 | BJ62: 173 | BK62: =Controladora!BK62 -> 2240 | BL62: 0 | BM62: 0 | BN62: 0 | BO62: 0 | BP62: 0 | BQ62: 0 | BR62: 0 | BS62: 0 | BT62: 0 | BU62: 0 | BV62: 0
B63: Net Income before minority interests | C63: =Controladora!C63 -> -222754 | D63: =Controladora!D63 -> 486826 | E63: =Controladora!E63 -> -396907 | F63: =Controladora!F63 -> 514435 | G63: =Controladora!G63 -> 381111 | H63: =Controladora!H63 -> 522798 | I63: =Controladora!I63 -> 809048 | J63: =Controladora!J63 -> 510518 | K63: =Controladora!K63 -> 344490 | L63: =Controladora!L63 -> 495782 | M63: =Controladora!M63 -> 699972 | N63: =Controladora!N63 -> 299772 | O63: 237238 | P63: 271035 | Q63: 499293 | R63: 353968 | S63: 188960 | T63: 295635 | U63: 524099 | V63: 306942 | W63: 227676 | X63: 214116 | Y63: 195026 | Z63: 140072 | AA63: 141998 | AB63: 134759 | AC63: 35897 | AD63: 230798 | AE63: 97846 | AF63: 302061 | AG63: 383055 | AH63: 55323 | AI63: 743959 | AJ63: 83599 | AK63: 317287 | AL63: 143008 | AM63: 183622 | AN63: 99585 | AO63: 41495 | AP63: 199392 | AQ63: 44606 | AR63: 90275 | AS63: 150689 | AT63: 10390 | AU63: 39896 | AV63: 142488 | AW63: 81835 | AX63: 92339 | AY63: 128798 | AZ63: 187742 | BA63: 200679 | BB63: 72960.29469 | BC63: 141260.7266 | BD63: 172973 | BE63: 199204.8374 | BF63: 119710 | BG63: 211933 | BH63: 117178 | BJ63: 2159838 | BK63: =Controladora!BK63 -> 1508017 | BL63: 1337856 | BM63: 1272833 | BN63: 611855 | BO63: 666602 | BP63: 1265936 | BQ63: 743502 | BR63: 375768 | BS63: 343463 | BT63: 490714 | BU63: 587873.0213 | BV63: 648025.8374
B64: Reversal of interest on equity capital | C64: =Controladora!C64 -> 0 | D64: =Controladora!D64 -> 0 | E64: =Controladora!E64 -> 0 | F64: =Controladora!F64 -> 0 | G64: =Controladora!G64 -> 0 | H64: =Controladora!H64 -> 0 | I64: =Controladora!I64 -> 0 | J64: =Controladora!J64 -> 0 | K64: =Controladora!K64 -> 0 | L64: =Controladora!L64 -> 0 | M64: =Controladora!M64 -> 0 | N64: =Controladora!N64 -> 0 | O64: 0 | P64: 0 | Q64: - | R64: - | S64: 0 | T64: 0 | U64: 0 | V64: 0 | W64: 0 | X64: 0 | Y64: 0 | Z64: 0 | AA64: 0 | AB64: 0 | AC64: 0 | AD64: 0 | AE64: 0 | AF64: 0 | AG64: 0 | AH64: 0 | AI64: 0 | AJ64: 0 | AK64: 0 | AL64: 0 | AM64: 0 | AN64: 0 | AO64: 0 | AP64: 0 | AQ64: 0 | AR64: 0 | AS64: 0 | AT64: 0 | AU64: 0 | AV64: 0 | AW64: 0 | AX64: 0 | AY64: 0 | AZ64: 0 | BA64: 0 | BB64: 0 | BC64: 0 | BD64: 0 | BE64: 0 | BF64: 0 | BH64: 0 | BJ64: 0 | BK64: =Controladora!BK64 -> 0 | BL64: 0 | BM64: 0 | BN64: 0 | BO64: 0 | BP64: 0 | BQ64: 0 | BR64: 0 | BS64: 0 | BT64: 0 | BU64: 0 | BV64: 0
B65: Minority interests | C65: =Controladora!C65 -> 0 | D65: =Controladora!D65 -> 0 | E65: =Controladora!E65 -> 0 | F65: =Controladora!F65 -> 0 | G65: =Controladora!G65 -> 0 | H65: =Controladora!H65 -> 0 | I65: =Controladora!I65 -> 0 | J65: =Controladora!J65 -> 0 | K65: =Controladora!K65 -> 0 | L65: =Controladora!L65 -> 0 | M65: =Controladora!M65 -> 0 | N65: =Controladora!N65 -> 0 | O65: 0 | P65: 0 | Q65: - | R65: - | S65: 0 | T65: 0 | U65: 0 | V65: 0 | W65: 0 | X65: 0 | Y65: 0 | Z65: 0 | AA65: 0 | AB65: 0 | AC65: 0 | AD65: 0 | AE65: 0 | AF65: 0 | AG65: 0 | AH65: 0 | AI65: 0 | AJ65: 0 | AK65: 0 | AL65: 0 | AM65: 0 | AN65: 0 | AO65: 0 | AP65: 0 | AQ65: 0 | AR65: 0 | AS65: 0 | AT65: 0 | AU65: 0 | AV65: 0 | AW65: 0 | AX65: 0 | AY65: 0 | AZ65: 0 | BA65: 0 | BB65: 0 | BC65: 0 | BD65: 0 | BE65: 0 | BF65: 0 | BG65: 0 | BH65: 0 | BJ65: 0 | BK65: =Controladora!BK65 -> 0 | BL65: 0 | BM65: 0 | BN65: 0 | BO65: 0 | BP65: 0 | BQ65: 0 | BR65: 0 | BS65: 0 | BT65: 0 | BU65: 0 | BV65: 0
B66: Founders' shares | C66: =Controladora!C66 -> 0 | D66: =Controladora!D66 -> 0 | E66: =Controladora!E66 -> 0 | F66: =Controladora!F66 -> 0 | G66: =Controladora!G66 -> 0 | H66: =Controladora!H66 -> 0 | I66: =Controladora!I66 -> 0 | J66: =Controladora!J66 -> 0 | K66: =Controladora!K66 -> 0 | L66: =Controladora!L66 -> 0 | M66: =Controladora!M66 -> 0 | N66: =Controladora!N66 -> 0 | O66: 0 | P66: 0 | Q66: - | R66: - | S66: 0 | T66: 0 | U66: 0 | V66: 0 | W66: 0 | X66: 0 | Y66: 0 | Z66: 0 | AA66: 0 | AB66: 0 | AC66: 0 | AD66: 0 | AE66: 0 | AF66: 0 | AG66: 0 | AH66: 0 | AI66: 0 | AJ66: 0 | AK66: 0 | AL66: 0 | AM66: 0 | AN66: 0 | AO66: 0 | AP66: 0 | AQ66: 0 | AR66: 0 | AS66: 0 | AT66: 0 | AU66: 0 | AV66: 0 | AW66: 0 | AX66: 0 | AY66: 0 | AZ66: 0 | BA66: 0 | BB66: 0 | BC66: 0 | BD66: 0 | BE66: 0 | BF66: 0 | BG66: 0 | BH66: 0 | BJ66: 0 | BK66: =Controladora!BK66 -> 0 | BL66: 0 | BM66: 0 | BN66: 0 | BO66: 0 | BP66: 0 | BQ66: 0 | BR66: 0 | BS66: 0 | BT66: 0 | BU66: 0 | BV66: 0
B67: Net Income | C67: =Controladora!C67 -> -222754 | D67: =Controladora!D67 -> 486826 | E67: =Controladora!E67 -> -396907 | F67: =Controladora!F67 -> 514435 | G67: =Controladora!G67 -> 381111 | H67: =Controladora!H67 -> 522798 | I67: =Controladora!I67 -> 809048 | J67: =Controladora!J67 -> 510518 | K67: =Controladora!K67 -> 344490 | L67: =Controladora!L67 -> 495782 | M67: =Controladora!M67 -> 699972 | N67: =Controladora!N67 -> 299772 | O67: 237238 | P67: 271035 | Q67: 499293 | R67: 353968 | S67: 188960 | T67: 295635 | U67: 524099 | V67: 306942 | W67: 227676 | X67: 214116 | Y67: 195026 | Z67: 140072 | AA67: 141998 | AB67: 134759 | AC67: 35897 | AD67: 230798 | AE67: 97846 | AF67: 302061 | AG67: 383055 | AH67: 55323 | AI67: 743959 | AJ67: 83599 | AK67: 317287 | AL67: 143008 | AM67: 183622 | AN67: 99585 | AO67: 41495 | AP67: 199392 | AQ67: 44606 | AR67: 90275 | AS67: 150689 | AT67: 10390 | AU67: 39896 | AV67: 142488 | AW67: 81835 | AX67: 92339 | AY67: 128798 | AZ67: 187742 | BA67: 200679 | BB67: 72960.29469 | BC67: 141260.7266 | BD67: 172973 | BE67: 199204.8374 | BF67: 119710 | BG67: 211933 | BH67: 117178 | BJ67: 2159838 | BK67: =Controladora!BK67 -> 1508017 | BL67: 1337856 | BM67: 1272833 | BN67: 611855 | BO67: 666602 | BP67: 1265936 | BQ67: 743502 | BR67: 375768 | BS67: 343463 | BT67: 490714 | BU67: 587873.0213 | BV67: 648025.8374

Sheet EDP SP
B2: EDP SP
B4: R$ Mil | C4: 2023-06-01 | D4: 2023-03-01 | E4: 2022-12-01 | F4: 2022-09-01 | G4: 2022-06-01 | H4: 2022-03-01 | I4: 2021-12-01 | J4: 2021-09-01 | K4: 2021-06-30 | L4: 2021-03-31 | M4: 2020-12-30 | N4: 2020-09-30 | O4: 2020-06-30 | P4: 2020-03-31 | Q4: 2019-12-30 | R4: 2019-09-30 | S4: 2019-06-30 | T4: 2019-03-31 | U4: 2018-12-30 | V4: 2018-09-30 | W4: 2018-06-30 | X4: 2018-03-31 | Y4: 2017-12-31 | Z4: 2017-09-30 | AA4: 2017-06-30 | AB4: 2017-03-31 | AC4: 2016-12-31 | AD4: 2016-09-30 | AE4: 2016-06-30 | AF4: 2016-03-31 | AG4: 2015-12-31 | AH4: 2015-09-30 | AI4: 2015-06-30 | AJ4: 2015-03-31 | AK4: 2014-12-31 | AL4: 2014-09-30 | AM4: 2014-06-30 | AN4: 2014-03-31 | AO4: 2013-12-31 | AP4: 2013-09-30 | AQ4: 2013-06-30 | AR4: 2013-03-31 | AS4: 2012-12-30 | AT4: 2012-09-30 | AU4: 2012-06-30 | AV4: 2012-03-31 | AW4: 2011-12-31 | AX4: 2011-09-30 | AY4: 2011-06-30 | AZ4: 2011-03-31 | BA4: 2010-12-31 | BB4: 2010-09-30 | BC4: 2010-06-30 | BD4: 2010-03-31 | BE4: 2009-12-31 | BF4: 2009-09-30 | BG4: 2009-06-30 | BH4: 2009-03-31
C5: 2T23 | D5: 1T23 | E5: 4T22 | F5: 3T22 | G5: 2T22 | H5: 1T22 | I5: 4T21 | J5: 3T21 | K5: 2T21 | L5: 1T21 | M5: 4T20 | N5: 3T20 | O5: 2T20 | P5: 1T20 | Q5: 4T19 | R5: 3T19 | S5: 2T19 | T5: 1T19 | U5: 4T18 | V5: 3T18 | W5: 2T18 | X5: 1T18 | Y5: 4T17 | Z5: 3T17 | AA5: 2T17 | AB5: 1T17 | AC5: 4T16 | AD5: 3T16 | AE5: 2T16 | AF5: 1T16 | AG5: 4T15 | AH5: 3T15 | AI5: 2T15 | AJ5: 1T15 | AK5: 4T14 | AL5: 3T14 | AM5: 2T14 | AN5: 1T14 | AO5: 4T13 | AP5: 3T13 | AQ5: 2T13 | AR5: 1T13 | AS5: 4T12 | AT5: 3T12 | AU5: 2T12 | AV5: 1T12 | AW5: 4T11 | AX5: 3T11 | AY5: 2T11 | AZ5: 1T11 | BA5: 4T10 | BB5: 3T10 | BC5: 2T10 | BD5: 1T10 | BE5: 4T09 | BF5: 3T09 | BG5: 2T09 | BH5: 1T09 | BJ5: 2021 | BK5: 2020 | BL5: 2019 | BM5: 2018 | BN5: 2017 | BO5: 2016 | BP5: 2015 | BQ5: 2014 | BR5: 2013 | BS5: 2012 | BT5: 2011 | BU5: 2010 | BV5: 2009
A7: Receitas | B7: Receita operacional líquida | C7: 1189509 | D7: 1264416 | E7: 1281498 | F7: 1169561 | G7: 1197817 | H7: 1183852 | I7: 1609256 | J7: 1926234 | K7: 1262818 | L7: 1144116 | M7: 1373677 | N7: 1053556 | O7: 886299 | P7: 987784 | Q7: 1065068 | R7: 1151065 | S7: 907839 | T7: 950575 | U7: 876575 | V7: 1124468 | W7: 1002874 | X7: 866486 | Y7: 1114463 | Z7: 1005066 | AA7: 807161 | AB7: 778335 | AC7: 752153 | AD7: 733163 | AE7: 694022 | AF7: 714446 | AG7: 1177283 | AH7: 790758 | AI7: 968275 | AJ7: 842193 | AK7: 1053107 | AL7: 667102 | AM7: 618806 | AN7: 721446 | AO7: 640061 | AP7: 587762 | AQ7: 587504 | AR7: 643134 | AS7: 701128 | AT7: 581990 | AU7: 569164 | AV7: 608024 | AW7: 580746 | AX7: 592217 | AY7: 623084 | AZ7: 614578 | BA7: 606052 | BB7: 566449 | BC7: 553025 | BD7: 533730 | BE7: 523368 | BF7: 557458 | BG7: 510827 | BH7: 500575 | BJ7: =SUM(I7:L7) -> 5942424 | BK7: =SUM(M7:P7) -> 4301316 | BL7: 4074547 | BM7: 3870403 | BN7: 3705025 | BO7: 2893784 | BP7: 3778509 | BQ7: 3060461 | BR7: 2458461 | BS7: 2460306 | BT7: 2410625 | BU7: 2259256 | BV7: 2092228
B8: Receita com construção da infraestrutura | C8: =-C45 -> 191711 | D8: =-D45 -> 221125 | E8: 249166 | F8: =-F45 -> 231417 | G8: 179407 | H8: 198882 | I8: 148574 | J8: 149191 | K8: 123122 | L8: 97100 | M8: 100954 | N8: 81907 | O8: 93155 | P8: 91305 | Q8: 105904 | R8: 86435 | S8: 70334 | T8: 66300 | U8: 108247 | V8: 88981 | W8: 66366 | X8: 55089 | Y8: 56213 | Z8: 66024 | AA8: 70013 | AB8: 77492 | AC8: 75793 | AD8: 79963 | AE8: 55832 | AF8: 34760 | AG8: 72403 | AH8: 37803 | AI8: 25987 | AJ8: 25392 | AK8: 23248 | AL8: 45983 | AM8: 34634 | AN8: 34324 | AO8: 63921 | AP8: 42231 | AQ8: 27566 | AR8: 13673 | AS8: 34953 | AT8: 27960 | AU8: -1783 | AV8: 35653 | AW8: 33489 | AX8: 57954 | AY8: 82639 | AZ8: 0 | BA8: 0 | BB8: 0 | BC8: 0 | BD8: 0 | BE8: 0 | BF8: 0 | BG8: 0 | BH8: 0 | BJ8: =SUM(I8:L8) -> 517987 | BK8: =SUM(M8:P8) -> 367321 | BL8: 55705 | BM8: 318683 | BN8: 269742 | BO8: 246348 | BP8: 161585 | BQ8: 138189 | BR8: 147391 | BS8: 96783 | BT8: 174082 | BU8: 0 | BV8: 0
B9: Margem de Construção Transmissão | O9: 0 | P9: 0 | Q9: 0 | R9: 0 | S9: 0 | T9: 0 | U9: 0 | V9: 0 | W9: 0 | X9: 0 | Y9: 0 | Z9: 0 | AA9: 0 | AB9: 0 | AC9: 0 | AD9: 0 | AE9: 0 | AF9: 0 | AG9: 0 | AH9: 0 | AI9: 0 | AJ9: 0 | AK9: 0 | AL9: 0 | AM9: 0 | AN9: 0 | AO9: 0 | AP9: 0 | AQ9: 0 | AR9: 0 | AS9: 0 | AT9: 0 | AU9: 0 | AV9: 0 | AW9: 0 | AX9: 0 | AY9: 0 | AZ9: 0 | BA9: 0 | BB9: 0 | BC9: 0 | BD9: 0 | BE9: 0 | BF9: 0 | BG9: 0 | BH9: 0 | BJ9: 0 | BK9: 0 | BL9: 0 | BM9: 0 | BN9: 0 | BO9: 0 | BP9: 0 | BQ9: 0 | BR9: 0 | BS9: 0 | BT9: 0 | BU9: 0 | BV9: 0
B10: Gastos não gerenciáveis | C10: =SUM(C11:C22) -> -792396 | D10: =SUM(D11:D22) -> -786958 | E10: -825818 | F10: =SUM(F11:F22) -> -790816 | G10: -736410 | H10: -702501 | I10: -1223766 | J10: -1583550 | K10: -968220 | L10: -780345 | M10: -982149 | N10: -782360 | O10: -657130 | P10: -721207 | Q10: -787723 | R10: -788258 | S10: -674804 | T10: -681693 | U10: -635345 | V10: -906678 | W10: -772690 | X10: -616887 | Y10: -897407 | Z10: -796073 | AA10: -584260 | AB10: -539252 | AC10: -571092 | AD10: -526172 | AE10: -482035 | AF10: -532381 | AG10: -897632 | AH10: -561628 | AI10: -785542 | AJ10: -593390 | AK10: -561510 | AL10: -506784 | AM10: -544045 | AN10: -556865 | AO10: -510076 | AP10: -214406 | AQ10: -453760 | AR10: -474401 | AS10: -565233 | AT10: -471266 | AU10: -466280 | AV10: -425961 | AW10: -417769 | AX10: -383265 | AY10: -383631 | AZ10: -368686 | BA10: -413796 | BB10: -381960 | BC10: -345513 | BD10: -326168 | BE10: -299425 | BF10: -353374.5964 | BG10: -314057.4036 | BH10: -327837 | BJ10: -4555881 | BK10: -3142846 | BL10: -2932478 | BM10: -2931600 | BN10: -2816992 | BO10: -2111680 | BP10: -2838192 | BQ10: -2169204 | BR10: -1652643 | BS10: -1928740 | BT10: -1553351 | BU10: -1467437 | BV10: -1294694
A11: Energia elétrica comprada para revenda | B11: Energia comprada para revenda | C11: -593135 | D11: -592694 | E11: -629129 | F11: -623593 | G11: -594903 | H11: -560914 | I11: -1086089 | J11: -1447944 | K11: -812719 | L11: -625484 | M11: -823253 | N11: -635565 | O11: -551826 | P11: -607448 | Q11: -660798 | R11: -664097 | S11: -563092 | T11: -569934 | U11: -523576 | V11: -802561 | W11: -628398 | X11: -477002 | Y11: -770633 | Z11: -726752 | AA11: -531872 | AB11: -486994 | AC11: -519497 | AD11: -475833 | AE11: -431812 | AF11: -481352 | AG11: -846847 | AH11: -511283 | AI11: -728004 | AJ11: -536102 | AK11: -497372 | AL11: -445406 | AM11: -499630 | AN11: -514282 | AO11: -471121 | AP11: -192635 | AQ11: -419153 | AR11: -438377 | AS11: -476243 | AT11: -424735 | AU11: -367748 | AV11: -325846 | AW11: -317051 | AX11: -290557 | AY11: -293071 | AZ11: -277073 | BA11: -320601 | BB11: -292204 | BC11: -253924 | BD11: -236710 | BE11: -250377 | BF11: -304243.5212 | BG11: -268226.4788 | BH11: -280130 | BJ11: -3972236 | BK11: -2618092 | BL11: -2457921 | BM11: -2431537 | BN11: -2516251 | BO11: -1908494 | BP11: -2622236 | BQ11: -1956690 | BR11: -1521286 | BS11: -1594572 | BT11: -1177752 | BU11: -1103439 | BV11: -1102977
B12: Moeda estrangeira - Itaipu | O12: 0 | P12: 0 | Q12: 0 | R12: 0 | S12: 0 | T12: 0 | U12: 0 | V12: 0 | W12: 0 | X12: 0 | Y12: 0 | Z12: 0 | AA12: 0 | AB12: 0 | AC12: 0 | AD12: 0 | AE12: 0 | AF12: 0 | AG12: -207193 | AH12: -181895 | AI12: -150869 | AJ12: -138970 | AK12: -84826 | AL12: -79952 | AM12: -75990 | AN12: -78610 | AO12: -81927 | AP12: -81183 | AQ12: -77669 | AR12: -70521 | AS12: -70682 | AT12: -70831 | AU12: -68468 | AV12: -59938 | AW12: -62323 | AX12: -59127 | AY12: -53197 | AZ12: -57086 | BA12: -58777 | BB12: -60211 | BC12: -61352 | BD12: -62839 | BE12: -62073 | BF12: -65970 | BG12: -72247 | BH12: -82639 | BJ12: 0 | BK12: 0 | BL12: 0 | BM12: 0 | BN12: 0 | BO12: 0 | BP12: -678927 | BQ12: -319378 | BR12: -311300 | BS12: -269919 | BT12: -231733 | BU12: -243179 | BV12: -282929
B13: Moeda nacional | O13: 0 | P13: 0 | Q13: 0 | R13: 0 | S13: 0 | T13: 0 | U13: 0 | V13: 0 | W13: 0 | X13: 0 | Y13: 0 | Z13: 0 | AA13: 0 | AB13: 0 | AC13: 0 | AD13: 0 | AE13: 0 | AF13: 0 | AG13: -447254 | AH13: -440424 | AI13: -593054 | AJ13: -493233 | AK13: -501104 | AL13: -438840 | AM13: -423640 | AN13: -791289 | AO13: -389194 | AP13: -111452 | AQ13: -341484 | AR13: -367856 | AS13: -405561 | AT13: -353904 | AU13: -299280 | AV13: -265908 | AW13: -254728 | AX13: -231430 | AY13: -239874 | AZ13: -219987 | BA13: -261824 | BB13: -231993 | BC13: -192572 | BD13: -173871 | BE13: -188304 | BF13: -238273.2311 | BG13: -195979.7689 | BH13: -197491 | BJ13: 0 | BK13: 0 | BL13: 0 | BM13: 0 | BN13: 0 | BO13: 0 | BP13: -1973965 | BQ13: -2154873 | BR13: -1209986 | BS13: -1324653 | BT13: -946019 | BU13: -860260 | BV13: -820048
B14: Ressarcimento CDE / CCEE / CONER | O14: 0 | P14: 0 | Q14: 0 | R14: 0 | S14: 0 | T14: 0 | U14: 0 | V14: 0 | W14: 0 | X14: 0 | Y14: 0 | Z14: 0 | AA14: 0 | AB14: 0 | AC14: 0 | AD14: 0 | AE14: 0 | AF14: 0 | AG14: -192400 | AH14: 111036 | AI14: 15919 | AJ14: 96101 | AK14: 88558 | AL14: 73386 | AM14: 0 | AN14: 355617 | AO14: 0 | AP14: 0 | AQ14: 0 | AR14: 0 | AS14: 0 | AT14: 0 | AU14: 0 | AV14: 0 | AW14: 0 | AX14: 0 | AY14: 0 | AZ14: 0 | BA14: 0 | BB14: 0 | BC14: 0 | BD14: 0 | BE14: 0 | BF14: 0 | BG14: 0 | BH14: 0 | BJ14: 0 | BK14: 0 | BL14: 0 | BM14: 0 | BN14: 0 | BO14: 0 | BP14: 30656 | BQ14: 517561 | BR14: 0 | BS14: 0 | BT14: 0 | BU14: 0 | BV14: 0
B15: Leilão | O15: 0 | P15: 0 | Q15: 0 | R15: 0 | S15: 0 | T15: 0 | U15: 0 | V15: 0 | W15: 0 | X15: 0 | Y15: 0 | Z15: 0 | AA15: 0 | AB15: 0 | AC15: 0 | AD15: 0 | AE15: 0 | AF15: 0 | AG15: 0 | AH15: 0 | AI15: 0 | AJ15: 0 | AK15: 0 | AL15: 0 | AM15: 0 | AN15: 0 | AO15: 0 | AP15: 0 | AQ15: 0 | AR15: 0 | AS15: 0 | AT15: 0 | AU15: 0 | AV15: 0 | AW15: 0 | AX15: 0 | AY15: 0 | AZ15: 0 | BA15: 0 | BB15: 0 | BC15: 0 | BD15: 0 | BE15: -117160 | BF15: -108222 | BG15: -103442 | BH15: -76085 | BJ15: 0 | BK15: 0 | BL15: 0 | BM15: 0 | BN15: 0 | BO15: 0 | BP15: 0 | BQ15: 0 | BR15: 0 | BS15: 0 | BT15: 0 | BU15: 0 | BV15: -404909
B16: PROINFA | O16: 0 | P16: 0 | Q16: 0 | R16: 0 | S16: 0 | T16: 0 | U16: 0 | V16: 0 | W16: 0 | X16: 0 | Y16: 0 | Z16: 0 | AA16: 0 | AB16: 0 | AC16: 0 | AD16: 0 | AE16: 0 | AF16: 0 | AG16: 0 | AH16: 0 | AI16: 0 | AJ16: 0 | AK16: 0 | AL16: 0 | AM16: 0 | AN16: 0 | AO16: 0 | AP16: 0 | AQ16: 0 | AR16: 0 | AS16: 0 | AT16: 0 | AU16: 0 | AV16: 0 | AW16: 0 | AX16: 0 | AY16: 0 | AZ16: 0 | BA16: 0 | BB16: 0 | BC16: 0 | BD16: 0 | BE16: 23295 | BF16: -41601.12232 | BG16: -9194.877685 | BH16: -11368 | BJ16: 0 | BK16: 0 | BL16: 0 | BM16: 0 | BN16: 0 | BO16: 0 | BP16: 0 | BQ16: 0 | BR16: 0 | BS16: 0 | BT16: 0 | BU16: 0 | BV16: -38869
B17: Contratos bilaterais | O17: 0 | P17: 0 | Q17: 0 | R17: 0 | S17: 0 | T17: 0 | U17: 0 | V17: 0 | W17: 0 | X17: 0 | Y17: 0 | Z17: 0 | AA17: 0 | AB17: 0 | AC17: 0 | AD17: 0 | AE17: 0 | AF17: 0 | AG17: 0 | AH17: 0 | AI17: 0 | AJ17: 0 | AK17: 0 | AL17: 0 | AM17: 0 | AN17: 0 | AO17: 0 | AP17: 0 | AQ17: 0 | AR17: 0 | AS17: 0 | AT17: 0 | AU17: 0 | AV17: 0 | AW17: 0 | AX17: 0 | AY17: 0 | AZ17: 0 | BA17: 0 | BB17: 0 | BC17: 0 | BD17: 0 | BE17: -334197 | BF17: 0 | BG17: 0 | BH17: 0 | BJ17: 0 | BK17: 0 | BL17: 0 | BM17: 0 | BN17: 0 | BO17: 0 | BP17: 0 | BQ17: 0 | BR17: 0 | BS17: 0 | BT17: 0 | BU17: 0 | BV17: -334197
B18: Energia de curto prazo - CCEE | O18: 0 | P18: 0 | Q18: 0 | R18: 0 | S18: 0 | T18: 0 | U18: 0 | V18: 0 | W18: 0 | X18: 0 | Y18: 0 | Z18: 0 | AA18: 0 | AB18: 0 | AC18: 0 | AD18: 0 | AE18: 0 | AF18: 0 | AG18: 0 | AH18: 0 | AI18: 0 | AJ18: 0 | AK18: 0 | AL18: 0 | AM18: 0 | AN18: 0 | AO18: 0 | AP18: 0 | AQ18: 0 | AR18: 0 | AS18: 0 | AT18: 0 | AU18: 0 | AV18: 0 | AW18: 0 | AX18: 0 | AY18: 0 | AZ18: 0 | BA18: 0 | BB18: 0 | BC18: 0 | BD18: 0 | BE18: -568 | BF18: -3076 | BG18: -7940 | BH18: -22690 | BJ18: 0 | BK18: 0 | BL18: 0 | BM18: 0 | BN18: 0 | BO18: 0 | BP18: 0 | BQ18: 0 | BR18: 0 | BS18: 0 | BT18: 0 | BU18: 0 | BV18: -34274
B19: Outros supridores | O19: 0 | P19: 0 | Q19: 0 | R19: 0 | S19: 0 | T19: 0 | U19: 0 | V19: 0 | W19: 0 | X19: 0 | Y19: 0 | Z19: 0 | AA19: 0 | AB19: 0 | AC19: 0 | AD19: 0 | AE19: 0 | AF19: 0 | AG19: 0 | AH19: 0 | AI19: 0 | AJ19: 0 | AK19: 0 | AL19: 0 | AM19: 0 | AN19: 0 | AO19: 0 | AP19: 0 | AQ19: 0 | AR19: 0 | AS19: 0 | AT19: 0 | AU19: 0 | AV19: 0 | AW19: 0 | AX19: 0 | AY19: 0 | AZ19: 0 | BA19: 0 | BB19: 0 | BC19: 0 | BD19: 0 | BE19: 240326 | BF19: -85374.10875 | BG19: -75402.89125 | BH19: -87348 | BJ19: 0 | BK19: 0 | BL19: 0 | BM19: 0 | BN19: 0 | BO19: 0 | BP19: 0 | BQ19: 0 | BR19: 0 | BS19: 0 | BT19: 0 | BU19: 0 | BV19: -7799
B20: Efeito líquido da CVA | O20: 0 | P20: 0 | Q20: 0 | R20: 0 | S20: 0 | T20: 0 | U20: 0 | V20: 0 | W20: 0 | X20: 0 | Y20: 0 | Z20: 0 | AA20: 0 | AB20: 0 | AC20: 0 | AD20: 0 | AE20: 0 | AF20: 0 | AG20: 0 | AH20: 0 | AI20: 0 | AJ20: 0 | AK20: 0 | AL20: 0 | AM20: 0 | AN20: 0 | AO20: 0 | AP20: 0 | AQ20: 0 | AR20: 0 | AS20: 0 | AT20: 0 | AU20: 0 | AV20: 0 | AW20: 0 | AX20: 0 | AY20: 0 | AZ20: 0 | BA20: 0 | BB20: 0 | BC20: 0 | BD20: 0 | BE20: 0 | BF20: -0.29014 | BG20: 0.29014 | BH20: 0 | BJ20: 0 | BK20: 0 | BL20: 0 | BM20: 0 | BN20: 0 | BO20: 0 | BP20: 0 | BQ20: 0 | BR20: 0 | BS20: 0 | BT20: 0 | BU20: 0 | BV20: 0
A21: Encargos de uso da rede elétrica | B21: Encargos de uso do sistema | C21: -199006 | D21: -193998 | E21: -196456 | F21: -166942 | G21: -141215 | H21: -141305 | I21: -137407 | J21: -135345 | K21: -155235 | L21: -154594 | M21: -158658 | N21: -146531 | O21: -105041 | P21: -113495 | Q21: -126680 | R21: -123918 | S21: -111472 | T21: -111512 | U21: -111637 | V21: -103868 | W21: -143992 | X21: -139614 | Y21: -125509 | Z21: -69321 | AA21: -52388 | AB21: -52258 | AC21: -51595 | AD21: -50339 | AE21: -50223 | AF21: -51029 | AG21: -50785 | AH21: -50345 | AI21: -57538 | AJ21: -57288 | AK21: -62947 | AL21: -60615 | AM21: -43652 | AN21: -41820 | AO21: -38192 | AP21: -20184 | AQ21: -33020 | AR21: -34437 | AS21: -87403 | AT21: -44958 | AU21: -96959 | AV21: -98542 | AW21: -99145 | AX21: -91186 | AY21: -89038 | AZ21: -90091 | BA21: -91673 | BB21: -88386 | BC21: -90219 | BD21: -88089 | BE21: -84482 | BF21: -80874.07516 | BG21: -76475.92484 | BH21: -77176 | BJ21: -582581 | BK21: -523725 | BL21: -473582 | BM21: -499111 | BN21: -299476 | BO21: -203186 | BP21: -215956 | BQ21: -209034 | BR21: -125833 | BS21: -327862 | BT21: -369460 | BU21: -358367 | BV21: -319008
B22: Outras | C22: -255 | D22: -266 | E22: -233 | F22: -281 | G22: -292 | H22: -282 | I22: -270 | J22: -261 | K22: -266 | L22: -267 | M22: -238 | N22: -264 | O22: -263 | P22: -264 | Q22: -245 | R22: -243 | S22: -240 | T22: -247 | U22: -132 | V22: -249 | W22: -300 | X22: -271 | Y22: -1265 | Z22: 0 | AA22: 0 | AB22: 0 | AC22: 0 | AD22: 0 | AE22: 0 | AF22: 0 | AG22: 0 | AH22: 0 | AI22: 0 | AJ22: 0 | AK22: -1191 | AL22: -763 | AM22: -763 | AN22: -763 | AO22: -763 | AP22: -1587 | AQ22: -1587 | AR22: -1587 | AS22: -1587 | AT22: -1573 | AU22: -1573 | AV22: -1573 | AW22: -1573 | AX22: -1522 | AY22: -1522 | AZ22: -1522 | BA22: -1522 | BB22: -1370 | BC22: -1370 | BD22: -1369 | BE22: 35434 | BF22: 31743 | BG22: 30645 | BH22: 29469 | BJ22: -1064 | BK22: -1029 | BL22: -975 | BM22: -952 | BN22: -1265 | BO22: 0 | BP22: 0 | BQ22: -3480 | BR22: -5524 | BS22: -6306 | BT22: -6139 | BU22: -5631 | BV22: 127291
B23: Programa de eficiência energética | Q23: 0 | R23: 0 | S23: 0 | T23: 0 | U23: 0 | V23: 0 | W23: 0 | X23: 0 | Y23: 0 | Z23: 0 | AA23: 0 | AB23: 0 | AC23: 0 | AD23: 0 | AE23: 0 | AF23: 0 | AH23: 0 | AI23: 0 | AJ23: 0 | AK23: 0 | AL23: 0 | AM23: 0 | AN23: 0 | AO23: 0 | AP23: 0 | AQ23: 0 | AR23: 0 | AS23: 0 | AT23: 0 | AU23: 0 | AV23: 0 | AW23: 0 | AX23: 0 | AY23: 0 | AZ23: 0 | BA23: 0 | BB23: 0 | BC23: 0 | BD23: 0 | BE23: 0 | BF23: 0 | BG23: 0 | BH23: 0 | BJ23: 0 | BK23: 0 | BL23: 0 | BM23: 0 | BN23: 0 | BO23: 0 | BP23: 0 | BQ23: 0 | BR23: 0 | BS23: 0 | BT23: 0 | BU23: 0 | BV23: 0
B24: PIS/Cofins | Q24: 0 | R24: 0 | S24: 0 | T24: 0 | U24: 0 | V24: 0 | W24: 0 | X24: 0 | Y24: 0 | Z24: 0 | AA24: 0 | AB24: 0 | AC24: 0 | AD24: 0 | AE24: 0 | AF24: 0 | AH24: 0 | AI24: 0 | AJ24: 0 | AK24: 0 | AL24: 0 | AM24: 0 | AN24: 0 | AO24: 0 | AP24: 0 | AQ24: 0 | AR24: 0 | AS24: 0 | AT24: 0 | AU24: 0 | AV24: 0 | AW24: 0 | AX24: 0 | AY24: 0 | AZ24: 0 | BA24: 0 | BB24: 0 | BC24: 0 | BD24: 0 | BE24: 36804 | BF24: 33016 | BG24: 31918 | BH24: 30742 | BJ24: 0 | BK24: 0 | BL24: 0 | BM24: 0 | BN24: 0 | BO24: 0 | BP24: 0 | BQ24: 0 | BR24: 0 | BS24: 0 | BT24: 0 | BU24: 0 | BV24: 132480
B25: Taxa de fiscalização | Q25: 0 | R25: 0 | S25: 0 | T25: 0 | U25: 0 | V25: 0 | W25: 0 | X25: 0 | Y25: 0 | Z25: 0 | AA25: 0 | AB25: 0 | AC25: 0 | AD25: 0 | AE25: 0 | AF25: 0 | AG25: 0 | AH25: 0 | AI25: 0 | AJ25: 0 | AK25: -1191 | AL25: -763 | AM25: -763 | AN25: -763 | AO25: -763 | AP25: -1587 | AQ25: -1587 | AR25: -1587 | AS25: -1587 | AT25: -1573 | AU25: -1573 | AV25: -1573 | AW25: -1573 | AX25: -1522 | AY25: -1522 | AZ25: -1522 | BA25: -1522 | BB25: -1370 | BC25: -1370 | BD25: -1369 | BE25: -1370 | BF25: -1273 | BG25: -1273 | BH25: -1273 | BJ25: 0 | BK25: 0 | BL25: 0 | BM25: 0 | BN25: 0 | BO25: 0 | BP25: 0 | BQ25: -3480 | BR25: -5524 | BS25: -6306 | BT25: -6139 | BU25: -5631 | BV25: -5189
B26: Direito de outorga - UBP | Q26: 0 | R26: 0 | S26: 0 | T26: 0 | U26: 0 | V26: 0 | W26: 0 | X26: 0 | Y26: 0 | Z26: 0 | AA26: 0 | AB26: 0 | AC26: 0 | AD26: 0 | AE26: 0 | AF26: 0 | AH26: 0 | AI26: 0 | AJ26: 0 | AK26: 0 | AL26: 0 | AM26: 0 | AN26: 0 | AO26: 0 | AP26: 0 | AQ26: 0 | AR26: 0 | AS26: 0 | AT26: 0 | AU26: 0 | AV26: 0 | AW26: 0 | AX26: 0 | AY26: 0 | AZ26: 0 | BA26: 0 | BB26: 0 | BC26: 0 | BD26: 0 | BE26: 0 | BF26: 0 | BG26: 0 | BH26: 0 | BJ26: 0 | BK26: 0 | BL26: 0 | BM26: 0 | BN26: 0 | BO26: 0 | BP26: 0 | BQ26: 0 | BR26: 0 | BS26: 0 | BT26: 0 | BU26: 0 | BV26: 0
B27: Compensações financeiras | Q27: 0 | R27: 0 | S27: 0 | T27: 0 | U27: 0 | V27: 0 | W27: 0 | X27: 0 | Y27: 0 | Z27: 0 | AA27: 0 | AB27: 0 | AC27: 0 | AD27: 0 | AE27: 0 | AF27: 0 | AG27: 0 | AH27: 0 | AI27: 0 | AJ27: 0 | AK27: 0 | AL27: 0 | AM27: 0 | AN27: 0 | AO27: 0 | AP27: 0 | AQ27: 0 | AR27: 0 | AT27: 0 | AU27: 0 | AV27: 0 | AW27: 0 | AX27: 0 | AY27: 0 | AZ27: 0 | BA27: 0 | BB27: 0 | BC27: 0 | BD27: 0 | BE27: 0 | BF27: 0 | BG27: 0 | BH27: 0 | BJ27: 0 | BK27: 0 | BL27: 0 | BM27: 0 | BN27: 0 | BO27: 0 | BP27: 0 | BQ27: 0 | BR27: 0 | BS27: 0 | BT27: 0 | BU27: 0 | BV27: 0
B28: Outras | BJ28: 0 | BK28: 0 | BL28: 0 | BM28: 0 | BN28: 0 | BO28: 0 | BP28: 0 | BQ28: 0 | BR28: 0 | BS28: 0 | BT28: 0 | BU28: 0 | BV28: 0
B29: Custo da matéria prima consumida | BJ29: 0 | BK29: 0 | BL29: 0 | BM29: 0 | BN29: 0 | BO29: 0 | BP29: 0 | BQ29: 0 | BR29: 0 | BS29: 0 | BT29: 0 | BU29: 0 | BV29: 0
B30: Ressarcimento por indisponibilidade | BJ30: 0 | BK30: 0 | BL30: 0 | BM30: 0 | BN30: 0 | BO30: 0 | BP30: 0 | BQ30: 0 | BR30: 0 | BS30: 0 | BT30: 0 | BU30: 0 | BV30: 0
B31: Margem Bruta | C31: =C7+C10 -> 397113 | D31: =D7+D10 -> 477458 | E31: 455680 | F31: =F7+F10 -> 378745 | G31: 461407 | H31: 481351 | I31: 385490 | J31: 342684 | K31: 294598 | L31: 363771 | M31: 391528 | N31: 271196 | O31: 229169 | P31: 266577 | Q31: 277345 | R31: 362807 | S31: 233035 | T31: 268882 | U31: 241230 | V31: 217790 | W31: 230184 | X31: 249599 | Y31: 217056 | Z31: 208993 | AA31: 222901 | AB31: 239083 | AC31: 181061 | AD31: 206991 | AE31: 211987 | AF31: 182065 | AG31: 279651 | AH31: 229130 | AI31: 182733 | AJ31: 248803 | AK31: 491597 | AL31: 160318 | AM31: 74761 | AN31: 164581 | AO31: 129985 | AP31: 373356 | AQ31: 133744 | AR31: 168733 | AS31: 135895 | AT31: 110724 | AU31: 102884 | AV31: 182063 | AW31: 162977 | AX31: 208952 | AY31: 239453 | AZ31: 245892 | BA31: 192256 | BB31: 184489 | BC31: 207512 | BD31: 207562 | BE31: 223943 | BF31: 204083.4036 | BG31: 196769.5964 | BH31: 172738 | BJ31: 1386543 | BK31: 1158470 | BL31: 1142069 | BM31: 938803 | BN31: 888033 | BO31: 782104 | BP31: 940317 | BQ31: 891257 | BR31: 805818 | BS31: 531566 | BT31: 857274 | BU31: 791819 | BV31: 797534
B32: Gastos gerenciáveis | C32: =C33+C43+C45+C49 -> -402031 | D32: =D33+D43+D45+D49 -> -427848 | E32: -435725 | F32: =F33+F43+F45+F49 -> -447451 | G32: -366715 | H32: -375890 | I32: -320831 | J32: -301224 | K32: -294117 | L32: -255079 | M32: -272831 | N32: -231300 | O32: -257376 | P32: -262001 | Q32: -262142 | R32: -252450 | S32: -237256 | T32: -225367 | U32: -264588 | V32: -235447 | W32: -218600 | X32: -198803 | Y32: -193109 | Z32: -193522 | AA32: -210046 | AB32: -237011 | AC32: -226890 | AD32: -217273 | AE32: -204007 | AF32: -183115 | AG32: -225082 | AH32: -166116 | AI32: -142263 | AJ32: -158689 | AK32: -159180 | AL32: -177519 | AM32: -163678 | AN32: -152884 | AO32: -177699 | AP32: -198574 | AQ32: -141714 | AR32: -135276 | AS32: -131923 | AT32: -137861 | AU32: -94672 | AV32: -128905 | AW32: -162171 | AX32: -166702 | AY32: -197123 | AZ32: -98191 | BA32: -82173 | BB32: -107675.142 | BC32: -93933.85798 | BD32: -98831 | BE32: -114771 | BF32: -82334.47144 | BG32: -93915.52856 | BH32: -104895 | BJ32: -1171251 | BK32: -1023508 | BL32: -977215 | BM32: -917438 | BN32: -833688 | BO32: -831285 | BP32: -692150 | BQ32: -653261 | BR32: -653263 | BS32: -493361 | BT32: -624187 | BU32: -382613 | BV32: -395916
B33: Total do PMSO | C33: =C34+C35+C36+C37+C40 -> -144761 | D33: =D34+D35+D36+D37+D40 -> -146287 | E33: -130585 | F33: =F34+F35+F36+F37+F40 -> -164137 | G33: -142015 | H33: -131202 | I33: -130647 | J33: -109977 | K33: -126258 | L33: -121850 | M33: -130903 | N33: -108186 | O33: -124555 | P33: -129472 | Q33: -117005 | R33: -125736 | S33: -129303 | T33: -120624 | U33: -120254 | V33: -108666 | W33: -117763 | X33: -112638 | Y33: -103879 | Z33: -95653 | AA33: -110147 | AB33: -125878 | AC33: -116245 | AD33: -108231 | AE33: -120290 | AF33: -121707 | AG33: -116353 | AH33: -98569 | AI33: -101629 | AJ33: -105217 | AK33: -87023 | AL33: -87496 | AM33: -97892 | AN33: -96119 | AO33: -103390 | AP33: -101783 | AQ33: -92836 | AR33: -99655 | AS33: -75407 | AT33: -88951 | AU33: -75013 | AV33: -75106 | AW33: -109269 | AX33: -90835 | AY33: -96284 | AZ33: -79523 | BA33: -71442 | BB33: -86564.14202 | BC33: -73004.85798 | BD33: -77893 | BE33: -93534 | BF33: -62384.17483 | BG33: -72969.82517 | BH33: -82896 | BJ33: -488732 | BK33: -493116 | BL33: -492668 | BM33: -459321 | BN33: -435557 | BO33: -466473 | BP33: -421768 | BQ33: -368530 | BR33: -397664 | BS33: -314477 | BT33: -375911 | BU33: -308904 | BV33: -311784
A34: Pessoal, Administradores e Entidade de previdência privada | B34: Pessoal | C34: -52656 | D34: -54193 | E34: -49939 | F34: -48560 | G34: -52047 | H34: -51234 | I34: -50346 | J34: -35794 | K34: -44884 | L34: -44455 | M34: -49396 | N34: -42394 | O34: -41865 | P34: -47950 | Q34: -44478 | R34: -43660 | S34: -46930 | T34: -47070 | U34: -44126 | V34: -39168 | W34: -42239 | X34: -42912 | Y34: -42687 | Z34: -39026 | AA34: -39700 | AB34: -42574 | AC34: -38906 | AD34: -37585 | AE34: -41548 | AF34: -42879 | AG34: -46885 | AH34: -36698 | AI34: -37954 | AJ34: -39163 | AK34: -39627 | AL34: -32905 | AM34: -41168 | AN34: -35298 | AO34: -44125 | AP34: -36807 | AQ34: -32418 | AR34: -34301 | AS34: -35606 | AT34: -29289 | AU34: -25902 | AV34: -32004 | AW34: -34075 | AX34: -26661 | AY34: -23994 | AZ34: -23530 | BA34: -24971 | BB34: -20735 | BC34: -25284 | BD34: -25192 | BE34: -28270 | BF34: -24099 | BG34: -27485 | BH34: -30688 | BJ34: -175479 | BK34: -181605 | BL34: -182138 | BM34: -168445 | BN34: -163987 | BO34: -160918 | BP34: -160700 | BQ34: -148998 | BR34: -147651 | BS34: -122801 | BT34: -108260 | BU34: -96182 | BV34: -110542
B35: Material | C35: -7784 | D35: -6795 | E35: -6357 | F35: -6062 | G35: -7384 | H35: -5357 | I35: -6133 | J35: -4799 | K35: -4332 | L35: -3254 | M35: -4569 | N35: -3718 | O35: -4104 | P35: -4431 | Q35: -3856 | R35: -3835 | S35: -5300 | T35: -4307 | U35: -4475 | V35: -4414 | W35: -4723 | X35: -3067 | Y35: -3764 | Z35: -3227 | AA35: -3526 | AB35: -3466 | AC35: -4236 | AD35: -5298 | AE35: -3987 | AF35: -2947 | AG35: -4534 | AH35: -2932 | AI35: -3270 | AJ35: -2381 | AK35: -2884 | AL35: -3251 | AM35: -3208 | AN35: -2913 | AO35: -3828 | AP35: -2930 | AQ35: -3368 | AR35: -2938 | AS35: -2927 | AT35: -3236 | AU35: -3030 | AV35: -2645 | AW35: -3622 | AX35: -3414 | AY35: -3131 | AZ35: -2431 | BA35: -3394 | BB35: -2743 | BC35: -2199 | BD35: -2067 | BE35: -1505 | BF35: -2293 | BG35: -2467 | BH35: -2922 | BJ35: -18518 | BK35: -16822 | BL35: -17298 | BM35: -16679 | BN35: -13983 | BO35: -16468 | BP35: -13117 | BQ35: -12256 | BR35: -13064 | BS35: -11838 | BT35: -12598 | BU35: -10403 | BV35: -9187
B36: Serviços de terceiros | C36: -48255 | D36: -45358 | E36: -50495 | F36: -44121 | G36: -45266 | H36: -36669 | I36: -44792 | J36: -39346 | K36: -40882 | L36: -38560 | M36: -46267 | N36: -35956 | O36: -38680 | P36: -39391 | Q36: -44832 | R36: -42564 | S36: -41852 | T36: -41148 | U36: -55835 | V36: -41675 | W36: -39819 | X36: -39873 | Y36: -40676 | Z36: -40143 | AA36: -43603 | AB36: -43265 | AC36: -46995 | AD36: -38850 | AE36: -40170 | AF36: -37248 | AG36: -37182 | AH36: -36194 | AI36: -37435 | AJ36: -36604 | AK36: -41284 | AL36: -36416 | AM36: -33474 | AN36: -33664 | AO36: -40694 | AP36: -31161 | AQ36: -33937 | AR36: -32439 | AS36: -37207 | AT36: -31709 | AU36: -30780 | AV36: -35358 | AW36: -45776 | AX36: -34952 | AY36: -32022 | AZ36: -29357 | BA36: -35119 | BB36: -30122.14202 | BC36: -28712.85798 | BD36: -27957 | BE36: -28018 | BF36: -24129.17483 | BG36: -28141.82517 | BH36: -25191 | BJ36: -163580 | BK36: -160294 | BL36: -170396 | BM36: -177202 | BN36: -167687 | BO36: -163263 | BP36: -147415 | BQ36: -144838 | BR36: -138231 | BS36: -135054 | BT36: -142107 | BU36: -121911 | BV36: -105480
B37: Provisões | C37: =C38+C39 -> -29178 | D37: =D38+D39 -> -26117 | E37: -16010 | F37: =F38+F39 -> -51652 | G37: -31807 | H37: -24167 | I37: -24054 | J37: -23672 | K37: -23233 | L37: -22751 | M37: -24899 | N37: -18515 | O37: -29157 | P37: -23127 | Q37: -14182 | R37: -27115 | S37: -24732 | T37: -14295 | U37: -6473 | V37: -16798 | W37: -17476 | X37: -14296 | Y37: -7503 | Z37: -2948 | AA37: -12369 | AB37: -20147 | AC37: -13713 | AD37: -15002 | AE37: -19298 | AF37: -23446 | AG37: -13416 | AH37: -13660 | AI37: -13437 | AJ37: -14966 | AK37: -661 | AL37: -4775 | AM37: -11149 | AN37: -13028 | AO37: -6088 | AP37: -6425 | AQ37: -9704 | AR37: -19989 | AS37: -9648 | AT37: -11516 | AU37: -1810 | AV37: -5235 | AW37: -12786 | AX37: -11354 | AY37: -21131 | AZ37: -5304 | BA37: 3239 | BB37: -24170 | BC37: -9407 | BD37: -11337 | BE37: -23570 | BF37: -7310 | BG37: -12059 | BH37: -14410 | BJ37: -93710 | BK37: -95698 | BL37: -80324 | BM37: -55043 | BN37: -42967 | BO37: -71459 | BP37: -55479 | BQ37: -29613 | BR37: -42206 | BS37: -28209 | BT37: -50575 | BU37: -41675 | BV37: -57349
A38: PECLD / perdas líquidas | B38: Provisão p/créd.liq.duvidosa / perdas líquidas | C38: -22962 | D38: -20495 | E38: -19241 | F38: -29894 | G38: -26890 | H38: -19534 | I38: -23717 | J38: -19176 | K38: -19121 | L38: -17632 | M38: -21851 | N38: -14326 | O38: -25637 | P38: -18487 | Q38: -7206 | R38: -18350 | S38: -21149 | T38: -10409 | U38: 1738 | V38: -12636 | W38: -12212 | X38: -11979 | Y38: -5036 | Z38: -3176 | AA38: -14877 | AB38: -16136 | AC38: -8850 | AD38: -10759 | AE38: -18450 | AF38: -19914 | AG38: -7675 | AH38: -11505 | AI38: -8354 | AJ38: -10975 | AK38: 2960 | AL38: -2858 | AM38: -8786 | AN38: -11015 | AO38: -2354 | AP38: -5684 | AQ38: -2969 | AR38: -17323 | AS38: -5032 | AT38: -8171 | AU38: -6799 | AV38: -2634 | AW38: -10129 | AX38: -7804 | AY38: 4336 | AZ38: -4044 | BA38: 833 | BB38: -20892 | BC38: -8704 | BD38: -9822 | BE38: -17741 | BF38: -5974 | BG38: -11160 | BH38: -12774 | BJ38: -79646 | BK38: -80301 | BL38: -57114 | BM38: -35089 | BN38: -39225 | BO38: -57973 | BP38: -38509 | BQ38: -19699 | BR38: -28330 | BS38: -22636 | BT38: -17641 | BU38: -38585 | BV38: -47649
A39: Provisões cíveis, fiscais e trabalhistas | B39: Provisões para contingências | C39: -6216 | D39: -5622 | E39: 3231 | F39: -21758 | G39: -4917 | H39: -4633 | I39: -337 | J39: -4496 | K39: -4112 | L39: -5119 | M39: -3048 | N39: -4189 | O39: -3520 | P39: -4640 | Q39: -6976 | R39: -8765 | S39: -3583 | T39: -3886 | U39: -8211 | V39: -4162 | W39: -5264 | X39: -2317 | Y39: -2467 | Z39: 228 | AA39: 2508 | AB39: -4011 | AC39: -4863 | AD39: -4243 | AE39: -848 | AF39: -3532 | AG39: -5741 | AH39: -2155 | AI39: -5083 | AJ39: -3991 | AK39: -3621 | AL39: -1917 | AM39: -2363 | AN39: -2013 | AO39: -3734 | AP39: -741 | AQ39: -6735 | AR39: -2666 | AS39: -4616 | AT39: -3345 | AU39: 4989 | AV39: -2601 | AW39: -2657 | AX39: -3550 | AY39: -25467 | AZ39: -1260 | BA39: 2406 | BB39: -3278 | BC39: -703 | BD39: -1515 | BE39: -5829 | BF39: -1336 | BG39: -899 | BH39: -1636 | BJ39: -14064 | BK39: -15397 | BL39: -23210 | BM39: -19954 | BN39: -3742 | BO39: -13486 | BP39: -16970 | BQ39: -9914 | BR39: -13876 | BS39: -5573 | BT39: -32934 | BU39: -3090 | BV39: -9700
B40: Outros | C40: =C41+C42 -> -6888 | D40: =D41+D42 -> -13824 | E40: -7784 | F40: =F41+F42 -> -13742 | G40: -5511 | H40: -13775 | I40: -5322 | J40: -6366 | K40: -12927 | L40: -12830 | M40: -5772 | N40: -7603 | O40: -10749 | P40: -14573 | Q40: -9657 | R40: -8562 | S40: -10489 | T40: -13804 | U40: -132 | V40: -6611 | W40: -2764 | X40: -12490 | Y40: -1265 | Z40: -10309 | AA40: -10949 | AB40: -16426 | AC40: -12395 | AD40: -11496 | AE40: -15287 | AF40: -15187 | AG40: -14336 | AH40: 0 | AI40: -9533 | AJ40: -12103 | AK40: -2567 | AL40: -10149 | AM40: -8893 | AN40: -11216 | AO40: -8655 | AP40: -24460 | AQ40: -13409 | AR40: -9988 | AS40: 9981 | AT40: -13201 | AU40: -13491 | AV40: 136 | AW40: -13010 | AX40: -14454 | AY40: -16006 | AZ40: -18901 | BA40: -11197 | BB40: -8794 | BC40: -7402 | BD40: -11340 | BE40: -12171 | BF40: -4402 | BG40: -2968 | BH40: -9685 | BJ40: -37445 | BK40: -38697 | BL40: -42512 | BM40: -21997 | BN40: -38949 | BO40: -54365 | BP40: -35972 | BQ40: -32825 | BR40: -56512 | BS40: -16575 | BT40: -62371 | BU40: -38733 | BV40: -29226
A41: Arrendamentos e aluguéis | B41: Aluguéis e arrendamentos | C41: -1411 | D41: -1011 | E41: -628 | F41: -1682 | G41: -34 | H41: -1318 | I41: 150 | J41: -222 | K41: -85 | L41: 616 | M41: 1044 | N41: -686 | O41: -670 | P41: -781 | Q41: -419 | R41: -657 | S41: -783 | T41: -873 | U41: -2329 | V41: -1970 | W41: -2464 | X41: -1772 | Y41: -1920 | Z41: -1874 | AA41: -1585 | AB41: -1746 | AC41: -2385 | AD41: -2276 | AE41: -4286 | AF41: -2055 | AG41: -2582 | AH41: -1258 | AI41: -1144 | AJ41: -1099 | AK41: -1551 | AL41: -1891 | AM41: -1940 | AN41: -1366 | AO41: -1884 | AP41: -1382 | AQ41: -965 | AR41: -1196 | AS41: -1056 | AT41: -1098 | AU41: -1035 | AV41: -990 | AW41: -828 | AX41: -540 | AY41: -1122 | AZ41: -615 | BA41: -542 | BB41: -511 | BC41: -500 | BD41: -460 | BE41: 436 | BF41: -344 | BG41: -958 | BH41: -761 | BJ41: 459 | BK41: -1093 | BL41: -2732 | BM41: -8535 | BN41: -7125 | BO41: -11002 | BP41: -6083 | BQ41: -6748 | BR41: -5427 | BS41: -4179 | BT41: -3105 | BU41: -2013 | BV41: -1627
B42: Outras | C42: -5477 | D42: -12813 | E42: -7156 | F42: -12060 | G42: -5477 | H42: -12457 | I42: -5472 | J42: -6144 | K42: -12842 | L42: -13446 | M42: -6816 | N42: -6917 | O42: -10079 | P42: -13792 | Q42: -9238 | R42: -7905 | S42: -9706 | T42: -12931 | U42: -132 | V42: -4641 | W42: -300 | X42: -10718 | Y42: -7329 | Z42: -8435 | AA42: -9364 | AB42: -14680 | AC42: -10010 | AD42: -9220 | AE42: -11001 | AF42: -13132 | AG42: -11754 | AH42: 0 | AI42: -8389 | AJ42: -11004 | AK42: -1016 | AL42: -8258 | AM42: -6953 | AN42: -9850 | AO42: -6771 | AP42: -19469 | AQ42: -9191 | AR42: -2021 | AS42: -8289 | AT42: -7137 | AU42: -8042 | AV42: -6949 | AW42: -5953 | AX42: -8059 | AY42: -7895 | AZ42: -7087 | BA42: -4679 | BB42: -8283 | BC42: -6902 | BD42: -10880 | BE42: -12607 | BF42: -4058 | BG42: -2010 | BH42: -8924 | BJ42: -37904 | BK42: -37604 | BL42: -39780 | BM42: -15791 | BN42: -39808 | BO42: -43363 | BP42: -31147 | BQ42: -26077 | BR42: -37452 | BS42: -30417 | BT42: -28994 | BU42: -30744 | BV42: -27599
